{"text_format":"1","workbook":"xlsx","n_sheets":6,"sheets":["Titre","Chi2- Démo","Chi2 - Ex","Mesure d'association","Exercice compl.","Table Chi2"],"not_rendered":{"charts":2,"images":7,"macros":1,"external_links":0,"defined_names":8,"comments":3,"pivot_tables":0},"unopened":[],"bounds":{"document_bytes":16777216,"sheet_cells":100000,"rows_first":2000,"rows_last":500,"rows_between":2000,"halvings":0,"cell_chars":16384,"cell_head_chars":4096},"cells_cut":0,"cells_raw":0,"read":"whole","date_system":"1900"}

{"sheet":"Titre","index":0,"n_rows":7,"n_cols":7,"rows_kept":7,"cut":false,"hidden":false,"merged":[[4,6,4,10],[6,6,11,10]]}
[]
[]
[]
[]
[null,null,null,null,null,null,"Objectif du labo Excel 3"]
[]
[null,null,null,null,null,null,"Utiliser Excel pour approfondir l'analyse des tableaux bivariés à l'aide du test  du chi-carré (signification statistique d'une relation) et des mesures d'association (signification réelle d'une relation)"]

{"sheet":"Chi2- Démo","index":1,"n_rows":144,"n_cols":16377,"rows_kept":144,"cut":false,"hidden":false,"merged":[[143,1,143,8],[68,1,68,2],[69,1,69,2],[71,1,71,2],[62,1,62,8],[39,1,39,8],[40,1,40,8],[42,1,42,8],[67,1,67,2],[1,1,1,8],[5,1,5,8],[37,1,37,8],[44,1,44,8],[87,1,87,8],[93,2,93,6],[91,1,91,8],[82,1,82,8],[7,2,7,5],[56,2,56,5],[13,1,13,8],[15,1,15,8],[17,2,17,4],[48,2,48,5],[46,1,46,8],[54,1,54,8],[80,112,80,119],[80,120,80,127],[80,128,80,135],[80,136,80,143],[80,144,80,151],[80,72,80,79],[80,80,80,87],[80,88,80,95],[80,96,80,103],[80,104,80,111],[80,32,80,39],[80,40,80,47],[80,48,80,55],[80,56,80,63],[80,64,80,71],[141,1,141,8],[76,1,76,8],[79,1,79,8],[80,16,80,23],[80,24,80,31],[117,1,117,8],[119,1,120,8],[122,1,123,8],[125,1,126,8],[128,1,129,8],[131,1,132,8],[134,1,134,8],[135,1,135,8],[136,1,136,8],[138,4,138,5],[80,272,80,279],[80,280,80,287],[80,288,80,295],[80,296,80,303],[80,304,80,311],[80,232,80,239],[80,240,80,247],[80,248,80,255],[80,256,80,263],[80,264,80,271],[80,192,80,199],[80,200,80,207],[80,208,80,215],[80,216,80,223],[80,224,80,231],[80,152,80,159],[80,160,80,167],[80,168,80,175],[80,176,80,183],[80,184,80,191],[80,432,80,439],[80,440,80,447],[80,448,80,455],[80,456,80,463],[80,464,80,471],[80,392,80,399],[80,400,80,407],[80,408,80,415],[80,416,80,423],[80,424,80,431],[80,352,80,359],[80,360,80,367],[80,368,80,375],[80,376,80,383],[80,384,80,391],[80,312,80,319],[80,320,80,327],[80,328,80,335],[80,336,80,343],[80,344,80,351],[80,592,80,599],[80,600,80,607],[80,608,80,615],[80,616,80,623],[80,624,80,631],[80,552,80,559],[80,560,80,567],[80,568,80,575],[80,576,80,583],[80,584,80,591],[80,512,80,519],[80,520,80,527],[80,528,80,535],[80,536,80,543],[80,544,80,551],[80,472,80,479],[80,480,80,487],[80,488,80,495],[80,496,80,503],[80,504,80,511],[80,752,80,759],[80,760,80,767],[80,768,80,775],[80,776,80,783],[80,784,80,791],[80,712,80,719],[80,720,80,727],[80,728,80,735],[80,736,80,743],[80,744,80,751],[80,672,80,679],[80,680,80,687],[80,688,80,695],[80,696,80,703],[80,704,80,711],[80,632,80,639],[80,640,80,647],[80,648,80,655],[80,656,80,663],[80,664,80,671],[80,912,80,919],[80,920,80,927],[80,928,80,935],[80,936,80,943],[80,944,80,951],[80,872,80,879],[80,880,80,887],[80,888,80,895],[80,896,80,903],[80,904,80,911],[80,832,80,839],[80,840,80,847],[80,848,80,855],[80,856,80,863],[80,864,80,871],[80,792,80,799],[80,800,80,807],[80,808,80,815],[80,816,80,823],[80,824,80,831],[80,1072,80,1079],[80,1080,80,1087],[80,1088,80,1095],[80,1096,80,1103],[80,1104,80,1111],[80,1032,80,1039],[80,1040,80,1047],[80,1048,80,1055],[80,1056,80,1063],[80,1064,80,1071],[80,992,80,999],[80,1000,80,1007],[80,1008,80,1015],[80,1016,80,1023],[80,1024,80,1031],[80,952,80,959],[80,960,80,967],[80,968,80,975],[80,976,80,983],[80,984,80,991],[80,1232,80,1239],[80,1240,80,1247],[80,1248,80,1255],[80,1256,80,1263],[80,1264,80,1271],[80,1192,80,1199],[80,1200,80,1207],[80,1208,80,1215],[80,1216,80,1223],[80,1224,80,1231],[80,1152,80,1159],[80,1160,80,1167],[80,1168,80,1175],[80,1176,80,1183],[80,1184,80,1191],[80,1112,80,1119],[80,1120,80,1127],[80,1128,80,1135],[80,1136,80,1143],[80,1144,80,1151],[80,1392,80,1399],[80,1400,80,1407],[80,1408,80,1415],[80,1416,80,1423],[80,1424,80,1431],[80,1352,80,1359],[80,1360,80,1367],[80,1368,80,1375],[80,1376,80,1383],[80,1384,80,1391],[80,1312,80,1319],[80,1320,80,1327],[80,1328,80,1335],[80,1336,80,1343],[80,1344,80,1351],[80,1272,80,1279],[80,1280,80,1287],[80,1288,80,1295],[80,1296,80,1303],[80,1304,80,1311],[80,1552,80,1559],[80,1560,80,1567],[80,1568,80,1575],[80,1576,80,1583],[80,1584,80,1591],[80,1512,80,1519],[80,1520,80,1527],[80,1528,80,1535],[80,1536,80,1543],[80,1544,80,1551],[80,1472,80,1479],[80,1480,80,1487],[80,1488,80,1495],[80,1496,80,1503],[80,1504,80,1511],[80,1432,80,1439],[80,1440,80,1447],[80,1448,80,1455],[80,1456,80,1463],[80,1464,80,1471],[80,1712,80,1719],[80,1720,80,1727],[80,1728,80,1735],[80,1736,80,1743],[80,1744,80,1751],[80,1672,80,1679],[80,1680,80,1687],[80,1688,80,1695],[80,1696,80,1703],[80,1704,80,1711],[80,1632,80,1639],[80,1640,80,1647],[80,1648,80,1655],[80,1656,80,1663],[80,1664,80,1671],[80,1592,80,1599],[80,1600,80,1607],[80,1608,80,1615],[80,1616,80,1623],[80,1624,80,1631],[80,1872,80,1879],[80,1880,80,1887],[80,1888,80,1895],[80,1896,80,1903],[80,1904,80,1911],[80,1832,80,1839],[80,1840,80,1847],[80,1848,80,1855],[80,1856,80,1863],[80,1864,80,1871],[80,1792,80,1799],[80,1800,80,1807],[80,1808,80,1815],[80,1816,80,1823],[80,1824,80,1831],[80,1752,80,1759],[80,1760,80,1767],[80,1768,80,1775],[80,1776,80,1783],[80,1784,80,1791],[80,2032,80,2039],[80,2040,80,2047],[80,2048,80,2055],[80,2056,80,2063],[80,2064,80,2071],[80,1992,80,1999],[80,2000,80,2007],[80,2008,80,2015],[80,2016,80,2023],[80,2024,80,2031],[80,1952,80,1959],[80,1960,80,1967],[80,1968,80,1975],[80,1976,80,1983],[80,1984,80,1991],[80,1912,80,1919],[80,1920,80,1927],[80,1928,80,1935],[80,1936,80,1943],[80,1944,80,1951],[80,2192,80,2199],[80,2200,80,2207],[80,2208,80,2215],[80,2216,80,2223],[80,2224,80,2231],[80,2152,80,2159],[80,2160,80,2167],[80,2168,80,2175],[80,2176,80,2183],[80,2184,80,2191],[80,2112,80,2119],[80,2120,80,2127],[80,2128,80,2135],[80,2136,80,2143],[80,2144,80,2151],[80,2072,80,2079],[80,2080,80,2087],[80,2088,80,2095],[80,2096,80,2103],[80,2104,80,2111],[80,2352,80,2359],[80,2360,80,2367],[80,2368,80,2375],[80,2376,80,2383],[80,2384,80,2391],[80,2312,80,2319],[80,2320,80,2327],[80,2328,80,2335],[80,2336,80,2343],[80,2344,80,2351],[80,2272,80,2279],[80,2280,80,2287],[80,2288,80,2295],[80,2296,80,2303],[80,2304,80,2311],[80,2232,80,2239],[80,2240,80,2247],[80,2248,80,2255],[80,2256,80,2263],[80,2264,80,2271],[80,2512,80,2519],[80,2520,80,2527],[80,2528,80,2535],[80,2536,80,2543],[80,2544,80,2551],[80,2472,80,2479],[80,2480,80,2487],[80,2488,80,2495],[80,2496,80,2503],[80,2504,80,2511],[80,2432,80,2439],[80,2440,80,2447],[80,2448,80,2455],[80,2456,80,2463],[80,2464,80,2471],[80,2392,80,2399],[80,2400,80,2407],[80,2408,80,2415],[80,2416,80,2423],[80,2424,80,2431],[80,2672,80,2679],[80,2680,80,2687],[80,2688,80,2695],[80,2696,80,2703],[80,2704,80,2711],[80,2632,80,2639],[80,2640,80,2647],[80,2648,80,2655],[80,2656,80,2663],[80,2664,80,2671],[80,2592,80,2599],[80,2600,80,2607],[80,2608,80,2615],[80,2616,80,2623],[80,2624,80,2631],[80,2552,80,2559],[80,2560,80,2567],[80,2568,80,2575],[80,2576,80,2583],[80,2584,80,2591],[80,2832,80,2839],[80,2840,80,2847],[80,2848,80,2855],[80,2856,80,2863],[80,2864,80,2871],[80,2792,80,2799],[80,2800,80,2807],[80,2808,80,2815],[80,2816,80,2823],[80,2824,80,2831],[80,2752,80,2759],[80,2760,80,2767],[80,2768,80,2775],[80,2776,80,2783],[80,2784,80,2791],[80,2712,80,2719],[80,2720,80,2727],[80,2728,80,2735],[80,2736,80,2743],[80,2744,80,2751],[80,2992,80,2999],[80,3000,80,3007],[80,3008,80,3015],[80,3016,80,3023],[80,3024,80,3031],[80,2952,80,2959],[80,2960,80,2967],[80,2968,80,2975],[80,2976,80,2983],[80,2984,80,2991],[80,2912,80,2919],[80,2920,80,2927],[80,2928,80,2935],[80,2936,80,2943],[80,2944,80,2951],[80,2872,80,2879],[80,2880,80,2887],[80,2888,80,2895],[80,2896,80,2903],[80,2904,80,2911],[80,3152,80,3159],[80,3160,80,3167],[80,3168,80,3175],[80,3176,80,3183],[80,3184,80,3191],[80,3112,80,3119],[80,3120,80,3127],[80,3128,80,3135],[80,3136,80,3143],[80,3144,80,3151],[80,3072,80,3079],[80,3080,80,3087],[80,3088,80,3095],[80,3096,80,3103],[80,3104,80,3111],[80,3032,80,3039],[80,3040,80,3047],[80,3048,80,3055],[80,3056,80,3063],[80,3064,80,3071],[80,3312,80,3319],[80,3320,80,3327],[80,3328,80,3335],[80,3336,80,3343],[80,3344,80,3351],[80,3272,80,3279],[80,3280,80,3287],[80,3288,80,3295],[80,3296,80,3303],[80,3304,80,3311],[80,3232,80,3239],[80,3240,80,3247],[80,3248,80,3255],[80,3256,80,3263],[80,3264,80,3271],[80,3192,80,3199],[80,3200,80,3207],[80,3208,80,3215],[80,3216,80,3223],[80,3224,80,3231],[80,3472,80,3479],[80,3480,80,3487],[80,3488,80,3495],[80,3496,80,3503],[80,3504,80,3511],[80,3432,80,3439],[80,3440,80,3447],[80,3448,80,3455],[80,3456,80,3463],[80,3464,80,3471],[80,3392,80,3399],[80,3400,80,3407],[80,3408,80,3415],[80,3416,80,3423],[80,3424,80,3431],[80,3352,80,3359],[80,3360,80,3367],[80,3368,80,3375],[80,3376,80,3383],[80,3384,80,3391],[80,3632,80,3639],[80,3640,80,3647],[80,3648,80,3655],[80,3656,80,3663],[80,3664,80,3671],[80,3592,80,3599],[80,3600,80,3607],[80,3608,80,3615],[80,3616,80,3623],[80,3624,80,3631],[80,3552,80,3559],[80,3560,80,3567],[80,3568,80,3575],[80,3576,80,3583],[80,3584,80,3591],[80,3512,80,3519],[80,3520,80,3527],[80,3528,80,3535],[80,3536,80,3543],[80,3544,80,3551],[80,3792,80,3799],[80,3800,80,3807],[80,3808,80,3815],[80,3816,80,3823],[80,3824,80,3831],[80,3752,80,3759],[80,3760,80,3767],[80,3768,80,3775],[80,3776,80,3783],[80,3784,80,3791],[80,3712,80,3719],[80,3720,80,3727],[80,3728,80,3735],[80,3736,80,3743],[80,3744,80,3751],[80,3672,80,3679],[80,3680,80,3687],[80,3688,80,3695],[80,3696,80,3703],[80,3704,80,3711],[80,3952,80,3959],[80,3960,80,3967],[80,3968,80,3975],[80,3976,80,3983],[80,3984,80,3991],[80,3912,80,3919],[80,3920,80,3927],[80,3928,80,3935],[80,3936,80,3943],[80,3944,80,3951],[80,3872,80,3879],[80,3880,80,3887],[80,3888,80,3895],[80,3896,80,3903],[80,3904,80,3911],[80,3832,80,3839],[80,3840,80,3847],[80,3848,80,3855],[80,3856,80,3863],[80,3864,80,3871],[80,4112,80,4119],[80,4120,80,4127],[80,4128,80,4135],[80,4136,80,4143],[80,4144,80,4151],[80,4072,80,4079],[80,4080,80,4087],[80,4088,80,4095],[80,4096,80,4103],[80,4104,80,4111],[80,4032,80,4039],[80,4040,80,4047],[80,4048,80,4055],[80,4056,80,4063],[80,4064,80,4071],[80,3992,80,3999],[80,4000,80,4007],[80,4008,80,4015],[80,4016,80,4023],[80,4024,80,4031],[80,4272,80,4279],[80,4280,80,4287],[80,4288,80,4295],[80,4296,80,4303],[80,4304,80,4311],[80,4232,80,4239],[80,4240,80,4247],[80,4248,80,4255],[80,4256,80,4263],[80,4264,80,4271],[80,4192,80,4199],[80,4200,80,4207],[80,4208,80,4215],[80,4216,80,4223],[80,4224,80,4231],[80,4152,80,4159],[80,4160,80,4167],[80,4168,80,4175],[80,4176,80,4183],[80,4184,80,4191],[80,4432,80,4439],[80,4440,80,4447],[80,4448,80,4455],[80,4456,80,4463],[80,4464,80,4471],[80,4392,80,4399],[80,4400,80,4407],[80,4408,80,4415],[80,4416,80,4423],[80,4424,80,4431],[80,4352,80,4359],[80,4360,80,4367],[80,4368,80,4375],[80,4376,80,4383],[80,4384,80,4391],[80,4312,80,4319],[80,4320,80,4327],[80,4328,80,4335],[80,4336,80,4343],[80,4344,80,4351],[80,4592,80,4599],[80,4600,80,4607],[80,4608,80,4615],[80,4616,80,4623],[80,4624,80,4631],[80,4552,80,4559],[80,4560,80,4567],[80,4568,80,4575],[80,4576,80,4583],[80,4584,80,4591],[80,4512,80,4519],[80,4520,80,4527],[80,4528,80,4535],[80,4536,80,4543],[80,4544,80,4551],[80,4472,80,4479],[80,4480,80,4487],[80,4488,80,4495],[80,4496,80,4503],[80,4504,80,4511],[80,4752,80,4759],[80,4760,80,4767],[80,4768,80,4775],[80,4776,80,4783],[80,4784,80,4791],[80,4712,80,4719],[80,4720,80,4727],[80,4728,80,4735],[80,4736,80,4743],[80,4744,80,4751],[80,4672,80,4679],[80,4680,80,4687],[80,4688,80,4695],[80,4696,80,4703],[80,4704,80,4711],[80,4632,80,4639],[80,4640,80,4647],[80,4648,80,4655],[80,4656,80,4663],[80,4664,80,4671],[80,4912,80,4919],[80,4920,80,4927],[80,4928,80,4935],[80,4936,80,4943],[80,4944,80,4951],[80,4872,80,4879],[80,4880,80,4887],[80,4888,80,4895],[80,4896,80,4903],[80,4904,80,4911],[80,4832,80,4839],[80,4840,80,4847],[80,4848,80,4855],[80,4856,80,4863],[80,4864,80,4871],[80,4792,80,4799],[80,4800,80,4807],[80,4808,80,4815],[80,4816,80,4823],[80,4824,80,4831],[80,5072,80,5079],[80,5080,80,5087],[80,5088,80,5095],[80,5096,80,5103],[80,5104,80,5111],[80,5032,80,5039],[80,5040,80,5047],[80,5048,80,5055],[80,5056,80,5063],[80,5064,80,5071],[80,4992,80,4999],[80,5000,80,5007],[80,5008,80,5015],[80,5016,80,5023],[80,5024,80,5031],[80,4952,80,4959],[80,4960,80,4967],[80,4968,80,4975],[80,4976,80,4983],[80,4984,80,4991],[80,5232,80,5239],[80,5240,80,5247],[80,5248,80,5255],[80,5256,80,5263],[80,5264,80,5271],[80,5192,80,5199],[80,5200,80,5207],[80,5208,80,5215],[80,5216,80,5223],[80,5224,80,5231],[80,5152,80,5159],[80,5160,80,5167],[80,5168,80,5175],[80,5176,80,5183],[80,5184,80,5191],[80,5112,80,5119],[80,5120,80,5127],[80,5128,80,5135],[80,5136,80,5143],[80,5144,80,5151],[80,5392,80,5399],[80,5400,80,5407],[80,5408,80,5415],[80,5416,80,5423],[80,5424,80,5431],[80,5352,80,5359],[80,5360,80,5367],[80,5368,80,5375],[80,5376,80,5383],[80,5384,80,5391],[80,5312,80,5319],[80,5320,80,5327],[80,5328,80,5335],[80,5336,80,5343],[80,5344,80,5351],[80,5272,80,5279],[80,5280,80,5287],[80,5288,80,5295],[80,5296,80,5303],[80,5304,80,5311],[80,5552,80,5559],[80,5560,80,5567],[80,5568,80,5575],[80,5576,80,5583],[80,5584,80,5591],[80,5512,80,5519],[80,5520,80,5527],[80,5528,80,5535],[80,5536,80,5543],[80,5544,80,5551],[80,5472,80,5479],[80,5480,80,5487],[80,5488,80,5495],[80,5496,80,5503],[80,5504,80,5511],[80,5432,80,5439],[80,5440,80,5447],[80,5448,80,5455],[80,5456,80,5463],[80,5464,80,5471],[80,5712,80,5719],[80,5720,80,5727],[80,5728,80,5735],[80,5736,80,5743],[80,5744,80,5751],[80,5672,80,5679],[80,5680,80,5687],[80,5688,80,5695],[80,5696,80,5703],[80,5704,80,5711],[80,5632,80,5639],[80,5640,80,5647],[80,5648,80,5655],[80,5656,80,5663],[80,5664,80,5671],[80,5592,80,5599],[80,5600,80,5607],[80,5608,80,5615],[80,5616,80,5623],[80,5624,80,5631],[80,5872,80,5879],[80,5880,80,5887],[80,5888,80,5895],[80,5896,80,5903],[80,5904,80,5911],[80,5832,80,5839],[80,5840,80,5847],[80,5848,80,5855],[80,5856,80,5863],[80,5864,80,5871],[80,5792,80,5799],[80,5800,80,5807],[80,5808,80,5815],[80,5816,80,5823],[80,5824,80,5831],[80,5752,80,5759],[80,5760,80,5767],[80,5768,80,5775],[80,5776,80,5783],[80,5784,80,5791],[80,6032,80,6039],[80,6040,80,6047],[80,6048,80,6055],[80,6056,80,6063],[80,6064,80,6071],[80,5992,80,5999],[80,6000,80,6007],[80,6008,80,6015],[80,6016,80,6023],[80,6024,80,6031],[80,5952,80,5959],[80,5960,80,5967],[80,5968,80,5975],[80,5976,80,5983],[80,5984,80,5991],[80,5912,80,5919],[80,5920,80,5927],[80,5928,80,5935],[80,5936,80,5943],[80,5944,80,5951],[80,6192,80,6199],[80,6200,80,6207],[80,6208,80,6215],[80,6216,80,6223],[80,6224,80,6231],[80,6152,80,6159],[80,6160,80,6167],[80,6168,80,6175],[80,6176,80,6183],[80,6184,80,6191],[80,6112,80,6119],[80,6120,80,6127],[80,6128,80,6135],[80,6136,80,6143],[80,6144,80,6151],[80,6072,80,6079],[80,6080,80,6087],[80,6088,80,6095],[80,6096,80,6103],[80,6104,80,6111],[80,6352,80,6359],[80,6360,80,6367],[80,6368,80,6375],[80,6376,80,6383],[80,6384,80,6391],[80,6312,80,6319],[80,6320,80,6327],[80,6328,80,6335],[80,6336,80,6343],[80,6344,80,6351],[80,6272,80,6279],[80,6280,80,6287],[80,6288,80,6295],[80,6296,80,6303],[80,6304,80,6311],[80,6232,80,6239],[80,6240,80,6247],[80,6248,80,6255],[80,6256,80,6263],[80,6264,80,6271],[80,6512,80,6519],[80,6520,80,6527],[80,6528,80,6535],[80,6536,80,6543],[80,6544,80,6551],[80,6472,80,6479],[80,6480,80,6487],[80,6488,80,6495],[80,6496,80,6503],[80,6504,80,6511],[80,6432,80,6439],[80,6440,80,6447],[80,6448,80,6455],[80,6456,80,6463],[80,6464,80,6471],[80,6392,80,6399],[80,6400,80,6407],[80,6408,80,6415],[80,6416,80,6423],[80,6424,80,6431],[80,6672,80,6679],[80,6680,80,6687],[80,6688,80,6695],[80,6696,80,6703],[80,6704,80,6711],[80,6632,80,6639],[80,6640,80,6647],[80,6648,80,6655],[80,6656,80,6663],[80,6664,80,6671],[80,6592,80,6599],[80,6600,80,6607],[80,6608,80,6615],[80,6616,80,6623],[80,6624,80,6631],[80,6552,80,6559],[80,6560,80,6567],[80,6568,80,6575],[80,6576,80,6583],[80,6584,80,6591],[80,6832,80,6839],[80,6840,80,6847],[80,6848,80,6855],[80,6856,80,6863],[80,6864,80,6871],[80,6792,80,6799],[80,6800,80,6807],[80,6808,80,6815],[80,6816,80,6823],[80,6824,80,6831],[80,6752,80,6759],[80,6760,80,6767],[80,6768,80,6775],[80,6776,80,6783],[80,6784,80,6791],[80,6712,80,6719],[80,6720,80,6727],[80,6728,80,6735],[80,6736,80,6743],[80,6744,80,6751],[80,6992,80,6999],[80,7000,80,7007],[80,7008,80,7015],[80,7016,80,7023],[80,7024,80,7031],[80,6952,80,6959],[80,6960,80,6967],[80,6968,80,6975],[80,6976,80,6983],[80,6984,80,6991],[80,6912,80,6919],[80,6920,80,6927],[80,6928,80,6935],[80,6936,80,6943],[80,6944,80,6951],[80,6872,80,6879],[80,6880,80,6887],[80,6888,80,6895],[80,6896,80,6903],[80,6904,80,6911],[80,7152,80,7159],[80,7160,80,7167],[80,7168,80,7175],[80,7176,80,7183],[80,7184,80,7191],[80,7112,80,7119],[80,7120,80,7127],[80,7128,80,7135],[80,7136,80,7143],[80,7144,80,7151],[80,7072,80,7079],[80,7080,80,7087],[80,7088,80,7095],[80,7096,80,7103],[80,7104,80,7111],[80,7032,80,7039],[80,7040,80,7047],[80,7048,80,7055],[80,7056,80,7063],[80,7064,80,7071],[80,7312,80,7319],[80,7320,80,7327],[80,7328,80,7335],[80,7336,80,7343],[80,7344,80,7351],[80,7272,80,7279],[80,7280,80,7287],[80,7288,80,7295],[80,7296,80,7303],[80,7304,80,7311],[80,7232,80,7239],[80,7240,80,7247],[80,7248,80,7255],[80,7256,80,7263],[80,7264,80,7271],[80,7192,80,7199],[80,7200,80,7207],[80,7208,80,7215],[80,7216,80,7223],[80,7224,80,7231],[80,7472,80,7479],[80,7480,80,7487],[80,7488,80,7495],[80,7496,80,7503],[80,7504,80,7511],[80,7432,80,7439],[80,7440,80,7447],[80,7448,80,7455],[80,7456,80,7463],[80,7464,80,7471],[80,7392,80,7399],[80,7400,80,7407],[80,7408,80,7415],[80,7416,80,7423],[80,7424,80,7431],[80,7352,80,7359],[80,7360,80,7367],[80,7368,80,7375],[80,7376,80,7383],[80,7384,80,7391],[80,7632,80,7639],[80,7640,80,7647],[80,7648,80,7655],[80,7656,80,7663],[80,7664,80,7671],[80,7592,80,7599],[80,7600,80,7607],[80,7608,80,7615],[80,7616,80,7623],[80,7624,80,7631],[80,7552,80,7559],[80,7560,80,7567],[80,7568,80,7575],[80,7576,80,7583],[80,7584,80,7591],[80,7512,80,7519],[80,7520,80,7527],[80,7528,80,7535],[80,7536,80,7543],[80,7544,80,7551],[80,7792,80,7799],[80,7800,80,7807],[80,7808,80,7815],[80,7816,80,7823],[80,7824,80,7831]],"merged_total":2085,"flags":["merged_cut"]}
[]
[null,"Démonstration : Test d'indépendance ou d'association du c2  (test bivarié)"]
[]
[null,"Y a-t-il une relation d'association entre la désobéissance civile et le niveau d'instruction? (Fox: 127)"]
[]
[null,"Attitude face à la désobéissance civile selon le niveau d'instruction (en fréquences observées)"]
[]
[null,null,"Niveau d'instruction"]
[null,"Désobéissance civile","Moins que le secondaire","Secondaire","Post-secondaire","Totaux marginaux"]
[null,"Conscience",4,13,12,29]
[null,"Obéir aux lois",6,11,4,21]
[null,"Totaux marginaux",10,24,16,50]
[]
[null,"1. Construisons le tableau bivarié en % et le diagramme en bâtons juxtaposés et analysons-les"]
[]
[null,"Attitude face à la désobéissance civile selon le niveau d'instruction (en %)"]
[]
[null,null,"Niveau d'instruction"]
[null,"Désobéissance civile","Moins que le secondaire","Secondaire","Post-secondaire"]
[null,"Conscience",{"$f":"C10/10*100","v":40},{"$f":"13/24*100","v":54},{"$f":"12/16*100","v":75}]
[null,"Obéir aux lois",{"$f":"C11/10*100","v":60},{"$f":"11/24*100","v":46},{"$f":"4/16*100","v":25}]
[null,"Total",{"$f":"SUM(C20:C21)","v":100},{"$f":"SUM(D20:D21)","v":100},{"$f":"SUM(E20:E21)","v":100}]
[]
[]
[]
[]
[]
[]
[]
[]
[]
[]
[]
[]
[]
[]
[]
[null,"2. Formulons les hypothèses statistiques du test"]
[]
[null,"H0 : Les variables \"niveau d'instruction\" et \"attitude face à la désobéissance civile\" sont indépendantes dans la population"]
[null,"H1 : Les variables \"niveau d'instruction\" et \"attitude face à la désobéissance civile\" sont dépendantes dans la population"]
[]
[null,"3. Calculons les fréquences attendues (théoriques) selon l'hypothèse nulle"]
[]
[null,"Fréquence antendue = (Fréquence du total rangée*Fréquence du total colonne) / Grand n"]
[]
[null,"Calcul des fréquences attendues pour l'attitude face à la désobéissance civile selon le niveau d'instruction"]
[]
[null,null,"Niveau d'instruction"]
[null,"Désobéissance civile","Moins que le secondaire","Secondaire","Post-secondaire","Totaux marginaux"]
[null,"Conscience","=(29*10)/50","=(29*24)/50","=29*16/50",29]
[null,"Obéir aux lois","=21*10/50","=21*24/50","=21*16/50",21]
[null,"Totaux marginaux",10,24,16,50]
[]
[null,"Attitude face à la désobéissance civile selon le niveau d'instruction (en fréquences anticipées)"]
[]
[null,null,"Niveau d'instruction"]
[null,"Désobéissance civile","Moins que le secondaire","Secondaire","Post-secondaire","Totaux marginaux"]
[null,"Conscience",{"$f":"(29*10)/50","v":5.8},{"$f":"(29*24)/50","v":13.92},{"$f":"29*16/50","v":9.2799999999999994},29]
[null,"Obéir aux lois",{"$f":"21*10/50","v":4.2},{"$f":"21*24/50","v":10.08},{"$f":"21*16/50","v":6.72},21]
[null,"Totaux marginaux",10,24,16,50]
[]
[null,"4. Calculons maintenant le chi-carré"]
[]
[]
[]
[]
[null,"Combinaison de catégories",null,"F0","Fa","F0  -    Fa","(F0  -    Fa )2","(F0  -    Fa )2  /Fa"]
[null,"Moins que secondaire et conscience",null,4,{"$f":"(29*10)/50","v":5.8},{"$f":"D69-E69","v":-1.8},{"$f":"F69*F69","v":3.24},{"$f":"G69/E69","v":0.56000000000000005}]
[null,"Secondaire et conscience",null,13,{"$f":"(29*24)/50","v":13.92},{"$f":"D70-E70","v":-0.92},{"$f":"F70*F70","v":0.85},{"$f":"G70/E70","v":0.06}]
[null,"Postsecondaire et conscience",null,12,{"$f":"29*16/50","v":9.2799999999999994},2.72,7.4,0.8]
[null,"Moins que secondaire et obéir aux lois",null,6,{"$f":"210/50","v":4.2},1.8,3.24,0.77]
[null,"Secondaire et obéir aux lois",null,11,{"$f":"21*24/50","v":10.08},0.92,0.85,0.08]
[null,"Postsecondaire et obéir aux lois",null,4,{"$f":"21*16/50","v":6.72},-2.72,7.4,1.1000000000000001]
[null,null,null,"Total",null,{"$f":"SUM(F69:F74)","v":0},"c 2 =    ",{"$f":"SUM(H69:H74)","v":3.37},"∑ (F0 - Fa )2 /Fa"]
[]
[null,"a. S'il n'y avait pas de relation entre le niveau d'instruction et la désobéissance civile dans la population, combien de répondants n'ayant pas le niveau secondaire suivraient leur conscience?"]
[null,null,null,null,6,5.8]
[]
[null,"b. S'il n'y avait pas de relation entre le niveau d'instruction et la désobéissance civile dans la population, combien de répondants ayant le niveau post-secondaire suivraient leur conscience?"]
[null,null,null,null,9,9.2799999999999994,null,null,null,null,null,null,null,null,null,null,null,null,null,null,null,null,null,null,"1. S'il n'y avait pas de relation entre le type de présentation et l'intérêt dans la matière, combien d'étudiants voudraient en savoir plus dans le cas d'une présentation de type filmographique?",null,null,null,null,null,null,null,"1. S'il n'y avait pas de relation entre le type de présentation et l'intérêt dans la matière, combien d'étudiants voudraient en savoir plus dans le cas d'une présentation de type filmographique?",null,null,null,null,null,null,null,"1. S'il n'y avait pas de relation entre le type de présentation et l'intérêt dans la matière, combien d'étudiants voudraient en savoir plus dans le cas d'une présentation de type filmographique?",null,null,null,null,null,null,null,"1. S'il n'y avait pas de relation entre le type de présentation et l'intérêt dans la matière, combien d'étudiants voudraient en savoir plus dans le cas d'une présentation de type filmographique?",null,null,null,null,null,null,null,"1. S'il n'y avait pas de relation entre le type de présentation et l'intérêt dans la matière, combien d'étudiants voudraient en savoir plus dans le cas d'une présentation de type filmographique?",null,null,null,null,null,null,null,"1. S'il n'y avait pas de relation entre le type de présentation et l'intérêt dans la matière, combien d'étudiants voudraient en savoir plus dans le cas d'une présentation de type filmographique?",null,null,null,null,null,null,null,"1. S'il n'y avait pas de relation entre le type de présentation et l'intérêt dans la matière, combien d'étudiants voudraient en savoir plus dans le cas d'une présentation de type filmographique?",null,null,null,null,null,null,null,"1. S'il n'y avait pas de relation entre le type de présentation et l'intérêt dans la matière, combien d'étudiants voudraient en savoir plus dans le cas d'une présentation de type filmographique?",null,null,null,null,null,null,null,"1. S'il n'y avait pas de relation entre le type de présentation et l'intérêt dans la matière, combien d'étudiants voudraient en savoir plus dans le cas d'une présentation de type filmographique?",null,null,null,null,null,null,null,"1. S'il n'y avait pas de relation entre le type de présentation et l'intérêt dans la matière, combien d'étudiants voudraient en savoir plus dans le cas d'une présentation de type filmographique?",null,null,null,null,null,null,null,"1. S'il n'y avait pas de relation entre le type de présentation et l'intérêt dans la matière, combien d'étudiants voudraient en savoir plus dans le cas d'une présentation de type filmographique?",null,null,null,null,null,null,null,"1. S'il n'y avait pas de relation entre le type de présentation et l'intérêt dans la matière, combien d'étudiants voudraient en savoir plus dans le cas d'une présentation de type filmographique?",null,null,null,null,null,null,null,"1. S'il n'y avait pas de relation entre le type de présentation et l'intérêt dans la matière, combien d'étudiants voudraient en savoir plus dans le cas d'une présentation de type filmographique?",null,null,null,null,null,null,null,"1. S'il n'y avait pas de relation entre le type de présentation et l'intérêt dans la matière, combien d'étudiants voudraient en savoir plus dans le cas d'une présentation de type filmographique?",null,null,null,null,null,null,null,"1. S'il n'y avait pas de relation entre le type de présentation et l'intérêt dans la matière, combien d'étudiants voudraient en savoir plus dans le cas d'une présentation de type filmographique?",null,null,null,null,null,null,null,"1. S'il n'y avait pas de relation entre le type de présentation et l'intérêt dans la matière, combien d'étudiants voudraient en savoir plus dans le cas d'une présentation de type filmographique?",null,null,null,null,null,null,null,"1. S'il n'y avait pas de relation entre le type de présentation et l'intérêt dans la matière, combien d'étudiants voudraient en savoir plus dans le cas d'une présentation de type filmographique?",null,null,null,null,null,null,null,"1. S'il n'y avait pas de relation entre le type de présentation et l'intérêt dans la matière, combien d'étudiants voudraient en savoir plus dans le cas d'une présentation de type filmographique?",null,null,null,null,null,null,null,"1. S'il n'y avait pas de relation entre le type de présentation et l'intérêt dans la matière, combien d'étudiants voudraient en savoir plus dans le cas d'une présentation de type filmographique?",null,null,null,null,null,null,null,"1. S'il n'y avait pas de relation entre le type de présentation et l'intérêt dans la matière, combien d'étudiants voudraient en savoir plus dans le cas d'une présentation de type filmographique?",null,null,null,null,null,null,null,"1. S'il n'y avait pas de relation entre le type de présentation et l'intérêt dans la matière, combien d'étudiants voudraient en savoir plus dans le cas d'une présentation de type filmographique?",null,null,null,null,null,null,null,"1. S'il n'y avait pas de relation entre le type de présentation et l'intérêt dans la matière, combien d'étudiants voudraient en savoir plus dans le cas d'une présentation de type filmographique?",null,null,null,null,null,null,null,"1. S'il n'y avait pas de relation entre le type de présentation et l'intérêt dans la matière, combien d'étudiants voudraient en savoir plus dans le cas d'une présentation de type filmographique?",null,null,null,null,null,null,null,"1. S'il n'y avait pas de relation entre le type de présentation et l'intérêt dans la matière, combien d'étudiants voudraient en savoir plus dans le cas d'une présentation de type filmographique?",null,null,null,null,null,null,null,"1. S'il n'y avait pas de relation entre le type de présentation et l'intérêt dans la matière, combien d'étudiants voudraient en savoir plus dans le cas d'une présentation de type filmographique?",null,null,null,null,null,null,null,"1. S'il n'y avait pas de relation entre le type de présentation et l'intérêt dans la matière, combien d'étudiants voudraient en savoir plus dans le cas d'une présentation de type filmographique?",null,null,null,null,null,null,null,"1. S'il n'y avait pas de relation entre le type de présentation et l'intérêt dans la matière, combien d'étudiants voudraient en savoir plus dans le cas d'une présentation de type filmographique?",null,null,null,null,null,null,null,"1. S'il n'y avait pas de relation entre le type de présentation et l'intérêt dans la matière, combien d'étudiants voudraient en savoir plus dans le cas d'une présentation de type filmographique?",null,null,null,null,null,null,null,"1. S'il n'y avait pas de relation entre le type de présentation et l'intérêt dans la matière, combien d'étudiants voudraient en savoir plus dans le cas d'une présentation de type filmographique?",null,null,null,null,null,null,null,"1. S'il n'y avait pas de relation entre le type de présentation et l'intérêt dans la matière, combien d'étudiants voudraient en savoir plus dans le cas d'une présentation de type filmographique?",null,null,null,null,null,null,null,"1. S'il n'y avait pas de relation entre le type de présentation et l'intérêt dans la matière, combien d'étudiants voudraient en savoir plus dans le cas d'une présentation de type filmographique?",null,null,null,null,null,null,null,"1. S'il n'y avait pas de relation entre le type de présentation et l'intérêt dans la matière, combien d'étudiants voudraient en savoir plus dans le cas d'une présentation de type filmographique?",null,null,null,null,null,null,null,"1. S'il n'y avait pas de relation entre le type de présentation et l'intérêt dans la matière, combien d'étudiants voudraient en savoir plus dans le cas d'une présentation de type filmographique?",null,null,null,null,null,null,null,"1. S'il n'y avait pas de relation entre le type de présentation et l'intérêt dans la matière, combien d'étudiants voudraient en savoir plus dans le cas d'une présentation de type filmographique?",null,null,null,null,null,null,null,"1. S'il n'y avait pas de relation entre le type de présentation et l'intérêt dans la matière, combien d'étudiants voudraient en savoir plus dans le cas d'une présentation de type filmographique?",null,null,null,null,null,null,null,"1. S'il n'y avait pas de relation entre le type de présentation et l'intérêt dans la matière, combien d'étudiants voudraient en savoir plus dans le cas d'une présentation de type filmographique?",null,null,null,null,null,null,null,"1. S'il n'y avait pas de relation entre le type de présentation et l'intérêt dans la matière, combien d'étudiants voudraient en savoir plus dans le cas d'une présentation de type filmographique?",null,null,null,null,null,null,null,"1. S'il n'y avait pas de relation entre le type de présentation et l'intérêt dans la matière, combien d'étudiants voudraient en savoir plus dans le cas d'une présentation de type filmographique?",null,null,null,null,null,null,null,"1. S'il n'y avait pas de relation entre le type de présentation et l'intérêt dans la matière, combien d'étudiants voudraient en savoir plus dans le cas d'une présentation de type filmographique?",null,null,null,null,null,null,null,"1. S'il n'y avait pas de relation entre le type de présentation et l'intérêt dans la matière, combien d'étudiants voudraient en savoir plus dans le cas d'une présentation de type filmographique?",null,null,null,null,null,null,null,"1. S'il n'y avait pas de relation entre le type de présentation et l'intérêt dans la matière, combien d'étudiants voudraient en savoir plus dans le cas d'une présentation de type filmographique?",null,null,null,null,null,null,null,"1. S'il n'y avait pas de relation entre le type de présentation et l'intérêt dans la matière, combien d'étudiants voudraient en savoir plus dans le cas d'une présentation de type filmographique?",null,null,null,null,null,null,null,"1. S'il n'y avait pas de relation entre le type de présentation et l'intérêt dans la matière, combien d'étudiants voudraient en savoir plus dans le cas d'une présentation de type filmographique?",null,null,null,null,null,null,null,"1. S'il n'y avait pas de relation entre le type de présentation et l'intérêt dans la matière, combien d'étudiants voudraient en savoir plus dans le cas d'une présentation de type filmographique?",null,null,null,null,null,null,null,"1. S'il n'y avait pas de relation entre le type de présentation et l'intérêt dans la matière, combien d'étudiants voudraient en savoir plus dans le cas d'une présentation de type filmographique?",null,null,null,null,null,null,null,"1. S'il n'y avait pas de relation entre le type de présentation et l'intérêt dans la matière, combien d'étudiants voudraient en savoir plus dans le cas d'une présentation de type filmographique?",null,null,null,null,null,null,null,"1. S'il n'y avait pas de relation entre le type de présentation et l'intérêt dans la matière, combien d'étudiants voudraient en savoir plus dans le cas d'une présentation de type filmographique?",null,null,null,null,null,null,null,"1. S'il n'y avait pas de relation entre le type de présentation et l'intérêt dans la matière, combien d'étudiants voudraient en savoir plus dans le cas d'une présentation de type filmographique?",null,null,null,null,null,null,null,"1. S'il n'y avait pas de relation entre le type de présentation et l'intérêt dans la matière, combien d'étudiants voudraient en savoir plus dans le cas d'une présentation de type filmographique?",null,null,null,null,null,null,null,"1. S'il n'y avait pas de relation entre le type de présentation et l'intérêt dans la matière, combien d'étudiants voudraient en savoir plus dans le cas d'une présentation de type filmographique?",null,null,null,null,null,null,null,"1. S'il n'y avait pas de relation entre le type de présentation et l'intérêt dans la matière, combien d'étudiants voudraient en savoir plus dans le cas d'une présentation de type filmographique?",null,null,null,null,null,null,null,"1. S'il n'y avait pas de relation entre le type de présentation et l'intérêt dans la matière, combien d'étudiants voudraient en savoir plus dans le cas d'une présentation de type filmographique?",null,null,null,null,null,null,null,"1. S'il n'y avait pas de relation entre le type de présentation et l'intérêt dans la matière, combien d'étudiants voudraient en savoir plus dans le cas d'une présentation de type filmographique?",null,null,null,null,null,null,null,"1. S'il n'y avait pas de relation entre le type de présentation et l'intérêt dans la matière, combien d'étudiants voudraient en savoir plus dans le cas d'une présentation de type filmographique?",null,null,null,null,null,null,null,"1. S'il n'y avait pas de relation entre le type de présentation et l'intérêt dans la matière, combien d'étudiants voudraient en savoir plus dans le cas d'une présentation de type filmographique?",null,null,null,null,null,null,null,"1. S'il n'y avait pas de relation entre le type de présentation et l'intérêt dans la matière, combien d'étudiants voudraient en savoir plus dans le cas d'une présentation de type filmographique?",null,null,null,null,null,null,null,"1. S'il n'y avait pas de relation entre le type de présentation et l'intérêt dans la matière, combien d'étudiants voudraient en savoir plus dans le cas d'une présentation de type filmographique?",null,null,null,null,null,null,null,"1. S'il n'y avait pas de relation entre le type de présentation et l'intérêt dans la matière, combien d'étudiants voudraient en savoir plus dans le cas d'une présentation de type filmographique?",null,null,null,null,null,null,null,"1. S'il n'y avait pas de relation entre le type de présentation et l'intérêt dans la matière, combien d'étudiants voudraient en savoir plus dans le cas d'une présentation de type filmographique?",null,null,null,null,null,null,null,"1. S'il n'y avait pas de relation entre le type de présentation et l'intérêt dans la matière, combien d'étudiants voudraient en savoir plus dans le cas d'une présentation de type filmographique?",null,null,null,null,null,null,null,"1. S'il n'y avait pas de relation entre le type de présentation et l'intérêt dans la matière, combien d'étudiants voudraient en savoir plus dans le cas d'une présentation de type filmographique?",null,null,null,null,null,null,null,"1. S'il n'y avait pas de relation entre le type de présentation et l'intérêt dans la matière, combien d'étudiants voudraient en savoir plus dans le cas d'une présentation de type filmographique?",null,null,null,null,null,null,null,"1. S'il n'y avait pas de relation entre le type de présentation et l'intérêt dans la matière, combien d'étudiants voudraient en savoir plus dans le cas d'une présentation de type filmographique?",null,null,null,null,null,null,null,"1. S'il n'y avait pas de relation entre le type de présentation et l'intérêt dans la matière, combien d'étudiants voudraient en savoir plus dans le cas d'une présentation de type filmographique?",null,null,null,null,null,null,null,"1. S'il n'y avait pas de relation entre le type de présentation et l'intérêt dans la matière, combien d'étudiants voudraient en savoir plus dans le cas d'une présentation de type filmographique?",null,null,null,null,null,null,null,"1. S'il n'y avait pas de relation entre le type de présentation et l'intérêt dans la matière, combien d'étudiants voudraient en savoir plus dans le cas d'une présentation de type filmographique?",null,null,null,null,null,null,null,"1. S'il n'y avait pas de relation entre le type de présentation et l'intérêt dans la matière, combien d'étudiants voudraient en savoir plus dans le cas d'une présentation de type filmographique?",null,null,null,null,null,null,null,"1. S'il n'y avait pas de relation entre le type de présentation et l'intérêt dans la matière, combien d'étudiants voudraient en savoir plus dans le cas d'une présentation de type filmographique?",null,null,null,null,null,null,null,"1. S'il n'y avait pas de relation entre le type de présentation et l'intérêt dans la matière, combien d'étudiants voudraient en savoir plus dans le cas d'une présentation de type filmographique?",null,null,null,null,null,null,null,"1. S'il n'y avait pas de relation entre le type de présentation et l'intérêt dans la matière, combien d'étudiants voudraient en savoir plus dans le cas d'une présentation de type filmographique?",null,null,null,null,null,null,null,"1. S'il n'y avait pas de relation entre le type de présentation et l'intérêt dans la matière, combien d'étudiants voudraient en savoir plus dans le cas d'une présentation de type filmographique?",null,null,null,null,null,null,null,"1. S'il n'y avait pas de relation entre le type de présentation et l'intérêt dans la matière, combien d'étudiants voudraient en savoir plus dans le cas d'une présentation de type filmographique?",null,null,null,null,null,null,null,"1. S'il n'y avait pas de relation entre le type de présentation et l'intérêt dans la matière, combien d'étudiants voudraient en savoir plus dans le cas d'une présentation de type filmographique?",null,null,null,null,null,null,null,"1. S'il n'y avait pas de relation entre le type de présentation et l'intérêt dans la matière, combien d'étudiants voudraient en savoir plus dans le cas d'une présentation de type filmographique?",null,null,null,null,null,null,null,"1. S'il n'y avait pas de relation entre le type de présentation et l'intérêt dans la matière, combien d'étudiants voudraient en savoir plus dans le cas d'une présentation de type filmographique?",null,null,null,null,null,null,null,"1. S'il n'y avait pas de relation entre le type de présentation et l'intérêt dans la matière, combien d'étudiants voudraient en savoir plus dans le cas d'une présentation de type filmographique?",null,null,null,null,null,null,null,"1. S'il n'y avait pas de relation entre le type de présentation et l'intérêt dans la matière, combien d'étudiants voudraient en savoir plus dans le cas d'une présentation de type filmographique?",null,null,null,null,null,null,null,"1. S'il n'y avait pas de relation entre le type de présentation et l'intérêt dans la matière, combien d'étudiants voudraient en savoir plus dans le cas d'une présentation de type filmographique?",null,null,null,null,null,null,null,"1. S'il n'y avait pas de relation entre le type de présentation et l'intérêt dans la matière, combien d'étudiants voudraient en savoir plus dans le cas d'une présentation de type filmographique?",null,null,null,null,null,null,null,"1. S'il n'y avait pas de relation entre le type de présentation et l'intérêt dans la matière, combien d'étudiants voudraient en savoir plus dans le cas d'une présentation de type filmographique?",null,null,null,null,null,null,null,"1. S'il n'y avait pas de relation entre le type de présentation et l'intérêt dans la matière, combien d'étudiants voudraient en savoir plus dans le cas d'une présentation de type filmographique?",null,null,null,null,null,null,null,"1. S'il n'y avait pas de relation entre le type de présentation et l'intérêt dans la matière, combien d'étudiants voudraient en savoir plus dans le cas d'une présentation de type filmographique?",null,null,null,null,null,null,null,"1. S'il n'y avait pas de relation entre le type de présentation et l'intérêt dans la matière, combien d'étudiants voudraient en savoir plus dans le cas d'une présentation de type filmographique?",null,null,null,null,null,null,null,"1. S'il n'y avait pas de relation entre le type de présentation et l'intérêt dans la matière, combien d'étudiants voudraient en savoir plus dans le cas d'une présentation de type filmographique?",null,null,null,null,null,null,null,"1. S'il n'y avait pas de relation entre le type de présentation et l'intérêt dans la matière, combien d'étudiants voudraient en savoir plus dans le cas d'une présentation de type filmographique?",null,null,null,null,null,null,null,"1. S'il n'y avait pas de relation entre le type de présentation et l'intérêt dans la matière, combien d'étudiants voudraient en savoir plus dans le cas d'une présentation de type filmographique?",null,null,null,null,null,null,null,"1. S'il n'y avait pas de relation entre le type de présentation et l'intérêt dans la matière, combien d'étudiants voudraient en savoir plus dans le cas d'une présentation de type filmographique?",null,null,null,null,null,null,null,"1. S'il n'y avait pas de relation entre le type de présentation et l'intérêt dans la matière, combien d'étudiants voudraient en savoir plus dans le cas d'une présentation de type filmographique?",null,null,null,null,null,null,null,"1. S'il n'y avait pas de relation entre le type de présentation et l'intérêt dans la matière, combien d'étudiants voudraient en savoir plus dans le cas d'une présentation de type filmographique?",null,null,null,null,null,null,null,"1. S'il n'y avait pas de relation entre le type de présentation et l'intérêt dans la matière, combien d'étudiants voudraient en savoir plus dans le cas d'une présentation de type filmographique?",null,null,null,null,null,null,null,"1. S'il n'y avait pas de relation entre le type de présentation et l'intérêt dans la matière, combien d'étudiants voudraient en savoir plus dans le cas d'une présentation de type filmographique?",null,null,null,null,null,null,null,"1. S'il n'y avait pas de relation entre le type de présentation et l'intérêt dans la matière, combien d'étudiants voudraient en savoir plus dans le cas d'une présentation de type filmographique?",null,null,null,null,null,null,null,"1. S'il n'y avait pas de relation entre le type de présentation et l'intérêt dans la matière, combien d'étudiants voudraient en savoir plus dans le cas d'une présentation de type filmographique?",null,null,null,null,null,null,null,"1. S'il n'y avait pas de relation entre le type de présentation et l'intérêt dans la matière, combien d'étudiants voudraient en savoir plus dans le cas d'une présentation de type filmographique?",null,null,null,null,null,null,null,"1. S'il n'y avait pas de relation entre le type de présentation et l'intérêt dans la matière, combien d'étudiants voudraient en savoir plus dans le cas d'une présentation de type filmographique?",null,null,null,null,null,null,null,"1. S'il n'y avait pas de relation entre le type de présentation et l'intérêt dans la matière, combien d'étudiants voudraient en savoir plus dans le cas d'une présentation de type filmographique?",null,null,null,null,null,null,null,"1. S'il n'y avait pas de relation entre le type de présentation et l'intérêt dans la matière, combien d'étudiants voudraient en savoir plus dans le cas d'une présentation de type filmographique?",null,null,null,null,null,null,null,"1. S'il n'y avait pas de relation entre le type de présentation et l'intérêt dans la matière, combien d'étudiants voudraient en savoir plus dans le cas d'une présentation de type filmographique?",null,null,null,null,null,null,null,"1. S'il n'y avait pas de relation entre le type de présentation et l'intérêt dans la matière, combien d'étudiants voudraient en savoir plus dans le cas d'une présentation de type filmographique?",null,null,null,null,null,null,null,"1. S'il n'y avait pas de relation entre le type de présentation et l'intérêt dans la matière, combien d'étudiants voudraient en savoir plus dans le cas d'une présentation de type filmographique?",null,null,null,null,null,null,null,"1. S'il n'y avait pas de relation entre le type de présentation et l'intérêt dans la matière, combien d'étudiants voudraient en savoir plus dans le cas d'une présentation de type filmographique?",null,null,null,null,null,null,null,"1. S'il n'y avait pas de relation entre le type de présentation et l'intérêt dans la matière, combien d'étudiants voudraient en savoir plus dans le cas d'une présentation de type filmographique?",null,null,null,null,null,null,null,"1. S'il n'y avait pas de relation entre le type de présentation et l'intérêt dans la matière, combien d'étudiants voudraient en savoir plus dans le cas d'une présentation de type filmographique?",null,null,null,null,null,null,null,"1. S'il n'y avait pas de relation entre le type de présentation et l'intérêt dans la matière, combien d'étudiants voudraient en savoir plus dans le cas d'une présentation de type filmographique?",null,null,null,null,null,null,null,"1. S'il n'y avait pas de relation entre le type de présentation et l'intérêt dans la matière, combien d'étudiants voudraient en savoir plus dans le cas d'une présentation de type filmographique?",null,null,null,null,null,null,null,"1. S'il n'y avait pas de relation entre le type de présentation et l'intérêt dans la matière, combien d'étudiants voudraient en savoir plus dans le cas d'une présentation de type filmographique?",null,null,null,null,null,null,null,"1. S'il n'y avait pas de relation entre le type de présentation et l'intérêt dans la matière, combien d'étudiants voudraient en savoir plus dans le cas d'une présentation de type filmographique?",null,null,null,null,null,null,null,"1. S'il n'y avait pas de relation entre le type de présentation et l'intérêt dans la matière, combien d'étudiants voudraient en savoir plus dans le cas d'une présentation de type filmographique?",null,null,null,null,null,null,null,"1. S'il n'y avait pas de relation entre le type de présentation et l'intérêt dans la matière, combien d'étudiants voudraient en savoir plus dans le cas d'une présentation de type filmographique?",null,null,null,null,null,null,null,"1. S'il n'y avait pas de relation entre le type de présentation et l'intérêt dans la matière, combien d'étudiants voudraient en savoir plus dans le cas d'une présentation de type filmographique?",null,null,null,null,null,null,null,"1. S'il n'y avait pas de relation entre le type de présentation et l'intérêt dans la matière, combien d'étudiants voudraient en savoir plus dans le cas d'une présentation de type filmographique?",null,null,null,null,null,null,null,"1. S'il n'y avait pas de relation entre le type de présentation et l'intérêt dans la matière, combien d'étudiants voudraient en savoir plus dans le cas d'une présentation de type filmographique?",null,null,null,null,null,null,null,"1. S'il n'y avait pas de relation entre le type de présentation et l'intérêt dans la matière, combien d'étudiants voudraient en savoir plus dans le cas d'une présentation de type filmographique?",null,null,null,null,null,null,null,"1. S'il n'y avait pas de relation entre le type de présentation et l'intérêt dans la matière, combien d'étudiants voudraient en savoir plus dans le cas d'une présentation de type filmographique?",null,null,null,null,null,null,null,"1. S'il n'y avait pas de relation entre le type de présentation et l'intérêt dans la matière, combien d'étudiants voudraient en savoir plus dans le cas d'une présentation de type filmographique?",null,null,null,null,null,null,null,"1. S'il n'y avait pas de relation entre le type de présentation et l'intérêt dans la matière, combien d'étudiants voudraient en savoir plus dans le cas d'une présentation de type filmographique?",null,null,null,null,null,null,null,"1. S'il n'y avait pas de relation entre le type de présentation et l'intérêt dans la matière, combien d'étudiants voudraient en savoir plus dans le cas d'une présentation de type filmographique?",null,null,null,null,null,null,null,"1. S'il n'y avait pas de relation entre le type de présentation et l'intérêt dans la matière, combien d'étudiants voudraient en savoir plus dans le cas d'une présentation de type filmographique?",null,null,null,null,null,null,null,"1. S'il n'y avait pas de relation entre le type de présentation et l'intérêt dans la matière, combien d'étudiants voudraient en savoir plus dans le cas d'une présentation de type filmographique?",null,null,null,null,null,null,null,"1. S'il n'y avait pas de relation entre le type de présentation et l'intérêt dans la matière, combien d'étudiants voudraient en savoir plus dans le cas d'une présentation de type filmographique?",null,null,null,null,null,null,null,"1. S'il n'y avait pas de relation entre le type de présentation et l'intérêt dans la matière, combien d'étudiants voudraient en savoir plus dans le cas d'une présentation de type filmographique?",null,null,null,null,null,null,null,"1. S'il n'y avait pas de relation entre le type de présentation et l'intérêt dans la matière, combien d'étudiants voudraient en savoir plus dans le cas d'une présentation de type filmographique?",null,null,null,null,null,null,null,"1. S'il n'y avait pas de relation entre le type de présentation et l'intérêt dans la matière, combien d'étudiants voudraient en savoir plus dans le cas d'une présentation de type filmographique?",null,null,null,null,null,null,null,"1. S'il n'y avait pas de relation entre le type de présentation et l'intérêt dans la matière, combien d'étudiants voudraient en savoir plus dans le cas d'une présentation de type filmographique?",null,null,null,null,null,null,null,"1. S'il n'y avait pas de relation entre le type de présentation et l'intérêt dans la matière, combien d'étudiants voudraient en savoir plus dans le cas d'une présentation de type filmographique?",null,null,null,null,null,null,null,"1. S'il n'y avait pas de relation entre le type de présentation et l'intérêt dans la matière, combien d'étudiants voudraient en savoir plus dans le cas d'une présentation de type filmographique?",null,null,null,null,null,null,null,"1. S'il n'y avait pas de relation entre le type de présentation et l'intérêt dans la matière, combien d'étudiants voudraient en savoir plus dans le cas d'une présentation de type filmographique?",null,null,null,null,null,null,null,"1. S'il n'y avait pas de relation entre le type de présentation et l'intérêt dans la matière, combien d'étudiants voudraient en savoir plus dans le cas d'une présentation de type filmographique?",null,null,null,null,null,null,null,"1. S'il n'y avait pas de relation entre le type de présentation et l'intérêt dans la matière, combien d'étudiants voudraient en savoir plus dans le cas d'une présentation de type filmographique?",null,null,null,null,null,null,null,"1. S'il n'y avait pas de relation entre le type de présentation et l'intérêt dans la matière, combien d'étudiants voudraient en savoir plus dans le cas d'une présentation de type filmographique?",null,null,null,null,null,null,null,"1. S'il n'y avait pas de relation entre le type de présentation et l'intérêt dans la matière, combien d'étudiants voudraient en savoir plus dans le cas d'une présentation de type filmographique?",null,null,null,null,null,null,null,"1. S'il n'y avait pas de relation entre le type de présentation et l'intérêt dans la matière, combien d'étudiants voudraient en savoir plus dans le cas d'une présentation de type filmographique?",null,null,null,null,null,null,null,"1. S'il n'y avait pas de relation entre le type de présentation et l'intérêt dans la matière, combien d'étudiants voudraient en savoir plus dans le cas d'une présentation de type filmographique?",null,null,null,null,null,null,null,"1. S'il n'y avait pas de relation entre le type de présentation et l'intérêt dans la matière, combien d'étudiants voudraient en savoir plus dans le cas d'une présentation de type filmographique?",null,null,null,null,null,null,null,"1. S'il n'y avait pas de relation entre le type de présentation et l'intérêt dans la matière, combien d'étudiants voudraient en savoir plus dans le cas d'une présentation de type filmographique?",null,null,null,null,null,null,null,"1. S'il n'y avait pas de relation entre le type de présentation et l'intérêt dans la matière, combien d'étudiants voudraient en savoir plus dans le cas d'une présentation de type filmographique?",null,null,null,null,null,null,null,"1. S'il n'y avait pas de relation entre le type de présentation et l'intérêt dans la matière, combien d'étudiants voudraient en savoir plus dans le cas d'une présentation de type filmographique?",null,null,null,null,null,null,null,"1. S'il n'y avait pas de relation entre le type de présentation et l'intérêt dans la matière, combien d'étudiants voudraient en savoir plus dans le cas d'une présentation de type filmographique?",null,null,null,null,null,null,null,"1. S'il n'y avait pas de relation entre le type de présentation et l'intérêt dans la matière, combien d'étudiants voudraient en savoir plus dans le cas d'une présentation de type filmographique?",null,null,null,null,null,null,null,"1. S'il n'y avait pas de relation entre le type de présentation et l'intérêt dans la matière, combien d'étudiants voudraient en savoir plus dans le cas d'une présentation de type filmographique?",null,null,null,null,null,null,null,"1. S'il n'y avait pas de relation entre le type de présentation et l'intérêt dans la matière, combien d'étudiants voudraient en savoir plus dans le cas d'une présentation de type filmographique?",null,null,null,null,null,null,null,"1. S'il n'y avait pas de relation entre le type de présentation et l'intérêt dans la matière, combien d'étudiants voudraient en savoir plus dans le cas d'une présentation de type filmographique?",null,null,null,null,null,null,null,"1. S'il n'y avait pas de relation entre le type de présentation et l'intérêt dans la matière, combien d'étudiants voudraient en savoir plus dans le cas d'une présentation de type filmographique?",null,null,null,null,null,null,null,"1. S'il n'y avait pas de relation entre le type de présentation et l'intérêt dans la matière, combien d'étudiants voudraient en savoir plus dans le cas d'une présentation de type filmographique?",null,null,null,null,null,null,null,"1. S'il n'y avait pas de relation entre le type de présentation et l'intérêt dans la matière, combien d'étudiants voudraient en savoir plus dans le cas d'une présentation de type filmographique?",null,null,null,null,null,null,null,"1. S'il n'y avait pas de relation entre le type de présentation et l'intérêt dans la matière, combien d'étudiants voudraient en savoir plus dans le cas d'une présentation de type filmographique?",null,null,null,null,null,null,null,"1. S'il n'y avait pas de relation entre le type de présentation et l'intérêt dans la matière, combien d'étudiants voudraient en savoir plus dans le cas d'une présentation de type filmographique?",null,null,null,null,null,null,null,"1. S'il n'y avait pas de relation entre le type de présentation et l'intérêt dans la matière, combien d'étudiants voudraient en savoir plus dans le cas d'une présentation de type filmographique?",null,null,null,null,null,null,null,"1. S'il n'y avait pas de relation entre le type de présentation et l'intérêt dans la matière, combien d'étudiants voudraient en savoir plus dans le cas d'une présentation de type filmographique?",null,null,null,null,null,null,null,"1. S'il n'y avait pas de relation entre le type de présentation et l'intérêt dans la matière, combien d'étudiants voudraient en savoir plus dans le cas d'une présentation de type filmographique?",null,null,null,null,null,null,null,"1. S'il n'y avait pas de relation entre le type de présentation et l'intérêt dans la matière, combien d'étudiants voudraient en savoir plus dans le cas d'une présentation de type filmographique?",null,null,null,null,null,null,null,"1. S'il n'y avait pas de relation entre le type de présentation et l'intérêt dans la matière, combien d'étudiants voudraient en savoir plus dans le cas d'une présentation de type filmographique?",null,null,null,null,null,null,null,"1. S'il n'y avait pas de relation entre le type de présentation et l'intérêt dans la matière, combien d'étudiants voudraient en savoir plus dans le cas d'une présentation de type filmographique?",null,null,null,null,null,null,null,"1. S'il n'y avait pas de relation entre le type de présentation et l'intérêt dans la matière, combien d'étudiants voudraient en savoir plus dans le cas d'une présentation de type filmographique?",null,null,null,null,null,null,null,"1. S'il n'y avait pas de relation entre le type de présentation et l'intérêt dans la matière, combien d'étudiants voudraient en savoir plus dans le cas d'une présentation de type filmographique?",null,null,null,null,null,null,null,"1. S'il n'y avait pas de relation entre le type de présentation et l'intérêt dans la matière, combien d'étudiants voudraient en savoir plus dans le cas d'une présentation de type filmographique?",null,null,null,null,null,null,null,"1. S'il n'y avait pas de relation entre le type de présentation et l'intérêt dans la matière, combien d'étudiants voudraient en savoir plus dans le cas d'une présentation de type filmographique?",null,null,null,null,null,null,null,"1. S'il n'y avait pas de relation entre le type de présentation et l'intérêt dans la matière, combien d'étudiants voudraient en savoir plus dans le cas d'une présentation de type filmographique?",null,null,null,null,null,null,null,"1. S'il n'y avait pas de relation entre le type de présentation et l'intérêt dans la matière, combien d'étudiants voudraient en savoir plus dans le cas d'une présentation de type filmographique?",null,null,null,null,null,null,null,"1. S'il n'y avait pas de relation entre le type de présentation et l'intérêt dans la matière, combien d'étudiants voudraient en savoir plus dans le cas d'une présentation de type filmographique?",null,null,null,null,null,null,null,"1. S'il n'y avait pas de relation entre le type de présentation et l'intérêt dans la matière, combien d'étudiants voudraient en savoir plus dans le cas d'une présentation de type filmographique?",null,null,null,null,null,null,null,"1. S'il n'y avait pas de relation entre le type de présentation et l'intérêt dans la matière, combien d'étudiants voudraient en savoir plus dans le cas d'une présentation de type filmographique?",null,null,null,null,null,null,null,"1. S'il n'y avait pas de relation entre le type de présentation et l'intérêt dans la matière, combien d'étudiants voudraient en savoir plus dans le cas d'une présentation de type filmographique?",null,null,null,null,null,null,null,"1. S'il n'y avait pas de relation entre le type de présentation et l'intérêt dans la matière, combien d'étudiants voudraient en savoir plus dans le cas d'une présentation de type filmographique?",null,null,null,null,null,null,null,"1. S'il n'y avait pas de relation entre le type de présentation et l'intérêt dans la matière, combien d'étudiants voudraient en savoir plus dans le cas d'une présentation de type filmographique?",null,null,null,null,null,null,null,"1. S'il n'y avait pas de relation entre le type de présentation et l'intérêt dans la matière, combien d'étudiants voudraient en savoir plus dans le cas d'une présentation de type filmographique?",null,null,null,null,null,null,null,"1. S'il n'y avait pas de relation entre le type de présentation et l'intérêt dans la matière, combien d'étudiants voudraient en savoir plus dans le cas d'une présentation de type filmographique?",null,null,null,null,null,null,null,"1. S'il n'y avait pas de relation entre le type de présentation et l'intérêt dans la matière, combien d'étudiants voudraient en savoir plus dans le cas d'une présentation de type filmographique?",null,null,null,null,null,null,null,"1. S'il n'y avait pas de relation entre le type de présentation et l'intérêt dans la matière, combien d'étudiants voudraient en savoir plus dans le cas d'une présentation de type filmographique?",null,null,null,null,null,null,null,"1. S'il n'y avait pas de relation entre le type de présentation et l'intérêt dans la matière, combien d'étudiants voudraient en savoir plus dans le cas d'une présentation de type filmographique?",null,null,null,null,null,null,null,"1. S'il n'y avait pas de relation entre le type de présentation et l'intérêt dans la matière, combien d'étudiants voudraient en savoir plus dans le cas d'une présentation de type filmographique?",null,null,null,null,null,null,null,"1. S'il n'y avait pas de relation entre le type de présentation et l'intérêt dans la matière, combien d'étudiants voudraient en savoir plus dans le cas d'une présentation de type filmographique?",null,null,null,null,null,null,null,"1. S'il n'y avait pas de relation entre le type de présentation et l'intérêt dans la matière, combien d'étudiants voudraient en savoir plus dans le cas d'une présentation de type filmographique?",null,null,null,null,null,null,null,"1. S'il n'y avait pas de relation entre le type de présentation et l'intérêt dans la matière, combien d'étudiants voudraient en savoir plus dans le cas d'une présentation de type filmographique?",null,null,null,null,null,null,null,"1. S'il n'y avait pas de relation entre le type de présentation et l'intérêt dans la matière, combien d'étudiants voudraient en savoir plus dans le cas d'une présentation de type filmographique?",null,null,null,null,null,null,null,"1. S'il n'y avait pas de relation entre le type de présentation et l'intérêt dans la matière, combien d'étudiants voudraient en savoir plus dans le cas d'une présentation de type filmographique?",null,null,null,null,null,null,null,"1. S'il n'y avait pas de relation entre le type de présentation et l'intérêt dans la matière, combien d'étudiants voudraient en savoir plus dans le cas d'une présentation de type filmographique?",null,null,null,null,null,null,null,"1. S'il n'y avait pas de relation entre le type de présentation et l'intérêt dans la matière, combien d'étudiants voudraient en savoir plus dans le cas d'une présentation de type filmographique?",null,null,null,null,null,null,null,"1. S'il n'y avait pas de relation entre le type de présentation et l'intérêt dans la matière, combien d'étudiants voudraient en savoir plus dans le cas d'une présentation de type filmographique?",null,null,null,null,null,null,null,"1. S'il n'y avait pas de relation entre le type de présentation et l'intérêt dans la matière, combien d'étudiants voudraient en savoir plus dans le cas d'une présentation de type filmographique?",null,null,null,null,null,null,null,"1. S'il n'y avait pas de relation entre le type de présentation et l'intérêt dans la matière, combien d'étudiants voudraient en savoir plus dans le cas d'une présentation de type filmographique?",null,null,null,null,null,null,null,"1. S'il n'y avait pas de relation entre le type de présentation et l'intérêt dans la matière, combien d'étudiants voudraient en savoir plus dans le cas d'une présentation de type filmographique?",null,null,null,null,null,null,null,"1. S'il n'y avait pas de relation entre le type de présentation et l'intérêt dans la matière, combien d'étudiants voudraient en savoir plus dans le cas d'une présentation de type filmographique?",null,null,null,null,null,null,null,"1. S'il n'y avait pas de relation entre le type de présentation et l'intérêt dans la matière, combien d'étudiants voudraient en savoir plus dans le cas d'une présentation de type filmographique?",null,null,null,null,null,null,null,"1. S'il n'y avait pas de relation entre le type de présentation et l'intérêt dans la matière, combien d'étudiants voudraient en savoir plus dans le cas d'une présentation de type filmographique?",null,null,null,null,null,null,null,"1. S'il n'y avait pas de relation entre le type de présentation et l'intérêt dans la matière, combien d'étudiants voudraient en savoir plus dans le cas d'une présentation de type filmographique?",null,null,null,null,null,null,null,"1. S'il n'y avait pas de relation entre le type de présentation et l'intérêt dans la matière, combien d'étudiants voudraient en savoir plus dans le cas d'une présentation de type filmographique?",null,null,null,null,null,null,null,"1. S'il n'y avait pas de relation entre le type de présentation et l'intérêt dans la matière, combien d'étudiants voudraient en savoir plus dans le cas d'une présentation de type filmographique?",null,null,null,null,null,null,null,"1. S'il n'y avait pas de relation entre le type de présentation et l'intérêt dans la matière, combien d'étudiants voudraient en savoir plus dans le cas d'une présentation de type filmographique?",null,null,null,null,null,null,null,"1. S'il n'y avait pas de relation entre le type de présentation et l'intérêt dans la matière, combien d'étudiants voudraient en savoir plus dans le cas d'une présentation de type filmographique?",null,null,null,null,null,null,null,"1. S'il n'y avait pas de relation entre le type de présentation et l'intérêt dans la matière, combien d'étudiants voudraient en savoir plus dans le cas d'une présentation de type filmographique?",null,null,null,null,null,null,null,"1. S'il n'y avait pas de relation entre le type de présentation et l'intérêt dans la matière, combien d'étudiants voudraient en savoir plus dans le cas d'une présentation de type filmographique?",null,null,null,null,null,null,null,"1. S'il n'y avait pas de relation entre le type de présentation et l'intérêt dans la matière, combien d'étudiants voudraient en savoir plus dans le cas d'une présentation de type filmographique?",null,null,null,null,null,null,null,"1. S'il n'y avait pas de relation entre le type de présentation et l'intérêt dans la matière, combien d'étudiants voudraient en savoir plus dans le cas d'une présentation de type filmographique?",null,null,null,null,null,null,null,"1. S'il n'y avait pas de relation entre le type de présentation et l'intérêt dans la matière, combien d'étudiants voudraient en savoir plus dans le cas d'une présentation de type filmographique?",null,null,null,null,null,null,null,"1. S'il n'y avait pas de relation entre le type de présentation et l'intérêt dans la matière, combien d'étudiants voudraient en savoir plus dans le cas d'une présentation de type filmographique?",null,null,null,null,null,null,null,"1. S'il n'y avait pas de relation entre le type de présentation et l'intérêt dans la matière, combien d'étudiants voudraient en savoir plus dans le cas d'une présentation de type filmographique?",null,null,null,null,null,null,null,"1. S'il n'y avait pas de relation entre le type de présentation et l'intérêt dans la matière, combien d'étudiants voudraient en savoir plus dans le cas d'une présentation de type filmographique?",null,null,null,null,null,null,null,"1. S'il n'y avait pas de relation entre le type de présentation et l'intérêt dans la matière, combien d'étudiants voudraient en savoir plus dans le cas d'une présentation de type filmographique?",null,null,null,null,null,null,null,"1. S'il n'y avait pas de relation entre le type de présentation et l'intérêt dans la matière, combien d'étudiants voudraient en savoir plus dans le cas d'une présentation de type filmographique?",null,null,null,null,null,null,null,"1. S'il n'y avait pas de relation entre le type de présentation et l'intérêt dans la matière, combien d'étudiants voudraient en savoir plus dans le cas d'une présentation de type filmographique?",null,null,null,null,null,null,null,"1. S'il n'y avait pas de relation entre le type de présentation et l'intérêt dans la matière, combien d'étudiants voudraient en savoir plus dans le cas d'une présentation de type filmographique?",null,null,null,null,null,null,null,"1. S'il n'y avait pas de relation entre le type de présentation et l'intérêt dans la matière, combien d'étudiants voudraient en savoir plus dans le cas d'une présentation de type filmographique?",null,null,null,null,null,null,null,"1. S'il n'y avait pas de relation entre le type de présentation et l'intérêt dans la matière, combien d'étudiants voudraient en savoir plus dans le cas d'une présentation de type filmographique?",null,null,null,null,null,null,null,"1. S'il n'y avait pas de relation entre le type de présentation et l'intérêt dans la matière, combien d'étudiants voudraient en savoir plus dans le cas d'une présentation de type filmographique?",null,null,null,null,null,null,null,"1. S'il n'y avait pas de relation entre le type de présentation et l'intérêt dans la matière, combien d'étudiants voudraient en savoir plus dans le cas d'une présentation de type filmographique?",null,null,null,null,null,null,null,"1. S'il n'y avait pas de relation entre le type de présentation et l'intérêt dans la matière, combien d'étudiants voudraient en savoir plus dans le cas d'une présentation de type filmographique?",null,null,null,null,null,null,null,"1. S'il n'y avait pas de relation entre le type de présentation et l'intérêt dans la matière, combien d'étudiants voudraient en savoir plus dans le cas d'une présentation de type filmographique?",null,null,null,null,null,null,null,"1. S'il n'y avait pas de relation entre le type de présentation et l'intérêt dans la matière, combien d'étudiants voudraient en savoir plus dans le cas d'une présentation de type filmographique?",null,null,null,null,null,null,null,"1. S'il n'y avait pas de relation entre le type de présentation et l'intérêt dans la matière, combien d'étudiants voudraient en savoir plus dans le cas d'une présentation de type filmographique?",null,null,null,null,null,null,null,"1. S'il n'y avait pas de relation entre le type de présentation et l'intérêt dans la matière, combien d'étudiants voudraient en savoir plus dans le cas d'une présentation de type filmographique?",null,null,null,null,null,null,null,"1. S'il n'y avait pas de relation entre le type de présentation et l'intérêt dans la matière, combien d'étudiants voudraient en savoir plus dans le cas d'une présentation de type filmographique?",null,null,null,null,null,null,null,"1. S'il n'y avait pas de relation entre le type de présentation et l'intérêt dans la matière, combien d'étudiants voudraient en savoir plus dans le cas d'une présentation de type filmographique?",null,null,null,null,null,null,null,"1. S'il n'y avait pas de relation entre le type de présentation et l'intérêt dans la matière, combien d'étudiants voudraient en savoir plus dans le cas d'une présentation de type filmographique?",null,null,null,null,null,null,null,"1. S'il n'y avait pas de relation entre le type de présentation et l'intérêt dans la matière, combien d'étudiants voudraient en savoir plus dans le cas d'une présentation de type filmographique?",null,null,null,null,null,null,null,"1. S'il n'y avait pas de relation entre le type de présentation et l'intérêt dans la matière, combien d'étudiants voudraient en savoir plus dans le cas d'une présentation de type filmographique?",null,null,null,null,null,null,null,"1. S'il n'y avait pas de relation entre le type de présentation et l'intérêt dans la matière, combien d'étudiants voudraient en savoir plus dans le cas d'une présentation de type filmographique?",null,null,null,null,null,null,null,"1. S'il n'y avait pas de relation entre le type de présentation et l'intérêt dans la matière, combien d'étudiants voudraient en savoir plus dans le cas d'une présentation de type filmographique?",null,null,null,null,null,null,null,"1. S'il n'y avait pas de relation entre le type de présentation et l'intérêt dans la matière, combien d'étudiants voudraient en savoir plus dans le cas d'une présentation de type filmographique?",null,null,null,null,null,null,null,"1. S'il n'y avait pas de relation entre le type de présentation et l'intérêt dans la matière, combien d'étudiants voudraient en savoir plus dans le cas d'une présentation de type filmographique?",null,null,null,null,null,null,null,"1. S'il n'y avait pas de relation entre le type de présentation et l'intérêt dans la matière, combien d'étudiants voudraient en savoir plus dans le cas d'une présentation de type filmographique?",null,null,null,null,null,null,null,"1. S'il n'y avait pas de relation entre le type de présentation et l'intérêt dans la matière, combien d'étudiants voudraient en savoir plus dans le cas d'une présentation de type filmographique?",null,null,null,null,null,null,null,"1. S'il n'y avait pas de relation entre le type de présentation et l'intérêt dans la matière, combien d'étudiants voudraient en savoir plus dans le cas d'une présentation de type filmographique?",null,null,null,null,null,null,null,"1. S'il n'y avait pas de relation entre le type de présentation et l'intérêt dans la matière, combien d'étudiants voudraient en savoir plus dans le cas d'une présentation de type filmographique?",null,null,null,null,null,null,null,"1. S'il n'y avait pas de relation entre le type de présentation et l'intérêt dans la matière, combien d'étudiants voudraient en savoir plus dans le cas d'une présentation de type filmographique?",null,null,null,null,null,null,null,"1. S'il n'y avait pas de relation entre le type de présentation et l'intérêt dans la matière, combien d'étudiants voudraient en savoir plus dans le cas d'une présentation de type filmographique?",null,null,null,null,null,null,null,"1. S'il n'y avait pas de relation entre le type de présentation et l'intérêt dans la matière, combien d'étudiants voudraient en savoir plus dans le cas d'une présentation de type filmographique?",null,null,null,null,null,null,null,"1. S'il n'y avait pas de relation entre le type de présentation et l'intérêt dans la matière, combien d'étudiants voudraient en savoir plus dans le cas d'une présentation de type filmographique?",null,null,null,null,null,null,null,"1. S'il n'y avait pas de relation entre le type de présentation et l'intérêt dans la matière, combien d'étudiants voudraient en savoir plus dans le cas d'une présentation de type filmographique?",null,null,null,null,null,null,null,"1. S'il n'y avait pas de relation entre le type de présentation et l'intérêt dans la matière, combien d'étudiants voudraient en savoir plus dans le cas d'une présentation de type filmographique?",null,null,null,null,null,null,null,"1. S'il n'y avait pas de relation entre le type de présentation et l'intérêt dans la matière, combien d'étudiants voudraient en savoir plus dans le cas d'une présentation de type filmographique?",null,null,null,null,null,null,null,"1. S'il n'y avait pas de relation entre le type de présentation et l'intérêt dans la matière, combien d'étudiants voudraient en savoir plus dans le cas d'une présentation de type filmographique?",null,null,null,null,null,null,null,"1. S'il n'y avait pas de relation entre le type de présentation et l'intérêt dans la matière, combien d'étudiants voudraient en savoir plus dans le cas d'une présentation de type filmographique?",null,null,null,null,null,null,null,"1. S'il n'y avait pas de relation entre le type de présentation et l'intérêt dans la matière, combien d'étudiants voudraient en savoir plus dans le cas d'une présentation de type filmographique?",null,null,null,null,null,null,null,"1. S'il n'y avait pas de relation entre le type de présentation et l'intérêt dans la matière, combien d'étudiants voudraient en savoir plus dans le cas d'une présentation de type filmographique?",null,null,null,null,null,null,null,"1. S'il n'y avait pas de relation entre le type de présentation et l'intérêt dans la matière, combien d'étudiants voudraient en savoir plus dans le cas d'une présentation de type filmographique?",null,null,null,null,null,null,null,"1. S'il n'y avait pas de relation entre le type de présentation et l'intérêt dans la matière, combien d'étudiants voudraient en savoir plus dans le cas d'une présentation de type filmographique?",null,null,null,null,null,null,null,"1. S'il n'y avait pas de relation entre le type de présentation et l'intérêt dans la matière, combien d'étudiants voudraient en savoir plus dans le cas d'une présentation de type filmographique?",null,null,null,null,null,null,null,"1. S'il n'y avait pas de relation entre le type de présentation et l'intérêt dans la matière, combien d'étudiants voudraient en savoir plus dans le cas d'une présentation de type filmographique?",null,null,null,null,null,null,null,"1. S'il n'y avait pas de relation entre le type de présentation et l'intérêt dans la matière, combien d'étudiants voudraient en savoir plus dans le cas d'une présentation de type filmographique?",null,null,null,null,null,null,null,"1. S'il n'y avait pas de relation entre le type de présentation et l'intérêt dans la matière, combien d'étudiants voudraient en savoir plus dans le cas d'une présentation de type filmographique?",null,null,null,null,null,null,null,"1. S'il n'y avait pas de relation entre le type de présentation et l'intérêt dans la matière, combien d'étudiants voudraient en savoir plus dans le cas d'une présentation de type filmographique?",null,null,null,null,null,null,null,"1. S'il n'y avait pas de relation entre le type de présentation et l'intérêt dans la matière, combien d'étudiants voudraient en savoir plus dans le cas d'une présentation de type filmographique?",null,null,null,null,null,null,null,"1. S'il n'y avait pas de relation entre le type de présentation et l'intérêt dans la matière, combien d'étudiants voudraient en savoir plus dans le cas d'une présentation de type filmographique?",null,null,null,null,null,null,null,"1. S'il n'y avait pas de relation entre le type de présentation et l'intérêt dans la matière, combien d'étudiants voudraient en savoir plus dans le cas d'une présentation de type filmographique?",null,null,null,null,null,null,null,"1. S'il n'y avait pas de relation entre le type de présentation et l'intérêt dans la matière, combien d'étudiants voudraient en savoir plus dans le cas d'une présentation de type filmographique?",null,null,null,null,null,null,null,"1. S'il n'y avait pas de relation entre le type de présentation et l'intérêt dans la matière, combien d'étudiants voudraient en savoir plus dans le cas d'une présentation de type filmographique?",null,null,null,null,null,null,null,"1. S'il n'y avait pas de relation entre le type de présentation et l'intérêt dans la matière, combien d'étudiants voudraient en savoir plus dans le cas d'une présentation de type filmographique?",null,null,null,null,null,null,null,"1. S'il n'y avait pas de relation entre le type de présentation et l'intérêt dans la matière, combien d'étudiants voudraient en savoir plus dans le cas d'une présentation de type filmographique?",null,null,null,null,null,null,null,"1. S'il n'y avait pas de relation entre le type de présentation et l'intérêt dans la matière, combien d'étudiants voudraient en savoir plus dans le cas d'une présentation de type filmographique?",null,null,null,null,null,null,null,"1. S'il n'y avait pas de relation entre le type de présentation et l'intérêt dans la matière, combien d'étudiants voudraient en savoir plus dans le cas d'une présentation de type filmographique?",null,null,null,null,null,null,null,"1. S'il n'y avait pas de relation entre le type de présentation et l'intérêt dans la matière, combien d'étudiants voudraient en savoir plus dans le cas d'une présentation de type filmographique?",null,null,null,null,null,null,null,"1. S'il n'y avait pas de relation entre le type de présentation et l'intérêt dans la matière, combien d'étudiants voudraient en savoir plus dans le cas d'une présentation de type filmographique?",null,null,null,null,null,null,null,"1. S'il n'y avait pas de relation entre le type de présentation et l'intérêt dans la matière, combien d'étudiants voudraient en savoir plus dans le cas d'une présentation de type filmographique?",null,null,null,null,null,null,null,"1. S'il n'y avait pas de relation entre le type de présentation et l'intérêt dans la matière, combien d'étudiants voudraient en savoir plus dans le cas d'une présentation de type filmographique?",null,null,null,null,null,null,null,"1. S'il n'y avait pas de relation entre le type de présentation et l'intérêt dans la matière, combien d'étudiants voudraient en savoir plus dans le cas d'une présentation de type filmographique?",null,null,null,null,null,null,null,"1. S'il n'y avait pas de relation entre le type de présentation et l'intérêt dans la matière, combien d'étudiants voudraient en savoir plus dans le cas d'une présentation de type filmographique?",null,null,null,null,null,null,null,"1. S'il n'y avait pas de relation entre le type de présentation et l'intérêt dans la matière, combien d'étudiants voudraient en savoir plus dans le cas d'une présentation de type filmographique?",null,null,null,null,null,null,null,"1. S'il n'y avait pas de relation entre le type de présentation et l'intérêt dans la matière, combien d'étudiants voudraient en savoir plus dans le cas d'une présentation de type filmographique?",null,null,null,null,null,null,null,"1. S'il n'y avait pas de relation entre le type de présentation et l'intérêt dans la matière, combien d'étudiants voudraient en savoir plus dans le cas d'une présentation de type filmographique?",null,null,null,null,null,null,null,"1. S'il n'y avait pas de relation entre le type de présentation et l'intérêt dans la matière, combien d'étudiants voudraient en savoir plus dans le cas d'une présentation de type filmographique?",null,null,null,null,null,null,null,"1. S'il n'y avait pas de relation entre le type de présentation et l'intérêt dans la matière, combien d'étudiants voudraient en savoir plus dans le cas d'une présentation de type filmographique?",null,null,null,null,null,null,null,"1. S'il n'y avait pas de relation entre le type de présentation et l'intérêt dans la matière, combien d'étudiants voudraient en savoir plus dans le cas d'une présentation de type filmographique?",null,null,null,null,null,null,null,"1. S'il n'y avait pas de relation entre le type de présentation et l'intérêt dans la matière, combien d'étudiants voudraient en savoir plus dans le cas d'une présentation de type filmographique?",null,null,null,null,null,null,null,"1. S'il n'y avait pas de relation entre le type de présentation et l'intérêt dans la matière, combien d'étudiants voudraient en savoir plus dans le cas d'une présentation de type filmographique?",null,null,null,null,null,null,null,"1. S'il n'y avait pas de relation entre le type de présentation et l'intérêt dans la matière, combien d'étudiants voudraient en savoir plus dans le cas d'une présentation de type filmographique?",null,null,null,null,null,null,null,"1. S'il n'y avait pas de relation entre le type de présentation et l'intérêt dans la matière, combien d'étudiants voudraient en savoir plus dans le cas d'une présentation de type filmographique?",null,null,null,null,null,null,null,"1. S'il n'y avait pas de relation entre le type de présentation et l'intérêt dans la matière, combien d'étudiants voudraient en savoir plus dans le cas d'une présentation de type filmographique?",null,null,null,null,null,null,null,"1. S'il n'y avait pas de relation entre le type de présentation et l'intérêt dans la matière, combien d'étudiants voudraient en savoir plus dans le cas d'une présentation de type filmographique?",null,null,null,null,null,null,null,"1. S'il n'y avait pas de relation entre le type de présentation et l'intérêt dans la matière, combien d'étudiants voudraient en savoir plus dans le cas d'une présentation de type filmographique?",null,null,null,null,null,null,null,"1. S'il n'y avait pas de relation entre le type de présentation et l'intérêt dans la matière, combien d'étudiants voudraient en savoir plus dans le cas d'une présentation de type filmographique?",null,null,null,null,null,null,null,"1. S'il n'y avait pas de relation entre le type de présentation et l'intérêt dans la matière, combien d'étudiants voudraient en savoir plus dans le cas d'une présentation de type filmographique?",null,null,null,null,null,null,null,"1. S'il n'y avait pas de relation entre le type de présentation et l'intérêt dans la matière, combien d'étudiants voudraient en savoir plus dans le cas d'une présentation de type filmographique?",null,null,null,null,null,null,null,"1. S'il n'y avait pas de relation entre le type de présentation et l'intérêt dans la matière, combien d'étudiants voudraient en savoir plus dans le cas d'une présentation de type filmographique?",null,null,null,null,null,null,null,"1. S'il n'y avait pas de relation entre le type de présentation et l'intérêt dans la matière, combien d'étudiants voudraient en savoir plus dans le cas d'une présentation de type filmographique?",null,null,null,null,null,null,null,"1. S'il n'y avait pas de relation entre le type de présentation et l'intérêt dans la matière, combien d'étudiants voudraient en savoir plus dans le cas d'une présentation de type filmographique?",null,null,null,null,null,null,null,"1. S'il n'y avait pas de relation entre le type de présentation et l'intérêt dans la matière, combien d'étudiants voudraient en savoir plus dans le cas d'une présentation de type filmographique?",null,null,null,null,null,null,null,"1. S'il n'y avait pas de relation entre le type de présentation et l'intérêt dans la matière, combien d'étudiants voudraient en savoir plus dans le cas d'une présentation de type filmographique?",null,null,null,null,null,null,null,"1. S'il n'y avait pas de relation entre le type de présentation et l'intérêt dans la matière, combien d'étudiants voudraient en savoir plus dans le cas d'une présentation de type filmographique?",null,null,null,null,null,null,null,"1. S'il n'y avait pas de relation entre le type de présentation et l'intérêt dans la matière, combien d'étudiants voudraient en savoir plus dans le cas d'une présentation de type filmographique?",null,null,null,null,null,null,null,"1. S'il n'y avait pas de relation entre le type de présentation et l'intérêt dans la matière, combien d'étudiants voudraient en savoir plus dans le cas d'une présentation de type filmographique?",null,null,null,null,null,null,null,"1. S'il n'y avait pas de relation entre le type de présentation et l'intérêt dans la matière, combien d'étudiants voudraient en savoir plus dans le cas d'une présentation de type filmographique?",null,null,null,null,null,null,null,"1. S'il n'y avait pas de relation entre le type de présentation et l'intérêt dans la matière, combien d'étudiants voudraient en savoir plus dans le cas d'une présentation de type filmographique?",null,null,null,null,null,null,null,"1. S'il n'y avait pas de relation entre le type de présentation et l'intérêt dans la matière, combien d'étudiants voudraient en savoir plus dans le cas d'une présentation de type filmographique?",null,null,null,null,null,null,null,"1. S'il n'y avait pas de relation entre le type de présentation et l'intérêt dans la matière, combien d'étudiants voudraient en savoir plus dans le cas d'une présentation de type filmographique?",null,null,null,null,null,null,null,"1. S'il n'y avait pas de relation entre le type de présentation et l'intérêt dans la matière, combien d'étudiants voudraient en savoir plus dans le cas d'une présentation de type filmographique?",null,null,null,null,null,null,null,"1. S'il n'y avait pas de relation entre le type de présentation et l'intérêt dans la matière, combien d'étudiants voudraient en savoir plus dans le cas d'une présentation de type filmographique?",null,null,null,null,null,null,null,"1. S'il n'y avait pas de relation entre le type de présentation et l'intérêt dans la matière, combien d'étudiants voudraient en savoir plus dans le cas d'une présentation de type filmographique?",null,null,null,null,null,null,null,"1. S'il n'y avait pas de relation entre le type de présentation et l'intérêt dans la matière, combien d'étudiants voudraient en savoir plus dans le cas d'une présentation de type filmographique?",null,null,null,null,null,null,null,"1. S'il n'y avait pas de relation entre le type de présentation et l'intérêt dans la matière, combien d'étudiants voudraient en savoir plus dans le cas d'une présentation de type filmographique?",null,null,null,null,null,null,null,"1. S'il n'y avait pas de relation entre le type de présentation et l'intérêt dans la matière, combien d'étudiants voudraient en savoir plus dans le cas d'une présentation de type filmographique?",null,null,null,null,null,null,null,"1. S'il n'y avait pas de relation entre le type de présentation et l'intérêt dans la matière, combien d'étudiants voudraient en savoir plus dans le cas d'une présentation de type filmographique?",null,null,null,null,null,null,null,"1. S'il n'y avait pas de relation entre le type de présentation et l'intérêt dans la matière, combien d'étudiants voudraient en savoir plus dans le cas d'une présentation de type filmographique?",null,null,null,null,null,null,null,"1. S'il n'y avait pas de relation entre le type de présentation et l'intérêt dans la matière, combien d'étudiants voudraient en savoir plus dans le cas d'une présentation de type filmographique?",null,null,null,null,null,null,null,"1. S'il n'y avait pas de relation entre le type de présentation et l'intérêt dans la matière, combien d'étudiants voudraient en savoir plus dans le cas d'une présentation de type filmographique?",null,null,null,null,null,null,null,"1. S'il n'y avait pas de relation entre le type de présentation et l'intérêt dans la matière, combien d'étudiants voudraient en savoir plus dans le cas d'une présentation de type filmographique?",null,null,null,null,null,null,null,"1. S'il n'y avait pas de relation entre le type de présentation et l'intérêt dans la matière, combien d'étudiants voudraient en savoir plus dans le cas d'une présentation de type filmographique?",null,null,null,null,null,null,null,"1. S'il n'y avait pas de relation entre le type de présentation et l'intérêt dans la matière, combien d'étudiants voudraient en savoir plus dans le cas d'une présentation de type filmographique?",null,null,null,null,null,null,null,"1. S'il n'y avait pas de relation entre le type de présentation et l'intérêt dans la matière, combien d'étudiants voudraient en savoir plus dans le cas d'une présentation de type filmographique?",null,null,null,null,null,null,null,"1. S'il n'y avait pas de relation entre le type de présentation et l'intérêt dans la matière, combien d'étudiants voudraient en savoir plus dans le cas d'une présentation de type filmographique?",null,null,null,null,null,null,null,"1. S'il n'y avait pas de relation entre le type de présentation et l'intérêt dans la matière, combien d'étudiants voudraient en savoir plus dans le cas d'une présentation de type filmographique?",null,null,null,null,null,null,null,"1. S'il n'y avait pas de relation entre le type de présentation et l'intérêt dans la matière, combien d'étudiants voudraient en savoir plus dans le cas d'une présentation de type filmographique?",null,null,null,null,null,null,null,"1. S'il n'y avait pas de relation entre le type de présentation et l'intérêt dans la matière, combien d'étudiants voudraient en savoir plus dans le cas d'une présentation de type filmographique?",null,null,null,null,null,null,null,"1. S'il n'y avait pas de relation entre le type de présentation et l'intérêt dans la matière, combien d'étudiants voudraient en savoir plus dans le cas d'une présentation de type filmographique?",null,null,null,null,null,null,null,"1. S'il n'y avait pas de relation entre le type de présentation et l'intérêt dans la matière, combien d'étudiants voudraient en savoir plus dans le cas d'une présentation de type filmographique?",null,null,null,null,null,null,null,"1. S'il n'y avait pas de relation entre le type de présentation et l'intérêt dans la matière, combien d'étudiants voudraient en savoir plus dans le cas d'une présentation de type filmographique?",null,null,null,null,null,null,null,"1. S'il n'y avait pas de relation entre le type de présentation et l'intérêt dans la matière, combien d'étudiants voudraient en savoir plus dans le cas d'une présentation de type filmographique?",null,null,null,null,null,null,null,"1. S'il n'y avait pas de relation entre le type de présentation et l'intérêt dans la matière, combien d'étudiants voudraient en savoir plus dans le cas d'une présentation de type filmographique?",null,null,null,null,null,null,null,"1. S'il n'y avait pas de relation entre le type de présentation et l'intérêt dans la matière, combien d'étudiants voudraient en savoir plus dans le cas d'une présentation de type filmographique?",null,null,null,null,null,null,null,"1. S'il n'y avait pas de relation entre le type de présentation et l'intérêt dans la matière, combien d'étudiants voudraient en savoir plus dans le cas d'une présentation de type filmographique?",null,null,null,null,null,null,null,"1. S'il n'y avait pas de relation entre le type de présentation et l'intérêt dans la matière, combien d'étudiants voudraient en savoir plus dans le cas d'une présentation de type filmographique?",null,null,null,null,null,null,null,"1. S'il n'y avait pas de relation entre le type de présentation et l'intérêt dans la matière, combien d'étudiants voudraient en savoir plus dans le cas d'une présentation de type filmographique?",null,null,null,null,null,null,null,"1. S'il n'y avait pas de relation entre le type de présentation et l'intérêt dans la matière, combien d'étudiants voudraient en savoir plus dans le cas d'une présentation de type filmographique?",null,null,null,null,null,null,null,"1. S'il n'y avait pas de relation entre le type de présentation et l'intérêt dans la matière, combien d'étudiants voudraient en savoir plus dans le cas d'une présentation de type filmographique?",null,null,null,null,null,null,null,"1. S'il n'y avait pas de relation entre le type de présentation et l'intérêt dans la matière, combien d'étudiants voudraient en savoir plus dans le cas d'une présentation de type filmographique?",null,null,null,null,null,null,null,"1. S'il n'y avait pas de relation entre le type de présentation et l'intérêt dans la matière, combien d'étudiants voudraient en savoir plus dans le cas d'une présentation de type filmographique?",null,null,null,null,null,null,null,"1. S'il n'y avait pas de relation entre le type de présentation et l'intérêt dans la matière, combien d'étudiants voudraient en savoir plus dans le cas d'une présentation de type filmographique?",null,null,null,null,null,null,null,"1. S'il n'y avait pas de relation entre le type de présentation et l'intérêt dans la matière, combien d'étudiants voudraient en savoir plus dans le cas d'une présentation de type filmographique?",null,null,null,null,null,null,null,"1. S'il n'y avait pas de relation entre le type de présentation et l'intérêt dans la matière, combien d'étudiants voudraient en savoir plus dans le cas d'une présentation de type filmographique?",null,null,null,null,null,null,null,"1. S'il n'y avait pas de relation entre le type de présentation et l'intérêt dans la matière, combien d'étudiants voudraient en savoir plus dans le cas d'une présentation de type filmographique?",null,null,null,null,null,null,null,"1. S'il n'y avait pas de relation entre le type de présentation et l'intérêt dans la matière, combien d'étudiants voudraient en savoir plus dans le cas d'une présentation de type filmographique?",null,null,null,null,null,null,null,"1. S'il n'y avait pas de relation entre le type de présentation et l'intérêt dans la matière, combien d'étudiants voudraient en savoir plus dans le cas d'une présentation de type filmographique?",null,null,null,null,null,null,null,"1. S'il n'y avait pas de relation entre le type de présentation et l'intérêt dans la matière, combien d'étudiants voudraient en savoir plus dans le cas d'une présentation de type filmographique?",null,null,null,null,null,null,null,"1. S'il n'y avait pas de relation entre le type de présentation et l'intérêt dans la matière, combien d'étudiants voudraient en savoir plus dans le cas d'une présentation de type filmographique?",null,null,null,null,null,null,null,"1. S'il n'y avait pas de relation entre le type de présentation et l'intérêt dans la matière, combien d'étudiants voudraient en savoir plus dans le cas d'une présentation de type filmographique?",null,null,null,null,null,null,null,"1. S'il n'y avait pas de relation entre le type de présentation et l'intérêt dans la matière, combien d'étudiants voudraient en savoir plus dans le cas d'une présentation de type filmographique?",null,null,null,null,null,null,null,"1. S'il n'y avait pas de relation entre le type de présentation et l'intérêt dans la matière, combien d'étudiants voudraient en savoir plus dans le cas d'une présentation de type filmographique?",null,null,null,null,null,null,null,"1. S'il n'y avait pas de relation entre le type de présentation et l'intérêt dans la matière, combien d'étudiants voudraient en savoir plus dans le cas d'une présentation de type filmographique?",null,null,null,null,null,null,null,"1. S'il n'y avait pas de relation entre le type de présentation et l'intérêt dans la matière, combien d'étudiants voudraient en savoir plus dans le cas d'une présentation de type filmographique?",null,null,null,null,null,null,null,"1. S'il n'y avait pas de relation entre le type de présentation et l'intérêt dans la matière, combien d'étudiants voudraient en savoir plus dans le cas d'une présentation de type filmographique?",null,null,null,null,null,null,null,"1. S'il n'y avait pas de relation entre le type de présentation et l'intérêt dans la matière, combien d'étudiants voudraient en savoir plus dans le cas d'une présentation de type filmographique?",null,null,null,null,null,null,null,"1. S'il n'y avait pas de relation entre le type de présentation et l'intérêt dans la matière, combien d'étudiants voudraient en savoir plus dans le cas d'une présentation de type filmographique?",null,null,null,null,null,null,null,"1. S'il n'y avait pas de relation entre le type de présentation et l'intérêt dans la matière, combien d'étudiants voudraient en savoir plus dans le cas d'une présentation de type filmographique?",null,null,null,null,null,null,null,"1. S'il n'y avait pas de relation entre le type de présentation et l'intérêt dans la matière, combien d'étudiants voudraient en savoir plus dans le cas d'une présentation de type filmographique?",null,null,null,null,null,null,null,"1. S'il n'y avait pas de relation entre le type de présentation et l'intérêt dans la matière, combien d'étudiants voudraient en savoir plus dans le cas d'une présentation de type filmographique?",null,null,null,null,null,null,null,"1. S'il n'y avait pas de relation entre le type de présentation et l'intérêt dans la matière, combien d'étudiants voudraient en savoir plus dans le cas d'une présentation de type filmographique?",null,null,null,null,null,null,null,"1. S'il n'y avait pas de relation entre le type de présentation et l'intérêt dans la matière, combien d'étudiants voudraient en savoir plus dans le cas d'une présentation de type filmographique?",null,null,null,null,null,null,null,"1. S'il n'y avait pas de relation entre le type de présentation et l'intérêt dans la matière, combien d'étudiants voudraient en savoir plus dans le cas d'une présentation de type filmographique?",null,null,null,null,null,null,null,"1. S'il n'y avait pas de relation entre le type de présentation et l'intérêt dans la matière, combien d'étudiants voudraient en savoir plus dans le cas d'une présentation de type filmographique?",null,null,null,null,null,null,null,"1. S'il n'y avait pas de relation entre le type de présentation et l'intérêt dans la matière, combien d'étudiants voudraient en savoir plus dans le cas d'une présentation de type filmographique?",null,null,null,null,null,null,null,"1. S'il n'y avait pas de relation entre le type de présentation et l'intérêt dans la matière, combien d'étudiants voudraient en savoir plus dans le cas d'une présentation de type filmographique?",null,null,null,null,null,null,null,"1. S'il n'y avait pas de relation entre le type de présentation et l'intérêt dans la matière, combien d'étudiants voudraient en savoir plus dans le cas d'une présentation de type filmographique?",null,null,null,null,null,null,null,"1. S'il n'y avait pas de relation entre le type de présentation et l'intérêt dans la matière, combien d'étudiants voudraient en savoir plus dans le cas d'une présentation de type filmographique?",null,null,null,null,null,null,null,"1. S'il n'y avait pas de relation entre le type de présentation et l'intérêt dans la matière, combien d'étudiants voudraient en savoir plus dans le cas d'une présentation de type filmographique?",null,null,null,null,null,null,null,"1. S'il n'y avait pas de relation entre le type de présentation et l'intérêt dans la matière, combien d'étudiants voudraient en savoir plus dans le cas d'une présentation de type filmographique?",null,null,null,null,null,null,null,"1. S'il n'y avait pas de relation entre le type de présentation et l'intérêt dans la matière, combien d'étudiants voudraient en savoir plus dans le cas d'une présentation de type filmographique?",null,null,null,null,null,null,null,"1. S'il n'y avait pas de relation entre le type de présentation et l'intérêt dans la matière, combien d'étudiants voudraient en savoir plus dans le cas d'une présentation de type filmographique?",null,null,null,null,null,null,null,"1. S'il n'y avait pas de relation entre le type de présentation et l'intérêt dans la matière, combien d'étudiants voudraient en savoir plus dans le cas d'une présentation de type filmographique?",null,null,null,null,null,null,null,"1. S'il n'y avait pas de relation entre le type de présentation et l'intérêt dans la matière, combien d'étudiants voudraient en savoir plus dans le cas d'une présentation de type filmographique?",null,null,null,null,null,null,null,"1. S'il n'y avait pas de relation entre le type de présentation et l'intérêt dans la matière, combien d'étudiants voudraient en savoir plus dans le cas d'une présentation de type filmographique?",null,null,null,null,null,null,null,"1. S'il n'y avait pas de relation entre le type de présentation et l'intérêt dans la matière, combien d'étudiants voudraient en savoir plus dans le cas d'une présentation de type filmographique?",null,null,null,null,null,null,null,"1. S'il n'y avait pas de relation entre le type de présentation et l'intérêt dans la matière, combien d'étudiants voudraient en savoir plus dans le cas d'une présentation de type filmographique?",null,null,null,null,null,null,null,"1. S'il n'y avait pas de relation entre le type de présentation et l'intérêt dans la matière, combien d'étudiants voudraient en savoir plus dans le cas d'une présentation de type filmographique?",null,null,null,null,null,null,null,"1. S'il n'y avait pas de relation entre le type de présentation et l'intérêt dans la matière, combien d'étudiants voudraient en savoir plus dans le cas d'une présentation de type filmographique?",null,null,null,null,null,null,null,"1. S'il n'y avait pas de relation entre le type de présentation et l'intérêt dans la matière, combien d'étudiants voudraient en savoir plus dans le cas d'une présentation de type filmographique?",null,null,null,null,null,null,null,"1. S'il n'y avait pas de relation entre le type de présentation et l'intérêt dans la matière, combien d'étudiants voudraient en savoir plus dans le cas d'une présentation de type filmographique?",null,null,null,null,null,null,null,"1. S'il n'y avait pas de relation entre le type de présentation et l'intérêt dans la matière, combien d'étudiants voudraient en savoir plus dans le cas d'une présentation de type filmographique?",null,null,null,null,null,null,null,"1. S'il n'y avait pas de relation entre le type de présentation et l'intérêt dans la matière, combien d'étudiants voudraient en savoir plus dans le cas d'une présentation de type filmographique?",null,null,null,null,null,null,null,"1. S'il n'y avait pas de relation entre le type de présentation et l'intérêt dans la matière, combien d'étudiants voudraient en savoir plus dans le cas d'une présentation de type filmographique?",null,null,null,null,null,null,null,"1. S'il n'y avait pas de relation entre le type de présentation et l'intérêt dans la matière, combien d'étudiants voudraient en savoir plus dans le cas d'une présentation de type filmographique?",null,null,null,null,null,null,null,"1. S'il n'y avait pas de relation entre le type de présentation et l'intérêt dans la matière, combien d'étudiants voudraient en savoir plus dans le cas d'une présentation de type filmographique?",null,null,null,null,null,null,null,"1. S'il n'y avait pas de relation entre le type de présentation et l'intérêt dans la matière, combien d'étudiants voudraient en savoir plus dans le cas d'une présentation de type filmographique?",null,null,null,null,null,null,null,"1. S'il n'y avait pas de relation entre le type de présentation et l'intérêt dans la matière, combien d'étudiants voudraient en savoir plus dans le cas d'une présentation de type filmographique?",null,null,null,null,null,null,null,"1. S'il n'y avait pas de relation entre le type de présentation et l'intérêt dans la matière, combien d'étudiants voudraient en savoir plus dans le cas d'une présentation de type filmographique?",null,null,null,null,null,null,null,"1. S'il n'y avait pas de relation entre le type de présentation et l'intérêt dans la matière, combien d'étudiants voudraient en savoir plus dans le cas d'une présentation de type filmographique?",null,null,null,null,null,null,null,"1. S'il n'y avait pas de relation entre le type de présentation et l'intérêt dans la matière, combien d'étudiants voudraient en savoir plus dans le cas d'une présentation de type filmographique?",null,null,null,null,null,null,null,"1. S'il n'y avait pas de relation entre le type de présentation et l'intérêt dans la matière, combien d'étudiants voudraient en savoir plus dans le cas d'une présentation de type filmographique?",null,null,null,null,null,null,null,"1. S'il n'y avait pas de relation entre le type de présentation et l'intérêt dans la matière, combien d'étudiants voudraient en savoir plus dans le cas d'une présentation de type filmographique?",null,null,null,null,null,null,null,"1. S'il n'y avait pas de relation entre le type de présentation et l'intérêt dans la matière, combien d'étudiants voudraient en savoir plus dans le cas d'une présentation de type filmographique?",null,null,null,null,null,null,null,"1. S'il n'y avait pas de relation entre le type de présentation et l'intérêt dans la matière, combien d'étudiants voudraient en savoir plus dans le cas d'une présentation de type filmographique?",null,null,null,null,null,null,null,"1. S'il n'y avait pas de relation entre le type de présentation et l'intérêt dans la matière, combien d'étudiants voudraient en savoir plus dans le cas d'une présentation de type filmographique?",null,null,null,null,null,null,null,"1. S'il n'y avait pas de relation entre le type de présentation et l'intérêt dans la matière, combien d'étudiants voudraient en savoir plus dans le cas d'une présentation de type filmographique?",null,null,null,null,null,null,null,"1. S'il n'y avait pas de relation entre le type de présentation et l'intérêt dans la matière, combien d'étudiants voudraient en savoir plus dans le cas d'une présentation de type filmographique?",null,null,null,null,null,null,null,"1. S'il n'y avait pas de relation entre le type de présentation et l'intérêt dans la matière, combien d'étudiants voudraient en savoir plus dans le cas d'une présentation de type filmographique?",null,null,null,null,null,null,null,"1. S'il n'y avait pas de relation entre le type de présentation et l'intérêt dans la matière, combien d'étudiants voudraient en savoir plus dans le cas d'une présentation de type filmographique?",null,null,null,null,null,null,null,"1. S'il n'y avait pas de relation entre le type de présentation et l'intérêt dans la matière, combien d'étudiants voudraient en savoir plus dans le cas d'une présentation de type filmographique?",null,null,null,null,null,null,null,"1. S'il n'y avait pas de relation entre le type de présentation et l'intérêt dans la matière, combien d'étudiants voudraient en savoir plus dans le cas d'une présentation de type filmographique?",null,null,null,null,null,null,null,"1. S'il n'y avait pas de relation entre le type de présentation et l'intérêt dans la matière, combien d'étudiants voudraient en savoir plus dans le cas d'une présentation de type filmographique?",null,null,null,null,null,null,null,"1. S'il n'y avait pas de relation entre le type de présentation et l'intérêt dans la matière, combien d'étudiants voudraient en savoir plus dans le cas d'une présentation de type filmographique?",null,null,null,null,null,null,null,"1. S'il n'y avait pas de relation entre le type de présentation et l'intérêt dans la matière, combien d'étudiants voudraient en savoir plus dans le cas d'une présentation de type filmographique?",null,null,null,null,null,null,null,"1. S'il n'y avait pas de relation entre le type de présentation et l'intérêt dans la matière, combien d'étudiants voudraient en savoir plus dans le cas d'une présentation de type filmographique?",null,null,null,null,null,null,null,"1. S'il n'y avait pas de relation entre le type de présentation et l'intérêt dans la matière, combien d'étudiants voudraient en savoir plus dans le cas d'une présentation de type filmographique?",null,null,null,null,null,null,null,"1. S'il n'y avait pas de relation entre le type de présentation et l'intérêt dans la matière, combien d'étudiants voudraient en savoir plus dans le cas d'une présentation de type filmographique?",null,null,null,null,null,null,null,"1. S'il n'y avait pas de relation entre le type de présentation et l'intérêt dans la matière, combien d'étudiants voudraient en savoir plus dans le cas d'une présentation de type filmographique?",null,null,null,null,null,null,null,"1. S'il n'y avait pas de relation entre le type de présentation et l'intérêt dans la matière, combien d'étudiants voudraient en savoir plus dans le cas d'une présentation de type filmographique?",null,null,null,null,null,null,null,"1. S'il n'y avait pas de relation entre le type de présentation et l'intérêt dans la matière, combien d'étudiants voudraient en savoir plus dans le cas d'une présentation de type filmographique?",null,null,null,null,null,null,null,"1. S'il n'y avait pas de relation entre le type de présentation et l'intérêt dans la matière, combien d'étudiants voudraient en savoir plus dans le cas d'une présentation de type filmographique?",null,null,null,null,null,null,null,"1. S'il n'y avait pas de relation entre le type de présentation et l'intérêt dans la matière, combien d'étudiants voudraient en savoir plus dans le cas d'une présentation de type filmographique?",null,null,null,null,null,null,null,"1. S'il n'y avait pas de relation entre le type de présentation et l'intérêt dans la matière, combien d'étudiants voudraient en savoir plus dans le cas d'une présentation de type filmographique?",null,null,null,null,null,null,null,"1. S'il n'y avait pas de relation entre le type de présentation et l'intérêt dans la matière, combien d'étudiants voudraient en savoir plus dans le cas d'une présentation de type filmographique?",null,null,null,null,null,null,null,"1. S'il n'y avait pas de relation entre le type de présentation et l'intérêt dans la matière, combien d'étudiants voudraient en savoir plus dans le cas d'une présentation de type filmographique?",null,null,null,null,null,null,null,"1. S'il n'y avait pas de relation entre le type de présentation et l'intérêt dans la matière, combien d'étudiants voudraient en savoir plus dans le cas d'une présentation de type filmographique?",null,null,null,null,null,null,null,"1. S'il n'y avait pas de relation entre le type de présentation et l'intérêt dans la matière, combien d'étudiants voudraient en savoir plus dans le cas d'une présentation de type filmographique?",null,null,null,null,null,null,null,"1. S'il n'y avait pas de relation entre le type de présentation et l'intérêt dans la matière, combien d'étudiants voudraient en savoir plus dans le cas d'une présentation de type filmographique?",null,null,null,null,null,null,null,"1. S'il n'y avait pas de relation entre le type de présentation et l'intérêt dans la matière, combien d'étudiants voudraient en savoir plus dans le cas d'une présentation de type filmographique?",null,null,null,null,null,null,null,"1. S'il n'y avait pas de relation entre le type de présentation et l'intérêt dans la matière, combien d'étudiants voudraient en savoir plus dans le cas d'une présentation de type filmographique?",null,null,null,null,null,null,null,"1. S'il n'y avait pas de relation entre le type de présentation et l'intérêt dans la matière, combien d'étudiants voudraient en savoir plus dans le cas d'une présentation de type filmographique?",null,null,null,null,null,null,null,"1. S'il n'y avait pas de relation entre le type de présentation et l'intérêt dans la matière, combien d'étudiants voudraient en savoir plus dans le cas d'une présentation de type filmographique?",null,null,null,null,null,null,null,"1. S'il n'y avait pas de relation entre le type de présentation et l'intérêt dans la matière, combien d'étudiants voudraient en savoir plus dans le cas d'une présentation de type filmographique?",null,null,null,null,null,null,null,"1. S'il n'y avait pas de relation entre le type de présentation et l'intérêt dans la matière, combien d'étudiants voudraient en savoir plus dans le cas d'une présentation de type filmographique?",null,null,null,null,null,null,null,"1. S'il n'y avait pas de relation entre le type de présentation et l'intérêt dans la matière, combien d'étudiants voudraient en savoir plus dans le cas d'une présentation de type filmographique?",null,null,null,null,null,null,null,"1. S'il n'y avait pas de relation entre le type de présentation et l'intérêt dans la matière, combien d'étudiants voudraient en savoir plus dans le cas d'une présentation de type filmographique?",null,null,null,null,null,null,null,"1. S'il n'y avait pas de relation entre le type de présentation et l'intérêt dans la matière, combien d'étudiants voudraient en savoir plus dans le cas d'une présentation de type filmographique?",null,null,null,null,null,null,null,"1. S'il n'y avait pas de relation entre le type de présentation et l'intérêt dans la matière, combien d'étudiants voudraient en savoir plus dans le cas d'une présentation de type filmographique?",null,null,null,null,null,null,null,"1. S'il n'y avait pas de relation entre le type de présentation et l'intérêt dans la matière, combien d'étudiants voudraient en savoir plus dans le cas d'une présentation de type filmographique?",null,null,null,null,null,null,null,"1. S'il n'y avait pas de relation entre le type de présentation et l'intérêt dans la matière, combien d'étudiants voudraient en savoir plus dans le cas d'une présentation de type filmographique?",null,null,null,null,null,null,null,"1. S'il n'y avait pas de relation entre le type de présentation et l'intérêt dans la matière, combien d'étudiants voudraient en savoir plus dans le cas d'une présentation de type filmographique?",null,null,null,null,null,null,null,"1. S'il n'y avait pas de relation entre le type de présentation et l'intérêt dans la matière, combien d'étudiants voudraient en savoir plus dans le cas d'une présentation de type filmographique?",null,null,null,null,null,null,null,"1. S'il n'y avait pas de relation entre le type de présentation et l'intérêt dans la matière, combien d'étudiants voudraient en savoir plus dans le cas d'une présentation de type filmographique?",null,null,null,null,null,null,null,"1. S'il n'y avait pas de relation entre le type de présentation et l'intérêt dans la matière, combien d'étudiants voudraient en savoir plus dans le cas d'une présentation de type filmographique?",null,null,null,null,null,null,null,"1. S'il n'y avait pas de relation entre le type de présentation et l'intérêt dans la matière, combien d'étudiants voudraient en savoir plus dans le cas d'une présentation de type filmographique?",null,null,null,null,null,null,null,"1. S'il n'y avait pas de relation entre le type de présentation et l'intérêt dans la matière, combien d'étudiants voudraient en savoir plus dans le cas d'une présentation de type filmographique?",null,null,null,null,null,null,null,"1. S'il n'y avait pas de relation entre le type de présentation et l'intérêt dans la matière, combien d'étudiants voudraient en savoir plus dans le cas d'une présentation de type filmographique?",null,null,null,null,null,null,null,"1. S'il n'y avait pas de relation entre le type de présentation et l'intérêt dans la matière, combien d'étudiants voudraient en savoir plus dans le cas d'une présentation de type filmographique?",null,null,null,null,null,null,null,"1. S'il n'y avait pas de relation entre le type de présentation et l'intérêt dans la matière, combien d'étudiants voudraient en savoir plus dans le cas d'une présentation de type filmographique?",null,null,null,null,null,null,null,"1. S'il n'y avait pas de relation entre le type de présentation et l'intérêt dans la matière, combien d'étudiants voudraient en savoir plus dans le cas d'une présentation de type filmographique?",null,null,null,null,null,null,null,"1. S'il n'y avait pas de relation entre le type de présentation et l'intérêt dans la matière, combien d'étudiants voudraient en savoir plus dans le cas d'une présentation de type filmographique?",null,null,null,null,null,null,null,"1. S'il n'y avait pas de relation entre le type de présentation et l'intérêt dans la matière, combien d'étudiants voudraient en savoir plus dans le cas d'une présentation de type filmographique?",null,null,null,null,null,null,null,"1. S'il n'y avait pas de relation entre le type de présentation et l'intérêt dans la matière, combien d'étudiants voudraient en savoir plus dans le cas d'une présentation de type filmographique?",null,null,null,null,null,null,null,"1. S'il n'y avait pas de relation entre le type de présentation et l'intérêt dans la matière, combien d'étudiants voudraient en savoir plus dans le cas d'une présentation de type filmographique?",null,null,null,null,null,null,null,"1. S'il n'y avait pas de relation entre le type de présentation et l'intérêt dans la matière, combien d'étudiants voudraient en savoir plus dans le cas d'une présentation de type filmographique?",null,null,null,null,null,null,null,"1. S'il n'y avait pas de relation entre le type de présentation et l'intérêt dans la matière, combien d'étudiants voudraient en savoir plus dans le cas d'une présentation de type filmographique?",null,null,null,null,null,null,null,"1. S'il n'y avait pas de relation entre le type de présentation et l'intérêt dans la matière, combien d'étudiants voudraient en savoir plus dans le cas d'une présentation de type filmographique?",null,null,null,null,null,null,null,"1. S'il n'y avait pas de relation entre le type de présentation et l'intérêt dans la matière, combien d'étudiants voudraient en savoir plus dans le cas d'une présentation de type filmographique?",null,null,null,null,null,null,null,"1. S'il n'y avait pas de relation entre le type de présentation et l'intérêt dans la matière, combien d'étudiants voudraient en savoir plus dans le cas d'une présentation de type filmographique?",null,null,null,null,null,null,null,"1. S'il n'y avait pas de relation entre le type de présentation et l'intérêt dans la matière, combien d'étudiants voudraient en savoir plus dans le cas d'une présentation de type filmographique?",null,null,null,null,null,null,null,"1. S'il n'y avait pas de relation entre le type de présentation et l'intérêt dans la matière, combien d'étudiants voudraient en savoir plus dans le cas d'une présentation de type filmographique?",null,null,null,null,null,null,null,"1. S'il n'y avait pas de relation entre le type de présentation et l'intérêt dans la matière, combien d'étudiants voudraient en savoir plus dans le cas d'une présentation de type filmographique?",null,null,null,null,null,null,null,"1. S'il n'y avait pas de relation entre le type de présentation et l'intérêt dans la matière, combien d'étudiants voudraient en savoir plus dans le cas d'une présentation de type filmographique?",null,null,null,null,null,null,null,"1. S'il n'y avait pas de relation entre le type de présentation et l'intérêt dans la matière, combien d'étudiants voudraient en savoir plus dans le cas d'une présentation de type filmographique?",null,null,null,null,null,null,null,"1. S'il n'y avait pas de relation entre le type de présentation et l'intérêt dans la matière, combien d'étudiants voudraient en savoir plus dans le cas d'une présentation de type filmographique?",null,null,null,null,null,null,null,"1. S'il n'y avait pas de relation entre le type de présentation et l'intérêt dans la matière, combien d'étudiants voudraient en savoir plus dans le cas d'une présentation de type filmographique?",null,null,null,null,null,null,null,"1. S'il n'y avait pas de relation entre le type de présentation et l'intérêt dans la matière, combien d'étudiants voudraient en savoir plus dans le cas d'une présentation de type filmographique?",null,null,null,null,null,null,null,"1. S'il n'y avait pas de relation entre le type de présentation et l'intérêt dans la matière, combien d'étudiants voudraient en savoir plus dans le cas d'une présentation de type filmographique?",null,null,null,null,null,null,null,"1. S'il n'y avait pas de relation entre le type de présentation et l'intérêt dans la matière, combien d'étudiants voudraient en savoir plus dans le cas d'une présentation de type filmographique?",null,null,null,null,null,null,null,"1. S'il n'y avait pas de relation entre le type de présentation et l'intérêt dans la matière, combien d'étudiants voudraient en savoir plus dans le cas d'une présentation de type filmographique?",null,null,null,null,null,null,null,"1. S'il n'y avait pas de relation entre le type de présentation et l'intérêt dans la matière, combien d'étudiants voudraient en savoir plus dans le cas d'une présentation de type filmographique?",null,null,null,null,null,null,null,"1. S'il n'y avait pas de relation entre le type de présentation et l'intérêt dans la matière, combien d'étudiants voudraient en savoir plus dans le cas d'une présentation de type filmographique?",null,null,null,null,null,null,null,"1. S'il n'y avait pas de relation entre le type de présentation et l'intérêt dans la matière, combien d'étudiants voudraient en savoir plus dans le cas d'une présentation de type filmographique?",null,null,null,null,null,null,null,"1. S'il n'y avait pas de relation entre le type de présentation et l'intérêt dans la matière, combien d'étudiants voudraient en savoir plus dans le cas d'une présentation de type filmographique?",null,null,null,null,null,null,null,"1. S'il n'y avait pas de relation entre le type de présentation et l'intérêt dans la matière, combien d'étudiants voudraient en savoir plus dans le cas d'une présentation de type filmographique?",null,null,null,null,null,null,null,"1. S'il n'y avait pas de relation entre le type de présentation et l'intérêt dans la matière, combien d'étudiants voudraient en savoir plus dans le cas d'une présentation de type filmographique?",null,null,null,null,null,null,null,"1. S'il n'y avait pas de relation entre le type de présentation et l'intérêt dans la matière, combien d'étudiants voudraient en savoir plus dans le cas d'une présentation de type filmographique?",null,null,null,null,null,null,null,"1. S'il n'y avait pas de relation entre le type de présentation et l'intérêt dans la matière, combien d'étudiants voudraient en savoir plus dans le cas d'une présentation de type filmographique?",null,null,null,null,null,null,null,"1. S'il n'y avait pas de relation entre le type de présentation et l'intérêt dans la matière, combien d'étudiants voudraient en savoir plus dans le cas d'une présentation de type filmographique?",null,null,null,null,null,null,null,"1. S'il n'y avait pas de relation entre le type de présentation et l'intérêt dans la matière, combien d'étudiants voudraient en savoir plus dans le cas d'une présentation de type filmographique?",null,null,null,null,null,null,null,"1. S'il n'y avait pas de relation entre le type de présentation et l'intérêt dans la matière, combien d'étudiants voudraient en savoir plus dans le cas d'une présentation de type filmographique?",null,null,null,null,null,null,null,"1. S'il n'y avait pas de relation entre le type de présentation et l'intérêt dans la matière, combien d'étudiants voudraient en savoir plus dans le cas d'une présentation de type filmographique?",null,null,null,null,null,null,null,"1. S'il n'y avait pas de relation entre le type de présentation et l'intérêt dans la matière, combien d'étudiants voudraient en savoir plus dans le cas d'une présentation de type filmographique?",null,null,null,null,null,null,null,"1. S'il n'y avait pas de relation entre le type de présentation et l'intérêt dans la matière, combien d'étudiants voudraient en savoir plus dans le cas d'une présentation de type filmographique?",null,null,null,null,null,null,null,"1. S'il n'y avait pas de relation entre le type de présentation et l'intérêt dans la matière, combien d'étudiants voudraient en savoir plus dans le cas d'une présentation de type filmographique?",null,null,null,null,null,null,null,"1. S'il n'y avait pas de relation entre le type de présentation et l'intérêt dans la matière, combien d'étudiants voudraient en savoir plus dans le cas d'une présentation de type filmographique?",null,null,null,null,null,null,null,"1. S'il n'y avait pas de relation entre le type de présentation et l'intérêt dans la matière, combien d'étudiants voudraient en savoir plus dans le cas d'une présentation de type filmographique?",null,null,null,null,null,null,null,"1. S'il n'y avait pas de relation entre le type de présentation et l'intérêt dans la matière, combien d'étudiants voudraient en savoir plus dans le cas d'une présentation de type filmographique?",null,null,null,null,null,null,null,"1. S'il n'y avait pas de relation entre le type de présentation et l'intérêt dans la matière, combien d'étudiants voudraient en savoir plus dans le cas d'une présentation de type filmographique?",null,null,null,null,null,null,null,"1. S'il n'y avait pas de relation entre le type de présentation et l'intérêt dans la matière, combien d'étudiants voudraient en savoir plus dans le cas d'une présentation de type filmographique?",null,null,null,null,null,null,null,"1. S'il n'y avait pas de relation entre le type de présentation et l'intérêt dans la matière, combien d'étudiants voudraient en savoir plus dans le cas d'une présentation de type filmographique?",null,null,null,null,null,null,null,"1. S'il n'y avait pas de relation entre le type de présentation et l'intérêt dans la matière, combien d'étudiants voudraient en savoir plus dans le cas d'une présentation de type filmographique?",null,null,null,null,null,null,null,"1. S'il n'y avait pas de relation entre le type de présentation et l'intérêt dans la matière, combien d'étudiants voudraient en savoir plus dans le cas d'une présentation de type filmographique?",null,null,null,null,null,null,null,"1. S'il n'y avait pas de relation entre le type de présentation et l'intérêt dans la matière, combien d'étudiants voudraient en savoir plus dans le cas d'une présentation de type filmographique?",null,null,null,null,null,null,null,"1. S'il n'y avait pas de relation entre le type de présentation et l'intérêt dans la matière, combien d'étudiants voudraient en savoir plus dans le cas d'une présentation de type filmographique?",null,null,null,null,null,null,null,"1. S'il n'y avait pas de relation entre le type de présentation et l'intérêt dans la matière, combien d'étudiants voudraient en savoir plus dans le cas d'une présentation de type filmographique?",null,null,null,null,null,null,null,"1. S'il n'y avait pas de relation entre le type de présentation et l'intérêt dans la matière, combien d'étudiants voudraient en savoir plus dans le cas d'une présentation de type filmographique?",null,null,null,null,null,null,null,"1. S'il n'y avait pas de relation entre le type de présentation et l'intérêt dans la matière, combien d'étudiants voudraient en savoir plus dans le cas d'une présentation de type filmographique?",null,null,null,null,null,null,null,"1. S'il n'y avait pas de relation entre le type de présentation et l'intérêt dans la matière, combien d'étudiants voudraient en savoir plus dans le cas d'une présentation de type filmographique?",null,null,null,null,null,null,null,"1. S'il n'y avait pas de relation entre le type de présentation et l'intérêt dans la matière, combien d'étudiants voudraient en savoir plus dans le cas d'une présentation de type filmographique?",null,null,null,null,null,null,null,"1. S'il n'y avait pas de relation entre le type de présentation et l'intérêt dans la matière, combien d'étudiants voudraient en savoir plus dans le cas d'une présentation de type filmographique?",null,null,null,null,null,null,null,"1. S'il n'y avait pas de relation entre le type de présentation et l'intérêt dans la matière, combien d'étudiants voudraient en savoir plus dans le cas d'une présentation de type filmographique?",null,null,null,null,null,null,null,"1. S'il n'y avait pas de relation entre le type de présentation et l'intérêt dans la matière, combien d'étudiants voudraient en savoir plus dans le cas d'une présentation de type filmographique?",null,null,null,null,null,null,null,"1. S'il n'y avait pas de relation entre le type de présentation et l'intérêt dans la matière, combien d'étudiants voudraient en savoir plus dans le cas d'une présentation de type filmographique?",null,null,null,null,null,null,null,"1. S'il n'y avait pas de relation entre le type de présentation et l'intérêt dans la matière, combien d'étudiants voudraient en savoir plus dans le cas d'une présentation de type filmographique?",null,null,null,null,null,null,null,"1. S'il n'y avait pas de relation entre le type de présentation et l'intérêt dans la matière, combien d'étudiants voudraient en savoir plus dans le cas d'une présentation de type filmographique?",null,null,null,null,null,null,null,"1. S'il n'y avait pas de relation entre le type de présentation et l'intérêt dans la matière, combien d'étudiants voudraient en savoir plus dans le cas d'une présentation de type filmographique?",null,null,null,null,null,null,null,"1. S'il n'y avait pas de relation entre le type de présentation et l'intérêt dans la matière, combien d'étudiants voudraient en savoir plus dans le cas d'une présentation de type filmographique?",null,null,null,null,null,null,null,"1. S'il n'y avait pas de relation entre le type de présentation et l'intérêt dans la matière, combien d'étudiants voudraient en savoir plus dans le cas d'une présentation de type filmographique?",null,null,null,null,null,null,null,"1. S'il n'y avait pas de relation entre le type de présentation et l'intérêt dans la matière, combien d'étudiants voudraient en savoir plus dans le cas d'une présentation de type filmographique?",null,null,null,null,null,null,null,"1. S'il n'y avait pas de relation entre le type de présentation et l'intérêt dans la matière, combien d'étudiants voudraient en savoir plus dans le cas d'une présentation de type filmographique?",null,null,null,null,null,null,null,"1. S'il n'y avait pas de relation entre le type de présentation et l'intérêt dans la matière, combien d'étudiants voudraient en savoir plus dans le cas d'une présentation de type filmographique?",null,null,null,null,null,null,null,"1. S'il n'y avait pas de relation entre le type de présentation et l'intérêt dans la matière, combien d'étudiants voudraient en savoir plus dans le cas d'une présentation de type filmographique?",null,null,null,null,null,null,null,"1. S'il n'y avait pas de relation entre le type de présentation et l'intérêt dans la matière, combien d'étudiants voudraient en savoir plus dans le cas d'une présentation de type filmographique?",null,null,null,null,null,null,null,"1. S'il n'y avait pas de relation entre le type de présentation et l'intérêt dans la matière, combien d'étudiants voudraient en savoir plus dans le cas d'une présentation de type filmographique?",null,null,null,null,null,null,null,"1. S'il n'y avait pas de relation entre le type de présentation et l'intérêt dans la matière, combien d'étudiants voudraient en savoir plus dans le cas d'une présentation de type filmographique?",null,null,null,null,null,null,null,"1. S'il n'y avait pas de relation entre le type de présentation et l'intérêt dans la matière, combien d'étudiants voudraient en savoir plus dans le cas d'une présentation de type filmographique?",null,null,null,null,null,null,null,"1. S'il n'y avait pas de relation entre le type de présentation et l'intérêt dans la matière, combien d'étudiants voudraient en savoir plus dans le cas d'une présentation de type filmographique?",null,null,null,null,null,null,null,"1. S'il n'y avait pas de relation entre le type de présentation et l'intérêt dans la matière, combien d'étudiants voudraient en savoir plus dans le cas d'une présentation de type filmographique?",null,null,null,null,null,null,null,"1. S'il n'y avait pas de relation entre le type de présentation et l'intérêt dans la matière, combien d'étudiants voudraient en savoir plus dans le cas d'une présentation de type filmographique?",null,null,null,null,null,null,null,"1. S'il n'y avait pas de relation entre le type de présentation et l'intérêt dans la matière, combien d'étudiants voudraient en savoir plus dans le cas d'une présentation de type filmographique?",null,null,null,null,null,null,null,"1. S'il n'y avait pas de relation entre le type de présentation et l'intérêt dans la matière, combien d'étudiants voudraient en savoir plus dans le cas d'une présentation de type filmographique?",null,null,null,null,null,null,null,"1. S'il n'y avait pas de relation entre le type de présentation et l'intérêt dans la matière, combien d'étudiants voudraient en savoir plus dans le cas d'une présentation de type filmographique?",null,null,null,null,null,null,null,"1. S'il n'y avait pas de relation entre le type de présentation et l'intérêt dans la matière, combien d'étudiants voudraient en savoir plus dans le cas d'une présentation de type filmographique?",null,null,null,null,null,null,null,"1. S'il n'y avait pas de relation entre le type de présentation et l'intérêt dans la matière, combien d'étudiants voudraient en savoir plus dans le cas d'une présentation de type filmographique?",null,null,null,null,null,null,null,"1. S'il n'y avait pas de relation entre le type de présentation et l'intérêt dans la matière, combien d'étudiants voudraient en savoir plus dans le cas d'une présentation de type filmographique?",null,null,null,null,null,null,null,"1. S'il n'y avait pas de relation entre le type de présentation et l'intérêt dans la matière, combien d'étudiants voudraient en savoir plus dans le cas d'une présentation de type filmographique?",null,null,null,null,null,null,null,"1. S'il n'y avait pas de relation entre le type de présentation et l'intérêt dans la matière, combien d'étudiants voudraient en savoir plus dans le cas d'une présentation de type filmographique?",null,null,null,null,null,null,null,"1. S'il n'y avait pas de relation entre le type de présentation et l'intérêt dans la matière, combien d'étudiants voudraient en savoir plus dans le cas d'une présentation de type filmographique?",null,null,null,null,null,null,null,"1. S'il n'y avait pas de relation entre le type de présentation et l'intérêt dans la matière, combien d'étudiants voudraient en savoir plus dans le cas d'une présentation de type filmographique?",null,null,null,null,null,null,null,"1. S'il n'y avait pas de relation entre le type de présentation et l'intérêt dans la matière, combien d'étudiants voudraient en savoir plus dans le cas d'une présentation de type filmographique?",null,null,null,null,null,null,null,"1. S'il n'y avait pas de relation entre le type de présentation et l'intérêt dans la matière, combien d'étudiants voudraient en savoir plus dans le cas d'une présentation de type filmographique?",null,null,null,null,null,null,null,"1. S'il n'y avait pas de relation entre le type de présentation et l'intérêt dans la matière, combien d'étudiants voudraient en savoir plus dans le cas d'une présentation de type filmographique?",null,null,null,null,null,null,null,"1. S'il n'y avait pas de relation entre le type de présentation et l'intérêt dans la matière, combien d'étudiants voudraient en savoir plus dans le cas d'une présentation de type filmographique?",null,null,null,null,null,null,null,"1. S'il n'y avait pas de relation entre le type de présentation et l'intérêt dans la matière, combien d'étudiants voudraient en savoir plus dans le cas d'une présentation de type filmographique?",null,null,null,null,null,null,null,"1. S'il n'y avait pas de relation entre le type de présentation et l'intérêt dans la matière, combien d'étudiants voudraient en savoir plus dans le cas d'une présentation de type filmographique?",null,null,null,null,null,null,null,"1. S'il n'y avait pas de relation entre le type de présentation et l'intérêt dans la matière, combien d'étudiants voudraient en savoir plus dans le cas d'une présentation de type filmographique?",null,null,null,null,null,null,null,"1. S'il n'y avait pas de relation entre le type de présentation et l'intérêt dans la matière, combien d'étudiants voudraient en savoir plus dans le cas d'une présentation de type filmographique?",null,null,null,null,null,null,null,"1. S'il n'y avait pas de relation entre le type de présentation et l'intérêt dans la matière, combien d'étudiants voudraient en savoir plus dans le cas d'une présentation de type filmographique?",null,null,null,null,null,null,null,"1. S'il n'y avait pas de relation entre le type de présentation et l'intérêt dans la matière, combien d'étudiants voudraient en savoir plus dans le cas d'une présentation de type filmographique?",null,null,null,null,null,null,null,"1. S'il n'y avait pas de relation entre le type de présentation et l'intérêt dans la matière, combien d'étudiants voudraient en savoir plus dans le cas d'une présentation de type filmographique?",null,null,null,null,null,null,null,"1. S'il n'y avait pas de relation entre le type de présentation et l'intérêt dans la matière, combien d'étudiants voudraient en savoir plus dans le cas d'une présentation de type filmographique?",null,null,null,null,null,null,null,"1. S'il n'y avait pas de relation entre le type de présentation et l'intérêt dans la matière, combien d'étudiants voudraient en savoir plus dans le cas d'une présentation de type filmographique?",null,null,null,null,null,null,null,"1. S'il n'y avait pas de relation entre le type de présentation et l'intérêt dans la matière, combien d'étudiants voudraient en savoir plus dans le cas d'une présentation de type filmographique?",null,null,null,null,null,null,null,"1. S'il n'y avait pas de relation entre le type de présentation et l'intérêt dans la matière, combien d'étudiants voudraient en savoir plus dans le cas d'une présentation de type filmographique?",null,null,null,null,null,null,null,"1. S'il n'y avait pas de relation entre le type de présentation et l'intérêt dans la matière, combien d'étudiants voudraient en savoir plus dans le cas d'une présentation de type filmographique?",null,null,null,null,null,null,null,"1. S'il n'y avait pas de relation entre le type de présentation et l'intérêt dans la matière, combien d'étudiants voudraient en savoir plus dans le cas d'une présentation de type filmographique?",null,null,null,null,null,null,null,"1. S'il n'y avait pas de relation entre le type de présentation et l'intérêt dans la matière, combien d'étudiants voudraient en savoir plus dans le cas d'une présentation de type filmographique?",null,null,null,null,null,null,null,"1. S'il n'y avait pas de relation entre le type de présentation et l'intérêt dans la matière, combien d'étudiants voudraient en savoir plus dans le cas d'une présentation de type filmographique?",null,null,null,null,null,null,null,"1. S'il n'y avait pas de relation entre le type de présentation et l'intérêt dans la matière, combien d'étudiants voudraient en savoir plus dans le cas d'une présentation de type filmographique?",null,null,null,null,null,null,null,"1. S'il n'y avait pas de relation entre le type de présentation et l'intérêt dans la matière, combien d'étudiants voudraient en savoir plus dans le cas d'une présentation de type filmographique?",null,null,null,null,null,null,null,"1. S'il n'y avait pas de relation entre le type de présentation et l'intérêt dans la matière, combien d'étudiants voudraient en savoir plus dans le cas d'une présentation de type filmographique?",null,null,null,null,null,null,null,"1. S'il n'y avait pas de relation entre le type de présentation et l'intérêt dans la matière, combien d'étudiants voudraient en savoir plus dans le cas d'une présentation de type filmographique?",null,null,null,null,null,null,null,"1. S'il n'y avait pas de relation entre le type de présentation et l'intérêt dans la matière, combien d'étudiants voudraient en savoir plus dans le cas d'une présentation de type filmographique?",null,null,null,null,null,null,null,"1. S'il n'y avait pas de relation entre le type de présentation et l'intérêt dans la matière, combien d'étudiants voudraient en savoir plus dans le cas d'une présentation de type filmographique?",null,null,null,null,null,null,null,"1. S'il n'y avait pas de relation entre le type de présentation et l'intérêt dans la matière, combien d'étudiants voudraient en savoir plus dans le cas d'une présentation de type filmographique?",null,null,null,null,null,null,null,"1. S'il n'y avait pas de relation entre le type de présentation et l'intérêt dans la matière, combien d'étudiants voudraient en savoir plus dans le cas d'une présentation de type filmographique?",null,null,null,null,null,null,null,"1. S'il n'y avait pas de relation entre le type de présentation et l'intérêt dans la matière, combien d'étudiants voudraient en savoir plus dans le cas d'une présentation de type filmographique?",null,null,null,null,null,null,null,"1. S'il n'y avait pas de relation entre le type de présentation et l'intérêt dans la matière, combien d'étudiants voudraient en savoir plus dans le cas d'une présentation de type filmographique?",null,null,null,null,null,null,null,"1. S'il n'y avait pas de relation entre le type de présentation et l'intérêt dans la matière, combien d'étudiants voudraient en savoir plus dans le cas d'une présentation de type filmographique?",null,null,null,null,null,null,null,"1. S'il n'y avait pas de relation entre le type de présentation et l'intérêt dans la matière, combien d'étudiants voudraient en savoir plus dans le cas d'une présentation de type filmographique?",null,null,null,null,null,null,null,"1. S'il n'y avait pas de relation entre le type de présentation et l'intérêt dans la matière, combien d'étudiants voudraient en savoir plus dans le cas d'une présentation de type filmographique?",null,null,null,null,null,null,null,"1. S'il n'y avait pas de relation entre le type de présentation et l'intérêt dans la matière, combien d'étudiants voudraient en savoir plus dans le cas d'une présentation de type filmographique?",null,null,null,null,null,null,null,"1. S'il n'y avait pas de relation entre le type de présentation et l'intérêt dans la matière, combien d'étudiants voudraient en savoir plus dans le cas d'une présentation de type filmographique?",null,null,null,null,null,null,null,"1. S'il n'y avait pas de relation entre le type de présentation et l'intérêt dans la matière, combien d'étudiants voudraient en savoir plus dans le cas d'une présentation de type filmographique?",null,null,null,null,null,null,null,"1. S'il n'y avait pas de relation entre le type de présentation et l'intérêt dans la matière, combien d'étudiants voudraient en savoir plus dans le cas d'une présentation de type filmographique?",null,null,null,null,null,null,null,"1. S'il n'y avait pas de relation entre le type de présentation et l'intérêt dans la matière, combien d'étudiants voudraient en savoir plus dans le cas d'une présentation de type filmographique?",null,null,null,null,null,null,null,"1. S'il n'y avait pas de relation entre le type de présentation et l'intérêt dans la matière, combien d'étudiants voudraient en savoir plus dans le cas d'une présentation de type filmographique?",null,null,null,null,null,null,null,"1. S'il n'y avait pas de relation entre le type de présentation et l'intérêt dans la matière, combien d'étudiants voudraient en savoir plus dans le cas d'une présentation de type filmographique?",null,null,null,null,null,null,null,"1. S'il n'y avait pas de relation entre le type de présentation et l'intérêt dans la matière, combien d'étudiants voudraient en savoir plus dans le cas d'une présentation de type filmographique?",null,null,null,null,null,null,null,"1. S'il n'y avait pas de relation entre le type de présentation et l'intérêt dans la matière, combien d'étudiants voudraient en savoir plus dans le cas d'une présentation de type filmographique?",null,null,null,null,null,null,null,"1. S'il n'y avait pas de relation entre le type de présentation et l'intérêt dans la matière, combien d'étudiants voudraient en savoir plus dans le cas d'une présentation de type filmographique?",null,null,null,null,null,null,null,"1. S'il n'y avait pas de relation entre le type de présentation et l'intérêt dans la matière, combien d'étudiants voudraient en savoir plus dans le cas d'une présentation de type filmographique?",null,null,null,null,null,null,null,"1. S'il n'y avait pas de relation entre le type de présentation et l'intérêt dans la matière, combien d'étudiants voudraient en savoir plus dans le cas d'une présentation de type filmographique?",null,null,null,null,null,null,null,"1. S'il n'y avait pas de relation entre le type de présentation et l'intérêt dans la matière, combien d'étudiants voudraient en savoir plus dans le cas d'une présentation de type filmographique?",null,null,null,null,null,null,null,"1. S'il n'y avait pas de relation entre le type de présentation et l'intérêt dans la matière, combien d'étudiants voudraient en savoir plus dans le cas d'une présentation de type filmographique?",null,null,null,null,null,null,null,"1. S'il n'y avait pas de relation entre le type de présentation et l'intérêt dans la matière, combien d'étudiants voudraient en savoir plus dans le cas d'une présentation de type filmographique?",null,null,null,null,null,null,null,"1. S'il n'y avait pas de relation entre le type de présentation et l'intérêt dans la matière, combien d'étudiants voudraient en savoir plus dans le cas d'une présentation de type filmographique?",null,null,null,null,null,null,null,"1. S'il n'y avait pas de relation entre le type de présentation et l'intérêt dans la matière, combien d'étudiants voudraient en savoir plus dans le cas d'une présentation de type filmographique?",null,null,null,null,null,null,null,"1. S'il n'y avait pas de relation entre le type de présentation et l'intérêt dans la matière, combien d'étudiants voudraient en savoir plus dans le cas d'une présentation de type filmographique?",null,null,null,null,null,null,null,"1. S'il n'y avait pas de relation entre le type de présentation et l'intérêt dans la matière, combien d'étudiants voudraient en savoir plus dans le cas d'une présentation de type filmographique?",null,null,null,null,null,null,null,"1. S'il n'y avait pas de relation entre le type de présentation et l'intérêt dans la matière, combien d'étudiants voudraient en savoir plus dans le cas d'une présentation de type filmographique?",null,null,null,null,null,null,null,"1. S'il n'y avait pas de relation entre le type de présentation et l'intérêt dans la matière, combien d'étudiants voudraient en savoir plus dans le cas d'une présentation de type filmographique?",null,null,null,null,null,null,null,"1. S'il n'y avait pas de relation entre le type de présentation et l'intérêt dans la matière, combien d'étudiants voudraient en savoir plus dans le cas d'une présentation de type filmographique?",null,null,null,null,null,null,null,"1. S'il n'y avait pas de relation entre le type de présentation et l'intérêt dans la matière, combien d'étudiants voudraient en savoir plus dans le cas d'une présentation de type filmographique?",null,null,null,null,null,null,null,"1. S'il n'y avait pas de relation entre le type de présentation et l'intérêt dans la matière, combien d'étudiants voudraient en savoir plus dans le cas d'une présentation de type filmographique?",null,null,null,null,null,null,null,"1. S'il n'y avait pas de relation entre le type de présentation et l'intérêt dans la matière, combien d'étudiants voudraient en savoir plus dans le cas d'une présentation de type filmographique?",null,null,null,null,null,null,null,"1. S'il n'y avait pas de relation entre le type de présentation et l'intérêt dans la matière, combien d'étudiants voudraient en savoir plus dans le cas d'une présentation de type filmographique?",null,null,null,null,null,null,null,"1. S'il n'y avait pas de relation entre le type de présentation et l'intérêt dans la matière, combien d'étudiants voudraient en savoir plus dans le cas d'une présentation de type filmographique?",null,null,null,null,null,null,null,"1. S'il n'y avait pas de relation entre le type de présentation et l'intérêt dans la matière, combien d'étudiants voudraient en savoir plus dans le cas d'une présentation de type filmographique?",null,null,null,null,null,null,null,"1. S'il n'y avait pas de relation entre le type de présentation et l'intérêt dans la matière, combien d'étudiants voudraient en savoir plus dans le cas d'une présentation de type filmographique?",null,null,null,null,null,null,null,"1. S'il n'y avait pas de relation entre le type de présentation et l'intérêt dans la matière, combien d'étudiants voudraient en savoir plus dans le cas d'une présentation de type filmographique?",null,null,null,null,null,null,null,"1. S'il n'y avait pas de relation entre le type de présentation et l'intérêt dans la matière, combien d'étudiants voudraient en savoir plus dans le cas d'une présentation de type filmographique?",null,null,null,null,null,null,null,"1. S'il n'y avait pas de relation entre le type de présentation et l'intérêt dans la matière, combien d'étudiants voudraient en savoir plus dans le cas d'une présentation de type filmographique?",null,null,null,null,null,null,null,"1. S'il n'y avait pas de relation entre le type de présentation et l'intérêt dans la matière, combien d'étudiants voudraient en savoir plus dans le cas d'une présentation de type filmographique?",null,null,null,null,null,null,null,"1. S'il n'y avait pas de relation entre le type de présentation et l'intérêt dans la matière, combien d'étudiants voudraient en savoir plus dans le cas d'une présentation de type filmographique?",null,null,null,null,null,null,null,"1. S'il n'y avait pas de relation entre le type de présentation et l'intérêt dans la matière, combien d'étudiants voudraient en savoir plus dans le cas d'une présentation de type filmographique?",null,null,null,null,null,null,null,"1. S'il n'y avait pas de relation entre le type de présentation et l'intérêt dans la matière, combien d'étudiants voudraient en savoir plus dans le cas d'une présentation de type filmographique?",null,null,null,null,null,null,null,"1. S'il n'y avait pas de relation entre le type de présentation et l'intérêt dans la matière, combien d'étudiants voudraient en savoir plus dans le cas d'une présentation de type filmographique?",null,null,null,null,null,null,null,"1. S'il n'y avait pas de relation entre le type de présentation et l'intérêt dans la matière, combien d'étudiants voudraient en savoir plus dans le cas d'une présentation de type filmographique?",null,null,null,null,null,null,null,"1. S'il n'y avait pas de relation entre le type de présentation et l'intérêt dans la matière, combien d'étudiants voudraient en savoir plus dans le cas d'une présentation de type filmographique?",null,null,null,null,null,null,null,"1. S'il n'y avait pas de relation entre le type de présentation et l'intérêt dans la matière, combien d'étudiants voudraient en savoir plus dans le cas d'une présentation de type filmographique?",null,null,null,null,null,null,null,"1. S'il n'y avait pas de relation entre le type de présentation et l'intérêt dans la matière, combien d'étudiants voudraient en savoir plus dans le cas d'une présentation de type filmographique?",null,null,null,null,null,null,null,"1. S'il n'y avait pas de relation entre le type de présentation et l'intérêt dans la matière, combien d'étudiants voudraient en savoir plus dans le cas d'une présentation de type filmographique?",null,null,null,null,null,null,null,"1. S'il n'y avait pas de relation entre le type de présentation et l'intérêt dans la matière, combien d'étudiants voudraient en savoir plus dans le cas d'une présentation de type filmographique?",null,null,null,null,null,null,null,"1. S'il n'y avait pas de relation entre le type de présentation et l'intérêt dans la matière, combien d'étudiants voudraient en savoir plus dans le cas d'une présentation de type filmographique?",null,null,null,null,null,null,null,"1. S'il n'y avait pas de relation entre le type de présentation et l'intérêt dans la matière, combien d'étudiants voudraient en savoir plus dans le cas d'une présentation de type filmographique?",null,null,null,null,null,null,null,"1. S'il n'y avait pas de relation entre le type de présentation et l'intérêt dans la matière, combien d'étudiants voudraient en savoir plus dans le cas d'une présentation de type filmographique?",null,null,null,null,null,null,null,"1. S'il n'y avait pas de relation entre le type de présentation et l'intérêt dans la matière, combien d'étudiants voudraient en savoir plus dans le cas d'une présentation de type filmographique?",null,null,null,null,null,null,null,"1. S'il n'y avait pas de relation entre le type de présentation et l'intérêt dans la matière, combien d'étudiants voudraient en savoir plus dans le cas d'une présentation de type filmographique?",null,null,null,null,null,null,null,"1. S'il n'y avait pas de relation entre le type de présentation et l'intérêt dans la matière, combien d'étudiants voudraient en savoir plus dans le cas d'une présentation de type filmographique?",null,null,null,null,null,null,null,"1. S'il n'y avait pas de relation entre le type de présentation et l'intérêt dans la matière, combien d'étudiants voudraient en savoir plus dans le cas d'une présentation de type filmographique?",null,null,null,null,null,null,null,"1. S'il n'y avait pas de relation entre le type de présentation et l'intérêt dans la matière, combien d'étudiants voudraient en savoir plus dans le cas d'une présentation de type filmographique?",null,null,null,null,null,null,null,"1. S'il n'y avait pas de relation entre le type de présentation et l'intérêt dans la matière, combien d'étudiants voudraient en savoir plus dans le cas d'une présentation de type filmographique?",null,null,null,null,null,null,null,"1. S'il n'y avait pas de relation entre le type de présentation et l'intérêt dans la matière, combien d'étudiants voudraient en savoir plus dans le cas d'une présentation de type filmographique?",null,null,null,null,null,null,null,"1. S'il n'y avait pas de relation entre le type de présentation et l'intérêt dans la matière, combien d'étudiants voudraient en savoir plus dans le cas d'une présentation de type filmographique?",null,null,null,null,null,null,null,"1. S'il n'y avait pas de relation entre le type de présentation et l'intérêt dans la matière, combien d'étudiants voudraient en savoir plus dans le cas d'une présentation de type filmographique?",null,null,null,null,null,null,null,"1. S'il n'y avait pas de relation entre le type de présentation et l'intérêt dans la matière, combien d'étudiants voudraient en savoir plus dans le cas d'une présentation de type filmographique?",null,null,null,null,null,null,null,"1. S'il n'y avait pas de relation entre le type de présentation et l'intérêt dans la matière, combien d'étudiants voudraient en savoir plus dans le cas d'une présentation de type filmographique?",null,null,null,null,null,null,null,"1. S'il n'y avait pas de relation entre le type de présentation et l'intérêt dans la matière, combien d'étudiants voudraient en savoir plus dans le cas d'une présentation de type filmographique?",null,null,null,null,null,null,null,"1. S'il n'y avait pas de relation entre le type de présentation et l'intérêt dans la matière, combien d'étudiants voudraient en savoir plus dans le cas d'une présentation de type filmographique?",null,null,null,null,null,null,null,"1. S'il n'y avait pas de relation entre le type de présentation et l'intérêt dans la matière, combien d'étudiants voudraient en savoir plus dans le cas d'une présentation de type filmographique?",null,null,null,null,null,null,null,"1. S'il n'y avait pas de relation entre le type de présentation et l'intérêt dans la matière, combien d'étudiants voudraient en savoir plus dans le cas d'une présentation de type filmographique?",null,null,null,null,null,null,null,"1. S'il n'y avait pas de relation entre le type de présentation et l'intérêt dans la matière, combien d'étudiants voudraient en savoir plus dans le cas d'une présentation de type filmographique?",null,null,null,null,null,null,null,"1. S'il n'y avait pas de relation entre le type de présentation et l'intérêt dans la matière, combien d'étudiants voudraient en savoir plus dans le cas d'une présentation de type filmographique?",null,null,null,null,null,null,null,"1. S'il n'y avait pas de relation entre le type de présentation et l'intérêt dans la matière, combien d'étudiants voudraient en savoir plus dans le cas d'une présentation de type filmographique?",null,null,null,null,null,null,null,"1. S'il n'y avait pas de relation entre le type de présentation et l'intérêt dans la matière, combien d'étudiants voudraient en savoir plus dans le cas d'une présentation de type filmographique?",null,null,null,null,null,null,null,"1. S'il n'y avait pas de relation entre le type de présentation et l'intérêt dans la matière, combien d'étudiants voudraient en savoir plus dans le cas d'une présentation de type filmographique?",null,null,null,null,null,null,null,"1. S'il n'y avait pas de relation entre le type de présentation et l'intérêt dans la matière, combien d'étudiants voudraient en savoir plus dans le cas d'une présentation de type filmographique?",null,null,null,null,null,null,null,"1. S'il n'y avait pas de relation entre le type de présentation et l'intérêt dans la matière, combien d'étudiants voudraient en savoir plus dans le cas d'une présentation de type filmographique?",null,null,null,null,null,null,null,"1. S'il n'y avait pas de relation entre le type de présentation et l'intérêt dans la matière, combien d'étudiants voudraient en savoir plus dans le cas d'une présentation de type filmographique?",null,null,null,null,null,null,null,"1. S'il n'y avait pas de relation entre le type de présentation et l'intérêt dans la matière, combien d'étudiants voudraient en savoir plus dans le cas d'une présentation de type filmographique?",null,null,null,null,null,null,null,"1. S'il n'y avait pas de relation entre le type de présentation et l'intérêt dans la matière, combien d'étudiants voudraient en savoir plus dans le cas d'une présentation de type filmographique?",null,null,null,null,null,null,null,"1. S'il n'y avait pas de relation entre le type de présentation et l'intérêt dans la matière, combien d'étudiants voudraient en savoir plus dans le cas d'une présentation de type filmographique?",null,null,null,null,null,null,null,"1. S'il n'y avait pas de relation entre le type de présentation et l'intérêt dans la matière, combien d'étudiants voudraient en savoir plus dans le cas d'une présentation de type filmographique?",null,null,null,null,null,null,null,"1. S'il n'y avait pas de relation entre le type de présentation et l'intérêt dans la matière, combien d'étudiants voudraient en savoir plus dans le cas d'une présentation de type filmographique?",null,null,null,null,null,null,null,"1. S'il n'y avait pas de relation entre le type de présentation et l'intérêt dans la matière, combien d'étudiants voudraient en savoir plus dans le cas d'une présentation de type filmographique?",null,null,null,null,null,null,null,"1. S'il n'y avait pas de relation entre le type de présentation et l'intérêt dans la matière, combien d'étudiants voudraient en savoir plus dans le cas d'une présentation de type filmographique?",null,null,null,null,null,null,null,"1. S'il n'y avait pas de relation entre le type de présentation et l'intérêt dans la matière, combien d'étudiants voudraient en savoir plus dans le cas d'une présentation de type filmographique?",null,null,null,null,null,null,null,"1. S'il n'y avait pas de relation entre le type de présentation et l'intérêt dans la matière, combien d'étudiants voudraient en savoir plus dans le cas d'une présentation de type filmographique?",null,null,null,null,null,null,null,"1. S'il n'y avait pas de relation entre le type de présentation et l'intérêt dans la matière, combien d'étudiants voudraient en savoir plus dans le cas d'une présentation de type filmographique?",null,null,null,null,null,null,null,"1. S'il n'y avait pas de relation entre le type de présentation et l'intérêt dans la matière, combien d'étudiants voudraient en savoir plus dans le cas d'une présentation de type filmographique?",null,null,null,null,null,null,null,"1. S'il n'y avait pas de relation entre le type de présentation et l'intérêt dans la matière, combien d'étudiants voudraient en savoir plus dans le cas d'une présentation de type filmographique?",null,null,null,null,null,null,null,"1. S'il n'y avait pas de relation entre le type de présentation et l'intérêt dans la matière, combien d'étudiants voudraient en savoir plus dans le cas d'une présentation de type filmographique?",null,null,null,null,null,null,null,"1. S'il n'y avait pas de relation entre le type de présentation et l'intérêt dans la matière, combien d'étudiants voudraient en savoir plus dans le cas d'une présentation de type filmographique?",null,null,null,null,null,null,null,"1. S'il n'y avait pas de relation entre le type de présentation et l'intérêt dans la matière, combien d'étudiants voudraient en savoir plus dans le cas d'une présentation de type filmographique?",null,null,null,null,null,null,null,"1. S'il n'y avait pas de relation entre le type de présentation et l'intérêt dans la matière, combien d'étudiants voudraient en savoir plus dans le cas d'une présentation de type filmographique?",null,null,null,null,null,null,null,"1. S'il n'y avait pas de relation entre le type de présentation et l'intérêt dans la matière, combien d'étudiants voudraient en savoir plus dans le cas d'une présentation de type filmographique?",null,null,null,null,null,null,null,"1. S'il n'y avait pas de relation entre le type de présentation et l'intérêt dans la matière, combien d'étudiants voudraient en savoir plus dans le cas d'une présentation de type filmographique?",null,null,null,null,null,null,null,"1. S'il n'y avait pas de relation entre le type de présentation et l'intérêt dans la matière, combien d'étudiants voudraient en savoir plus dans le cas d'une présentation de type filmographique?",null,null,null,null,null,null,null,"1. S'il n'y avait pas de relation entre le type de présentation et l'intérêt dans la matière, combien d'étudiants voudraient en savoir plus dans le cas d'une présentation de type filmographique?",null,null,null,null,null,null,null,"1. S'il n'y avait pas de relation entre le type de présentation et l'intérêt dans la matière, combien d'étudiants voudraient en savoir plus dans le cas d'une présentation de type filmographique?",null,null,null,null,null,null,null,"1. S'il n'y avait pas de relation entre le type de présentation et l'intérêt dans la matière, combien d'étudiants voudraient en savoir plus dans le cas d'une présentation de type filmographique?",null,null,null,null,null,null,null,"1. S'il n'y avait pas de relation entre le type de présentation et l'intérêt dans la matière, combien d'étudiants voudraient en savoir plus dans le cas d'une présentation de type filmographique?",null,null,null,null,null,null,null,"1. S'il n'y avait pas de relation entre le type de présentation et l'intérêt dans la matière, combien d'étudiants voudraient en savoir plus dans le cas d'une présentation de type filmographique?",null,null,null,null,null,null,null,"1. S'il n'y avait pas de relation entre le type de présentation et l'intérêt dans la matière, combien d'étudiants voudraient en savoir plus dans le cas d'une présentation de type filmographique?",null,null,null,null,null,null,null,"1. S'il n'y avait pas de relation entre le type de présentation et l'intérêt dans la matière, combien d'étudiants voudraient en savoir plus dans le cas d'une présentation de type filmographique?",null,null,null,null,null,null,null,"1. S'il n'y avait pas de relation entre le type de présentation et l'intérêt dans la matière, combien d'étudiants voudraient en savoir plus dans le cas d'une présentation de type filmographique?",null,null,null,null,null,null,null,"1. S'il n'y avait pas de relation entre le type de présentation et l'intérêt dans la matière, combien d'étudiants voudraient en savoir plus dans le cas d'une présentation de type filmographique?",null,null,null,null,null,null,null,"1. S'il n'y avait pas de relation entre le type de présentation et l'intérêt dans la matière, combien d'étudiants voudraient en savoir plus dans le cas d'une présentation de type filmographique?",null,null,null,null,null,null,null,"1. S'il n'y avait pas de relation entre le type de présentation et l'intérêt dans la matière, combien d'étudiants voudraient en savoir plus dans le cas d'une présentation de type filmographique?",null,null,null,null,null,null,null,"1. S'il n'y avait pas de relation entre le type de présentation et l'intérêt dans la matière, combien d'étudiants voudraient en savoir plus dans le cas d'une présentation de type filmographique?",null,null,null,null,null,null,null,"1. S'il n'y avait pas de relation entre le type de présentation et l'intérêt dans la matière, combien d'étudiants voudraient en savoir plus dans le cas d'une présentation de type filmographique?",null,null,null,null,null,null,null,"1. S'il n'y avait pas de relation entre le type de présentation et l'intérêt dans la matière, combien d'étudiants voudraient en savoir plus dans le cas d'une présentation de type filmographique?",null,null,null,null,null,null,null,"1. S'il n'y avait pas de relation entre le type de présentation et l'intérêt dans la matière, combien d'étudiants voudraient en savoir plus dans le cas d'une présentation de type filmographique?",null,null,null,null,null,null,null,"1. S'il n'y avait pas de relation entre le type de présentation et l'intérêt dans la matière, combien d'étudiants voudraient en savoir plus dans le cas d'une présentation de type filmographique?",null,null,null,null,null,null,null,"1. S'il n'y avait pas de relation entre le type de présentation et l'intérêt dans la matière, combien d'étudiants voudraient en savoir plus dans le cas d'une présentation de type filmographique?",null,null,null,null,null,null,null,"1. S'il n'y avait pas de relation entre le type de présentation et l'intérêt dans la matière, combien d'étudiants voudraient en savoir plus dans le cas d'une présentation de type filmographique?",null,null,null,null,null,null,null,"1. S'il n'y avait pas de relation entre le type de présentation et l'intérêt dans la matière, combien d'étudiants voudraient en savoir plus dans le cas d'une présentation de type filmographique?",null,null,null,null,null,null,null,"1. S'il n'y avait pas de relation entre le type de présentation et l'intérêt dans la matière, combien d'étudiants voudraient en savoir plus dans le cas d'une présentation de type filmographique?",null,null,null,null,null,null,null,"1. S'il n'y avait pas de relation entre le type de présentation et l'intérêt dans la matière, combien d'étudiants voudraient en savoir plus dans le cas d'une présentation de type filmographique?",null,null,null,null,null,null,null,"1. S'il n'y avait pas de relation entre le type de présentation et l'intérêt dans la matière, combien d'étudiants voudraient en savoir plus dans le cas d'une présentation de type filmographique?",null,null,null,null,null,null,null,"1. S'il n'y avait pas de relation entre le type de présentation et l'intérêt dans la matière, combien d'étudiants voudraient en savoir plus dans le cas d'une présentation de type filmographique?",null,null,null,null,null,null,null,"1. S'il n'y avait pas de relation entre le type de présentation et l'intérêt dans la matière, combien d'étudiants voudraient en savoir plus dans le cas d'une présentation de type filmographique?",null,null,null,null,null,null,null,"1. S'il n'y avait pas de relation entre le type de présentation et l'intérêt dans la matière, combien d'étudiants voudraient en savoir plus dans le cas d'une présentation de type filmographique?",null,null,null,null,null,null,null,"1. S'il n'y avait pas de relation entre le type de présentation et l'intérêt dans la matière, combien d'étudiants voudraient en savoir plus dans le cas d'une présentation de type filmographique?",null,null,null,null,null,null,null,"1. S'il n'y avait pas de relation entre le type de présentation et l'intérêt dans la matière, combien d'étudiants voudraient en savoir plus dans le cas d'une présentation de type filmographique?",null,null,null,null,null,null,null,"1. S'il n'y avait pas de relation entre le type de présentation et l'intérêt dans la matière, combien d'étudiants voudraient en savoir plus dans le cas d'une présentation de type filmographique?",null,null,null,null,null,null,null,"1. S'il n'y avait pas de relation entre le type de présentation et l'intérêt dans la matière, combien d'étudiants voudraient en savoir plus dans le cas d'une présentation de type filmographique?",null,null,null,null,null,null,null,"1. S'il n'y avait pas de relation entre le type de présentation et l'intérêt dans la matière, combien d'étudiants voudraient en savoir plus dans le cas d'une présentation de type filmographique?",null,null,null,null,null,null,null,"1. S'il n'y avait pas de relation entre le type de présentation et l'intérêt dans la matière, combien d'étudiants voudraient en savoir plus dans le cas d'une présentation de type filmographique?",null,null,null,null,null,null,null,"1. S'il n'y avait pas de relation entre le type de présentation et l'intérêt dans la matière, combien d'étudiants voudraient en savoir plus dans le cas d'une présentation de type filmographique?",null,null,null,null,null,null,null,"1. S'il n'y avait pas de relation entre le type de présentation et l'intérêt dans la matière, combien d'étudiants voudraient en savoir plus dans le cas d'une présentation de type filmographique?",null,null,null,null,null,null,null,"1. S'il n'y avait pas de relation entre le type de présentation et l'intérêt dans la matière, combien d'étudiants voudraient en savoir plus dans le cas d'une présentation de type filmographique?",null,null,null,null,null,null,null,"1. S'il n'y avait pas de relation entre le type de présentation et l'intérêt dans la matière, combien d'étudiants voudraient en savoir plus dans le cas d'une présentation de type filmographique?",null,null,null,null,null,null,null,"1. S'il n'y avait pas de relation entre le type de présentation et l'intérêt dans la matière, combien d'étudiants voudraient en savoir plus dans le cas d'une présentation de type filmographique?",null,null,null,null,null,null,null,"1. S'il n'y avait pas de relation entre le type de présentation et l'intérêt dans la matière, combien d'étudiants voudraient en savoir plus dans le cas d'une présentation de type filmographique?",null,null,null,null,null,null,null,"1. S'il n'y avait pas de relation entre le type de présentation et l'intérêt dans la matière, combien d'étudiants voudraient en savoir plus dans le cas d'une présentation de type filmographique?",null,null,null,null,null,null,null,"1. S'il n'y avait pas de relation entre le type de présentation et l'intérêt dans la matière, combien d'étudiants voudraient en savoir plus dans le cas d'une présentation de type filmographique?",null,null,null,null,null,null,null,"1. S'il n'y avait pas de relation entre le type de présentation et l'intérêt dans la matière, combien d'étudiants voudraient en savoir plus dans le cas d'une présentation de type filmographique?",null,null,null,null,null,null,null,"1. S'il n'y avait pas de relation entre le type de présentation et l'intérêt dans la matière, combien d'étudiants voudraient en savoir plus dans le cas d'une présentation de type filmographique?",null,null,null,null,null,null,null,"1. S'il n'y avait pas de relation entre le type de présentation et l'intérêt dans la matière, combien d'étudiants voudraient en savoir plus dans le cas d'une présentation de type filmographique?",null,null,null,null,null,null,null,"1. S'il n'y avait pas de relation entre le type de présentation et l'intérêt dans la matière, combien d'étudiants voudraient en savoir plus dans le cas d'une présentation de type filmographique?",null,null,null,null,null,null,null,"1. S'il n'y avait pas de relation entre le type de présentation et l'intérêt dans la matière, combien d'étudiants voudraient en savoir plus dans le cas d'une présentation de type filmographique?",null,null,null,null,null,null,null,"1. S'il n'y avait pas de relation entre le type de présentation et l'intérêt dans la matière, combien d'étudiants voudraient en savoir plus dans le cas d'une présentation de type filmographique?",null,null,null,null,null,null,null,"1. S'il n'y avait pas de relation entre le type de présentation et l'intérêt dans la matière, combien d'étudiants voudraient en savoir plus dans le cas d'une présentation de type filmographique?",null,null,null,null,null,null,null,"1. S'il n'y avait pas de relation entre le type de présentation et l'intérêt dans la matière, combien d'étudiants voudraient en savoir plus dans le cas d'une présentation de type filmographique?",null,null,null,null,null,null,null,"1. S'il n'y avait pas de relation entre le type de présentation et l'intérêt dans la matière, combien d'étudiants voudraient en savoir plus dans le cas d'une présentation de type filmographique?",null,null,null,null,null,null,null,"1. S'il n'y avait pas de relation entre le type de présentation et l'intérêt dans la matière, combien d'étudiants voudraient en savoir plus dans le cas d'une présentation de type filmographique?",null,null,null,null,null,null,null,"1. S'il n'y avait pas de relation entre le type de présentation et l'intérêt dans la matière, combien d'étudiants voudraient en savoir plus dans le cas d'une présentation de type filmographique?",null,null,null,null,null,null,null,"1. S'il n'y avait pas de relation entre le type de présentation et l'intérêt dans la matière, combien d'étudiants voudraient en savoir plus dans le cas d'une présentation de type filmographique?",null,null,null,null,null,null,null,"1. S'il n'y avait pas de relation entre le type de présentation et l'intérêt dans la matière, combien d'étudiants voudraient en savoir plus dans le cas d'une présentation de type filmographique?",null,null,null,null,null,null,null,"1. S'il n'y avait pas de relation entre le type de présentation et l'intérêt dans la matière, combien d'étudiants voudraient en savoir plus dans le cas d'une présentation de type filmographique?",null,null,null,null,null,null,null,"1. S'il n'y avait pas de relation entre le type de présentation et l'intérêt dans la matière, combien d'étudiants voudraient en savoir plus dans le cas d'une présentation de type filmographique?",null,null,null,null,null,null,null,"1. S'il n'y avait pas de relation entre le type de présentation et l'intérêt dans la matière, combien d'étudiants voudraient en savoir plus dans le cas d'une présentation de type filmographique?",null,null,null,null,null,null,null,"1. S'il n'y avait pas de relation entre le type de présentation et l'intérêt dans la matière, combien d'étudiants voudraient en savoir plus dans le cas d'une présentation de type filmographique?",null,null,null,null,null,null,null,"1. S'il n'y avait pas de relation entre le type de présentation et l'intérêt dans la matière, combien d'étudiants voudraient en savoir plus dans le cas d'une présentation de type filmographique?",null,null,null,null,null,null,null,"1. S'il n'y avait pas de relation entre le type de présentation et l'intérêt dans la matière, combien d'étudiants voudraient en savoir plus dans le cas d'une présentation de type filmographique?",null,null,null,null,null,null,null,"1. S'il n'y avait pas de relation entre le type de présentation et l'intérêt dans la matière, combien d'étudiants voudraient en savoir plus dans le cas d'une présentation de type filmographique?",null,null,null,null,null,null,null,"1. S'il n'y avait pas de relation entre le type de présentation et l'intérêt dans la matière, combien d'étudiants voudraient en savoir plus dans le cas d'une présentation de type filmographique?",null,null,null,null,null,null,null,"1. S'il n'y avait pas de relation entre le type de présentation et l'intérêt dans la matière, combien d'étudiants voudraient en savoir plus dans le cas d'une présentation de type filmographique?",null,null,null,null,null,null,null,"1. S'il n'y avait pas de relation entre le type de présentation et l'intérêt dans la matière, combien d'étudiants voudraient en savoir plus dans le cas d'une présentation de type filmographique?",null,null,null,null,null,null,null,"1. S'il n'y avait pas de relation entre le type de présentation et l'intérêt dans la matière, combien d'étudiants voudraient en savoir plus dans le cas d'une présentation de type filmographique?",null,null,null,null,null,null,null,"1. S'il n'y avait pas de relation entre le type de présentation et l'intérêt dans la matière, combien d'étudiants voudraient en savoir plus dans le cas d'une présentation de type filmographique?",null,null,null,null,null,null,null,"1. S'il n'y avait pas de relation entre le type de présentation et l'intérêt dans la matière, combien d'étudiants voudraient en savoir plus dans le cas d'une présentation de type filmographique?",null,null,null,null,null,null,null,"1. S'il n'y avait pas de relation entre le type de présentation et l'intérêt dans la matière, combien d'étudiants voudraient en savoir plus dans le cas d'une présentation de type filmographique?",null,null,null,null,null,null,null,"1. S'il n'y avait pas de relation entre le type de présentation et l'intérêt dans la matière, combien d'étudiants voudraient en savoir plus dans le cas d'une présentation de type filmographique?",null,null,null,null,null,null,null,"1. S'il n'y avait pas de relation entre le type de présentation et l'intérêt dans la matière, combien d'étudiants voudraient en savoir plus dans le cas d'une présentation de type filmographique?",null,null,null,null,null,null,null,"1. S'il n'y avait pas de relation entre le type de présentation et l'intérêt dans la matière, combien d'étudiants voudraient en savoir plus dans le cas d'une présentation de type filmographique?",null,null,null,null,null,null,null,"1. S'il n'y avait pas de relation entre le type de présentation et l'intérêt dans la matière, combien d'étudiants voudraient en savoir plus dans le cas d'une présentation de type filmographique?",null,null,null,null,null,null,null,"1. S'il n'y avait pas de relation entre le type de présentation et l'intérêt dans la matière, combien d'étudiants voudraient en savoir plus dans le cas d'une présentation de type filmographique?",null,null,null,null,null,null,null,"1. S'il n'y avait pas de relation entre le type de présentation et l'intérêt dans la matière, combien d'étudiants voudraient en savoir plus dans le cas d'une présentation de type filmographique?",null,null,null,null,null,null,null,"1. S'il n'y avait pas de relation entre le type de présentation et l'intérêt dans la matière, combien d'étudiants voudraient en savoir plus dans le cas d'une présentation de type filmographique?",null,null,null,null,null,null,null,"1. S'il n'y avait pas de relation entre le type de présentation et l'intérêt dans la matière, combien d'étudiants voudraient en savoir plus dans le cas d'une présentation de type filmographique?",null,null,null,null,null,null,null,"1. S'il n'y avait pas de relation entre le type de présentation et l'intérêt dans la matière, combien d'étudiants voudraient en savoir plus dans le cas d'une présentation de type filmographique?",null,null,null,null,null,null,null,"1. S'il n'y avait pas de relation entre le type de présentation et l'intérêt dans la matière, combien d'étudiants voudraient en savoir plus dans le cas d'une présentation de type filmographique?",null,null,null,null,null,null,null,"1. S'il n'y avait pas de relation entre le type de présentation et l'intérêt dans la matière, combien d'étudiants voudraient en savoir plus dans le cas d'une présentation de type filmographique?",null,null,null,null,null,null,null,"1. S'il n'y avait pas de relation entre le type de présentation et l'intérêt dans la matière, combien d'étudiants voudraient en savoir plus dans le cas d'une présentation de type filmographique?",null,null,null,null,null,null,null,"1. S'il n'y avait pas de relation entre le type de présentation et l'intérêt dans la matière, combien d'étudiants voudraient en savoir plus dans le cas d'une présentation de type filmographique?",null,null,null,null,null,null,null,"1. S'il n'y avait pas de relation entre le type de présentation et l'intérêt dans la matière, combien d'étudiants voudraient en savoir plus dans le cas d'une présentation de type filmographique?",null,null,null,null,null,null,null,"1. S'il n'y avait pas de relation entre le type de présentation et l'intérêt dans la matière, combien d'étudiants voudraient en savoir plus dans le cas d'une présentation de type filmographique?",null,null,null,null,null,null,null,"1. S'il n'y avait pas de relation entre le type de présentation et l'intérêt dans la matière, combien d'étudiants voudraient en savoir plus dans le cas d'une présentation de type filmographique?",null,null,null,null,null,null,null,"1. S'il n'y avait pas de relation entre le type de présentation et l'intérêt dans la matière, combien d'étudiants voudraient en savoir plus dans le cas d'une présentation de type filmographique?",null,null,null,null,null,null,null,"1. S'il n'y avait pas de relation entre le type de présentation et l'intérêt dans la matière, combien d'étudiants voudraient en savoir plus dans le cas d'une présentation de type filmographique?",null,null,null,null,null,null,null,"1. S'il n'y avait pas de relation entre le type de présentation et l'intérêt dans la matière, combien d'étudiants voudraient en savoir plus dans le cas d'une présentation de type filmographique?",null,null,null,null,null,null,null,"1. S'il n'y avait pas de relation entre le type de présentation et l'intérêt dans la matière, combien d'étudiants voudraient en savoir plus dans le cas d'une présentation de type filmographique?",null,null,null,null,null,null,null,"1. S'il n'y avait pas de relation entre le type de présentation et l'intérêt dans la matière, combien d'étudiants voudraient en savoir plus dans le cas d'une présentation de type filmographique?",null,null,null,null,null,null,null,"1. S'il n'y avait pas de relation entre le type de présentation et l'intérêt dans la matière, combien d'étudiants voudraient en savoir plus dans le cas d'une présentation de type filmographique?",null,null,null,null,null,null,null,"1. S'il n'y avait pas de relation entre le type de présentation et l'intérêt dans la matière, combien d'étudiants voudraient en savoir plus dans le cas d'une présentation de type filmographique?",null,null,null,null,null,null,null,"1. S'il n'y avait pas de relation entre le type de présentation et l'intérêt dans la matière, combien d'étudiants voudraient en savoir plus dans le cas d'une présentation de type filmographique?",null,null,null,null,null,null,null,"1. S'il n'y avait pas de relation entre le type de présentation et l'intérêt dans la matière, combien d'étudiants voudraient en savoir plus dans le cas d'une présentation de type filmographique?",null,null,null,null,null,null,null,"1. S'il n'y avait pas de relation entre le type de présentation et l'intérêt dans la matière, combien d'étudiants voudraient en savoir plus dans le cas d'une présentation de type filmographique?",null,null,null,null,null,null,null,"1. S'il n'y avait pas de relation entre le type de présentation et l'intérêt dans la matière, combien d'étudiants voudraient en savoir plus dans le cas d'une présentation de type filmographique?",null,null,null,null,null,null,null,"1. S'il n'y avait pas de relation entre le type de présentation et l'intérêt dans la matière, combien d'étudiants voudraient en savoir plus dans le cas d'une présentation de type filmographique?",null,null,null,null,null,null,null,"1. S'il n'y avait pas de relation entre le type de présentation et l'intérêt dans la matière, combien d'étudiants voudraient en savoir plus dans le cas d'une présentation de type filmographique?",null,null,null,null,null,null,null,"1. S'il n'y avait pas de relation entre le type de présentation et l'intérêt dans la matière, combien d'étudiants voudraient en savoir plus dans le cas d'une présentation de type filmographique?",null,null,null,null,null,null,null,"1. S'il n'y avait pas de relation entre le type de présentation et l'intérêt dans la matière, combien d'étudiants voudraient en savoir plus dans le cas d'une présentation de type filmographique?",null,null,null,null,null,null,null,"1. S'il n'y avait pas de relation entre le type de présentation et l'intérêt dans la matière, combien d'étudiants voudraient en savoir plus dans le cas d'une présentation de type filmographique?",null,null,null,null,null,null,null,"1. S'il n'y avait pas de relation entre le type de présentation et l'intérêt dans la matière, combien d'étudiants voudraient en savoir plus dans le cas d'une présentation de type filmographique?",null,null,null,null,null,null,null,"1. S'il n'y avait pas de relation entre le type de présentation et l'intérêt dans la matière, combien d'étudiants voudraient en savoir plus dans le cas d'une présentation de type filmographique?",null,null,null,null,null,null,null,"1. S'il n'y avait pas de relation entre le type de présentation et l'intérêt dans la matière, combien d'étudiants voudraient en savoir plus dans le cas d'une présentation de type filmographique?",null,null,null,null,null,null,null,"1. S'il n'y avait pas de relation entre le type de présentation et l'intérêt dans la matière, combien d'étudiants voudraient en savoir plus dans le cas d'une présentation de type filmographique?",null,null,null,null,null,null,null,"1. S'il n'y avait pas de relation entre le type de présentation et l'intérêt dans la matière, combien d'étudiants voudraient en savoir plus dans le cas d'une présentation de type filmographique?",null,null,null,null,null,null,null,"1. S'il n'y avait pas de relation entre le type de présentation et l'intérêt dans la matière, combien d'étudiants voudraient en savoir plus dans le cas d'une présentation de type filmographique?",null,null,null,null,null,null,null,"1. S'il n'y avait pas de relation entre le type de présentation et l'intérêt dans la matière, combien d'étudiants voudraient en savoir plus dans le cas d'une présentation de type filmographique?",null,null,null,null,null,null,null,"1. S'il n'y avait pas de relation entre le type de présentation et l'intérêt dans la matière, combien d'étudiants voudraient en savoir plus dans le cas d'une présentation de type filmographique?",null,null,null,null,null,null,null,"1. S'il n'y avait pas de relation entre le type de présentation et l'intérêt dans la matière, combien d'étudiants voudraient en savoir plus dans le cas d'une présentation de type filmographique?",null,null,null,null,null,null,null,"1. S'il n'y avait pas de relation entre le type de présentation et l'intérêt dans la matière, combien d'étudiants voudraient en savoir plus dans le cas d'une présentation de type filmographique?",null,null,null,null,null,null,null,"1. S'il n'y avait pas de relation entre le type de présentation et l'intérêt dans la matière, combien d'étudiants voudraient en savoir plus dans le cas d'une présentation de type filmographique?",null,null,null,null,null,null,null,"1. S'il n'y avait pas de relation entre le type de présentation et l'intérêt dans la matière, combien d'étudiants voudraient en savoir plus dans le cas d'une présentation de type filmographique?",null,null,null,null,null,null,null,"1. S'il n'y avait pas de relation entre le type de présentation et l'intérêt dans la matière, combien d'étudiants voudraient en savoir plus dans le cas d'une présentation de type filmographique?",null,null,null,null,null,null,null,"1. S'il n'y avait pas de relation entre le type de présentation et l'intérêt dans la matière, combien d'étudiants voudraient en savoir plus dans le cas d'une présentation de type filmographique?",null,null,null,null,null,null,null,"1. S'il n'y avait pas de relation entre le type de présentation et l'intérêt dans la matière, combien d'étudiants voudraient en savoir plus dans le cas d'une présentation de type filmographique?",null,null,null,null,null,null,null,"1. S'il n'y avait pas de relation entre le type de présentation et l'intérêt dans la matière, combien d'étudiants voudraient en savoir plus dans le cas d'une présentation de type filmographique?",null,null,null,null,null,null,null,"1. S'il n'y avait pas de relation entre le type de présentation et l'intérêt dans la matière, combien d'étudiants voudraient en savoir plus dans le cas d'une présentation de type filmographique?",null,null,null,null,null,null,null,"1. S'il n'y avait pas de relation entre le type de présentation et l'intérêt dans la matière, combien d'étudiants voudraient en savoir plus dans le cas d'une présentation de type filmographique?",null,null,null,null,null,null,null,"1. S'il n'y avait pas de relation entre le type de présentation et l'intérêt dans la matière, combien d'étudiants voudraient en savoir plus dans le cas d'une présentation de type filmographique?",null,null,null,null,null,null,null,"1. S'il n'y avait pas de relation entre le type de présentation et l'intérêt dans la matière, combien d'étudiants voudraient en savoir plus dans le cas d'une présentation de type filmographique?",null,null,null,null,null,null,null,"1. S'il n'y avait pas de relation entre le type de présentation et l'intérêt dans la matière, combien d'étudiants voudraient en savoir plus dans le cas d'une présentation de type filmographique?",null,null,null,null,null,null,null,"1. S'il n'y avait pas de relation entre le type de présentation et l'intérêt dans la matière, combien d'étudiants voudraient en savoir plus dans le cas d'une présentation de type filmographique?",null,null,null,null,null,null,null,"1. S'il n'y avait pas de relation entre le type de présentation et l'intérêt dans la matière, combien d'étudiants voudraient en savoir plus dans le cas d'une présentation de type filmographique?",null,null,null,null,null,null,null,"1. S'il n'y avait pas de relation entre le type de présentation et l'intérêt dans la matière, combien d'étudiants voudraient en savoir plus dans le cas d'une présentation de type filmographique?",null,null,null,null,null,null,null,"1. S'il n'y avait pas de relation entre le type de présentation et l'intérêt dans la matière, combien d'étudiants voudraient en savoir plus dans le cas d'une présentation de type filmographique?",null,null,null,null,null,null,null,"1. S'il n'y avait pas de relation entre le type de présentation et l'intérêt dans la matière, combien d'étudiants voudraient en savoir plus dans le cas d'une présentation de type filmographique?",null,null,null,null,null,null,null,"1. S'il n'y avait pas de relation entre le type de présentation et l'intérêt dans la matière, combien d'étudiants voudraient en savoir plus dans le cas d'une présentation de type filmographique?",null,null,null,null,null,null,null,"1. S'il n'y avait pas de relation entre le type de présentation et l'intérêt dans la matière, combien d'étudiants voudraient en savoir plus dans le cas d'une présentation de type filmographique?",null,null,null,null,null,null,null,"1. S'il n'y avait pas de relation entre le type de présentation et l'intérêt dans la matière, combien d'étudiants voudraient en savoir plus dans le cas d'une présentation de type filmographique?",null,null,null,null,null,null,null,"1. S'il n'y avait pas de relation entre le type de présentation et l'intérêt dans la matière, combien d'étudiants voudraient en savoir plus dans le cas d'une présentation de type filmographique?",null,null,null,null,null,null,null,"1. S'il n'y avait pas de relation entre le type de présentation et l'intérêt dans la matière, combien d'étudiants voudraient en savoir plus dans le cas d'une présentation de type filmographique?",null,null,null,null,null,null,null,"1. S'il n'y avait pas de relation entre le type de présentation et l'intérêt dans la matière, combien d'étudiants voudraient en savoir plus dans le cas d'une présentation de type filmographique?",null,null,null,null,null,null,null,"1. S'il n'y avait pas de relation entre le type de présentation et l'intérêt dans la matière, combien d'étudiants voudraient en savoir plus dans le cas d'une présentation de type filmographique?",null,null,null,null,null,null,null,"1. S'il n'y avait pas de relation entre le type de présentation et l'intérêt dans la matière, combien d'étudiants voudraient en savoir plus dans le cas d'une présentation de type filmographique?",null,null,null,null,null,null,null,"1. S'il n'y avait pas de relation entre le type de présentation et l'intérêt dans la matière, combien d'étudiants voudraient en savoir plus dans le cas d'une présentation de type filmographique?",null,null,null,null,null,null,null,"1. S'il n'y avait pas de relation entre le type de présentation et l'intérêt dans la matière, combien d'étudiants voudraient en savoir plus dans le cas d'une présentation de type filmographique?",null,null,null,null,null,null,null,"1. S'il n'y avait pas de relation entre le type de présentation et l'intérêt dans la matière, combien d'étudiants voudraient en savoir plus dans le cas d'une présentation de type filmographique?",null,null,null,null,null,null,null,"1. S'il n'y avait pas de relation entre le type de présentation et l'intérêt dans la matière, combien d'étudiants voudraient en savoir plus dans le cas d'une présentation de type filmographique?",null,null,null,null,null,null,null,"1. S'il n'y avait pas de relation entre le type de présentation et l'intérêt dans la matière, combien d'étudiants voudraient en savoir plus dans le cas d'une présentation de type filmographique?",null,null,null,null,null,null,null,"1. S'il n'y avait pas de relation entre le type de présentation et l'intérêt dans la matière, combien d'étudiants voudraient en savoir plus dans le cas d'une présentation de type filmographique?",null,null,null,null,null,null,null,"1. S'il n'y avait pas de relation entre le type de présentation et l'intérêt dans la matière, combien d'étudiants voudraient en savoir plus dans le cas d'une présentation de type filmographique?",null,null,null,null,null,null,null,"1. S'il n'y avait pas de relation entre le type de présentation et l'intérêt dans la matière, combien d'étudiants voudraient en savoir plus dans le cas d'une présentation de type filmographique?",null,null,null,null,null,null,null,"1. S'il n'y avait pas de relation entre le type de présentation et l'intérêt dans la matière, combien d'étudiants voudraient en savoir plus dans le cas d'une présentation de type filmographique?",null,null,null,null,null,null,null,"1. S'il n'y avait pas de relation entre le type de présentation et l'intérêt dans la matière, combien d'étudiants voudraient en savoir plus dans le cas d'une présentation de type filmographique?",null,null,null,null,null,null,null,"1. S'il n'y avait pas de relation entre le type de présentation et l'intérêt dans la matière, combien d'étudiants voudraient en savoir plus dans le cas d'une présentation de type filmographique?",null,null,null,null,null,null,null,"1. S'il n'y avait pas de relation entre le type de présentation et l'intérêt dans la matière, combien d'étudiants voudraient en savoir plus dans le cas d'une présentation de type filmographique?",null,null,null,null,null,null,null,"1. S'il n'y avait pas de relation entre le type de présentation et l'intérêt dans la matière, combien d'étudiants voudraient en savoir plus dans le cas d'une présentation de type filmographique?",null,null,null,null,null,null,null,"1. S'il n'y avait pas de relation entre le type de présentation et l'intérêt dans la matière, combien d'étudiants voudraient en savoir plus dans le cas d'une présentation de type filmographique?",null,null,null,null,null,null,null,"1. S'il n'y avait pas de relation entre le type de présentation et l'intérêt dans la matière, combien d'étudiants voudraient en savoir plus dans le cas d'une présentation de type filmographique?",null,null,null,null,null,null,null,"1. S'il n'y avait pas de relation entre le type de présentation et l'intérêt dans la matière, combien d'étudiants voudraient en savoir plus dans le cas d'une présentation de type filmographique?",null,null,null,null,null,null,null,"1. S'il n'y avait pas de relation entre le type de présentation et l'intérêt dans la matière, combien d'étudiants voudraient en savoir plus dans le cas d'une présentation de type filmographique?",null,null,null,null,null,null,null,"1. S'il n'y avait pas de relation entre le type de présentation et l'intérêt dans la matière, combien d'étudiants voudraient en savoir plus dans le cas d'une présentation de type filmographique?",null,null,null,null,null,null,null,"1. S'il n'y avait pas de relation entre le type de présentation et l'intérêt dans la matière, combien d'étudiants voudraient en savoir plus dans le cas d'une présentation de type filmographique?",null,null,null,null,null,null,null,"1. S'il n'y avait pas de relation entre le type de présentation et l'intérêt dans la matière, combien d'étudiants voudraient en savoir plus dans le cas d'une présentation de type filmographique?",null,null,null,null,null,null,null,"1. S'il n'y avait pas de relation entre le type de présentation et l'intérêt dans la matière, combien d'étudiants voudraient en savoir plus dans le cas d'une présentation de type filmographique?",null,null,null,null,null,null,null,"1. S'il n'y avait pas de relation entre le type de présentation et l'intérêt dans la matière, combien d'étudiants voudraient en savoir plus dans le cas d'une présentation de type filmographique?",null,null,null,null,null,null,null,"1. S'il n'y avait pas de relation entre le type de présentation et l'intérêt dans la matière, combien d'étudiants voudraient en savoir plus dans le cas d'une présentation de type filmographique?",null,null,null,null,null,null,null,"1. S'il n'y avait pas de relation entre le type de présentation et l'intérêt dans la matière, combien d'étudiants voudraient en savoir plus dans le cas d'une présentation de type filmographique?",null,null,null,null,null,null,null,"1. S'il n'y avait pas de relation entre le type de présentation et l'intérêt dans la matière, combien d'étudiants voudraient en savoir plus dans le cas d'une présentation de type filmographique?",null,null,null,null,null,null,null,"1. S'il n'y avait pas de relation entre le type de présentation et l'intérêt dans la matière, combien d'étudiants voudraient en savoir plus dans le cas d'une présentation de type filmographique?",null,null,null,null,null,null,null,"1. S'il n'y avait pas de relation entre le type de présentation et l'intérêt dans la matière, combien d'étudiants voudraient en savoir plus dans le cas d'une présentation de type filmographique?",null,null,null,null,null,null,null,"1. S'il n'y avait pas de relation entre le type de présentation et l'intérêt dans la matière, combien d'étudiants voudraient en savoir plus dans le cas d'une présentation de type filmographique?",null,null,null,null,null,null,null,"1. S'il n'y avait pas de relation entre le type de présentation et l'intérêt dans la matière, combien d'étudiants voudraient en savoir plus dans le cas d'une présentation de type filmographique?",null,null,null,null,null,null,null,"1. S'il n'y avait pas de relation entre le type de présentation et l'intérêt dans la matière, combien d'étudiants voudraient en savoir plus dans le cas d'une présentation de type filmographique?",null,null,null,null,null,null,null,"1. S'il n'y avait pas de relation entre le type de présentation et l'intérêt dans la matière, combien d'étudiants voudraient en savoir plus dans le cas d'une présentation de type filmographique?",null,null,null,null,null,null,null,"1. S'il n'y avait pas de relation entre le type de présentation et l'intérêt dans la matière, combien d'étudiants voudraient en savoir plus dans le cas d'une présentation de type filmographique?",null,null,null,null,null,null,null,"1. S'il n'y avait pas de relation entre le type de présentation et l'intérêt dans la matière, combien d'étudiants voudraient en savoir plus dans le cas d'une présentation de type filmographique?",null,null,null,null,null,null,null,"1. S'il n'y avait pas de relation entre le type de présentation et l'intérêt dans la matière, combien d'étudiants voudraient en savoir plus dans le cas d'une présentation de type filmographique?",null,null,null,null,null,null,null,"1. S'il n'y avait pas de relation entre le type de présentation et l'intérêt dans la matière, combien d'étudiants voudraient en savoir plus dans le cas d'une présentation de type filmographique?",null,null,null,null,null,null,null,"1. S'il n'y avait pas de relation entre le type de présentation et l'intérêt dans la matière, combien d'étudiants voudraient en savoir plus dans le cas d'une présentation de type filmographique?",null,null,null,null,null,null,null,"1. S'il n'y avait pas de relation entre le type de présentation et l'intérêt dans la matière, combien d'étudiants voudraient en savoir plus dans le cas d'une présentation de type filmographique?",null,null,null,null,null,null,null,"1. S'il n'y avait pas de relation entre le type de présentation et l'intérêt dans la matière, combien d'étudiants voudraient en savoir plus dans le cas d'une présentation de type filmographique?",null,null,null,null,null,null,null,"1. S'il n'y avait pas de relation entre le type de présentation et l'intérêt dans la matière, combien d'étudiants voudraient en savoir plus dans le cas d'une présentation de type filmographique?",null,null,null,null,null,null,null,"1. S'il n'y avait pas de relation entre le type de présentation et l'intérêt dans la matière, combien d'étudiants voudraient en savoir plus dans le cas d'une présentation de type filmographique?",null,null,null,null,null,null,null,"1. S'il n'y avait pas de relation entre le type de présentation et l'intérêt dans la matière, combien d'étudiants voudraient en savoir plus dans le cas d'une présentation de type filmographique?",null,null,null,null,null,null,null,"1. S'il n'y avait pas de relation entre le type de présentation et l'intérêt dans la matière, combien d'étudiants voudraient en savoir plus dans le cas d'une présentation de type filmographique?",null,null,null,null,null,null,null,"1. S'il n'y avait pas de relation entre le type de présentation et l'intérêt dans la matière, combien d'étudiants voudraient en savoir plus dans le cas d'une présentation de type filmographique?",null,null,null,null,null,null,null,"1. S'il n'y avait pas de relation entre le type de présentation et l'intérêt dans la matière, combien d'étudiants voudraient en savoir plus dans le cas d'une présentation de type filmographique?",null,null,null,null,null,null,null,"1. S'il n'y avait pas de relation entre le type de présentation et l'intérêt dans la matière, combien d'étudiants voudraient en savoir plus dans le cas d'une présentation de type filmographique?",null,null,null,null,null,null,null,"1. S'il n'y avait pas de relation entre le type de présentation et l'intérêt dans la matière, combien d'étudiants voudraient en savoir plus dans le cas d'une présentation de type filmographique?",null,null,null,null,null,null,null,"1. S'il n'y avait pas de relation entre le type de présentation et l'intérêt dans la matière, combien d'étudiants voudraient en savoir plus dans le cas d'une présentation de type filmographique?",null,null,null,null,null,null,null,"1. S'il n'y avait pas de relation entre le type de présentation et l'intérêt dans la matière, combien d'étudiants voudraient en savoir plus dans le cas d'une présentation de type filmographique?",null,null,null,null,null,null,null,"1. S'il n'y avait pas de relation entre le type de présentation et l'intérêt dans la matière, combien d'étudiants voudraient en savoir plus dans le cas d'une présentation de type filmographique?",null,null,null,null,null,null,null,"1. S'il n'y avait pas de relation entre le type de présentation et l'intérêt dans la matière, combien d'étudiants voudraient en savoir plus dans le cas d'une présentation de type filmographique?",null,null,null,null,null,null,null,"1. S'il n'y avait pas de relation entre le type de présentation et l'intérêt dans la matière, combien d'étudiants voudraient en savoir plus dans le cas d'une présentation de type filmographique?",null,null,null,null,null,null,null,"1. S'il n'y avait pas de relation entre le type de présentation et l'intérêt dans la matière, combien d'étudiants voudraient en savoir plus dans le cas d'une présentation de type filmographique?",null,null,null,null,null,null,null,"1. S'il n'y avait pas de relation entre le type de présentation et l'intérêt dans la matière, combien d'étudiants voudraient en savoir plus dans le cas d'une présentation de type filmographique?",null,null,null,null,null,null,null,"1. S'il n'y avait pas de relation entre le type de présentation et l'intérêt dans la matière, combien d'étudiants voudraient en savoir plus dans le cas d'une présentation de type filmographique?",null,null,null,null,null,null,null,"1. S'il n'y avait pas de relation entre le type de présentation et l'intérêt dans la matière, combien d'étudiants voudraient en savoir plus dans le cas d'une présentation de type filmographique?",null,null,null,null,null,null,null,"1. S'il n'y avait pas de relation entre le type de présentation et l'intérêt dans la matière, combien d'étudiants voudraient en savoir plus dans le cas d'une présentation de type filmographique?",null,null,null,null,null,null,null,"1. S'il n'y avait pas de relation entre le type de présentation et l'intérêt dans la matière, combien d'étudiants voudraient en savoir plus dans le cas d'une présentation de type filmographique?",null,null,null,null,null,null,null,"1. S'il n'y avait pas de relation entre le type de présentation et l'intérêt dans la matière, combien d'étudiants voudraient en savoir plus dans le cas d'une présentation de type filmographique?",null,null,null,null,null,null,null,"1. S'il n'y avait pas de relation entre le type de présentation et l'intérêt dans la matière, combien d'étudiants voudraient en savoir plus dans le cas d'une présentation de type filmographique?",null,null,null,null,null,null,null,"1. S'il n'y avait pas de relation entre le type de présentation et l'intérêt dans la matière, combien d'étudiants voudraient en savoir plus dans le cas d'une présentation de type filmographique?",null,null,null,null,null,null,null,"1. S'il n'y avait pas de relation entre le type de présentation et l'intérêt dans la matière, combien d'étudiants voudraient en savoir plus dans le cas d'une présentation de type filmographique?",null,null,null,null,null,null,null,"1. S'il n'y avait pas de relation entre le type de présentation et l'intérêt dans la matière, combien d'étudiants voudraient en savoir plus dans le cas d'une présentation de type filmographique?",null,null,null,null,null,null,null,"1. S'il n'y avait pas de relation entre le type de présentation et l'intérêt dans la matière, combien d'étudiants voudraient en savoir plus dans le cas d'une présentation de type filmographique?",null,null,null,null,null,null,null,"1. S'il n'y avait pas de relation entre le type de présentation et l'intérêt dans la matière, combien d'étudiants voudraient en savoir plus dans le cas d'une présentation de type filmographique?",null,null,null,null,null,null,null,"1. S'il n'y avait pas de relation entre le type de présentation et l'intérêt dans la matière, combien d'étudiants voudraient en savoir plus dans le cas d'une présentation de type filmographique?",null,null,null,null,null,null,null,"1. S'il n'y avait pas de relation entre le type de présentation et l'intérêt dans la matière, combien d'étudiants voudraient en savoir plus dans le cas d'une présentation de type filmographique?",null,null,null,null,null,null,null,"1. S'il n'y avait pas de relation entre le type de présentation et l'intérêt dans la matière, combien d'étudiants voudraient en savoir plus dans le cas d'une présentation de type filmographique?",null,null,null,null,null,null,null,"1. S'il n'y avait pas de relation entre le type de présentation et l'intérêt dans la matière, combien d'étudiants voudraient en savoir plus dans le cas d'une présentation de type filmographique?",null,null,null,null,null,null,null,"1. S'il n'y avait pas de relation entre le type de présentation et l'intérêt dans la matière, combien d'étudiants voudraient en savoir plus dans le cas d'une présentation de type filmographique?",null,null,null,null,null,null,null,"1. S'il n'y avait pas de relation entre le type de présentation et l'intérêt dans la matière, combien d'étudiants voudraient en savoir plus dans le cas d'une présentation de type filmographique?",null,null,null,null,null,null,null,"1. S'il n'y avait pas de relation entre le type de présentation et l'intérêt dans la matière, combien d'étudiants voudraient en savoir plus dans le cas d'une présentation de type filmographique?",null,null,null,null,null,null,null,"1. S'il n'y avait pas de relation entre le type de présentation et l'intérêt dans la matière, combien d'étudiants voudraient en savoir plus dans le cas d'une présentation de type filmographique?",null,null,null,null,null,null,null,"1. S'il n'y avait pas de relation entre le type de présentation et l'intérêt dans la matière, combien d'étudiants voudraient en savoir plus dans le cas d'une présentation de type filmographique?",null,null,null,null,null,null,null,"1. S'il n'y avait pas de relation entre le type de présentation et l'intérêt dans la matière, combien d'étudiants voudraient en savoir plus dans le cas d'une présentation de type filmographique?",null,null,null,null,null,null,null,"1. S'il n'y avait pas de relation entre le type de présentation et l'intérêt dans la matière, combien d'étudiants voudraient en savoir plus dans le cas d'une présentation de type filmographique?",null,null,null,null,null,null,null,"1. S'il n'y avait pas de relation entre le type de présentation et l'intérêt dans la matière, combien d'étudiants voudraient en savoir plus dans le cas d'une présentation de type filmographique?",null,null,null,null,null,null,null,"1. S'il n'y avait pas de relation entre le type de présentation et l'intérêt dans la matière, combien d'étudiants voudraient en savoir plus dans le cas d'une présentation de type filmographique?",null,null,null,null,null,null,null,"1. S'il n'y avait pas de relation entre le type de présentation et l'intérêt dans la matière, combien d'étudiants voudraient en savoir plus dans le cas d'une présentation de type filmographique?",null,null,null,null,null,null,null,"1. S'il n'y avait pas de relation entre le type de présentation et l'intérêt dans la matière, combien d'étudiants voudraient en savoir plus dans le cas d'une présentation de type filmographique?",null,null,null,null,null,null,null,"1. S'il n'y avait pas de relation entre le type de présentation et l'intérêt dans la matière, combien d'étudiants voudraient en savoir plus dans le cas d'une présentation de type filmographique?",null,null,null,null,null,null,null,"1. S'il n'y avait pas de relation entre le type de présentation et l'intérêt dans la matière, combien d'étudiants voudraient en savoir plus dans le cas d'une présentation de type filmographique?",null,null,null,null,null,null,null,"1. S'il n'y avait pas de relation entre le type de présentation et l'intérêt dans la matière, combien d'étudiants voudraient en savoir plus dans le cas d'une présentation de type filmographique?",null,null,null,null,null,null,null,"1. S'il n'y avait pas de relation entre le type de présentation et l'intérêt dans la matière, combien d'étudiants voudraient en savoir plus dans le cas d'une présentation de type filmographique?",null,null,null,null,null,null,null,"1. S'il n'y avait pas de relation entre le type de présentation et l'intérêt dans la matière, combien d'étudiants voudraient en savoir plus dans le cas d'une présentation de type filmographique?",null,null,null,null,null,null,null,"1. S'il n'y avait pas de relation entre le type de présentation et l'intérêt dans la matière, combien d'étudiants voudraient en savoir plus dans le cas d'une présentation de type filmographique?",null,null,null,null,null,null,null,"1. S'il n'y avait pas de relation entre le type de présentation et l'intérêt dans la matière, combien d'étudiants voudraient en savoir plus dans le cas d'une présentation de type filmographique?",null,null,null,null,null,null,null,"1. S'il n'y avait pas de relation entre le type de présentation et l'intérêt dans la matière, combien d'étudiants voudraient en savoir plus dans le cas d'une présentation de type filmographique?",null,null,null,null,null,null,null,"1. S'il n'y avait pas de relation entre le type de présentation et l'intérêt dans la matière, combien d'étudiants voudraient en savoir plus dans le cas d'une présentation de type filmographique?",null,null,null,null,null,null,null,"1. S'il n'y avait pas de relation entre le type de présentation et l'intérêt dans la matière, combien d'étudiants voudraient en savoir plus dans le cas d'une présentation de type filmographique?",null,null,null,null,null,null,null,"1. S'il n'y avait pas de relation entre le type de présentation et l'intérêt dans la matière, combien d'étudiants voudraient en savoir plus dans le cas d'une présentation de type filmographique?",null,null,null,null,null,null,null,"1. S'il n'y avait pas de relation entre le type de présentation et l'intérêt dans la matière, combien d'étudiants voudraient en savoir plus dans le cas d'une présentation de type filmographique?",null,null,null,null,null,null,null,"1. S'il n'y avait pas de relation entre le type de présentation et l'intérêt dans la matière, combien d'étudiants voudraient en savoir plus dans le cas d'une présentation de type filmographique?",null,null,null,null,null,null,null,"1. S'il n'y avait pas de relation entre le type de présentation et l'intérêt dans la matière, combien d'étudiants voudraient en savoir plus dans le cas d'une présentation de type filmographique?",null,null,null,null,null,null,null,"1. S'il n'y avait pas de relation entre le type de présentation et l'intérêt dans la matière, combien d'étudiants voudraient en savoir plus dans le cas d'une présentation de type filmographique?",null,null,null,null,null,null,null,"1. S'il n'y avait pas de relation entre le type de présentation et l'intérêt dans la matière, combien d'étudiants voudraient en savoir plus dans le cas d'une présentation de type filmographique?",null,null,null,null,null,null,null,"1. S'il n'y avait pas de relation entre le type de présentation et l'intérêt dans la matière, combien d'étudiants voudraient en savoir plus dans le cas d'une présentation de type filmographique?",null,null,null,null,null,null,null,"1. S'il n'y avait pas de relation entre le type de présentation et l'intérêt dans la matière, combien d'étudiants voudraient en savoir plus dans le cas d'une présentation de type filmographique?",null,null,null,null,null,null,null,"1. S'il n'y avait pas de relation entre le type de présentation et l'intérêt dans la matière, combien d'étudiants voudraient en savoir plus dans le cas d'une présentation de type filmographique?",null,null,null,null,null,null,null,"1. S'il n'y avait pas de relation entre le type de présentation et l'intérêt dans la matière, combien d'étudiants voudraient en savoir plus dans le cas d'une présentation de type filmographique?",null,null,null,null,null,null,null,"1. S'il n'y avait pas de relation entre le type de présentation et l'intérêt dans la matière, combien d'étudiants voudraient en savoir plus dans le cas d'une présentation de type filmographique?",null,null,null,null,null,null,null,"1. S'il n'y avait pas de relation entre le type de présentation et l'intérêt dans la matière, combien d'étudiants voudraient en savoir plus dans le cas d'une présentation de type filmographique?",null,null,null,null,null,null,null,"1. S'il n'y avait pas de relation entre le type de présentation et l'intérêt dans la matière, combien d'étudiants voudraient en savoir plus dans le cas d'une présentation de type filmographique?",null,null,null,null,null,null,null,"1. S'il n'y avait pas de relation entre le type de présentation et l'intérêt dans la matière, combien d'étudiants voudraient en savoir plus dans le cas d'une présentation de type filmographique?",null,null,null,null,null,null,null,"1. S'il n'y avait pas de relation entre le type de présentation et l'intérêt dans la matière, combien d'étudiants voudraient en savoir plus dans le cas d'une présentation de type filmographique?",null,null,null,null,null,null,null,"1. S'il n'y avait pas de relation entre le type de présentation et l'intérêt dans la matière, combien d'étudiants voudraient en savoir plus dans le cas d'une présentation de type filmographique?",null,null,null,null,null,null,null,"1. S'il n'y avait pas de relation entre le type de présentation et l'intérêt dans la matière, combien d'étudiants voudraient en savoir plus dans le cas d'une présentation de type filmographique?",null,null,null,null,null,null,null,"1. S'il n'y avait pas de relation entre le type de présentation et l'intérêt dans la matière, combien d'étudiants voudraient en savoir plus dans le cas d'une présentation de type filmographique?",null,null,null,null,null,null,null,"1. S'il n'y avait pas de relation entre le type de présentation et l'intérêt dans la matière, combien d'étudiants voudraient en savoir plus dans le cas d'une présentation de type filmographique?",null,null,null,null,null,null,null,"1. S'il n'y avait pas de relation entre le type de présentation et l'intérêt dans la matière, combien d'étudiants voudraient en savoir plus dans le cas d'une présentation de type filmographique?",null,null,null,null,null,null,null,"1. S'il n'y avait pas de relation entre le type de présentation et l'intérêt dans la matière, combien d'étudiants voudraient en savoir plus dans le cas d'une présentation de type filmographique?",null,null,null,null,null,null,null,"1. S'il n'y avait pas de relation entre le type de présentation et l'intérêt dans la matière, combien d'étudiants voudraient en savoir plus dans le cas d'une présentation de type filmographique?",null,null,null,null,null,null,null,"1. S'il n'y avait pas de relation entre le type de présentation et l'intérêt dans la matière, combien d'étudiants voudraient en savoir plus dans le cas d'une présentation de type filmographique?",null,null,null,null,null,null,null,"1. S'il n'y avait pas de relation entre le type de présentation et l'intérêt dans la matière, combien d'étudiants voudraient en savoir plus dans le cas d'une présentation de type filmographique?",null,null,null,null,null,null,null,"1. S'il n'y avait pas de relation entre le type de présentation et l'intérêt dans la matière, combien d'étudiants voudraient en savoir plus dans le cas d'une présentation de type filmographique?",null,null,null,null,null,null,null,"1. S'il n'y avait pas de relation entre le type de présentation et l'intérêt dans la matière, combien d'étudiants voudraient en savoir plus dans le cas d'une présentation de type filmographique?",null,null,null,null,null,null,null,"1. S'il n'y avait pas de relation entre le type de présentation et l'intérêt dans la matière, combien d'étudiants voudraient en savoir plus dans le cas d'une présentation de type filmographique?",null,null,null,null,null,null,null,"1. S'il n'y avait pas de relation entre le type de présentation et l'intérêt dans la matière, combien d'étudiants voudraient en savoir plus dans le cas d'une présentation de type filmographique?",null,null,null,null,null,null,null,"1. S'il n'y avait pas de relation entre le type de présentation et l'intérêt dans la matière, combien d'étudiants voudraient en savoir plus dans le cas d'une présentation de type filmographique?",null,null,null,null,null,null,null,"1. S'il n'y avait pas de relation entre le type de présentation et l'intérêt dans la matière, combien d'étudiants voudraient en savoir plus dans le cas d'une présentation de type filmographique?",null,null,null,null,null,null,null,"1. S'il n'y avait pas de relation entre le type de présentation et l'intérêt dans la matière, combien d'étudiants voudraient en savoir plus dans le cas d'une présentation de type filmographique?",null,null,null,null,null,null,null,"1. S'il n'y avait pas de relation entre le type de présentation et l'intérêt dans la matière, combien d'étudiants voudraient en savoir plus dans le cas d'une présentation de type filmographique?",null,null,null,null,null,null,null,"1. S'il n'y avait pas de relation entre le type de présentation et l'intérêt dans la matière, combien d'étudiants voudraient en savoir plus dans le cas d'une présentation de type filmographique?",null,null,null,null,null,null,null,"1. S'il n'y avait pas de relation entre le type de présentation et l'intérêt dans la matière, combien d'étudiants voudraient en savoir plus dans le cas d'une présentation de type filmographique?",null,null,null,null,null,null,null,"1. S'il n'y avait pas de relation entre le type de présentation et l'intérêt dans la matière, combien d'étudiants voudraient en savoir plus dans le cas d'une présentation de type filmographique?",null,null,null,null,null,null,null,"1. S'il n'y avait pas de relation entre le type de présentation et l'intérêt dans la matière, combien d'étudiants voudraient en savoir plus dans le cas d'une présentation de type filmographique?",null,null,null,null,null,null,null,"1. S'il n'y avait pas de relation entre le type de présentation et l'intérêt dans la matière, combien d'étudiants voudraient en savoir plus dans le cas d'une présentation de type filmographique?",null,null,null,null,null,null,null,"1. S'il n'y avait pas de relation entre le type de présentation et l'intérêt dans la matière, combien d'étudiants voudraient en savoir plus dans le cas d'une présentation de type filmographique?",null,null,null,null,null,null,null,"1. S'il n'y avait pas de relation entre le type de présentation et l'intérêt dans la matière, combien d'étudiants voudraient en savoir plus dans le cas d'une présentation de type filmographique?",null,null,null,null,null,null,null,"1. S'il n'y avait pas de relation entre le type de présentation et l'intérêt dans la matière, combien d'étudiants voudraient en savoir plus dans le cas d'une présentation de type filmographique?",null,null,null,null,null,null,null,"1. S'il n'y avait pas de relation entre le type de présentation et l'intérêt dans la matière, combien d'étudiants voudraient en savoir plus dans le cas d'une présentation de type filmographique?",null,null,null,null,null,null,null,"1. S'il n'y avait pas de relation entre le type de présentation et l'intérêt dans la matière, combien d'étudiants voudraient en savoir plus dans le cas d'une présentation de type filmographique?",null,null,null,null,null,null,null,"1. S'il n'y avait pas de relation entre le type de présentation et l'intérêt dans la matière, combien d'étudiants voudraient en savoir plus dans le cas d'une présentation de type filmographique?",null,null,null,null,null,null,null,"1. S'il n'y avait pas de relation entre le type de présentation et l'intérêt dans la matière, combien d'étudiants voudraient en savoir plus dans le cas d'une présentation de type filmographique?",null,null,null,null,null,null,null,"1. S'il n'y avait pas de relation entre le type de présentation et l'intérêt dans la matière, combien d'étudiants voudraient en savoir plus dans le cas d'une présentation de type filmographique?",null,null,null,null,null,null,null,"1. S'il n'y avait pas de relation entre le type de présentation et l'intérêt dans la matière, combien d'étudiants voudraient en savoir plus dans le cas d'une présentation de type filmographique?",null,null,null,null,null,null,null,"1. S'il n'y avait pas de relation entre le type de présentation et l'intérêt dans la matière, combien d'étudiants voudraient en savoir plus dans le cas d'une présentation de type filmographique?",null,null,null,null,null,null,null,"1. S'il n'y avait pas de relation entre le type de présentation et l'intérêt dans la matière, combien d'étudiants voudraient en savoir plus dans le cas d'une présentation de type filmographique?",null,null,null,null,null,null,null,"1. S'il n'y avait pas de relation entre le type de présentation et l'intérêt dans la matière, combien d'étudiants voudraient en savoir plus dans le cas d'une présentation de type filmographique?",null,null,null,null,null,null,null,"1. S'il n'y avait pas de relation entre le type de présentation et l'intérêt dans la matière, combien d'étudiants voudraient en savoir plus dans le cas d'une présentation de type filmographique?",null,null,null,null,null,null,null,"1. S'il n'y avait pas de relation entre le type de présentation et l'intérêt dans la matière, combien d'étudiants voudraient en savoir plus dans le cas d'une présentation de type filmographique?",null,null,null,null,null,null,null,"1. S'il n'y avait pas de relation entre le type de présentation et l'intérêt dans la matière, combien d'étudiants voudraient en savoir plus dans le cas d'une présentation de type filmographique?",null,null,null,null,null,null,null,"1. S'il n'y avait pas de relation entre le type de présentation et l'intérêt dans la matière, combien d'étudiants voudraient en savoir plus dans le cas d'une présentation de type filmographique?",null,null,null,null,null,null,null,"1. S'il n'y avait pas de relation entre le type de présentation et l'intérêt dans la matière, combien d'étudiants voudraient en savoir plus dans le cas d'une présentation de type filmographique?",null,null,null,null,null,null,null,"1. S'il n'y avait pas de relation entre le type de présentation et l'intérêt dans la matière, combien d'étudiants voudraient en savoir plus dans le cas d'une présentation de type filmographique?",null,null,null,null,null,null,null,"1. S'il n'y avait pas de relation entre le type de présentation et l'intérêt dans la matière, combien d'étudiants voudraient en savoir plus dans le cas d'une présentation de type filmographique?",null,null,null,null,null,null,null,"1. S'il n'y avait pas de relation entre le type de présentation et l'intérêt dans la matière, combien d'étudiants voudraient en savoir plus dans le cas d'une présentation de type filmographique?",null,null,null,null,null,null,null,"1. S'il n'y avait pas de relation entre le type de présentation et l'intérêt dans la matière, combien d'étudiants voudraient en savoir plus dans le cas d'une présentation de type filmographique?",null,null,null,null,null,null,null,"1. S'il n'y avait pas de relation entre le type de présentation et l'intérêt dans la matière, combien d'étudiants voudraient en savoir plus dans le cas d'une présentation de type filmographique?",null,null,null,null,null,null,null,"1. S'il n'y avait pas de relation entre le type de présentation et l'intérêt dans la matière, combien d'étudiants voudraient en savoir plus dans le cas d'une présentation de type filmographique?",null,null,null,null,null,null,null,"1. S'il n'y avait pas de relation entre le type de présentation et l'intérêt dans la matière, combien d'étudiants voudraient en savoir plus dans le cas d'une présentation de type filmographique?",null,null,null,null,null,null,null,"1. S'il n'y avait pas de relation entre le type de présentation et l'intérêt dans la matière, combien d'étudiants voudraient en savoir plus dans le cas d'une présentation de type filmographique?",null,null,null,null,null,null,null,"1. S'il n'y avait pas de relation entre le type de présentation et l'intérêt dans la matière, combien d'étudiants voudraient en savoir plus dans le cas d'une présentation de type filmographique?",null,null,null,null,null,null,null,"1. S'il n'y avait pas de relation entre le type de présentation et l'intérêt dans la matière, combien d'étudiants voudraient en savoir plus dans le cas d'une présentation de type filmographique?",null,null,null,null,null,null,null,"1. S'il n'y avait pas de relation entre le type de présentation et l'intérêt dans la matière, combien d'étudiants voudraient en savoir plus dans le cas d'une présentation de type filmographique?",null,null,null,null,null,null,null,"1. S'il n'y avait pas de relation entre le type de présentation et l'intérêt dans la matière, combien d'étudiants voudraient en savoir plus dans le cas d'une présentation de type filmographique?",null,null,null,null,null,null,null,"1. S'il n'y avait pas de relation entre le type de présentation et l'intérêt dans la matière, combien d'étudiants voudraient en savoir plus dans le cas d'une présentation de type filmographique?",null,null,null,null,null,null,null,"1. S'il n'y avait pas de relation entre le type de présentation et l'intérêt dans la matière, combien d'étudiants voudraient en savoir plus dans le cas d'une présentation de type filmographique?",null,null,null,null,null,null,null,"1. S'il n'y avait pas de relation entre le type de présentation et l'intérêt dans la matière, combien d'étudiants voudraient en savoir plus dans le cas d'une présentation de type filmographique?",null,null,null,null,null,null,null,"1. S'il n'y avait pas de relation entre le type de présentation et l'intérêt dans la matière, combien d'étudiants voudraient en savoir plus dans le cas d'une présentation de type filmographique?",null,null,null,null,null,null,null,"1. S'il n'y avait pas de relation entre le type de présentation et l'intérêt dans la matière, combien d'étudiants voudraient en savoir plus dans le cas d'une présentation de type filmographique?",null,null,null,null,null,null,null,"1. S'il n'y avait pas de relation entre le type de présentation et l'intérêt dans la matière, combien d'étudiants voudraient en savoir plus dans le cas d'une présentation de type filmographique?",null,null,null,null,null,null,null,"1. S'il n'y avait pas de relation entre le type de présentation et l'intérêt dans la matière, combien d'étudiants voudraient en savoir plus dans le cas d'une présentation de type filmographique?",null,null,null,null,null,null,null,"1. S'il n'y avait pas de relation entre le type de présentation et l'intérêt dans la matière, combien d'étudiants voudraient en savoir plus dans le cas d'une présentation de type filmographique?",null,null,null,null,null,null,null,"1. S'il n'y avait pas de relation entre le type de présentation et l'intérêt dans la matière, combien d'étudiants voudraient en savoir plus dans le cas d'une présentation de type filmographique?",null,null,null,null,null,null,null,"1. S'il n'y avait pas de relation entre le type de présentation et l'intérêt dans la matière, combien d'étudiants voudraient en savoir plus dans le cas d'une présentation de type filmographique?",null,null,null,null,null,null,null,"1. S'il n'y avait pas de relation entre le type de présentation et l'intérêt dans la matière, combien d'étudiants voudraient en savoir plus dans le cas d'une présentation de type filmographique?",null,null,null,null,null,null,null,"1. S'il n'y avait pas de relation entre le type de présentation et l'intérêt dans la matière, combien d'étudiants voudraient en savoir plus dans le cas d'une présentation de type filmographique?",null,null,null,null,null,null,null,"1. S'il n'y avait pas de relation entre le type de présentation et l'intérêt dans la matière, combien d'étudiants voudraient en savoir plus dans le cas d'une présentation de type filmographique?",null,null,null,null,null,null,null,"1. S'il n'y avait pas de relation entre le type de présentation et l'intérêt dans la matière, combien d'étudiants voudraient en savoir plus dans le cas d'une présentation de type filmographique?",null,null,null,null,null,null,null,"1. S'il n'y avait pas de relation entre le type de présentation et l'intérêt dans la matière, combien d'étudiants voudraient en savoir plus dans le cas d'une présentation de type filmographique?",null,null,null,null,null,null,null,"1. S'il n'y avait pas de relation entre le type de présentation et l'intérêt dans la matière, combien d'étudiants voudraient en savoir plus dans le cas d'une présentation de type filmographique?",null,null,null,null,null,null,null,"1. S'il n'y avait pas de relation entre le type de présentation et l'intérêt dans la matière, combien d'étudiants voudraient en savoir plus dans le cas d'une présentation de type filmographique?",null,null,null,null,null,null,null,"1. S'il n'y avait pas de relation entre le type de présentation et l'intérêt dans la matière, combien d'étudiants voudraient en savoir plus dans le cas d'une présentation de type filmographique?",null,null,null,null,null,null,null,"1. S'il n'y avait pas de relation entre le type de présentation et l'intérêt dans la matière, combien d'étudiants voudraient en savoir plus dans le cas d'une présentation de type filmographique?",null,null,null,null,null,null,null,"1. S'il n'y avait pas de relation entre le type de présentation et l'intérêt dans la matière, combien d'étudiants voudraient en savoir plus dans le cas d'une présentation de type filmographique?",null,null,null,null,null,null,null,"1. S'il n'y avait pas de relation entre le type de présentation et l'intérêt dans la matière, combien d'étudiants voudraient en savoir plus dans le cas d'une présentation de type filmographique?",null,null,null,null,null,null,null,"1. S'il n'y avait pas de relation entre le type de présentation et l'intérêt dans la matière, combien d'étudiants voudraient en savoir plus dans le cas d'une présentation de type filmographique?",null,null,null,null,null,null,null,"1. S'il n'y avait pas de relation entre le type de présentation et l'intérêt dans la matière, combien d'étudiants voudraient en savoir plus dans le cas d'une présentation de type filmographique?",null,null,null,null,null,null,null,"1. S'il n'y avait pas de relation entre le type de présentation et l'intérêt dans la matière, combien d'étudiants voudraient en savoir plus dans le cas d'une présentation de type filmographique?",null,null,null,null,null,null,null,"1. S'il n'y avait pas de relation entre le type de présentation et l'intérêt dans la matière, combien d'étudiants voudraient en savoir plus dans le cas d'une présentation de type filmographique?",null,null,null,null,null,null,null,"1. S'il n'y avait pas de relation entre le type de présentation et l'intérêt dans la matière, combien d'étudiants voudraient en savoir plus dans le cas d'une présentation de type filmographique?",null,null,null,null,null,null,null,"1. S'il n'y avait pas de relation entre le type de présentation et l'intérêt dans la matière, combien d'étudiants voudraient en savoir plus dans le cas d'une présentation de type filmographique?",null,null,null,null,null,null,null,"1. S'il n'y avait pas de relation entre le type de présentation et l'intérêt dans la matière, combien d'étudiants voudraient en savoir plus dans le cas d'une présentation de type filmographique?",null,null,null,null,null,null,null,"1. S'il n'y avait pas de relation entre le type de présentation et l'intérêt dans la matière, combien d'étudiants voudraient en savoir plus dans le cas d'une présentation de type filmographique?",null,null,null,null,null,null,null,"1. S'il n'y avait pas de relation entre le type de présentation et l'intérêt dans la matière, combien d'étudiants voudraient en savoir plus dans le cas d'une présentation de type filmographique?",null,null,null,null,null,null,null,"1. S'il n'y avait pas de relation entre le type de présentation et l'intérêt dans la matière, combien d'étudiants voudraient en savoir plus dans le cas d'une présentation de type filmographique?",null,null,null,null,null,null,null,"1. S'il n'y avait pas de relation entre le type de présentation et l'intérêt dans la matière, combien d'étudiants voudraient en savoir plus dans le cas d'une présentation de type filmographique?",null,null,null,null,null,null,null,"1. S'il n'y avait pas de relation entre le type de présentation et l'intérêt dans la matière, combien d'étudiants voudraient en savoir plus dans le cas d'une présentation de type filmographique?",null,null,null,null,null,null,null,"1. S'il n'y avait pas de relation entre le type de présentation et l'intérêt dans la matière, combien d'étudiants voudraient en savoir plus dans le cas d'une présentation de type filmographique?",null,null,null,null,null,null,null,"1. S'il n'y avait pas de relation entre le type de présentation et l'intérêt dans la matière, combien d'étudiants voudraient en savoir plus dans le cas d'une présentation de type filmographique?",null,null,null,null,null,null,null,"1. S'il n'y avait pas de relation entre le type de présentation et l'intérêt dans la matière, combien d'étudiants voudraient en savoir plus dans le cas d'une présentation de type filmographique?",null,null,null,null,null,null,null,"1. S'il n'y avait pas de relation entre le type de présentation et l'intérêt dans la matière, combien d'étudiants voudraient en savoir plus dans le cas d'une présentation de type filmographique?",null,null,null,null,null,null,null,"1. S'il n'y avait pas de relation entre le type de présentation et l'intérêt dans la matière, combien d'étudiants voudraient en savoir plus dans le cas d'une présentation de type filmographique?",null,null,null,null,null,null,null,"1. S'il n'y avait pas de relation entre le type de présentation et l'intérêt dans la matière, combien d'étudiants voudraient en savoir plus dans le cas d'une présentation de type filmographique?",null,null,null,null,null,null,null,"1. S'il n'y avait pas de relation entre le type de présentation et l'intérêt dans la matière, combien d'étudiants voudraient en savoir plus dans le cas d'une présentation de type filmographique?",null,null,null,null,null,null,null,"1. S'il n'y avait pas de relation entre le type de présentation et l'intérêt dans la matière, combien d'étudiants voudraient en savoir plus dans le cas d'une présentation de type filmographique?",null,null,null,null,null,null,null,"1. S'il n'y avait pas de relation entre le type de présentation et l'intérêt dans la matière, combien d'étudiants voudraient en savoir plus dans le cas d'une présentation de type filmographique?",null,null,null,null,null,null,null,"1. S'il n'y avait pas de relation entre le type de présentation et l'intérêt dans la matière, combien d'étudiants voudraient en savoir plus dans le cas d'une présentation de type filmographique?",null,null,null,null,null,null,null,"1. S'il n'y avait pas de relation entre le type de présentation et l'intérêt dans la matière, combien d'étudiants voudraient en savoir plus dans le cas d'une présentation de type filmographique?",null,null,null,null,null,null,null,"1. S'il n'y avait pas de relation entre le type de présentation et l'intérêt dans la matière, combien d'étudiants voudraient en savoir plus dans le cas d'une présentation de type filmographique?",null,null,null,null,null,null,null,"1. S'il n'y avait pas de relation entre le type de présentation et l'intérêt dans la matière, combien d'étudiants voudraient en savoir plus dans le cas d'une présentation de type filmographique?",null,null,null,null,null,null,null,"1. S'il n'y avait pas de relation entre le type de présentation et l'intérêt dans la matière, combien d'étudiants voudraient en savoir plus dans le cas d'une présentation de type filmographique?",null,null,null,null,null,null,null,"1. S'il n'y avait pas de relation entre le type de présentation et l'intérêt dans la matière, combien d'étudiants voudraient en savoir plus dans le cas d'une présentation de type filmographique?",null,null,null,null,null,null,null,"1. S'il n'y avait pas de relation entre le type de présentation et l'intérêt dans la matière, combien d'étudiants voudraient en savoir plus dans le cas d'une présentation de type filmographique?",null,null,null,null,null,null,null,"1. S'il n'y avait pas de relation entre le type de présentation et l'intérêt dans la matière, combien d'étudiants voudraient en savoir plus dans le cas d'une présentation de type filmographique?",null,null,null,null,null,null,null,"1. S'il n'y avait pas de relation entre le type de présentation et l'intérêt dans la matière, combien d'étudiants voudraient en savoir plus dans le cas d'une présentation de type filmographique?",null,null,null,null,null,null,null,"1. S'il n'y avait pas de relation entre le type de présentation et l'intérêt dans la matière, combien d'étudiants voudraient en savoir plus dans le cas d'une présentation de type filmographique?",null,null,null,null,null,null,null,"1. S'il n'y avait pas de relation entre le type de présentation et l'intérêt dans la matière, combien d'étudiants voudraient en savoir plus dans le cas d'une présentation de type filmographique?",null,null,null,null,null,null,null,"1. S'il n'y avait pas de relation entre le type de présentation et l'intérêt dans la matière, combien d'étudiants voudraient en savoir plus dans le cas d'une présentation de type filmographique?",null,null,null,null,null,null,null,"1. S'il n'y avait pas de relation entre le type de présentation et l'intérêt dans la matière, combien d'étudiants voudraient en savoir plus dans le cas d'une présentation de type filmographique?",null,null,null,null,null,null,null,"1. S'il n'y avait pas de relation entre le type de présentation et l'intérêt dans la matière, combien d'étudiants voudraient en savoir plus dans le cas d'une présentation de type filmographique?",null,null,null,null,null,null,null,"1. S'il n'y avait pas de relation entre le type de présentation et l'intérêt dans la matière, combien d'étudiants voudraient en savoir plus dans le cas d'une présentation de type filmographique?",null,null,null,null,null,null,null,"1. S'il n'y avait pas de relation entre le type de présentation et l'intérêt dans la matière, combien d'étudiants voudraient en savoir plus dans le cas d'une présentation de type filmographique?",null,null,null,null,null,null,null,"1. S'il n'y avait pas de relation entre le type de présentation et l'intérêt dans la matière, combien d'étudiants voudraient en savoir plus dans le cas d'une présentation de type filmographique?",null,null,null,null,null,null,null,"1. S'il n'y avait pas de relation entre le type de présentation et l'intérêt dans la matière, combien d'étudiants voudraient en savoir plus dans le cas d'une présentation de type filmographique?",null,null,null,null,null,null,null,"1. S'il n'y avait pas de relation entre le type de présentation et l'intérêt dans la matière, combien d'étudiants voudraient en savoir plus dans le cas d'une présentation de type filmographique?",null,null,null,null,null,null,null,"1. S'il n'y avait pas de relation entre le type de présentation et l'intérêt dans la matière, combien d'étudiants voudraient en savoir plus dans le cas d'une présentation de type filmographique?",null,null,null,null,null,null,null,"1. S'il n'y avait pas de relation entre le type de présentation et l'intérêt dans la matière, combien d'étudiants voudraient en savoir plus dans le cas d'une présentation de type filmographique?",null,null,null,null,null,null,null,"1. S'il n'y avait pas de relation entre le type de présentation et l'intérêt dans la matière, combien d'étudiants voudraient en savoir plus dans le cas d'une présentation de type filmographique?",null,null,null,null,null,null,null,"1. S'il n'y avait pas de relation entre le type de présentation et l'intérêt dans la matière, combien d'étudiants voudraient en savoir plus dans le cas d'une présentation de type filmographique?",null,null,null,null,null,null,null,"1. S'il n'y avait pas de relation entre le type de présentation et l'intérêt dans la matière, combien d'étudiants voudraient en savoir plus dans le cas d'une présentation de type filmographique?",null,null,null,null,null,null,null,"1. S'il n'y avait pas de relation entre le type de présentation et l'intérêt dans la matière, combien d'étudiants voudraient en savoir plus dans le cas d'une présentation de type filmographique?",null,null,null,null,null,null,null,"1. S'il n'y avait pas de relation entre le type de présentation et l'intérêt dans la matière, combien d'étudiants voudraient en savoir plus dans le cas d'une présentation de type filmographique?",null,null,null,null,null,null,null,"1. S'il n'y avait pas de relation entre le type de présentation et l'intérêt dans la matière, combien d'étudiants voudraient en savoir plus dans le cas d'une présentation de type filmographique?",null,null,null,null,null,null,null,"1. S'il n'y avait pas de relation entre le type de présentation et l'intérêt dans la matière, combien d'étudiants voudraient en savoir plus dans le cas d'une présentation de type filmographique?",null,null,null,null,null,null,null,"1. S'il n'y avait pas de relation entre le type de présentation et l'intérêt dans la matière, combien d'étudiants voudraient en savoir plus dans le cas d'une présentation de type filmographique?",null,null,null,null,null,null,null,"1. S'il n'y avait pas de relation entre le type de présentation et l'intérêt dans la matière, combien d'étudiants voudraient en savoir plus dans le cas d'une présentation de type filmographique?",null,null,null,null,null,null,null,"1. S'il n'y avait pas de relation entre le type de présentation et l'intérêt dans la matière, combien d'étudiants voudraient en savoir plus dans le cas d'une présentation de type filmographique?",null,null,null,null,null,null,null,"1. S'il n'y avait pas de relation entre le type de présentation et l'intérêt dans la matière, combien d'étudiants voudraient en savoir plus dans le cas d'une présentation de type filmographique?",null,null,null,null,null,null,null,"1. S'il n'y avait pas de relation entre le type de présentation et l'intérêt dans la matière, combien d'étudiants voudraient en savoir plus dans le cas d'une présentation de type filmographique?",null,null,null,null,null,null,null,"1. S'il n'y avait pas de relation entre le type de présentation et l'intérêt dans la matière, combien d'étudiants voudraient en savoir plus dans le cas d'une présentation de type filmographique?",null,null,null,null,null,null,null,"1. S'il n'y avait pas de relation entre le type de présentation et l'intérêt dans la matière, combien d'étudiants voudraient en savoir plus dans le cas d'une présentation de type filmographique?",null,null,null,null,null,null,null,"1. S'il n'y avait pas de relation entre le type de présentation et l'intérêt dans la matière, combien d'étudiants voudraient en savoir plus dans le cas d'une présentation de type filmographique?",null,null,null,null,null,null,null,"1. S'il n'y avait pas de relation entre le type de présentation et l'intérêt dans la matière, combien d'étudiants voudraient en savoir plus dans le cas d'une présentation de type filmographique?",null,null,null,null,null,null,null,"1. S'il n'y avait pas de relation entre le type de présentation et l'intérêt dans la matière, combien d'étudiants voudraient en savoir plus dans le cas d'une présentation de type filmographique?",null,null,null,null,null,null,null,"1. S'il n'y avait pas de relation entre le type de présentation et l'intérêt dans la matière, combien d'étudiants voudraient en savoir plus dans le cas d'une présentation de type filmographique?",null,null,null,null,null,null,null,"1. S'il n'y avait pas de relation entre le type de présentation et l'intérêt dans la matière, combien d'étudiants voudraient en savoir plus dans le cas d'une présentation de type filmographique?",null,null,null,null,null,null,null,"1. S'il n'y avait pas de relation entre le type de présentation et l'intérêt dans la matière, combien d'étudiants voudraient en savoir plus dans le cas d'une présentation de type filmographique?",null,null,null,null,null,null,null,"1. S'il n'y avait pas de relation entre le type de présentation et l'intérêt dans la matière, combien d'étudiants voudraient en savoir plus dans le cas d'une présentation de type filmographique?",null,null,null,null,null,null,null,"1. S'il n'y avait pas de relation entre le type de présentation et l'intérêt dans la matière, combien d'étudiants voudraient en savoir plus dans le cas d'une présentation de type filmographique?",null,null,null,null,null,null,null,"1. S'il n'y avait pas de relation entre le type de présentation et l'intérêt dans la matière, combien d'étudiants voudraient en savoir plus dans le cas d'une présentation de type filmographique?",null,null,null,null,null,null,null,"1. S'il n'y avait pas de relation entre le type de présentation et l'intérêt dans la matière, combien d'étudiants voudraient en savoir plus dans le cas d'une présentation de type filmographique?",null,null,null,null,null,null,null,"1. S'il n'y avait pas de relation entre le type de présentation et l'intérêt dans la matière, combien d'étudiants voudraient en savoir plus dans le cas d'une présentation de type filmographique?",null,null,null,null,null,null,null,"1. S'il n'y avait pas de relation entre le type de présentation et l'intérêt dans la matière, combien d'étudiants voudraient en savoir plus dans le cas d'une présentation de type filmographique?",null,null,null,null,null,null,null,"1. S'il n'y avait pas de relation entre le type de présentation et l'intérêt dans la matière, combien d'étudiants voudraient en savoir plus dans le cas d'une présentation de type filmographique?",null,null,null,null,null,null,null,"1. S'il n'y avait pas de relation entre le type de présentation et l'intérêt dans la matière, combien d'étudiants voudraient en savoir plus dans le cas d'une présentation de type filmographique?",null,null,null,null,null,null,null,"1. S'il n'y avait pas de relation entre le type de présentation et l'intérêt dans la matière, combien d'étudiants voudraient en savoir plus dans le cas d'une présentation de type filmographique?",null,null,null,null,null,null,null,"1. S'il n'y avait pas de relation entre le type de présentation et l'intérêt dans la matière, combien d'étudiants voudraient en savoir plus dans le cas d'une présentation de type filmographique?",null,null,null,null,null,null,null,"1. S'il n'y avait pas de relation entre le type de présentation et l'intérêt dans la matière, combien d'étudiants voudraient en savoir plus dans le cas d'une présentation de type filmographique?",null,null,null,null,null,null,null,"1. S'il n'y avait pas de relation entre le type de présentation et l'intérêt dans la matière, combien d'étudiants voudraient en savoir plus dans le cas d'une présentation de type filmographique?",null,null,null,null,null,null,null,"1. S'il n'y avait pas de relation entre le type de présentation et l'intérêt dans la matière, combien d'étudiants voudraient en savoir plus dans le cas d'une présentation de type filmographique?",null,null,null,null,null,null,null,"1. S'il n'y avait pas de relation entre le type de présentation et l'intérêt dans la matière, combien d'étudiants voudraient en savoir plus dans le cas d'une présentation de type filmographique?",null,null,null,null,null,null,null,"1. S'il n'y avait pas de relation entre le type de présentation et l'intérêt dans la matière, combien d'étudiants voudraient en savoir plus dans le cas d'une présentation de type filmographique?",null,null,null,null,null,null,null,"1. S'il n'y avait pas de relation entre le type de présentation et l'intérêt dans la matière, combien d'étudiants voudraient en savoir plus dans le cas d'une présentation de type filmographique?",null,null,null,null,null,null,null,"1. S'il n'y avait pas de relation entre le type de présentation et l'intérêt dans la matière, combien d'étudiants voudraient en savoir plus dans le cas d'une présentation de type filmographique?",null,null,null,null,null,null,null,"1. S'il n'y avait pas de relation entre le type de présentation et l'intérêt dans la matière, combien d'étudiants voudraient en savoir plus dans le cas d'une présentation de type filmographique?",null,null,null,null,null,null,null,"1. S'il n'y avait pas de relation entre le type de présentation et l'intérêt dans la matière, combien d'étudiants voudraient en savoir plus dans le cas d'une présentation de type filmographique?",null,null,null,null,null,null,null,"1. S'il n'y avait pas de relation entre le type de présentation et l'intérêt dans la matière, combien d'étudiants voudraient en savoir plus dans le cas d'une présentation de type filmographique?",null,null,null,null,null,null,null,"1. S'il n'y avait pas de relation entre le type de présentation et l'intérêt dans la matière, combien d'étudiants voudraient en savoir plus dans le cas d'une présentation de type filmographique?",null,null,null,null,null,null,null,"1. S'il n'y avait pas de relation entre le type de présentation et l'intérêt dans la matière, combien d'étudiants voudraient en savoir plus dans le cas d'une présentation de type filmographique?",null,null,null,null,null,null,null,"1. S'il n'y avait pas de relation entre le type de présentation et l'intérêt dans la matière, combien d'étudiants voudraient en savoir plus dans le cas d'une présentation de type filmographique?",null,null,null,null,null,null,null,"1. S'il n'y avait pas de relation entre le type de présentation et l'intérêt dans la matière, combien d'étudiants voudraient en savoir plus dans le cas d'une présentation de type filmographique?",null,null,null,null,null,null,null,"1. S'il n'y avait pas de relation entre le type de présentation et l'intérêt dans la matière, combien d'étudiants voudraient en savoir plus dans le cas d'une présentation de type filmographique?",null,null,null,null,null,null,null,"1. S'il n'y avait pas de relation entre le type de présentation et l'intérêt dans la matière, combien d'étudiants voudraient en savoir plus dans le cas d'une présentation de type filmographique?",null,null,null,null,null,null,null,"1. S'il n'y avait pas de relation entre le type de présentation et l'intérêt dans la matière, combien d'étudiants voudraient en savoir plus dans le cas d'une présentation de type filmographique?",null,null,null,null,null,null,null,"1. S'il n'y avait pas de relation entre le type de présentation et l'intérêt dans la matière, combien d'étudiants voudraient en savoir plus dans le cas d'une présentation de type filmographique?",null,null,null,null,null,null,null,"1. S'il n'y avait pas de relation entre le type de présentation et l'intérêt dans la matière, combien d'étudiants voudraient en savoir plus dans le cas d'une présentation de type filmographique?",null,null,null,null,null,null,null,"1. S'il n'y avait pas de relation entre le type de présentation et l'intérêt dans la matière, combien d'étudiants voudraient en savoir plus dans le cas d'une présentation de type filmographique?",null,null,null,null,null,null,null,"1. S'il n'y avait pas de relation entre le type de présentation et l'intérêt dans la matière, combien d'étudiants voudraient en savoir plus dans le cas d'une présentation de type filmographique?",null,null,null,null,null,null,null,"1. S'il n'y avait pas de relation entre le type de présentation et l'intérêt dans la matière, combien d'étudiants voudraient en savoir plus dans le cas d'une présentation de type filmographique?",null,null,null,null,null,null,null,"1. S'il n'y avait pas de relation entre le type de présentation et l'intérêt dans la matière, combien d'étudiants voudraient en savoir plus dans le cas d'une présentation de type filmographique?",null,null,null,null,null,null,null,"1. S'il n'y avait pas de relation entre le type de présentation et l'intérêt dans la matière, combien d'étudiants voudraient en savoir plus dans le cas d'une présentation de type filmographique?",null,null,null,null,null,null,null,"1. S'il n'y avait pas de relation entre le type de présentation et l'intérêt dans la matière, combien d'étudiants voudraient en savoir plus dans le cas d'une présentation de type filmographique?",null,null,null,null,null,null,null,"1. S'il n'y avait pas de relation entre le type de présentation et l'intérêt dans la matière, combien d'étudiants voudraient en savoir plus dans le cas d'une présentation de type filmographique?",null,null,null,null,null,null,null,"1. S'il n'y avait pas de relation entre le type de présentation et l'intérêt dans la matière, combien d'étudiants voudraient en savoir plus dans le cas d'une présentation de type filmographique?",null,null,null,null,null,null,null,"1. S'il n'y avait pas de relation entre le type de présentation et l'intérêt dans la matière, combien d'étudiants voudraient en savoir plus dans le cas d'une présentation de type filmographique?",null,null,null,null,null,null,null,"1. S'il n'y avait pas de relation entre le type de présentation et l'intérêt dans la matière, combien d'étudiants voudraient en savoir plus dans le cas d'une présentation de type filmographique?",null,null,null,null,null,null,null,"1. S'il n'y avait pas de relation entre le type de présentation et l'intérêt dans la matière, combien d'étudiants voudraient en savoir plus dans le cas d'une présentation de type filmographique?",null,null,null,null,null,null,null,"1. S'il n'y avait pas de relation entre le type de présentation et l'intérêt dans la matière, combien d'étudiants voudraient en savoir plus dans le cas d'une présentation de type filmographique?",null,null,null,null,null,null,null,"1. S'il n'y avait pas de relation entre le type de présentation et l'intérêt dans la matière, combien d'étudiants voudraient en savoir plus dans le cas d'une présentation de type filmographique?",null,null,null,null,null,null,null,"1. S'il n'y avait pas de relation entre le type de présentation et l'intérêt dans la matière, combien d'étudiants voudraient en savoir plus dans le cas d'une présentation de type filmographique?",null,null,null,null,null,null,null,"1. S'il n'y avait pas de relation entre le type de présentation et l'intérêt dans la matière, combien d'étudiants voudraient en savoir plus dans le cas d'une présentation de type filmographique?",null,null,null,null,null,null,null,"1. S'il n'y avait pas de relation entre le type de présentation et l'intérêt dans la matière, combien d'étudiants voudraient en savoir plus dans le cas d'une présentation de type filmographique?",null,null,null,null,null,null,null,"1. S'il n'y avait pas de relation entre le type de présentation et l'intérêt dans la matière, combien d'étudiants voudraient en savoir plus dans le cas d'une présentation de type filmographique?",null,null,null,null,null,null,null,"1. S'il n'y avait pas de relation entre le type de présentation et l'intérêt dans la matière, combien d'étudiants voudraient en savoir plus dans le cas d'une présentation de type filmographique?",null,null,null,null,null,null,null,"1. S'il n'y avait pas de relation entre le type de présentation et l'intérêt dans la matière, combien d'étudiants voudraient en savoir plus dans le cas d'une présentation de type filmographique?",null,null,null,null,null,null,null,"1. S'il n'y avait pas de relation entre le type de présentation et l'intérêt dans la matière, combien d'étudiants voudraient en savoir plus dans le cas d'une présentation de type filmographique?",null,null,null,null,null,null,null,"1. S'il n'y avait pas de relation entre le type de présentation et l'intérêt dans la matière, combien d'étudiants voudraient en savoir plus dans le cas d'une présentation de type filmographique?",null,null,null,null,null,null,null,"1. S'il n'y avait pas de relation entre le type de présentation et l'intérêt dans la matière, combien d'étudiants voudraient en savoir plus dans le cas d'une présentation de type filmographique?",null,null,null,null,null,null,null,"1. S'il n'y avait pas de relation entre le type de présentation et l'intérêt dans la matière, combien d'étudiants voudraient en savoir plus dans le cas d'une présentation de type filmographique?",null,null,null,null,null,null,null,"1. S'il n'y avait pas de relation entre le type de présentation et l'intérêt dans la matière, combien d'étudiants voudraient en savoir plus dans le cas d'une présentation de type filmographique?",null,null,null,null,null,null,null,"1. S'il n'y avait pas de relation entre le type de présentation et l'intérêt dans la matière, combien d'étudiants voudraient en savoir plus dans le cas d'une présentation de type filmographique?",null,null,null,null,null,null,null,"1. S'il n'y avait pas de relation entre le type de présentation et l'intérêt dans la matière, combien d'étudiants voudraient en savoir plus dans le cas d'une présentation de type filmographique?",null,null,null,null,null,null,null,"1. S'il n'y avait pas de relation entre le type de présentation et l'intérêt dans la matière, combien d'étudiants voudraient en savoir plus dans le cas d'une présentation de type filmographique?",null,null,null,null,null,null,null,"1. S'il n'y avait pas de relation entre le type de présentation et l'intérêt dans la matière, combien d'étudiants voudraient en savoir plus dans le cas d'une présentation de type filmographique?",null,null,null,null,null,null,null,"1. S'il n'y avait pas de relation entre le type de présentation et l'intérêt dans la matière, combien d'étudiants voudraient en savoir plus dans le cas d'une présentation de type filmographique?",null,null,null,null,null,null,null,"1. S'il n'y avait pas de relation entre le type de présentation et l'intérêt dans la matière, combien d'étudiants voudraient en savoir plus dans le cas d'une présentation de type filmographique?",null,null,null,null,null,null,null,"1. S'il n'y avait pas de relation entre le type de présentation et l'intérêt dans la matière, combien d'étudiants voudraient en savoir plus dans le cas d'une présentation de type filmographique?",null,null,null,null,null,null,null,"1. S'il n'y avait pas de relation entre le type de présentation et l'intérêt dans la matière, combien d'étudiants voudraient en savoir plus dans le cas d'une présentation de type filmographique?",null,null,null,null,null,null,null,"1. S'il n'y avait pas de relation entre le type de présentation et l'intérêt dans la matière, combien d'étudiants voudraient en savoir plus dans le cas d'une présentation de type filmographique?",null,null,null,null,null,null,null,"1. S'il n'y avait pas de relation entre le type de présentation et l'intérêt dans la matière, combien d'étudiants voudraient en savoir plus dans le cas d'une présentation de type filmographique?",null,null,null,null,null,null,null,"1. S'il n'y avait pas de relation entre le type de présentation et l'intérêt dans la matière, combien d'étudiants voudraient en savoir plus dans le cas d'une présentation de type filmographique?",null,null,null,null,null,null,null,"1. S'il n'y avait pas de relation entre le type de présentation et l'intérêt dans la matière, combien d'étudiants voudraient en savoir plus dans le cas d'une présentation de type filmographique?",null,null,null,null,null,null,null,"1. S'il n'y avait pas de relation entre le type de présentation et l'intérêt dans la matière, combien d'étudiants voudraient en savoir plus dans le cas d'une présentation de type filmographique?",null,null,null,null,null,null,null,"1. S'il n'y avait pas de relation entre le type de présentation et l'intérêt dans la matière, combien d'étudiants voudraient en savoir plus dans le cas d'une présentation de type filmographique?",null,null,null,null,null,null,null,"1. S'il n'y avait pas de relation entre le type de présentation et l'intérêt dans la matière, combien d'étudiants voudraient en savoir plus dans le cas d'une présentation de type filmographique?",null,null,null,null,null,null,null,"1. S'il n'y avait pas de relation entre le type de présentation et l'intérêt dans la matière, combien d'étudiants voudraient en savoir plus dans le cas d'une présentation de type filmographique?",null,null,null,null,null,null,null,"1. S'il n'y avait pas de relation entre le type de présentation et l'intérêt dans la matière, combien d'étudiants voudraient en savoir plus dans le cas d'une présentation de type filmographique?",null,null,null,null,null,null,null,"1. S'il n'y avait pas de relation entre le type de présentation et l'intérêt dans la matière, combien d'étudiants voudraient en savoir plus dans le cas d'une présentation de type filmographique?",null,null,null,null,null,null,null,"1. S'il n'y avait pas de relation entre le type de présentation et l'intérêt dans la matière, combien d'étudiants voudraient en savoir plus dans le cas d'une présentation de type filmographique?",null,null,null,null,null,null,null,"1. S'il n'y avait pas de relation entre le type de présentation et l'intérêt dans la matière, combien d'étudiants voudraient en savoir plus dans le cas d'une présentation de type filmographique?",null,null,null,null,null,null,null,"1. S'il n'y avait pas de relation entre le type de présentation et l'intérêt dans la matière, combien d'étudiants voudraient en savoir plus dans le cas d'une présentation de type filmographique?",null,null,null,null,null,null,null,"1. S'il n'y avait pas de relation entre le type de présentation et l'intérêt dans la matière, combien d'étudiants voudraient en savoir plus dans le cas d'une présentation de type filmographique?",null,null,null,null,null,null,null,"1. S'il n'y avait pas de relation entre le type de présentation et l'intérêt dans la matière, combien d'étudiants voudraient en savoir plus dans le cas d'une présentation de type filmographique?",null,null,null,null,null,null,null,"1. S'il n'y avait pas de relation entre le type de présentation et l'intérêt dans la matière, combien d'étudiants voudraient en savoir plus dans le cas d'une présentation de type filmographique?",null,null,null,null,null,null,null,"1. S'il n'y avait pas de relation entre le type de présentation et l'intérêt dans la matière, combien d'étudiants voudraient en savoir plus dans le cas d'une présentation de type filmographique?",null,null,null,null,null,null,null,"1. S'il n'y avait pas de relation entre le type de présentation et l'intérêt dans la matière, combien d'étudiants voudraient en savoir plus dans le cas d'une présentation de type filmographique?",null,null,null,null,null,null,null,"1. S'il n'y avait pas de relation entre le type de présentation et l'intérêt dans la matière, combien d'étudiants voudraient en savoir plus dans le cas d'une présentation de type filmographique?",null,null,null,null,null,null,null,"1. S'il n'y avait pas de relation entre le type de présentation et l'intérêt dans la matière, combien d'étudiants voudraient en savoir plus dans le cas d'une présentation de type filmographique?",null,null,null,null,null,null,null,"1. S'il n'y avait pas de relation entre le type de présentation et l'intérêt dans la matière, combien d'étudiants voudraient en savoir plus dans le cas d'une présentation de type filmographique?",null,null,null,null,null,null,null,"1. S'il n'y avait pas de relation entre le type de présentation et l'intérêt dans la matière, combien d'étudiants voudraient en savoir plus dans le cas d'une présentation de type filmographique?",null,null,null,null,null,null,null,"1. S'il n'y avait pas de relation entre le type de présentation et l'intérêt dans la matière, combien d'étudiants voudraient en savoir plus dans le cas d'une présentation de type filmographique?",null,null,null,null,null,null,null,"1. S'il n'y avait pas de relation entre le type de présentation et l'intérêt dans la matière, combien d'étudiants voudraient en savoir plus dans le cas d'une présentation de type filmographique?",null,null,null,null,null,null,null,"1. S'il n'y avait pas de relation entre le type de présentation et l'intérêt dans la matière, combien d'étudiants voudraient en savoir plus dans le cas d'une présentation de type filmographique?",null,null,null,null,null,null,null,"1. S'il n'y avait pas de relation entre le type de présentation et l'intérêt dans la matière, combien d'étudiants voudraient en savoir plus dans le cas d'une présentation de type filmographique?",null,null,null,null,null,null,null,"1. S'il n'y avait pas de relation entre le type de présentation et l'intérêt dans la matière, combien d'étudiants voudraient en savoir plus dans le cas d'une présentation de type filmographique?",null,null,null,null,null,null,null,"1. S'il n'y avait pas de relation entre le type de présentation et l'intérêt dans la matière, combien d'étudiants voudraient en savoir plus dans le cas d'une présentation de type filmographique?",null,null,null,null,null,null,null,"1. S'il n'y avait pas de relation entre le type de présentation et l'intérêt dans la matière, combien d'étudiants voudraient en savoir plus dans le cas d'une présentation de type filmographique?",null,null,null,null,null,null,null,"1. S'il n'y avait pas de relation entre le type de présentation et l'intérêt dans la matière, combien d'étudiants voudraient en savoir plus dans le cas d'une présentation de type filmographique?",null,null,null,null,null,null,null,"1. S'il n'y avait pas de relation entre le type de présentation et l'intérêt dans la matière, combien d'étudiants voudraient en savoir plus dans le cas d'une présentation de type filmographique?",null,null,null,null,null,null,null,"1. S'il n'y avait pas de relation entre le type de présentation et l'intérêt dans la matière, combien d'étudiants voudraient en savoir plus dans le cas d'une présentation de type filmographique?",null,null,null,null,null,null,null,"1. S'il n'y avait pas de relation entre le type de présentation et l'intérêt dans la matière, combien d'étudiants voudraient en savoir plus dans le cas d'une présentation de type filmographique?",null,null,null,null,null,null,null,"1. S'il n'y avait pas de relation entre le type de présentation et l'intérêt dans la matière, combien d'étudiants voudraient en savoir plus dans le cas d'une présentation de type filmographique?",null,null,null,null,null,null,null,"1. S'il n'y avait pas de relation entre le type de présentation et l'intérêt dans la matière, combien d'étudiants voudraient en savoir plus dans le cas d'une présentation de type filmographique?",null,null,null,null,null,null,null,"1. S'il n'y avait pas de relation entre le type de présentation et l'intérêt dans la matière, combien d'étudiants voudraient en savoir plus dans le cas d'une présentation de type filmographique?",null,null,null,null,null,null,null,"1. S'il n'y avait pas de relation entre le type de présentation et l'intérêt dans la matière, combien d'étudiants voudraient en savoir plus dans le cas d'une présentation de type filmographique?",null,null,null,null,null,null,null,"1. S'il n'y avait pas de relation entre le type de présentation et l'intérêt dans la matière, combien d'étudiants voudraient en savoir plus dans le cas d'une présentation de type filmographique?",null,null,null,null,null,null,null,"1. S'il n'y avait pas de relation entre le type de présentation et l'intérêt dans la matière, combien d'étudiants voudraient en savoir plus dans le cas d'une présentation de type filmographique?",null,null,null,null,null,null,null,"1. S'il n'y avait pas de relation entre le type de présentation et l'intérêt dans la matière, combien d'étudiants voudraient en savoir plus dans le cas d'une présentation de type filmographique?",null,null,null,null,null,null,null,"1. S'il n'y avait pas de relation entre le type de présentation et l'intérêt dans la matière, combien d'étudiants voudraient en savoir plus dans le cas d'une présentation de type filmographique?",null,null,null,null,null,null,null,"1. S'il n'y avait pas de relation entre le type de présentation et l'intérêt dans la matière, combien d'étudiants voudraient en savoir plus dans le cas d'une présentation de type filmographique?",null,null,null,null,null,null,null,"1. S'il n'y avait pas de relation entre le type de présentation et l'intérêt dans la matière, combien d'étudiants voudraient en savoir plus dans le cas d'une présentation de type filmographique?",null,null,null,null,null,null,null,"1. S'il n'y avait pas de relation entre le type de présentation et l'intérêt dans la matière, combien d'étudiants voudraient en savoir plus dans le cas d'une présentation de type filmographique?",null,null,null,null,null,null,null,"1. S'il n'y avait pas de relation entre le type de présentation et l'intérêt dans la matière, combien d'étudiants voudraient en savoir plus dans le cas d'une présentation de type filmographique?",null,null,null,null,null,null,null,"1. S'il n'y avait pas de relation entre le type de présentation et l'intérêt dans la matière, combien d'étudiants voudraient en savoir plus dans le cas d'une présentation de type filmographique?",null,null,null,null,null,null,null,"1. S'il n'y avait pas de relation entre le type de présentation et l'intérêt dans la matière, combien d'étudiants voudraient en savoir plus dans le cas d'une présentation de type filmographique?",null,null,null,null,null,null,null,"1. S'il n'y avait pas de relation entre le type de présentation et l'intérêt dans la matière, combien d'étudiants voudraient en savoir plus dans le cas d'une présentation de type filmographique?",null,null,null,null,null,null,null,"1. S'il n'y avait pas de relation entre le type de présentation et l'intérêt dans la matière, combien d'étudiants voudraient en savoir plus dans le cas d'une présentation de type filmographique?",null,null,null,null,null,null,null,"1. S'il n'y avait pas de relation entre le type de présentation et l'intérêt dans la matière, combien d'étudiants voudraient en savoir plus dans le cas d'une présentation de type filmographique?",null,null,null,null,null,null,null,"1. S'il n'y avait pas de relation entre le type de présentation et l'intérêt dans la matière, combien d'étudiants voudraient en savoir plus dans le cas d'une présentation de type filmographique?",null,null,null,null,null,null,null,"1. S'il n'y avait pas de relation entre le type de présentation et l'intérêt dans la matière, combien d'étudiants voudraient en savoir plus dans le cas d'une présentation de type filmographique?",null,null,null,null,null,null,null,"1. S'il n'y avait pas de relation entre le type de présentation et l'intérêt dans la matière, combien d'étudiants voudraient en savoir plus dans le cas d'une présentation de type filmographique?",null,null,null,null,null,null,null,"1. S'il n'y avait pas de relation entre le type de présentation et l'intérêt dans la matière, combien d'étudiants voudraient en savoir plus dans le cas d'une présentation de type filmographique?",null,null,null,null,null,null,null,"1. S'il n'y avait pas de relation entre le type de présentation et l'intérêt dans la matière, combien d'étudiants voudraient en savoir plus dans le cas d'une présentation de type filmographique?",null,null,null,null,null,null,null,"1. S'il n'y avait pas de relation entre le type de présentation et l'intérêt dans la matière, combien d'étudiants voudraient en savoir plus dans le cas d'une présentation de type filmographique?",null,null,null,null,null,null,null,"1. S'il n'y avait pas de relation entre le type de présentation et l'intérêt dans la matière, combien d'étudiants voudraient en savoir plus dans le cas d'une présentation de type filmographique?",null,null,null,null,null,null,null,"1. S'il n'y avait pas de relation entre le type de présentation et l'intérêt dans la matière, combien d'étudiants voudraient en savoir plus dans le cas d'une présentation de type filmographique?",null,null,null,null,null,null,null,"1. S'il n'y avait pas de relation entre le type de présentation et l'intérêt dans la matière, combien d'étudiants voudraient en savoir plus dans le cas d'une présentation de type filmographique?",null,null,null,null,null,null,null,"1. S'il n'y avait pas de relation entre le type de présentation et l'intérêt dans la matière, combien d'étudiants voudraient en savoir plus dans le cas d'une présentation de type filmographique?",null,null,null,null,null,null,null,"1. S'il n'y avait pas de relation entre le type de présentation et l'intérêt dans la matière, combien d'étudiants voudraient en savoir plus dans le cas d'une présentation de type filmographique?",null,null,null,null,null,null,null,"1. S'il n'y avait pas de relation entre le type de présentation et l'intérêt dans la matière, combien d'étudiants voudraient en savoir plus dans le cas d'une présentation de type filmographique?",null,null,null,null,null,null,null,"1. S'il n'y avait pas de relation entre le type de présentation et l'intérêt dans la matière, combien d'étudiants voudraient en savoir plus dans le cas d'une présentation de type filmographique?",null,null,null,null,null,null,null,"1. S'il n'y avait pas de relation entre le type de présentation et l'intérêt dans la matière, combien d'étudiants voudraient en savoir plus dans le cas d'une présentation de type filmographique?",null,null,null,null,null,null,null,"1. S'il n'y avait pas de relation entre le type de présentation et l'intérêt dans la matière, combien d'étudiants voudraient en savoir plus dans le cas d'une présentation de type filmographique?",null,null,null,null,null,null,null,"1. S'il n'y avait pas de relation entre le type de présentation et l'intérêt dans la matière, combien d'étudiants voudraient en savoir plus dans le cas d'une présentation de type filmographique?",null,null,null,null,null,null,null,"1. S'il n'y avait pas de relation entre le type de présentation et l'intérêt dans la matière, combien d'étudiants voudraient en savoir plus dans le cas d'une présentation de type filmographique?",null,null,null,null,null,null,null,"1. S'il n'y avait pas de relation entre le type de présentation et l'intérêt dans la matière, combien d'étudiants voudraient en savoir plus dans le cas d'une présentation de type filmographique?",null,null,null,null,null,null,null,"1. S'il n'y avait pas de relation entre le type de présentation et l'intérêt dans la matière, combien d'étudiants voudraient en savoir plus dans le cas d'une présentation de type filmographique?",null,null,null,null,null,null,null,"1. S'il n'y avait pas de relation entre le type de présentation et l'intérêt dans la matière, combien d'étudiants voudraient en savoir plus dans le cas d'une présentation de type filmographique?",null,null,null,null,null,null,null,"1. S'il n'y avait pas de relation entre le type de présentation et l'intérêt dans la matière, combien d'étudiants voudraient en savoir plus dans le cas d'une présentation de type filmographique?",null,null,null,null,null,null,null,"1. S'il n'y avait pas de relation entre le type de présentation et l'intérêt dans la matière, combien d'étudiants voudraient en savoir plus dans le cas d'une présentation de type filmographique?",null,null,null,null,null,null,null,"1. S'il n'y avait pas de relation entre le type de présentation et l'intérêt dans la matière, combien d'étudiants voudraient en savoir plus dans le cas d'une présentation de type filmographique?",null,null,null,null,null,null,null,"1. S'il n'y avait pas de relation entre le type de présentation et l'intérêt dans la matière, combien d'étudiants voudraient en savoir plus dans le cas d'une présentation de type filmographique?",null,null,null,null,null,null,null,"1. S'il n'y avait pas de relation entre le type de présentation et l'intérêt dans la matière, combien d'étudiants voudraient en savoir plus dans le cas d'une présentation de type filmographique?",null,null,null,null,null,null,null,"1. S'il n'y avait pas de relation entre le type de présentation et l'intérêt dans la matière, combien d'étudiants voudraient en savoir plus dans le cas d'une présentation de type filmographique?",null,null,null,null,null,null,null,"1. S'il n'y avait pas de relation entre le type de présentation et l'intérêt dans la matière, combien d'étudiants voudraient en savoir plus dans le cas d'une présentation de type filmographique?",null,null,null,null,null,null,null,"1. S'il n'y avait pas de relation entre le type de présentation et l'intérêt dans la matière, combien d'étudiants voudraient en savoir plus dans le cas d'une présentation de type filmographique?",null,null,null,null,null,null,null,"1. S'il n'y avait pas de relation entre le type de présentation et l'intérêt dans la matière, combien d'étudiants voudraient en savoir plus dans le cas d'une présentation de type filmographique?",null,null,null,null,null,null,null,"1. S'il n'y avait pas de relation entre le type de présentation et l'intérêt dans la matière, combien d'étudiants voudraient en savoir plus dans le cas d'une présentation de type filmographique?",null,null,null,null,null,null,null,"1. S'il n'y avait pas de relation entre le type de présentation et l'intérêt dans la matière, combien d'étudiants voudraient en savoir plus dans le cas d'une présentation de type filmographique?",null,null,null,null,null,null,null,"1. S'il n'y avait pas de relation entre le type de présentation et l'intérêt dans la matière, combien d'étudiants voudraient en savoir plus dans le cas d'une présentation de type filmographique?",null,null,null,null,null,null,null,"1. S'il n'y avait pas de relation entre le type de présentation et l'intérêt dans la matière, combien d'étudiants voudraient en savoir plus dans le cas d'une présentation de type filmographique?",null,null,null,null,null,null,null,"1. S'il n'y avait pas de relation entre le type de présentation et l'intérêt dans la matière, combien d'étudiants voudraient en savoir plus dans le cas d'une présentation de type filmographique?",null,null,null,null,null,null,null,"1. S'il n'y avait pas de relation entre le type de présentation et l'intérêt dans la matière, combien d'étudiants voudraient en savoir plus dans le cas d'une présentation de type filmographique?",null,null,null,null,null,null,null,"1. S'il n'y avait pas de relation entre le type de présentation et l'intérêt dans la matière, combien d'étudiants voudraient en savoir plus dans le cas d'une présentation de type filmographique?",null,null,null,null,null,null,null,"1. S'il n'y avait pas de relation entre le type de présentation et l'intérêt dans la matière, combien d'étudiants voudraient en savoir plus dans le cas d'une présentation de type filmographique?",null,null,null,null,null,null,null,"1. S'il n'y avait pas de relation entre le type de présentation et l'intérêt dans la matière, combien d'étudiants voudraient en savoir plus dans le cas d'une présentation de type filmographique?",null,null,null,null,null,null,null,"1. S'il n'y avait pas de relation entre le type de présentation et l'intérêt dans la matière, combien d'étudiants voudraient en savoir plus dans le cas d'une présentation de type filmographique?",null,null,null,null,null,null,null,"1. S'il n'y avait pas de relation entre le type de présentation et l'intérêt dans la matière, combien d'étudiants voudraient en savoir plus dans le cas d'une présentation de type filmographique?",null,null,null,null,null,null,null,"1. S'il n'y avait pas de relation entre le type de présentation et l'intérêt dans la matière, combien d'étudiants voudraient en savoir plus dans le cas d'une présentation de type filmographique?",null,null,null,null,null,null,null,"1. S'il n'y avait pas de relation entre le type de présentation et l'intérêt dans la matière, combien d'étudiants voudraient en savoir plus dans le cas d'une présentation de type filmographique?",null,null,null,null,null,null,null,"1. S'il n'y avait pas de relation entre le type de présentation et l'intérêt dans la matière, combien d'étudiants voudraient en savoir plus dans le cas d'une présentation de type filmographique?",null,null,null,null,null,null,null,"1. S'il n'y avait pas de relation entre le type de présentation et l'intérêt dans la matière, combien d'étudiants voudraient en savoir plus dans le cas d'une présentation de type filmographique?",null,null,null,null,null,null,null,"1. S'il n'y avait pas de relation entre le type de présentation et l'intérêt dans la matière, combien d'étudiants voudraient en savoir plus dans le cas d'une présentation de type filmographique?",null,null,null,null,null,null,null,"1. S'il n'y avait pas de relation entre le type de présentation et l'intérêt dans la matière, combien d'étudiants voudraient en savoir plus dans le cas d'une présentation de type filmographique?",null,null,null,null,null,null,null,"1. S'il n'y avait pas de relation entre le type de présentation et l'intérêt dans la matière, combien d'étudiants voudraient en savoir plus dans le cas d'une présentation de type filmographique?",null,null,null,null,null,null,null,"1. S'il n'y avait pas de relation entre le type de présentation et l'intérêt dans la matière, combien d'étudiants voudraient en savoir plus dans le cas d'une présentation de type filmographique?",null,null,null,null,null,null,null,"1. S'il n'y avait pas de relation entre le type de présentation et l'intérêt dans la matière, combien d'étudiants voudraient en savoir plus dans le cas d'une présentation de type filmographique?",null,null,null,null,null,null,null,"1. S'il n'y avait pas de relation entre le type de présentation et l'intérêt dans la matière, combien d'étudiants voudraient en savoir plus dans le cas d'une présentation de type filmographique?",null,null,null,null,null,null,null,"1. S'il n'y avait pas de relation entre le type de présentation et l'intérêt dans la matière, combien d'étudiants voudraient en savoir plus dans le cas d'une présentation de type filmographique?",null,null,null,null,null,null,null,"1. S'il n'y avait pas de relation entre le type de présentation et l'intérêt dans la matière, combien d'étudiants voudraient en savoir plus dans le cas d'une présentation de type filmographique?",null,null,null,null,null,null,null,"1. S'il n'y avait pas de relation entre le type de présentation et l'intérêt dans la matière, combien d'étudiants voudraient en savoir plus dans le cas d'une présentation de type filmographique?",null,null,null,null,null,null,null,"1. S'il n'y avait pas de relation entre le type de présentation et l'intérêt dans la matière, combien d'étudiants voudraient en savoir plus dans le cas d'une présentation de type filmographique?",null,null,null,null,null,null,null,"1. S'il n'y avait pas de relation entre le type de présentation et l'intérêt dans la matière, combien d'étudiants voudraient en savoir plus dans le cas d'une présentation de type filmographique?",null,null,null,null,null,null,null,"1. S'il n'y avait pas de relation entre le type de présentation et l'intérêt dans la matière, combien d'étudiants voudraient en savoir plus dans le cas d'une présentation de type filmographique?",null,null,null,null,null,null,null,"1. S'il n'y avait pas de relation entre le type de présentation et l'intérêt dans la matière, combien d'étudiants voudraient en savoir plus dans le cas d'une présentation de type filmographique?",null,null,null,null,null,null,null,"1. S'il n'y avait pas de relation entre le type de présentation et l'intérêt dans la matière, combien d'étudiants voudraient en savoir plus dans le cas d'une présentation de type filmographique?",null,null,null,null,null,null,null,"1. S'il n'y avait pas de relation entre le type de présentation et l'intérêt dans la matière, combien d'étudiants voudraient en savoir plus dans le cas d'une présentation de type filmographique?",null,null,null,null,null,null,null,"1. S'il n'y avait pas de relation entre le type de présentation et l'intérêt dans la matière, combien d'étudiants voudraient en savoir plus dans le cas d'une présentation de type filmographique?",null,null,null,null,null,null,null,"1. S'il n'y avait pas de relation entre le type de présentation et l'intérêt dans la matière, combien d'étudiants voudraient en savoir plus dans le cas d'une présentation de type filmographique?",null,null,null,null,null,null,null,"1. S'il n'y avait pas de relation entre le type de présentation et l'intérêt dans la matière, combien d'étudiants voudraient en savoir plus dans le cas d'une présentation de type filmographique?",null,null,null,null,null,null,null,"1. S'il n'y avait pas de relation entre le type de présentation et l'intérêt dans la matière, combien d'étudiants voudraient en savoir plus dans le cas d'une présentation de type filmographique?",null,null,null,null,null,null,null,"1. S'il n'y avait pas de relation entre le type de présentation et l'intérêt dans la matière, combien d'étudiants voudraient en savoir plus dans le cas d'une présentation de type filmographique?",null,null,null,null,null,null,null,"1. S'il n'y avait pas de relation entre le type de présentation et l'intérêt dans la matière, combien d'étudiants voudraient en savoir plus dans le cas d'une présentation de type filmographique?",null,null,null,null,null,null,null,"1. S'il n'y avait pas de relation entre le type de présentation et l'intérêt dans la matière, combien d'étudiants voudraient en savoir plus dans le cas d'une présentation de type filmographique?",null,null,null,null,null,null,null,"1. S'il n'y avait pas de relation entre le type de présentation et l'intérêt dans la matière, combien d'étudiants voudraient en savoir plus dans le cas d'une présentation de type filmographique?",null,null,null,null,null,null,null,"1. S'il n'y avait pas de relation entre le type de présentation et l'intérêt dans la matière, combien d'étudiants voudraient en savoir plus dans le cas d'une présentation de type filmographique?",null,null,null,null,null,null,null,"1. S'il n'y avait pas de relation entre le type de présentation et l'intérêt dans la matière, combien d'étudiants voudraient en savoir plus dans le cas d'une présentation de type filmographique?",null,null,null,null,null,null,null,"1. S'il n'y avait pas de relation entre le type de présentation et l'intérêt dans la matière, combien d'étudiants voudraient en savoir plus dans le cas d'une présentation de type filmographique?",null,null,null,null,null,null,null,"1. S'il n'y avait pas de relation entre le type de présentation et l'intérêt dans la matière, combien d'étudiants voudraient en savoir plus dans le cas d'une présentation de type filmographique?",null,null,null,null,null,null,null,"1. S'il n'y avait pas de relation entre le type de présentation et l'intérêt dans la matière, combien d'étudiants voudraient en savoir plus dans le cas d'une présentation de type filmographique?",null,null,null,null,null,null,null,"1. S'il n'y avait pas de relation entre le type de présentation et l'intérêt dans la matière, combien d'étudiants voudraient en savoir plus dans le cas d'une présentation de type filmographique?",null,null,null,null,null,null,null,"1. S'il n'y avait pas de relation entre le type de présentation et l'intérêt dans la matière, combien d'étudiants voudraient en savoir plus dans le cas d'une présentation de type filmographique?",null,null,null,null,null,null,null,"1. S'il n'y avait pas de relation entre le type de présentation et l'intérêt dans la matière, combien d'étudiants voudraient en savoir plus dans le cas d'une présentation de type filmographique?",null,null,null,null,null,null,null,"1. S'il n'y avait pas de relation entre le type de présentation et l'intérêt dans la matière, combien d'étudiants voudraient en savoir plus dans le cas d'une présentation de type filmographique?",null,null,null,null,null,null,null,"1. S'il n'y avait pas de relation entre le type de présentation et l'intérêt dans la matière, combien d'étudiants voudraient en savoir plus dans le cas d'une présentation de type filmographique?",null,null,null,null,null,null,null,"1. S'il n'y avait pas de relation entre le type de présentation et l'intérêt dans la matière, combien d'étudiants voudraient en savoir plus dans le cas d'une présentation de type filmographique?",null,null,null,null,null,null,null,"1. S'il n'y avait pas de relation entre le type de présentation et l'intérêt dans la matière, combien d'étudiants voudraient en savoir plus dans le cas d'une présentation de type filmographique?",null,null,null,null,null,null,null,"1. S'il n'y avait pas de relation entre le type de présentation et l'intérêt dans la matière, combien d'étudiants voudraient en savoir plus dans le cas d'une présentation de type filmographique?",null,null,null,null,null,null,null,"1. S'il n'y avait pas de relation entre le type de présentation et l'intérêt dans la matière, combien d'étudiants voudraient en savoir plus dans le cas d'une présentation de type filmographique?",null,null,null,null,null,null,null,"1. S'il n'y avait pas de relation entre le type de présentation et l'intérêt dans la matière, combien d'étudiants voudraient en savoir plus dans le cas d'une présentation de type filmographique?",null,null,null,null,null,null,null,"1. S'il n'y avait pas de relation entre le type de présentation et l'intérêt dans la matière, combien d'étudiants voudraient en savoir plus dans le cas d'une présentation de type filmographique?",null,null,null,null,null,null,null,"1. S'il n'y avait pas de relation entre le type de présentation et l'intérêt dans la matière, combien d'étudiants voudraient en savoir plus dans le cas d'une présentation de type filmographique?",null,null,null,null,null,null,null,"1. S'il n'y avait pas de relation entre le type de présentation et l'intérêt dans la matière, combien d'étudiants voudraient en savoir plus dans le cas d'une présentation de type filmographique?",null,null,null,null,null,null,null,"1. S'il n'y avait pas de relation entre le type de présentation et l'intérêt dans la matière, combien d'étudiants voudraient en savoir plus dans le cas d'une présentation de type filmographique?",null,null,null,null,null,null,null,"1. S'il n'y avait pas de relation entre le type de présentation et l'intérêt dans la matière, combien d'étudiants voudraient en savoir plus dans le cas d'une présentation de type filmographique?",null,null,null,null,null,null,null,"1. S'il n'y avait pas de relation entre le type de présentation et l'intérêt dans la matière, combien d'étudiants voudraient en savoir plus dans le cas d'une présentation de type filmographique?",null,null,null,null,null,null,null,"1. S'il n'y avait pas de relation entre le type de présentation et l'intérêt dans la matière, combien d'étudiants voudraient en savoir plus dans le cas d'une présentation de type filmographique?",null,null,null,null,null,null,null,"1. S'il n'y avait pas de relation entre le type de présentation et l'intérêt dans la matière, combien d'étudiants voudraient en savoir plus dans le cas d'une présentation de type filmographique?",null,null,null,null,null,null,null,"1. S'il n'y avait pas de relation entre le type de présentation et l'intérêt dans la matière, combien d'étudiants voudraient en savoir plus dans le cas d'une présentation de type filmographique?",null,null,null,null,null,null,null,"1. S'il n'y avait pas de relation entre le type de présentation et l'intérêt dans la matière, combien d'étudiants voudraient en savoir plus dans le cas d'une présentation de type filmographique?",null,null,null,null,null,null,null,"1. S'il n'y avait pas de relation entre le type de présentation et l'intérêt dans la matière, combien d'étudiants voudraient en savoir plus dans le cas d'une présentation de type filmographique?",null,null,null,null,null,null,null,"1. S'il n'y avait pas de relation entre le type de présentation et l'intérêt dans la matière, combien d'étudiants voudraient en savoir plus dans le cas d'une présentation de type filmographique?",null,null,null,null,null,null,null,"1. S'il n'y avait pas de relation entre le type de présentation et l'intérêt dans la matière, combien d'étudiants voudraient en savoir plus dans le cas d'une présentation de type filmographique?",null,null,null,null,null,null,null,"1. S'il n'y avait pas de relation entre le type de présentation et l'intérêt dans la matière, combien d'étudiants voudraient en savoir plus dans le cas d'une présentation de type filmographique?",null,null,null,null,null,null,null,"1. S'il n'y avait pas de relation entre le type de présentation et l'intérêt dans la matière, combien d'étudiants voudraient en savoir plus dans le cas d'une présentation de type filmographique?",null,null,null,null,null,null,null,"1. S'il n'y avait pas de relation entre le type de présentation et l'intérêt dans la matière, combien d'étudiants voudraient en savoir plus dans le cas d'une présentation de type filmographique?",null,null,null,null,null,null,null,"1. S'il n'y avait pas de relation entre le type de présentation et l'intérêt dans la matière, combien d'étudiants voudraient en savoir plus dans le cas d'une présentation de type filmographique?",null,null,null,null,null,null,null,"1. S'il n'y avait pas de relation entre le type de présentation et l'intérêt dans la matière, combien d'étudiants voudraient en savoir plus dans le cas d'une présentation de type filmographique?",null,null,null,null,null,null,null,"1. S'il n'y avait pas de relation entre le type de présentation et l'intérêt dans la matière, combien d'étudiants voudraient en savoir plus dans le cas d'une présentation de type filmographique?",null,null,null,null,null,null,null,"1. S'il n'y avait pas de relation entre le type de présentation et l'intérêt dans la matière, combien d'étudiants voudraient en savoir plus dans le cas d'une présentation de type filmographique?",null,null,null,null,null,null,null,"1. S'il n'y avait pas de relation entre le type de présentation et l'intérêt dans la matière, combien d'étudiants voudraient en savoir plus dans le cas d'une présentation de type filmographique?",null,null,null,null,null,null,null,"1. S'il n'y avait pas de relation entre le type de présentation et l'intérêt dans la matière, combien d'étudiants voudraient en savoir plus dans le cas d'une présentation de type filmographique?",null,null,null,null,null,null,null,"1. S'il n'y avait pas de relation entre le type de présentation et l'intérêt dans la matière, combien d'étudiants voudraient en savoir plus dans le cas d'une présentation de type filmographique?",null,null,null,null,null,null,null,"1. S'il n'y avait pas de relation entre le type de présentation et l'intérêt dans la matière, combien d'étudiants voudraient en savoir plus dans le cas d'une présentation de type filmographique?",null,null,null,null,null,null,null,"1. S'il n'y avait pas de relation entre le type de présentation et l'intérêt dans la matière, combien d'étudiants voudraient en savoir plus dans le cas d'une présentation de type filmographique?",null,null,null,null,null,null,null,"1. S'il n'y avait pas de relation entre le type de présentation et l'intérêt dans la matière, combien d'étudiants voudraient en savoir plus dans le cas d'une présentation de type filmographique?",null,null,null,null,null,null,null,"1. S'il n'y avait pas de relation entre le type de présentation et l'intérêt dans la matière, combien d'étudiants voudraient en savoir plus dans le cas d'une présentation de type filmographique?",null,null,null,null,null,null,null,"1. S'il n'y avait pas de relation entre le type de présentation et l'intérêt dans la matière, combien d'étudiants voudraient en savoir plus dans le cas d'une présentation de type filmographique?",null,null,null,null,null,null,null,"1. S'il n'y avait pas de relation entre le type de présentation et l'intérêt dans la matière, combien d'étudiants voudraient en savoir plus dans le cas d'une présentation de type filmographique?",null,null,null,null,null,null,null,"1. S'il n'y avait pas de relation entre le type de présentation et l'intérêt dans la matière, combien d'étudiants voudraient en savoir plus dans le cas d'une présentation de type filmographique?",null,null,null,null,null,null,null,"1. S'il n'y avait pas de relation entre le type de présentation et l'intérêt dans la matière, combien d'étudiants voudraient en savoir plus dans le cas d'une présentation de type filmographique?",null,null,null,null,null,null,null,"1. S'il n'y avait pas de relation entre le type de présentation et l'intérêt dans la matière, combien d'étudiants voudraient en savoir plus dans le cas d'une présentation de type filmographique?",null,null,null,null,null,null,null,"1. S'il n'y avait pas de relation entre le type de présentation et l'intérêt dans la matière, combien d'étudiants voudraient en savoir plus dans le cas d'une présentation de type filmographique?",null,null,null,null,null,null,null,"1. S'il n'y avait pas de relation entre le type de présentation et l'intérêt dans la matière, combien d'étudiants voudraient en savoir plus dans le cas d'une présentation de type filmographique?",null,null,null,null,null,null,null,"1. S'il n'y avait pas de relation entre le type de présentation et l'intérêt dans la matière, combien d'étudiants voudraient en savoir plus dans le cas d'une présentation de type filmographique?",null,null,null,null,null,null,null,"1. S'il n'y avait pas de relation entre le type de présentation et l'intérêt dans la matière, combien d'étudiants voudraient en savoir plus dans le cas d'une présentation de type filmographique?",null,null,null,null,null,null,null,"1. S'il n'y avait pas de relation entre le type de présentation et l'intérêt dans la matière, combien d'étudiants voudraient en savoir plus dans le cas d'une présentation de type filmographique?",null,null,null,null,null,null,null,"1. S'il n'y avait pas de relation entre le type de présentation et l'intérêt dans la matière, combien d'étudiants voudraient en savoir plus dans le cas d'une présentation de type filmographique?",null,null,null,null,null,null,null,"1. S'il n'y avait pas de relation entre le type de présentation et l'intérêt dans la matière, combien d'étudiants voudraient en savoir plus dans le cas d'une présentation de type filmographique?",null,null,null,null,null,null,null,"1. S'il n'y avait pas de relation entre le type de présentation et l'intérêt dans la matière, combien d'étudiants voudraient en savoir plus dans le cas d'une présentation de type filmographique?",null,null,null,null,null,null,null,"1. S'il n'y avait pas de relation entre le type de présentation et l'intérêt dans la matière, combien d'étudiants voudraient en savoir plus dans le cas d'une présentation de type filmographique?",null,null,null,null,null,null,null,"1. S'il n'y avait pas de relation entre le type de présentation et l'intérêt dans la matière, combien d'étudiants voudraient en savoir plus dans le cas d'une présentation de type filmographique?",null,null,null,null,null,null,null,"1. S'il n'y avait pas de relation entre le type de présentation et l'intérêt dans la matière, combien d'étudiants voudraient en savoir plus dans le cas d'une présentation de type filmographique?",null,null,null,null,null,null,null,"1. S'il n'y avait pas de relation entre le type de présentation et l'intérêt dans la matière, combien d'étudiants voudraient en savoir plus dans le cas d'une présentation de type filmographique?",null,null,null,null,null,null,null,"1. S'il n'y avait pas de relation entre le type de présentation et l'intérêt dans la matière, combien d'étudiants voudraient en savoir plus dans le cas d'une présentation de type filmographique?",null,null,null,null,null,null,null,"1. S'il n'y avait pas de relation entre le type de présentation et l'intérêt dans la matière, combien d'étudiants voudraient en savoir plus dans le cas d'une présentation de type filmographique?",null,null,null,null,null,null,null,"1. S'il n'y avait pas de relation entre le type de présentation et l'intérêt dans la matière, combien d'étudiants voudraient en savoir plus dans le cas d'une présentation de type filmographique?",null,null,null,null,null,null,null,"1. S'il n'y avait pas de relation entre le type de présentation et l'intérêt dans la matière, combien d'étudiants voudraient en savoir plus dans le cas d'une présentation de type filmographique?",null,null,null,null,null,null,null,"1. S'il n'y avait pas de relation entre le type de présentation et l'intérêt dans la matière, combien d'étudiants voudraient en savoir plus dans le cas d'une présentation de type filmographique?",null,null,null,null,null,null,null,"1. S'il n'y avait pas de relation entre le type de présentation et l'intérêt dans la matière, combien d'étudiants voudraient en savoir plus dans le cas d'une présentation de type filmographique?",null,null,null,null,null,null,null,"1. S'il n'y avait pas de relation entre le type de présentation et l'intérêt dans la matière, combien d'étudiants voudraient en savoir plus dans le cas d'une présentation de type filmographique?",null,null,null,null,null,null,null,"1. S'il n'y avait pas de relation entre le type de présentation et l'intérêt dans la matière, combien d'étudiants voudraient en savoir plus dans le cas d'une présentation de type filmographique?",null,null,null,null,null,null,null,"1. S'il n'y avait pas de relation entre le type de présentation et l'intérêt dans la matière, combien d'étudiants voudraient en savoir plus dans le cas d'une présentation de type filmographique?",null,null,null,null,null,null,null,"1. S'il n'y avait pas de relation entre le type de présentation et l'intérêt dans la matière, combien d'étudiants voudraient en savoir plus dans le cas d'une présentation de type filmographique?",null,null,null,null,null,null,null,"1. S'il n'y avait pas de relation entre le type de présentation et l'intérêt dans la matière, combien d'étudiants voudraient en savoir plus dans le cas d'une présentation de type filmographique?",null,null,null,null,null,null,null,"1. S'il n'y avait pas de relation entre le type de présentation et l'intérêt dans la matière, combien d'étudiants voudraient en savoir plus dans le cas d'une présentation de type filmographique?",null,null,null,null,null,null,null,"1. S'il n'y avait pas de relation entre le type de présentation et l'intérêt dans la matière, combien d'étudiants voudraient en savoir plus dans le cas d'une présentation de type filmographique?",null,null,null,null,null,null,null,"1. S'il n'y avait pas de relation entre le type de présentation et l'intérêt dans la matière, combien d'étudiants voudraient en savoir plus dans le cas d'une présentation de type filmographique?",null,null,null,null,null,null,null,"1. S'il n'y avait pas de relation entre le type de présentation et l'intérêt dans la matière, combien d'étudiants voudraient en savoir plus dans le cas d'une présentation de type filmographique?",null,null,null,null,null,null,null,"1. S'il n'y avait pas de relation entre le type de présentation et l'intérêt dans la matière, combien d'étudiants voudraient en savoir plus dans le cas d'une présentation de type filmographique?",null,null,null,null,null,null,null,"1. S'il n'y avait pas de relation entre le type de présentation et l'intérêt dans la matière, combien d'étudiants voudraient en savoir plus dans le cas d'une présentation de type filmographique?",null,null,null,null,null,null,null,"1. S'il n'y avait pas de relation entre le type de présentation et l'intérêt dans la matière, combien d'étudiants voudraient en savoir plus dans le cas d'une présentation de type filmographique?",null,null,null,null,null,null,null,"1. S'il n'y avait pas de relation entre le type de présentation et l'intérêt dans la matière, combien d'étudiants voudraient en savoir plus dans le cas d'une présentation de type filmographique?",null,null,null,null,null,null,null,"1. S'il n'y avait pas de relation entre le type de présentation et l'intérêt dans la matière, combien d'étudiants voudraient en savoir plus dans le cas d'une présentation de type filmographique?",null,null,null,null,null,null,null,"1. S'il n'y avait pas de relation entre le type de présentation et l'intérêt dans la matière, combien d'étudiants voudraient en savoir plus dans le cas d'une présentation de type filmographique?",null,null,null,null,null,null,null,"1. S'il n'y avait pas de relation entre le type de présentation et l'intérêt dans la matière, combien d'étudiants voudraient en savoir plus dans le cas d'une présentation de type filmographique?",null,null,null,null,null,null,null,"1. S'il n'y avait pas de relation entre le type de présentation et l'intérêt dans la matière, combien d'étudiants voudraient en savoir plus dans le cas d'une présentation de type filmographique?",null,null,null,null,null,null,null,"1. S'il n'y avait pas de relation entre le type de présentation et l'intérêt dans la matière, combien d'étudiants voudraient en savoir plus dans le cas d'une présentation de type filmographique?",null,null,null,null,null,null,null,"1. S'il n'y avait pas de relation entre le type de présentation et l'intérêt dans la matière, combien d'étudiants voudraient en savoir plus dans le cas d'une présentation de type filmographique?",null,null,null,null,null,null,null,"1. S'il n'y avait pas de relation entre le type de présentation et l'intérêt dans la matière, combien d'étudiants voudraient en savoir plus dans le cas d'une présentation de type filmographique?",null,null,null,null,null,null,null,"1. S'il n'y avait pas de relation entre le type de présentation et l'intérêt dans la matière, combien d'étudiants voudraient en savoir plus dans le cas d'une présentation de type filmographique?",null,null,null,null,null,null,null,"1. S'il n'y avait pas de relation entre le type de présentation et l'intérêt dans la matière, combien d'étudiants voudraient en savoir plus dans le cas d'une présentation de type filmographique?",null,null,null,null,null,null,null,"1. S'il n'y avait pas de relation entre le type de présentation et l'intérêt dans la matière, combien d'étudiants voudraient en savoir plus dans le cas d'une présentation de type filmographique?",null,null,null,null,null,null,null,"1. S'il n'y avait pas de relation entre le type de présentation et l'intérêt dans la matière, combien d'étudiants voudraient en savoir plus dans le cas d'une présentation de type filmographique?",null,null,null,null,null,null,null,"1. S'il n'y avait pas de relation entre le type de présentation et l'intérêt dans la matière, combien d'étudiants voudraient en savoir plus dans le cas d'une présentation de type filmographique?",null,null,null,null,null,null,null,"1. S'il n'y avait pas de relation entre le type de présentation et l'intérêt dans la matière, combien d'étudiants voudraient en savoir plus dans le cas d'une présentation de type filmographique?",null,null,null,null,null,null,null,"1. S'il n'y avait pas de relation entre le type de présentation et l'intérêt dans la matière, combien d'étudiants voudraient en savoir plus dans le cas d'une présentation de type filmographique?",null,null,null,null,null,null,null,"1. S'il n'y avait pas de relation entre le type de présentation et l'intérêt dans la matière, combien d'étudiants voudraient en savoir plus dans le cas d'une présentation de type filmographique?",null,null,null,null,null,null,null,"1. S'il n'y avait pas de relation entre le type de présentation et l'intérêt dans la matière, combien d'étudiants voudraient en savoir plus dans le cas d'une présentation de type filmographique?",null,null,null,null,null,null,null,"1. S'il n'y avait pas de relation entre le type de présentation et l'intérêt dans la matière, combien d'étudiants voudraient en savoir plus dans le cas d'une présentation de type filmographique?",null,null,null,null,null,null,null,"1. S'il n'y avait pas de relation entre le type de présentation et l'intérêt dans la matière, combien d'étudiants voudraient en savoir plus dans le cas d'une présentation de type filmographique?",null,null,null,null,null,null,null,"1. S'il n'y avait pas de relation entre le type de présentation et l'intérêt dans la matière, combien d'étudiants voudraient en savoir plus dans le cas d'une présentation de type filmographique?",null,null,null,null,null,null,null,"1. S'il n'y avait pas de relation entre le type de présentation et l'intérêt dans la matière, combien d'étudiants voudraient en savoir plus dans le cas d'une présentation de type filmographique?",null,null,null,null,null,null,null,"1. S'il n'y avait pas de relation entre le type de présentation et l'intérêt dans la matière, combien d'étudiants voudraient en savoir plus dans le cas d'une présentation de type filmographique?",null,null,null,null,null,null,null,"1. S'il n'y avait pas de relation entre le type de présentation et l'intérêt dans la matière, combien d'étudiants voudraient en savoir plus dans le cas d'une présentation de type filmographique?",null,null,null,null,null,null,null,"1. S'il n'y avait pas de relation entre le type de présentation et l'intérêt dans la matière, combien d'étudiants voudraient en savoir plus dans le cas d'une présentation de type filmographique?",null,null,null,null,null,null,null,"1. S'il n'y avait pas de relation entre le type de présentation et l'intérêt dans la matière, combien d'étudiants voudraient en savoir plus dans le cas d'une présentation de type filmographique?",null,null,null,null,null,null,null,"1. S'il n'y avait pas de relation entre le type de présentation et l'intérêt dans la matière, combien d'étudiants voudraient en savoir plus dans le cas d'une présentation de type filmographique?",null,null,null,null,null,null,null,"1. S'il n'y avait pas de relation entre le type de présentation et l'intérêt dans la matière, combien d'étudiants voudraient en savoir plus dans le cas d'une présentation de type filmographique?",null,null,null,null,null,null,null,"1. S'il n'y avait pas de relation entre le type de présentation et l'intérêt dans la matière, combien d'étudiants voudraient en savoir plus dans le cas d'une présentation de type filmographique?",null,null,null,null,null,null,null,"1. S'il n'y avait pas de relation entre le type de présentation et l'intérêt dans la matière, combien d'étudiants voudraient en savoir plus dans le cas d'une présentation de type filmographique?",null,null,null,null,null,null,null,"1. S'il n'y avait pas de relation entre le type de présentation et l'intérêt dans la matière, combien d'étudiants voudraient en savoir plus dans le cas d'une présentation de type filmographique?",null,null,null,null,null,null,null,"1. S'il n'y avait pas de relation entre le type de présentation et l'intérêt dans la matière, combien d'étudiants voudraient en savoir plus dans le cas d'une présentation de type filmographique?",null,null,null,null,null,null,null,"1. S'il n'y avait pas de relation entre le type de présentation et l'intérêt dans la matière, combien d'étudiants voudraient en savoir plus dans le cas d'une présentation de type filmographique?",null,null,null,null,null,null,null,"1. S'il n'y avait pas de relation entre le type de présentation et l'intérêt dans la matière, combien d'étudiants voudraient en savoir plus dans le cas d'une présentation de type filmographique?",null,null,null,null,null,null,null,"1. S'il n'y avait pas de relation entre le type de présentation et l'intérêt dans la matière, combien d'étudiants voudraient en savoir plus dans le cas d'une présentation de type filmographique?",null,null,null,null,null,null,null,"1. S'il n'y avait pas de relation entre le type de présentation et l'intérêt dans la matière, combien d'étudiants voudraient en savoir plus dans le cas d'une présentation de type filmographique?",null,null,null,null,null,null,null,"1. S'il n'y avait pas de relation entre le type de présentation et l'intérêt dans la matière, combien d'étudiants voudraient en savoir plus dans le cas d'une présentation de type filmographique?",null,null,null,null,null,null,null,"1. S'il n'y avait pas de relation entre le type de présentation et l'intérêt dans la matière, combien d'étudiants voudraient en savoir plus dans le cas d'une présentation de type filmographique?",null,null,null,null,null,null,null,"1. S'il n'y avait pas de relation entre le type de présentation et l'intérêt dans la matière, combien d'étudiants voudraient en savoir plus dans le cas d'une présentation de type filmographique?",null,null,null,null,null,null,null,"1. S'il n'y avait pas de relation entre le type de présentation et l'intérêt dans la matière, combien d'étudiants voudraient en savoir plus dans le cas d'une présentation de type filmographique?",null,null,null,null,null,null,null,"1. S'il n'y avait pas de relation entre le type de présentation et l'intérêt dans la matière, combien d'étudiants voudraient en savoir plus dans le cas d'une présentation de type filmographique?",null,null,null,null,null,null,null,"1. S'il n'y avait pas de relation entre le type de présentation et l'intérêt dans la matière, combien d'étudiants voudraient en savoir plus dans le cas d'une présentation de type filmographique?",null,null,null,null,null,null,null,"1. S'il n'y avait pas de relation entre le type de présentation et l'intérêt dans la matière, combien d'étudiants voudraient en savoir plus dans le cas d'une présentation de type filmographique?",null,null,null,null,null,null,null,"1. S'il n'y avait pas de relation entre le type de présentation et l'intérêt dans la matière, combien d'étudiants voudraient en savoir plus dans le cas d'une présentation de type filmographique?",null,null,null,null,null,null,null,"1. S'il n'y avait pas de relation entre le type de présentation et l'intérêt dans la matière, combien d'étudiants voudraient en savoir plus dans le cas d'une présentation de type filmographique?",null,null,null,null,null,null,null,"1. S'il n'y avait pas de relation entre le type de présentation et l'intérêt dans la matière, combien d'étudiants voudraient en savoir plus dans le cas d'une présentation de type filmographique?",null,null,null,null,null,null,null,"1. S'il n'y avait pas de relation entre le type de présentation et l'intérêt dans la matière, combien d'étudiants voudraient en savoir plus dans le cas d'une présentation de type filmographique?",null,null,null,null,null,null,null,"1. S'il n'y avait pas de relation entre le type de présentation et l'intérêt dans la matière, combien d'étudiants voudraient en savoir plus dans le cas d'une présentation de type filmographique?",null,null,null,null,null,null,null,"1. S'il n'y avait pas de relation entre le type de présentation et l'intérêt dans la matière, combien d'étudiants voudraient en savoir plus dans le cas d'une présentation de type filmographique?",null,null,null,null,null,null,null,"1. S'il n'y avait pas de relation entre le type de présentation et l'intérêt dans la matière, combien d'étudiants voudraient en savoir plus dans le cas d'une présentation de type filmographique?",null,null,null,null,null,null,null,"1. S'il n'y avait pas de relation entre le type de présentation et l'intérêt dans la matière, combien d'étudiants voudraient en savoir plus dans le cas d'une présentation de type filmographique?",null,null,null,null,null,null,null,"1. S'il n'y avait pas de relation entre le type de présentation et l'intérêt dans la matière, combien d'étudiants voudraient en savoir plus dans le cas d'une présentation de type filmographique?",null,null,null,null,null,null,null,"1. S'il n'y avait pas de relation entre le type de présentation et l'intérêt dans la matière, combien d'étudiants voudraient en savoir plus dans le cas d'une présentation de type filmographique?",null,null,null,null,null,null,null,"1. S'il n'y avait pas de relation entre le type de présentation et l'intérêt dans la matière, combien d'étudiants voudraient en savoir plus dans le cas d'une présentation de type filmographique?",null,null,null,null,null,null,null,"1. S'il n'y avait pas de relation entre le type de présentation et l'intérêt dans la matière, combien d'étudiants voudraient en savoir plus dans le cas d'une présentation de type filmographique?",null,null,null,null,null,null,null,"1. S'il n'y avait pas de relation entre le type de présentation et l'intérêt dans la matière, combien d'étudiants voudraient en savoir plus dans le cas d'une présentation de type filmographique?",null,null,null,null,null,null,null,"1. S'il n'y avait pas de relation entre le type de présentation et l'intérêt dans la matière, combien d'étudiants voudraient en savoir plus dans le cas d'une présentation de type filmographique?",null,null,null,null,null,null,null,"1. S'il n'y avait pas de relation entre le type de présentation et l'intérêt dans la matière, combien d'étudiants voudraient en savoir plus dans le cas d'une présentation de type filmographique?",null,null,null,null,null,null,null,"1. S'il n'y avait pas de relation entre le type de présentation et l'intérêt dans la matière, combien d'étudiants voudraient en savoir plus dans le cas d'une présentation de type filmographique?",null,null,null,null,null,null,null,"1. S'il n'y avait pas de relation entre le type de présentation et l'intérêt dans la matière, combien d'étudiants voudraient en savoir plus dans le cas d'une présentation de type filmographique?",null,null,null,null,null,null,null,"1. S'il n'y avait pas de relation entre le type de présentation et l'intérêt dans la matière, combien d'étudiants voudraient en savoir plus dans le cas d'une présentation de type filmographique?",null,null,null,null,null,null,null,"1. S'il n'y avait pas de relation entre le type de présentation et l'intérêt dans la matière, combien d'étudiants voudraient en savoir plus dans le cas d'une présentation de type filmographique?",null,null,null,null,null,null,null,"1. S'il n'y avait pas de relation entre le type de présentation et l'intérêt dans la matière, combien d'étudiants voudraient en savoir plus dans le cas d'une présentation de type filmographique?",null,null,null,null,null,null,null,"1. S'il n'y avait pas de relation entre le type de présentation et l'intérêt dans la matière, combien d'étudiants voudraient en savoir plus dans le cas d'une présentation de type filmographique?",null,null,null,null,null,null,null,"1. S'il n'y avait pas de relation entre le type de présentation et l'intérêt dans la matière, combien d'étudiants voudraient en savoir plus dans le cas d'une présentation de type filmographique?",null,null,null,null,null,null,null,"1. S'il n'y avait pas de relation entre le type de présentation et l'intérêt dans la matière, combien d'étudiants voudraient en savoir plus dans le cas d'une présentation de type filmographique?",null,null,null,null,null,null,null,"1. S'il n'y avait pas de relation entre le type de présentation et l'intérêt dans la matière, combien d'étudiants voudraient en savoir plus dans le cas d'une présentation de type filmographique?",null,null,null,null,null,null,null,"1. S'il n'y avait pas de relation entre le type de présentation et l'intérêt dans la matière, combien d'étudiants voudraient en savoir plus dans le cas d'une présentation de type filmographique?",null,null,null,null,null,null,null,"1. S'il n'y avait pas de relation entre le type de présentation et l'intérêt dans la matière, combien d'étudiants voudraient en savoir plus dans le cas d'une présentation de type filmographique?",null,null,null,null,null,null,null,"1. S'il n'y avait pas de relation entre le type de présentation et l'intérêt dans la matière, combien d'étudiants voudraient en savoir plus dans le cas d'une présentation de type filmographique?",null,null,null,null,null,null,null,"1. S'il n'y avait pas de relation entre le type de présentation et l'intérêt dans la matière, combien d'étudiants voudraient en savoir plus dans le cas d'une présentation de type filmographique?",null,null,null,null,null,null,null,"1. S'il n'y avait pas de relation entre le type de présentation et l'intérêt dans la matière, combien d'étudiants voudraient en savoir plus dans le cas d'une présentation de type filmographique?",null,null,null,null,null,null,null,"1. S'il n'y avait pas de relation entre le type de présentation et l'intérêt dans la matière, combien d'étudiants voudraient en savoir plus dans le cas d'une présentation de type filmographique?",null,null,null,null,null,null,null,"1. S'il n'y avait pas de relation entre le type de présentation et l'intérêt dans la matière, combien d'étudiants voudraient en savoir plus dans le cas d'une présentation de type filmographique?",null,null,null,null,null,null,null,"1. S'il n'y avait pas de relation entre le type de présentation et l'intérêt dans la matière, combien d'étudiants voudraient en savoir plus dans le cas d'une présentation de type filmographique?",null,null,null,null,null,null,null,"1. S'il n'y avait pas de relation entre le type de présentation et l'intérêt dans la matière, combien d'étudiants voudraient en savoir plus dans le cas d'une présentation de type filmographique?",null,null,null,null,null,null,null,"1. S'il n'y avait pas de relation entre le type de présentation et l'intérêt dans la matière, combien d'étudiants voudraient en savoir plus dans le cas d'une présentation de type filmographique?",null,null,null,null,null,null,null,"1. S'il n'y avait pas de relation entre le type de présentation et l'intérêt dans la matière, combien d'étudiants voudraient en savoir plus dans le cas d'une présentation de type filmographique?",null,null,null,null,null,null,null,"1. S'il n'y avait pas de relation entre le type de présentation et l'intérêt dans la matière, combien d'étudiants voudraient en savoir plus dans le cas d'une présentation de type filmographique?",null,null,null,null,null,null,null,"1. S'il n'y avait pas de relation entre le type de présentation et l'intérêt dans la matière, combien d'étudiants voudraient en savoir plus dans le cas d'une présentation de type filmographique?",null,null,null,null,null,null,null,"1. S'il n'y avait pas de relation entre le type de présentation et l'intérêt dans la matière, combien d'étudiants voudraient en savoir plus dans le cas d'une présentation de type filmographique?",null,null,null,null,null,null,null,"1. S'il n'y avait pas de relation entre le type de présentation et l'intérêt dans la matière, combien d'étudiants voudraient en savoir plus dans le cas d'une présentation de type filmographique?",null,null,null,null,null,null,null,"1. S'il n'y avait pas de relation entre le type de présentation et l'intérêt dans la matière, combien d'étudiants voudraient en savoir plus dans le cas d'une présentation de type filmographique?",null,null,null,null,null,null,null,"1. S'il n'y avait pas de relation entre le type de présentation et l'intérêt dans la matière, combien d'étudiants voudraient en savoir plus dans le cas d'une présentation de type filmographique?",null,null,null,null,null,null,null,"1. S'il n'y avait pas de relation entre le type de présentation et l'intérêt dans la matière, combien d'étudiants voudraient en savoir plus dans le cas d'une présentation de type filmographique?",null,null,null,null,null,null,null,"1. S'il n'y avait pas de relation entre le type de présentation et l'intérêt dans la matière, combien d'étudiants voudraient en savoir plus dans le cas d'une présentation de type filmographique?",null,null,null,null,null,null,null,"1. S'il n'y avait pas de relation entre le type de présentation et l'intérêt dans la matière, combien d'étudiants voudraient en savoir plus dans le cas d'une présentation de type filmographique?",null,null,null,null,null,null,null,"1. S'il n'y avait pas de relation entre le type de présentation et l'intérêt dans la matière, combien d'étudiants voudraient en savoir plus dans le cas d'une présentation de type filmographique?",null,null,null,null,null,null,null,"1. S'il n'y avait pas de relation entre le type de présentation et l'intérêt dans la matière, combien d'étudiants voudraient en savoir plus dans le cas d'une présentation de type filmographique?",null,null,null,null,null,null,null,"1. S'il n'y avait pas de relation entre le type de présentation et l'intérêt dans la matière, combien d'étudiants voudraient en savoir plus dans le cas d'une présentation de type filmographique?",null,null,null,null,null,null,null,"1. S'il n'y avait pas de relation entre le type de présentation et l'intérêt dans la matière, combien d'étudiants voudraient en savoir plus dans le cas d'une présentation de type filmographique?",null,null,null,null,null,null,null,"1. S'il n'y avait pas de relation entre le type de présentation et l'intérêt dans la matière, combien d'étudiants voudraient en savoir plus dans le cas d'une présentation de type filmographique?",null,null,null,null,null,null,null,"1. S'il n'y avait pas de relation entre le type de présentation et l'intérêt dans la matière, combien d'étudiants voudraient en savoir plus dans le cas d'une présentation de type filmographique?",null,null,null,null,null,null,null,"1. S'il n'y avait pas de relation entre le type de présentation et l'intérêt dans la matière, combien d'étudiants voudraient en savoir plus dans le cas d'une présentation de type filmographique?",null,null,null,null,null,null,null,"1. S'il n'y avait pas de relation entre le type de présentation et l'intérêt dans la matière, combien d'étudiants voudraient en savoir plus dans le cas d'une présentation de type filmographique?",null,null,null,null,null,null,null,"1. S'il n'y avait pas de relation entre le type de présentation et l'intérêt dans la matière, combien d'étudiants voudraient en savoir plus dans le cas d'une présentation de type filmographique?",null,null,null,null,null,null,null,"1. S'il n'y avait pas de relation entre le type de présentation et l'intérêt dans la matière, combien d'étudiants voudraient en savoir plus dans le cas d'une présentation de type filmographique?",null,null,null,null,null,null,null,"1. S'il n'y avait pas de relation entre le type de présentation et l'intérêt dans la matière, combien d'étudiants voudraient en savoir plus dans le cas d'une présentation de type filmographique?",null,null,null,null,null,null,null,"1. S'il n'y avait pas de relation entre le type de présentation et l'intérêt dans la matière, combien d'étudiants voudraient en savoir plus dans le cas d'une présentation de type filmographique?",null,null,null,null,null,null,null,"1. S'il n'y avait pas de relation entre le type de présentation et l'intérêt dans la matière, combien d'étudiants voudraient en savoir plus dans le cas d'une présentation de type filmographique?",null,null,null,null,null,null,null,"1. S'il n'y avait pas de relation entre le type de présentation et l'intérêt dans la matière, combien d'étudiants voudraient en savoir plus dans le cas d'une présentation de type filmographique?",null,null,null,null,null,null,null,"1. S'il n'y avait pas de relation entre le type de présentation et l'intérêt dans la matière, combien d'étudiants voudraient en savoir plus dans le cas d'une présentation de type filmographique?",null,null,null,null,null,null,null,"1. S'il n'y avait pas de relation entre le type de présentation et l'intérêt dans la matière, combien d'étudiants voudraient en savoir plus dans le cas d'une présentation de type filmographique?",null,null,null,null,null,null,null,"1. S'il n'y avait pas de relation entre le type de présentation et l'intérêt dans la matière, combien d'étudiants voudraient en savoir plus dans le cas d'une présentation de type filmographique?",null,null,null,null,null,null,null,"1. S'il n'y avait pas de relation entre le type de présentation et l'intérêt dans la matière, combien d'étudiants voudraient en savoir plus dans le cas d'une présentation de type filmographique?",null,null,null,null,null,null,null,"1. S'il n'y avait pas de relation entre le type de présentation et l'intérêt dans la matière, combien d'étudiants voudraient en savoir plus dans le cas d'une présentation de type filmographique?",null,null,null,null,null,null,null,"1. S'il n'y avait pas de relation entre le type de présentation et l'intérêt dans la matière, combien d'étudiants voudraient en savoir plus dans le cas d'une présentation de type filmographique?",null,null,null,null,null,null,null,"1. S'il n'y avait pas de relation entre le type de présentation et l'intérêt dans la matière, combien d'étudiants voudraient en savoir plus dans le cas d'une présentation de type filmographique?",null,null,null,null,null,null,null,"1. S'il n'y avait pas de relation entre le type de présentation et l'intérêt dans la matière, combien d'étudiants voudraient en savoir plus dans le cas d'une présentation de type filmographique?",null,null,null,null,null,null,null,"1. S'il n'y avait pas de relation entre le type de présentation et l'intérêt dans la matière, combien d'étudiants voudraient en savoir plus dans le cas d'une présentation de type filmographique?",null,null,null,null,null,null,null,"1. S'il n'y avait pas de relation entre le type de présentation et l'intérêt dans la matière, combien d'étudiants voudraient en savoir plus dans le cas d'une présentation de type filmographique?",null,null,null,null,null,null,null,"1. S'il n'y avait pas de relation entre le type de présentation et l'intérêt dans la matière, combien d'étudiants voudraient en savoir plus dans le cas d'une présentation de type filmographique?",null,null,null,null,null,null,null,"1. S'il n'y avait pas de relation entre le type de présentation et l'intérêt dans la matière, combien d'étudiants voudraient en savoir plus dans le cas d'une présentation de type filmographique?",null,null,null,null,null,null,null,"1. S'il n'y avait pas de relation entre le type de présentation et l'intérêt dans la matière, combien d'étudiants voudraient en savoir plus dans le cas d'une présentation de type filmographique?",null,null,null,null,null,null,null,"1. S'il n'y avait pas de relation entre le type de présentation et l'intérêt dans la matière, combien d'étudiants voudraient en savoir plus dans le cas d'une présentation de type filmographique?",null,null,null,null,null,null,null,"1. S'il n'y avait pas de relation entre le type de présentation et l'intérêt dans la matière, combien d'étudiants voudraient en savoir plus dans le cas d'une présentation de type filmographique?",null,null,null,null,null,null,null,"1. S'il n'y avait pas de relation entre le type de présentation et l'intérêt dans la matière, combien d'étudiants voudraient en savoir plus dans le cas d'une présentation de type filmographique?",null,null,null,null,null,null,null,"1. S'il n'y avait pas de relation entre le type de présentation et l'intérêt dans la matière, combien d'étudiants voudraient en savoir plus dans le cas d'une présentation de type filmographique?",null,null,null,null,null,null,null,"1. S'il n'y avait pas de relation entre le type de présentation et l'intérêt dans la matière, combien d'étudiants voudraient en savoir plus dans le cas d'une présentation de type filmographique?",null,null,null,null,null,null,null,"1. S'il n'y avait pas de relation entre le type de présentation et l'intérêt dans la matière, combien d'étudiants voudraient en savoir plus dans le cas d'une présentation de type filmographique?",null,null,null,null,null,null,null,"1. S'il n'y avait pas de relation entre le type de présentation et l'intérêt dans la matière, combien d'étudiants voudraient en savoir plus dans le cas d'une présentation de type filmographique?",null,null,null,null,null,null,null,"1. S'il n'y avait pas de relation entre le type de présentation et l'intérêt dans la matière, combien d'étudiants voudraient en savoir plus dans le cas d'une présentation de type filmographique?",null,null,null,null,null,null,null,"1. S'il n'y avait pas de relation entre le type de présentation et l'intérêt dans la matière, combien d'étudiants voudraient en savoir plus dans le cas d'une présentation de type filmographique?",null,null,null,null,null,null,null,"1. S'il n'y avait pas de relation entre le type de présentation et l'intérêt dans la matière, combien d'étudiants voudraient en savoir plus dans le cas d'une présentation de type filmographique?",null,null,null,null,null,null,null,"1. S'il n'y avait pas de relation entre le type de présentation et l'intérêt dans la matière, combien d'étudiants voudraient en savoir plus dans le cas d'une présentation de type filmographique?",null,null,null,null,null,null,null,"1. S'il n'y avait pas de relation entre le type de présentation et l'intérêt dans la matière, combien d'étudiants voudraient en savoir plus dans le cas d'une présentation de type filmographique?",null,null,null,null,null,null,null,"1. S'il n'y avait pas de relation entre le type de présentation et l'intérêt dans la matière, combien d'étudiants voudraient en savoir plus dans le cas d'une présentation de type filmographique?",null,null,null,null,null,null,null,"1. S'il n'y avait pas de relation entre le type de présentation et l'intérêt dans la matière, combien d'étudiants voudraient en savoir plus dans le cas d'une présentation de type filmographique?",null,null,null,null,null,null,null,"1. S'il n'y avait pas de relation entre le type de présentation et l'intérêt dans la matière, combien d'étudiants voudraient en savoir plus dans le cas d'une présentation de type filmographique?",null,null,null,null,null,null,null,"1. S'il n'y avait pas de relation entre le type de présentation et l'intérêt dans la matière, combien d'étudiants voudraient en savoir plus dans le cas d'une présentation de type filmographique?",null,null,null,null,null,null,null,"1. S'il n'y avait pas de relation entre le type de présentation et l'intérêt dans la matière, combien d'étudiants voudraient en savoir plus dans le cas d'une présentation de type filmographique?",null,null,null,null,null,null,null,"1. S'il n'y avait pas de relation entre le type de présentation et l'intérêt dans la matière, combien d'étudiants voudraient en savoir plus dans le cas d'une présentation de type filmographique?",null,null,null,null,null,null,null,"1. S'il n'y avait pas de relation entre le type de présentation et l'intérêt dans la matière, combien d'étudiants voudraient en savoir plus dans le cas d'une présentation de type filmographique?",null,null,null,null,null,null,null,"1. S'il n'y avait pas de relation entre le type de présentation et l'intérêt dans la matière, combien d'étudiants voudraient en savoir plus dans le cas d'une présentation de type filmographique?",null,null,null,null,null,null,null,"1. S'il n'y avait pas de relation entre le type de présentation et l'intérêt dans la matière, combien d'étudiants voudraient en savoir plus dans le cas d'une présentation de type filmographique?",null,null,null,null,null,null,null,"1. S'il n'y avait pas de relation entre le type de présentation et l'intérêt dans la matière, combien d'étudiants voudraient en savoir plus dans le cas d'une présentation de type filmographique?",null,null,null,null,null,null,null,"1. S'il n'y avait pas de relation entre le type de présentation et l'intérêt dans la matière, combien d'étudiants voudraient en savoir plus dans le cas d'une présentation de type filmographique?",null,null,null,null,null,null,null,"1. S'il n'y avait pas de relation entre le type de présentation et l'intérêt dans la matière, combien d'étudiants voudraient en savoir plus dans le cas d'une présentation de type filmographique?",null,null,null,null,null,null,null,"1. S'il n'y avait pas de relation entre le type de présentation et l'intérêt dans la matière, combien d'étudiants voudraient en savoir plus dans le cas d'une présentation de type filmographique?",null,null,null,null,null,null,null,"1. S'il n'y avait pas de relation entre le type de présentation et l'intérêt dans la matière, combien d'étudiants voudraient en savoir plus dans le cas d'une présentation de type filmographique?",null,null,null,null,null,null,null,"1. S'il n'y avait pas de relation entre le type de présentation et l'intérêt dans la matière, combien d'étudiants voudraient en savoir plus dans le cas d'une présentation de type filmographique?",null,null,null,null,null,null,null,"1. S'il n'y avait pas de relation entre le type de présentation et l'intérêt dans la matière, combien d'étudiants voudraient en savoir plus dans le cas d'une présentation de type filmographique?",null,null,null,null,null,null,null,"1. S'il n'y avait pas de relation entre le type de présentation et l'intérêt dans la matière, combien d'étudiants voudraient en savoir plus dans le cas d'une présentation de type filmographique?",null,null,null,null,null,null,null,"1. S'il n'y avait pas de relation entre le type de présentation et l'intérêt dans la matière, combien d'étudiants voudraient en savoir plus dans le cas d'une présentation de type filmographique?",null,null,null,null,null,null,null,"1. S'il n'y avait pas de relation entre le type de présentation et l'intérêt dans la matière, combien d'étudiants voudraient en savoir plus dans le cas d'une présentation de type filmographique?",null,null,null,null,null,null,null,"1. S'il n'y avait pas de relation entre le type de présentation et l'intérêt dans la matière, combien d'étudiants voudraient en savoir plus dans le cas d'une présentation de type filmographique?",null,null,null,null,null,null,null,"1. S'il n'y avait pas de relation entre le type de présentation et l'intérêt dans la matière, combien d'étudiants voudraient en savoir plus dans le cas d'une présentation de type filmographique?",null,null,null,null,null,null,null,"1. S'il n'y avait pas de relation entre le type de présentation et l'intérêt dans la matière, combien d'étudiants voudraient en savoir plus dans le cas d'une présentation de type filmographique?",null,null,null,null,null,null,null,"1. S'il n'y avait pas de relation entre le type de présentation et l'intérêt dans la matière, combien d'étudiants voudraient en savoir plus dans le cas d'une présentation de type filmographique?",null,null,null,null,null,null,null,"1. S'il n'y avait pas de relation entre le type de présentation et l'intérêt dans la matière, combien d'étudiants voudraient en savoir plus dans le cas d'une présentation de type filmographique?",null,null,null,null,null,null,null,"1. S'il n'y avait pas de relation entre le type de présentation et l'intérêt dans la matière, combien d'étudiants voudraient en savoir plus dans le cas d'une présentation de type filmographique?",null,null,null,null,null,null,null,"1. S'il n'y avait pas de relation entre le type de présentation et l'intérêt dans la matière, combien d'étudiants voudraient en savoir plus dans le cas d'une présentation de type filmographique?",null,null,null,null,null,null,null,"1. S'il n'y avait pas de relation entre le type de présentation et l'intérêt dans la matière, combien d'étudiants voudraient en savoir plus dans le cas d'une présentation de type filmographique?",null,null,null,null,null,null,null,"1. S'il n'y avait pas de relation entre le type de présentation et l'intérêt dans la matière, combien d'étudiants voudraient en savoir plus dans le cas d'une présentation de type filmographique?",null,null,null,null,null,null,null,"1. S'il n'y avait pas de relation entre le type de présentation et l'intérêt dans la matière, combien d'étudiants voudraient en savoir plus dans le cas d'une présentation de type filmographique?",null,null,null,null,null,null,null,"1. S'il n'y avait pas de relation entre le type de présentation et l'intérêt dans la matière, combien d'étudiants voudraient en savoir plus dans le cas d'une présentation de type filmographique?",null,null,null,null,null,null,null,"1. S'il n'y avait pas de relation entre le type de présentation et l'intérêt dans la matière, combien d'étudiants voudraient en savoir plus dans le cas d'une présentation de type filmographique?",null,null,null,null,null,null,null,"1. S'il n'y avait pas de relation entre le type de présentation et l'intérêt dans la matière, combien d'étudiants voudraient en savoir plus dans le cas d'une présentation de type filmographique?",null,null,null,null,null,null,null,"1. S'il n'y avait pas de relation entre le type de présentation et l'intérêt dans la matière, combien d'étudiants voudraient en savoir plus dans le cas d'une présentation de type filmographique?",null,null,null,null,null,null,null,"1. S'il n'y avait pas de relation entre le type de présentation et l'intérêt dans la matière, combien d'étudiants voudraient en savoir plus dans le cas d'une présentation de type filmographique?",null,null,null,null,null,null,null,"1. S'il n'y avait pas de relation entre le type de présentation et l'intérêt dans la matière, combien d'étudiants voudraient en savoir plus dans le cas d'une présentation de type filmographique?",null,null,null,null,null,null,null,"1. S'il n'y avait pas de relation entre le type de présentation et l'intérêt dans la matière, combien d'étudiants voudraient en savoir plus dans le cas d'une présentation de type filmographique?",null,null,null,null,null,null,null,"1. S'il n'y avait pas de relation entre le type de présentation et l'intérêt dans la matière, combien d'étudiants voudraient en savoir plus dans le cas d'une présentation de type filmographique?",null,null,null,null,null,null,null,"1. S'il n'y avait pas de relation entre le type de présentation et l'intérêt dans la matière, combien d'étudiants voudraient en savoir plus dans le cas d'une présentation de type filmographique?",null,null,null,null,null,null,null,"1. S'il n'y avait pas de relation entre le type de présentation et l'intérêt dans la matière, combien d'étudiants voudraient en savoir plus dans le cas d'une présentation de type filmographique?",null,null,null,null,null,null,null,"1. S'il n'y avait pas de relation entre le type de présentation et l'intérêt dans la matière, combien d'étudiants voudraient en savoir plus dans le cas d'une présentation de type filmographique?",null,null,null,null,null,null,null,"1. S'il n'y avait pas de relation entre le type de présentation et l'intérêt dans la matière, combien d'étudiants voudraient en savoir plus dans le cas d'une présentation de type filmographique?",null,null,null,null,null,null,null,"1. S'il n'y avait pas de relation entre le type de présentation et l'intérêt dans la matière, combien d'étudiants voudraient en savoir plus dans le cas d'une présentation de type filmographique?",null,null,null,null,null,null,null,"1. S'il n'y avait pas de relation entre le type de présentation et l'intérêt dans la matière, combien d'étudiants voudraient en savoir plus dans le cas d'une présentation de type filmographique?",null,null,null,null,null,null,null,"1. S'il n'y avait pas de relation entre le type de présentation et l'intérêt dans la matière, combien d'étudiants voudraient en savoir plus dans le cas d'une présentation de type filmographique?",null,null,null,null,null,null,null,"1. S'il n'y avait pas de relation entre le type de présentation et l'intérêt dans la matière, combien d'étudiants voudraient en savoir plus dans le cas d'une présentation de type filmographique?",null,null,null,null,null,null,null,"1. S'il n'y avait pas de relation entre le type de présentation et l'intérêt dans la matière, combien d'étudiants voudraient en savoir plus dans le cas d'une présentation de type filmographique?",null,null,null,null,null,null,null,"1. S'il n'y avait pas de relation entre le type de présentation et l'intérêt dans la matière, combien d'étudiants voudraient en savoir plus dans le cas d'une présentation de type filmographique?",null,null,null,null,null,null,null,"1. S'il n'y avait pas de relation entre le type de présentation et l'intérêt dans la matière, combien d'étudiants voudraient en savoir plus dans le cas d'une présentation de type filmographique?",null,null,null,null,null,null,null,"1. S'il n'y avait pas de relation entre le type de présentation et l'intérêt dans la matière, combien d'étudiants voudraient en savoir plus dans le cas d'une présentation de type filmographique?",null,null,null,null,null,null,null,"1. S'il n'y avait pas de relation entre le type de présentation et l'intérêt dans la matière, combien d'étudiants voudraient en savoir plus dans le cas d'une présentation de type filmographique?",null,null,null,null,null,null,null,"1. S'il n'y avait pas de relation entre le type de présentation et l'intérêt dans la matière, combien d'étudiants voudraient en savoir plus dans le cas d'une présentation de type filmographique?",null,null,null,null,null,null,null,"1. S'il n'y avait pas de relation entre le type de présentation et l'intérêt dans la matière, combien d'étudiants voudraient en savoir plus dans le cas d'une présentation de type filmographique?",null,null,null,null,null,null,null,"1. S'il n'y avait pas de relation entre le type de présentation et l'intérêt dans la matière, combien d'étudiants voudraient en savoir plus dans le cas d'une présentation de type filmographique?",null,null,null,null,null,null,null,"1. S'il n'y avait pas de relation entre le type de présentation et l'intérêt dans la matière, combien d'étudiants voudraient en savoir plus dans le cas d'une présentation de type filmographique?",null,null,null,null,null,null,null,"1. S'il n'y avait pas de relation entre le type de présentation et l'intérêt dans la matière, combien d'étudiants voudraient en savoir plus dans le cas d'une présentation de type filmographique?",null,null,null,null,null,null,null,"1. S'il n'y avait pas de relation entre le type de présentation et l'intérêt dans la matière, combien d'étudiants voudraient en savoir plus dans le cas d'une présentation de type filmographique?",null,null,null,null,null,null,null,"1. S'il n'y avait pas de relation entre le type de présentation et l'intérêt dans la matière, combien d'étudiants voudraient en savoir plus dans le cas d'une présentation de type filmographique?",null,null,null,null,null,null,null,"1. S'il n'y avait pas de relation entre le type de présentation et l'intérêt dans la matière, combien d'étudiants voudraient en savoir plus dans le cas d'une présentation de type filmographique?",null,null,null,null,null,null,null,"1. S'il n'y avait pas de relation entre le type de présentation et l'intérêt dans la matière, combien d'étudiants voudraient en savoir plus dans le cas d'une présentation de type filmographique?",null,null,null,null,null,null,null,"1. S'il n'y avait pas de relation entre le type de présentation et l'intérêt dans la matière, combien d'étudiants voudraient en savoir plus dans le cas d'une présentation de type filmographique?",null,null,null,null,null,null,null,"1. S'il n'y avait pas de relation entre le type de présentation et l'intérêt dans la matière, combien d'étudiants voudraient en savoir plus dans le cas d'une présentation de type filmographique?",null,null,null,null,null,null,null,"1. S'il n'y avait pas de relation entre le type de présentation et l'intérêt dans la matière, combien d'étudiants voudraient en savoir plus dans le cas d'une présentation de type filmographique?",null,null,null,null,null,null,null,"1. S'il n'y avait pas de relation entre le type de présentation et l'intérêt dans la matière, combien d'étudiants voudraient en savoir plus dans le cas d'une présentation de type filmographique?",null,null,null,null,null,null,null,"1. S'il n'y avait pas de relation entre le type de présentation et l'intérêt dans la matière, combien d'étudiants voudraient en savoir plus dans le cas d'une présentation de type filmographique?",null,null,null,null,null,null,null,"1. S'il n'y avait pas de relation entre le type de présentation et l'intérêt dans la matière, combien d'étudiants voudraient en savoir plus dans le cas d'une présentation de type filmographique?",null,null,null,null,null,null,null,"1. S'il n'y avait pas de relation entre le type de présentation et l'intérêt dans la matière, combien d'étudiants voudraient en savoir plus dans le cas d'une présentation de type filmographique?",null,null,null,null,null,null,null,"1. S'il n'y avait pas de relation entre le type de présentation et l'intérêt dans la matière, combien d'étudiants voudraient en savoir plus dans le cas d'une présentation de type filmographique?",null,null,null,null,null,null,null,"1. S'il n'y avait pas de relation entre le type de présentation et l'intérêt dans la matière, combien d'étudiants voudraient en savoir plus dans le cas d'une présentation de type filmographique?",null,null,null,null,null,null,null,"1. S'il n'y avait pas de relation entre le type de présentation et l'intérêt dans la matière, combien d'étudiants voudraient en savoir plus dans le cas d'une présentation de type filmographique?",null,null,null,null,null,null,null,"1. S'il n'y avait pas de relation entre le type de présentation et l'intérêt dans la matière, combien d'étudiants voudraient en savoir plus dans le cas d'une présentation de type filmographique?",null,null,null,null,null,null,null,"1. S'il n'y avait pas de relation entre le type de présentation et l'intérêt dans la matière, combien d'étudiants voudraient en savoir plus dans le cas d'une présentation de type filmographique?",null,null,null,null,null,null,null,"1. S'il n'y avait pas de relation entre le type de présentation et l'intérêt dans la matière, combien d'étudiants voudraient en savoir plus dans le cas d'une présentation de type filmographique?",null,null,null,null,null,null,null,"1. S'il n'y avait pas de relation entre le type de présentation et l'intérêt dans la matière, combien d'étudiants voudraient en savoir plus dans le cas d'une présentation de type filmographique?",null,null,null,null,null,null,null,"1. S'il n'y avait pas de relation entre le type de présentation et l'intérêt dans la matière, combien d'étudiants voudraient en savoir plus dans le cas d'une présentation de type filmographique?",null,null,null,null,null,null,null,"1. S'il n'y avait pas de relation entre le type de présentation et l'intérêt dans la matière, combien d'étudiants voudraient en savoir plus dans le cas d'une présentation de type filmographique?",null,null,null,null,null,null,null,"1. S'il n'y avait pas de relation entre le type de présentation et l'intérêt dans la matière, combien d'étudiants voudraient en savoir plus dans le cas d'une présentation de type filmographique?",null,null,null,null,null,null,null,"1. S'il n'y avait pas de relation entre le type de présentation et l'intérêt dans la matière, combien d'étudiants voudraient en savoir plus dans le cas d'une présentation de type filmographique?",null,null,null,null,null,null,null,"1. S'il n'y avait pas de relation entre le type de présentation et l'intérêt dans la matière, combien d'étudiants voudraient en savoir plus dans le cas d'une présentation de type filmographique?",null,null,null,null,null,null,null,"1. S'il n'y avait pas de relation entre le type de présentation et l'intérêt dans la matière, combien d'étudiants voudraient en savoir plus dans le cas d'une présentation de type filmographique?",null,null,null,null,null,null,null,"1. S'il n'y avait pas de relation entre le type de présentation et l'intérêt dans la matière, combien d'étudiants voudraient en savoir plus dans le cas d'une présentation de type filmographique?",null,null,null,null,null,null,null,"1. S'il n'y avait pas de relation entre le type de présentation et l'intérêt dans la matière, combien d'étudiants voudraient en savoir plus dans le cas d'une présentation de type filmographique?",null,null,null,null,null,null,null,"1. S'il n'y avait pas de relation entre le type de présentation et l'intérêt dans la matière, combien d'étudiants voudraient en savoir plus dans le cas d'une présentation de type filmographique?",null,null,null,null,null,null,null,"1. S'il n'y avait pas de relation entre le type de présentation et l'intérêt dans la matière, combien d'étudiants voudraient en savoir plus dans le cas d'une présentation de type filmographique?",null,null,null,null,null,null,null,"1. S'il n'y avait pas de relation entre le type de présentation et l'intérêt dans la matière, combien d'étudiants voudraient en savoir plus dans le cas d'une présentation de type filmographique?",null,null,null,null,null,null,null,"1. S'il n'y avait pas de relation entre le type de présentation et l'intérêt dans la matière, combien d'étudiants voudraient en savoir plus dans le cas d'une présentation de type filmographique?",null,null,null,null,null,null,null,"1. S'il n'y avait pas de relation entre le type de présentation et l'intérêt dans la matière, combien d'étudiants voudraient en savoir plus dans le cas d'une présentation de type filmographique?",null,null,null,null,null,null,null,"1. S'il n'y avait pas de relation entre le type de présentation et l'intérêt dans la matière, combien d'étudiants voudraient en savoir plus dans le cas d'une présentation de type filmographique?",null,null,null,null,null,null,null,"1. S'il n'y avait pas de relation entre le type de présentation et l'intérêt dans la matière, combien d'étudiants voudraient en savoir plus dans le cas d'une présentation de type filmographique?",null,null,null,null,null,null,null,"1. S'il n'y avait pas de relation entre le type de présentation et l'intérêt dans la matière, combien d'étudiants voudraient en savoir plus dans le cas d'une présentation de type filmographique?",null,null,null,null,null,null,null,"1. S'il n'y avait pas de relation entre le type de présentation et l'intérêt dans la matière, combien d'étudiants voudraient en savoir plus dans le cas d'une présentation de type filmographique?",null,null,null,null,null,null,null,"1. S'il n'y avait pas de relation entre le type de présentation et l'intérêt dans la matière, combien d'étudiants voudraient en savoir plus dans le cas d'une présentation de type filmographique?",null,null,null,null,null,null,null,"1. S'il n'y avait pas de relation entre le type de présentation et l'intérêt dans la matière, combien d'étudiants voudraient en savoir plus dans le cas d'une présentation de type filmographique?",null,null,null,null,null,null,null,"1. S'il n'y avait pas de relation entre le type de présentation et l'intérêt dans la matière, combien d'étudiants voudraient en savoir plus dans le cas d'une présentation de type filmographique?",null,null,null,null,null,null,null,"1. S'il n'y avait pas de relation entre le type de présentation et l'intérêt dans la matière, combien d'étudiants voudraient en savoir plus dans le cas d'une présentation de type filmographique?",null,null,null,null,null,null,null,"1. S'il n'y avait pas de relation entre le type de présentation et l'intérêt dans la matière, combien d'étudiants voudraient en savoir plus dans le cas d'une présentation de type filmographique?",null,null,null,null,null,null,null,"1. S'il n'y avait pas de relation entre le type de présentation et l'intérêt dans la matière, combien d'étudiants voudraient en savoir plus dans le cas d'une présentation de type filmographique?",null,null,null,null,null,null,null,"1. S'il n'y avait pas de relation entre le type de présentation et l'intérêt dans la matière, combien d'étudiants voudraient en savoir plus dans le cas d'une présentation de type filmographique?",null,null,null,null,null,null,null,"1. S'il n'y avait pas de relation entre le type de présentation et l'intérêt dans la matière, combien d'étudiants voudraient en savoir plus dans le cas d'une présentation de type filmographique?",null,null,null,null,null,null,null,"1. S'il n'y avait pas de relation entre le type de présentation et l'intérêt dans la matière, combien d'étudiants voudraient en savoir plus dans le cas d'une présentation de type filmographique?",null,null,null,null,null,null,null,"1. S'il n'y avait pas de relation entre le type de présentation et l'intérêt dans la matière, combien d'étudiants voudraient en savoir plus dans le cas d'une présentation de type filmographique?",null,null,null,null,null,null,null,"1. S'il n'y avait pas de relation entre le type de présentation et l'intérêt dans la matière, combien d'étudiants voudraient en savoir plus dans le cas d'une présentation de type filmographique?",null,null,null,null,null,null,null,"1. S'il n'y avait pas de relation entre le type de présentation et l'intérêt dans la matière, combien d'étudiants voudraient en savoir plus dans le cas d'une présentation de type filmographique?",null,null,null,null,null,null,null,"1. S'il n'y avait pas de relation entre le type de présentation et l'intérêt dans la matière, combien d'étudiants voudraient en savoir plus dans le cas d'une présentation de type filmographique?",null,null,null,null,null,null,null,"1. S'il n'y avait pas de relation entre le type de présentation et l'intérêt dans la matière, combien d'étudiants voudraient en savoir plus dans le cas d'une présentation de type filmographique?",null,null,null,null,null,null,null,"1. S'il n'y avait pas de relation entre le type de présentation et l'intérêt dans la matière, combien d'étudiants voudraient en savoir plus dans le cas d'une présentation de type filmographique?",null,null,null,null,null,null,null,"1. S'il n'y avait pas de relation entre le type de présentation et l'intérêt dans la matière, combien d'étudiants voudraient en savoir plus dans le cas d'une présentation de type filmographique?",null,null,null,null,null,null,null,"1. S'il n'y avait pas de relation entre le type de présentation et l'intérêt dans la matière, combien d'étudiants voudraient en savoir plus dans le cas d'une présentation de type filmographique?",null,null,null,null,null,null,null,"1. S'il n'y avait pas de relation entre le type de présentation et l'intérêt dans la matière, combien d'étudiants voudraient en savoir plus dans le cas d'une présentation de type filmographique?",null,null,null,null,null,null,null,"1. S'il n'y avait pas de relation entre le type de présentation et l'intérêt dans la matière, combien d'étudiants voudraient en savoir plus dans le cas d'une présentation de type filmographique?",null,null,null,null,null,null,null,"1. S'il n'y avait pas de relation entre le type de présentation et l'intérêt dans la matière, combien d'étudiants voudraient en savoir plus dans le cas d'une présentation de type filmographique?",null,null,null,null,null,null,null,"1. S'il n'y avait pas de relation entre le type de présentation et l'intérêt dans la matière, combien d'étudiants voudraient en savoir plus dans le cas d'une présentation de type filmographique?",null,null,null,null,null,null,null,"1. S'il n'y avait pas de relation entre le type de présentation et l'intérêt dans la matière, combien d'étudiants voudraient en savoir plus dans le cas d'une présentation de type filmographique?",null,null,null,null,null,null,null,"1. S'il n'y avait pas de relation entre le type de présentation et l'intérêt dans la matière, combien d'étudiants voudraient en savoir plus dans le cas d'une présentation de type filmographique?",null,null,null,null,null,null,null,"1. S'il n'y avait pas de relation entre le type de présentation et l'intérêt dans la matière, combien d'étudiants voudraient en savoir plus dans le cas d'une présentation de type filmographique?",null,null,null,null,null,null,null,"1. S'il n'y avait pas de relation entre le type de présentation et l'intérêt dans la matière, combien d'étudiants voudraient en savoir plus dans le cas d'une présentation de type filmographique?",null,null,null,null,null,null,null,"1. S'il n'y avait pas de relation entre le type de présentation et l'intérêt dans la matière, combien d'étudiants voudraient en savoir plus dans le cas d'une présentation de type filmographique?",null,null,null,null,null,null,null,"1. S'il n'y avait pas de relation entre le type de présentation et l'intérêt dans la matière, combien d'étudiants voudraient en savoir plus dans le cas d'une présentation de type filmographique?",null,null,null,null,null,null,null,"1. S'il n'y avait pas de relation entre le type de présentation et l'intérêt dans la matière, combien d'étudiants voudraient en savoir plus dans le cas d'une présentation de type filmographique?",null,null,null,null,null,null,null,"1. S'il n'y avait pas de relation entre le type de présentation et l'intérêt dans la matière, combien d'étudiants voudraient en savoir plus dans le cas d'une présentation de type filmographique?",null,null,null,null,null,null,null,"1. S'il n'y avait pas de relation entre le type de présentation et l'intérêt dans la matière, combien d'étudiants voudraient en savoir plus dans le cas d'une présentation de type filmographique?",null,null,null,null,null,null,null,"1. S'il n'y avait pas de relation entre le type de présentation et l'intérêt dans la matière, combien d'étudiants voudraient en savoir plus dans le cas d'une présentation de type filmographique?",null,null,null,null,null,null,null,"1. S'il n'y avait pas de relation entre le type de présentation et l'intérêt dans la matière, combien d'étudiants voudraient en savoir plus dans le cas d'une présentation de type filmographique?",null,null,null,null,null,null,null,"1. S'il n'y avait pas de relation entre le type de présentation et l'intérêt dans la matière, combien d'étudiants voudraient en savoir plus dans le cas d'une présentation de type filmographique?",null,null,null,null,null,null,null,"1. S'il n'y avait pas de relation entre le type de présentation et l'intérêt dans la matière, combien d'étudiants voudraient en savoir plus dans le cas d'une présentation de type filmographique?",null,null,null,null,null,null,null,"1. S'il n'y avait pas de relation entre le type de présentation et l'intérêt dans la matière, combien d'étudiants voudraient en savoir plus dans le cas d'une présentation de type filmographique?",null,null,null,null,null,null,null,"1. S'il n'y avait pas de relation entre le type de présentation et l'intérêt dans la matière, combien d'étudiants voudraient en savoir plus dans le cas d'une présentation de type filmographique?",null,null,null,null,null,null,null,"1. S'il n'y avait pas de relation entre le type de présentation et l'intérêt dans la matière, combien d'étudiants voudraient en savoir plus dans le cas d'une présentation de type filmographique?",null,null,null,null,null,null,null,"1. S'il n'y avait pas de relation entre le type de présentation et l'intérêt dans la matière, combien d'étudiants voudraient en savoir plus dans le cas d'une présentation de type filmographique?",null,null,null,null,null,null,null,"1. S'il n'y avait pas de relation entre le type de présentation et l'intérêt dans la matière, combien d'étudiants voudraient en savoir plus dans le cas d'une présentation de type filmographique?",null,null,null,null,null,null,null,"1. S'il n'y avait pas de relation entre le type de présentation et l'intérêt dans la matière, combien d'étudiants voudraient en savoir plus dans le cas d'une présentation de type filmographique?",null,null,null,null,null,null,null,"1. S'il n'y avait pas de relation entre le type de présentation et l'intérêt dans la matière, combien d'étudiants voudraient en savoir plus dans le cas d'une présentation de type filmographique?",null,null,null,null,null,null,null,"1. S'il n'y avait pas de relation entre le type de présentation et l'intérêt dans la matière, combien d'étudiants voudraient en savoir plus dans le cas d'une présentation de type filmographique?",null,null,null,null,null,null,null,"1. S'il n'y avait pas de relation entre le type de présentation et l'intérêt dans la matière, combien d'étudiants voudraient en savoir plus dans le cas d'une présentation de type filmographique?",null,null,null,null,null,null,null,"1. S'il n'y avait pas de relation entre le type de présentation et l'intérêt dans la matière, combien d'étudiants voudraient en savoir plus dans le cas d'une présentation de type filmographique?",null,null,null,null,null,null,null,"1. S'il n'y avait pas de relation entre le type de présentation et l'intérêt dans la matière, combien d'étudiants voudraient en savoir plus dans le cas d'une présentation de type filmographique?",null,null,null,null,null,null,null,"1. S'il n'y avait pas de relation entre le type de présentation et l'intérêt dans la matière, combien d'étudiants voudraient en savoir plus dans le cas d'une présentation de type filmographique?",null,null,null,null,null,null,null,"1. S'il n'y avait pas de relation entre le type de présentation et l'intérêt dans la matière, combien d'étudiants voudraient en savoir plus dans le cas d'une présentation de type filmographique?",null,null,null,null,null,null,null,"1. S'il n'y avait pas de relation entre le type de présentation et l'intérêt dans la matière, combien d'étudiants voudraient en savoir plus dans le cas d'une présentation de type filmographique?",null,null,null,null,null,null,null,"1. S'il n'y avait pas de relation entre le type de présentation et l'intérêt dans la matière, combien d'étudiants voudraient en savoir plus dans le cas d'une présentation de type filmographique?",null,null,null,null,null,null,null,"1. S'il n'y avait pas de relation entre le type de présentation et l'intérêt dans la matière, combien d'étudiants voudraient en savoir plus dans le cas d'une présentation de type filmographique?",null,null,null,null,null,null,null,"1. S'il n'y avait pas de relation entre le type de présentation et l'intérêt dans la matière, combien d'étudiants voudraient en savoir plus dans le cas d'une présentation de type filmographique?",null,null,null,null,null,null,null,"1. S'il n'y avait pas de relation entre le type de présentation et l'intérêt dans la matière, combien d'étudiants voudraient en savoir plus dans le cas d'une présentation de type filmographique?",null,null,null,null,null,null,null,"1. S'il n'y avait pas de relation entre le type de présentation et l'intérêt dans la matière, combien d'étudiants voudraient en savoir plus dans le cas d'une présentation de type filmographique?",null,null,null,null,null,null,null,"1. S'il n'y avait pas de relation entre le type de présentation et l'intérêt dans la matière, combien d'étudiants voudraient en savoir plus dans le cas d'une présentation de type filmographique?",null,null,null,null,null,null,null,"1. S'il n'y avait pas de relation entre le type de présentation et l'intérêt dans la matière, combien d'étudiants voudraient en savoir plus dans le cas d'une présentation de type filmographique?",null,null,null,null,null,null,null,"1. S'il n'y avait pas de relation entre le type de présentation et l'intérêt dans la matière, combien d'étudiants voudraient en savoir plus dans le cas d'une présentation de type filmographique?",null,null,null,null,null,null,null,"1. S'il n'y avait pas de relation entre le type de présentation et l'intérêt dans la matière, combien d'étudiants voudraient en savoir plus dans le cas d'une présentation de type filmographique?",null,null,null,null,null,null,null,"1. S'il n'y avait pas de relation entre le type de présentation et l'intérêt dans la matière, combien d'étudiants voudraient en savoir plus dans le cas d'une présentation de type filmographique?",null,null,null,null,null,null,null,"1. S'il n'y avait pas de relation entre le type de présentation et l'intérêt dans la matière, combien d'étudiants voudraient en savoir plus dans le cas d'une présentation de type filmographique?",null,null,null,null,null,null,null,"1. S'il n'y avait pas de relation entre le type de présentation et l'intérêt dans la matière, combien d'étudiants voudraient en savoir plus dans le cas d'une présentation de type filmographique?",null,null,null,null,null,null,null,"1. S'il n'y avait pas de relation entre le type de présentation et l'intérêt dans la matière, combien d'étudiants voudraient en savoir plus dans le cas d'une présentation de type filmographique?",null,null,null,null,null,null,null,"1. S'il n'y avait pas de relation entre le type de présentation et l'intérêt dans la matière, combien d'étudiants voudraient en savoir plus dans le cas d'une présentation de type filmographique?",null,null,null,null,null,null,null,"1. S'il n'y avait pas de relation entre le type de présentation et l'intérêt dans la matière, combien d'étudiants voudraient en savoir plus dans le cas d'une présentation de type filmographique?",null,null,null,null,null,null,null,"1. S'il n'y avait pas de relation entre le type de présentation et l'intérêt dans la matière, combien d'étudiants voudraient en savoir plus dans le cas d'une présentation de type filmographique?",null,null,null,null,null,null,null,"1. S'il n'y avait pas de relation entre le type de présentation et l'intérêt dans la matière, combien d'étudiants voudraient en savoir plus dans le cas d'une présentation de type filmographique?",null,null,null,null,null,null,null,"1. S'il n'y avait pas de relation entre le type de présentation et l'intérêt dans la matière, combien d'étudiants voudraient en savoir plus dans le cas d'une présentation de type filmographique?",null,null,null,null,null,null,null,"1. S'il n'y avait pas de relation entre le type de présentation et l'intérêt dans la matière, combien d'étudiants voudraient en savoir plus dans le cas d'une présentation de type filmographique?",null,null,null,null,null,null,null,"1. S'il n'y avait pas de relation entre le type de présentation et l'intérêt dans la matière, combien d'étudiants voudraient en savoir plus dans le cas d'une présentation de type filmographique?",null,null,null,null,null,null,null,"1. S'il n'y avait pas de relation entre le type de présentation et l'intérêt dans la matière, combien d'étudiants voudraient en savoir plus dans le cas d'une présentation de type filmographique?",null,null,null,null,null,null,null,"1. S'il n'y avait pas de relation entre le type de présentation et l'intérêt dans la matière, combien d'étudiants voudraient en savoir plus dans le cas d'une présentation de type filmographique?",null,null,null,null,null,null,null,"1. S'il n'y avait pas de relation entre le type de présentation et l'intérêt dans la matière, combien d'étudiants voudraient en savoir plus dans le cas d'une présentation de type filmographique?",null,null,null,null,null,null,null,"1. S'il n'y avait pas de relation entre le type de présentation et l'intérêt dans la matière, combien d'étudiants voudraient en savoir plus dans le cas d'une présentation de type filmographique?",null,null,null,null,null,null,null,"1. S'il n'y avait pas de relation entre le type de présentation et l'intérêt dans la matière, combien d'étudiants voudraient en savoir plus dans le cas d'une présentation de type filmographique?",null,null,null,null,null,null,null,"1. S'il n'y avait pas de relation entre le type de présentation et l'intérêt dans la matière, combien d'étudiants voudraient en savoir plus dans le cas d'une présentation de type filmographique?",null,null,null,null,null,null,null,"1. S'il n'y avait pas de relation entre le type de présentation et l'intérêt dans la matière, combien d'étudiants voudraient en savoir plus dans le cas d'une présentation de type filmographique?",null,null,null,null,null,null,null,"1. S'il n'y avait pas de relation entre le type de présentation et l'intérêt dans la matière, combien d'étudiants voudraient en savoir plus dans le cas d'une présentation de type filmographique?",null,null,null,null,null,null,null,"1. S'il n'y avait pas de relation entre le type de présentation et l'intérêt dans la matière, combien d'étudiants voudraient en savoir plus dans le cas d'une présentation de type filmographique?",null,null,null,null,null,null,null,"1. S'il n'y avait pas de relation entre le type de présentation et l'intérêt dans la matière, combien d'étudiants voudraient en savoir plus dans le cas d'une présentation de type filmographique?",null,null,null,null,null,null,null,"1. S'il n'y avait pas de relation entre le type de présentation et l'intérêt dans la matière, combien d'étudiants voudraient en savoir plus dans le cas d'une présentation de type filmographique?",null,null,null,null,null,null,null,"1. S'il n'y avait pas de relation entre le type de présentation et l'intérêt dans la matière, combien d'étudiants voudraient en savoir plus dans le cas d'une présentation de type filmographique?",null,null,null,null,null,null,null,"1. S'il n'y avait pas de relation entre le type de présentation et l'intérêt dans la matière, combien d'étudiants voudraient en savoir plus dans le cas d'une présentation de type filmographique?",null,null,null,null,null,null,null,"1. S'il n'y avait pas de relation entre le type de présentation et l'intérêt dans la matière, combien d'étudiants voudraient en savoir plus dans le cas d'une présentation de type filmographique?",null,null,null,null,null,null,null,"1. S'il n'y avait pas de relation entre le type de présentation et l'intérêt dans la matière, combien d'étudiants voudraient en savoir plus dans le cas d'une présentation de type filmographique?",null,null,null,null,null,null,null,"1. S'il n'y avait pas de relation entre le type de présentation et l'intérêt dans la matière, combien d'étudiants voudraient en savoir plus dans le cas d'une présentation de type filmographique?",null,null,null,null,null,null,null,"1. S'il n'y avait pas de relation entre le type de présentation et l'intérêt dans la matière, combien d'étudiants voudraient en savoir plus dans le cas d'une présentation de type filmographique?",null,null,null,null,null,null,null,"1. S'il n'y avait pas de relation entre le type de présentation et l'intérêt dans la matière, combien d'étudiants voudraient en savoir plus dans le cas d'une présentation de type filmographique?",null,null,null,null,null,null,null,"1. S'il n'y avait pas de relation entre le type de présentation et l'intérêt dans la matière, combien d'étudiants voudraient en savoir plus dans le cas d'une présentation de type filmographique?",null,null,null,null,null,null,null,"1. S'il n'y avait pas de relation entre le type de présentation et l'intérêt dans la matière, combien d'étudiants voudraient en savoir plus dans le cas d'une présentation de type filmographique?",null,null,null,null,null,null,null,"1. S'il n'y avait pas de relation entre le type de présentation et l'intérêt dans la matière, combien d'étudiants voudraient en savoir plus dans le cas d'une présentation de type filmographique?",null,null,null,null,null,null,null,"1. S'il n'y avait pas de relation entre le type de présentation et l'intérêt dans la matière, combien d'étudiants voudraient en savoir plus dans le cas d'une présentation de type filmographique?",null,null,null,null,null,null,null,"1. S'il n'y avait pas de relation entre le type de présentation et l'intérêt dans la matière, combien d'étudiants voudraient en savoir plus dans le cas d'une présentation de type filmographique?",null,null,null,null,null,null,null,"1. S'il n'y avait pas de relation entre le type de présentation et l'intérêt dans la matière, combien d'étudiants voudraient en savoir plus dans le cas d'une présentation de type filmographique?",null,null,null,null,null,null,null,"1. S'il n'y avait pas de relation entre le type de présentation et l'intérêt dans la matière, combien d'étudiants voudraient en savoir plus dans le cas d'une présentation de type filmographique?",null,null,null,null,null,null,null,"1. S'il n'y avait pas de relation entre le type de présentation et l'intérêt dans la matière, combien d'étudiants voudraient en savoir plus dans le cas d'une présentation de type filmographique?",null,null,null,null,null,null,null,"1. S'il n'y avait pas de relation entre le type de présentation et l'intérêt dans la matière, combien d'étudiants voudraient en savoir plus dans le cas d'une présentation de type filmographique?",null,null,null,null,null,null,null,"1. S'il n'y avait pas de relation entre le type de présentation et l'intérêt dans la matière, combien d'étudiants voudraient en savoir plus dans le cas d'une présentation de type filmographique?",null,null,null,null,null,null,null,"1. S'il n'y avait pas de relation entre le type de présentation et l'intérêt dans la matière, combien d'étudiants voudraient en savoir plus dans le cas d'une présentation de type filmographique?",null,null,null,null,null,null,null,"1. S'il n'y avait pas de relation entre le type de présentation et l'intérêt dans la matière, combien d'étudiants voudraient en savoir plus dans le cas d'une présentation de type filmographique?",null,null,null,null,null,null,null,"1. S'il n'y avait pas de relation entre le type de présentation et l'intérêt dans la matière, combien d'étudiants voudraient en savoir plus dans le cas d'une présentation de type filmographique?",null,null,null,null,null,null,null,"1. S'il n'y avait pas de relation entre le type de présentation et l'intérêt dans la matière, combien d'étudiants voudraient en savoir plus dans le cas d'une présentation de type filmographique?",null,null,null,null,null,null,null,"1. S'il n'y avait pas de relation entre le type de présentation et l'intérêt dans la matière, combien d'étudiants voudraient en savoir plus dans le cas d'une présentation de type filmographique?",null,null,null,null,null,null,null,"1. S'il n'y avait pas de relation entre le type de présentation et l'intérêt dans la matière, combien d'étudiants voudraient en savoir plus dans le cas d'une présentation de type filmographique?",null,null,null,null,null,null,null,"1. S'il n'y avait pas de relation entre le type de présentation et l'intérêt dans la matière, combien d'étudiants voudraient en savoir plus dans le cas d'une présentation de type filmographique?",null,null,null,null,null,null,null,"1. S'il n'y avait pas de relation entre le type de présentation et l'intérêt dans la matière, combien d'étudiants voudraient en savoir plus dans le cas d'une présentation de type filmographique?",null,null,null,null,null,null,null,"1. S'il n'y avait pas de relation entre le type de présentation et l'intérêt dans la matière, combien d'étudiants voudraient en savoir plus dans le cas d'une présentation de type filmographique?",null,null,null,null,null,null,null,"1. S'il n'y avait pas de relation entre le type de présentation et l'intérêt dans la matière, combien d'étudiants voudraient en savoir plus dans le cas d'une présentation de type filmographique?",null,null,null,null,null,null,null,"1. S'il n'y avait pas de relation entre le type de présentation et l'intérêt dans la matière, combien d'étudiants voudraient en savoir plus dans le cas d'une présentation de type filmographique?",null,null,null,null,null,null,null,"1. S'il n'y avait pas de relation entre le type de présentation et l'intérêt dans la matière, combien d'étudiants voudraient en savoir plus dans le cas d'une présentation de type filmographique?",null,null,null,null,null,null,null,"1. S'il n'y avait pas de relation entre le type de présentation et l'intérêt dans la matière, combien d'étudiants voudraient en savoir plus dans le cas d'une présentation de type filmographique?",null,null,null,null,null,null,null,"1. S'il n'y avait pas de relation entre le type de présentation et l'intérêt dans la matière, combien d'étudiants voudraient en savoir plus dans le cas d'une présentation de type filmographique?",null,null,null,null,null,null,null,"1. S'il n'y avait pas de relation entre le type de présentation et l'intérêt dans la matière, combien d'étudiants voudraient en savoir plus dans le cas d'une présentation de type filmographique?",null,null,null,null,null,null,null,"1. S'il n'y avait pas de relation entre le type de présentation et l'intérêt dans la matière, combien d'étudiants voudraient en savoir plus dans le cas d'une présentation de type filmographique?",null,null,null,null,null,null,null,"1. S'il n'y avait pas de relation entre le type de présentation et l'intérêt dans la matière, combien d'étudiants voudraient en savoir plus dans le cas d'une présentation de type filmographique?",null,null,null,null,null,null,null,"1. S'il n'y avait pas de relation entre le type de présentation et l'intérêt dans la matière, combien d'étudiants voudraient en savoir plus dans le cas d'une présentation de type filmographique?",null,null,null,null,null,null,null,"1. S'il n'y avait pas de relation entre le type de présentation et l'intérêt dans la matière, combien d'étudiants voudraient en savoir plus dans le cas d'une présentation de type filmographique?",null,null,null,null,null,null,null,"1. S'il n'y avait pas de relation entre le type de présentation et l'intérêt dans la matière, combien d'étudiants voudraient en savoir plus dans le cas d'une présentation de type filmographique?",null,null,null,null,null,null,null,"1. S'il n'y avait pas de relation entre le type de présentation et l'intérêt dans la matière, combien d'étudiants voudraient en savoir plus dans le cas d'une présentation de type filmographique?",null,null,null,null,null,null,null,"1. S'il n'y avait pas de relation entre le type de présentation et l'intérêt dans la matière, combien d'étudiants voudraient en savoir plus dans le cas d'une présentation de type filmographique?",null,null,null,null,null,null,null,"1. S'il n'y avait pas de relation entre le type de présentation et l'intérêt dans la matière, combien d'étudiants voudraient en savoir plus dans le cas d'une présentation de type filmographique?",null,null,null,null,null,null,null,"1. S'il n'y avait pas de relation entre le type de présentation et l'intérêt dans la matière, combien d'étudiants voudraient en savoir plus dans le cas d'une présentation de type filmographique?",null,null,null,null,null,null,null,"1. S'il n'y avait pas de relation entre le type de présentation et l'intérêt dans la matière, combien d'étudiants voudraient en savoir plus dans le cas d'une présentation de type filmographique?",null,null,null,null,null,null,null,"1. S'il n'y avait pas de relation entre le type de présentation et l'intérêt dans la matière, combien d'étudiants voudraient en savoir plus dans le cas d'une présentation de type filmographique?",null,null,null,null,null,null,null,"1. S'il n'y avait pas de relation entre le type de présentation et l'intérêt dans la matière, combien d'étudiants voudraient en savoir plus dans le cas d'une présentation de type filmographique?",null,null,null,null,null,null,null,"1. S'il n'y avait pas de relation entre le type de présentation et l'intérêt dans la matière, combien d'étudiants voudraient en savoir plus dans le cas d'une présentation de type filmographique?",null,null,null,null,null,null,null,"1. S'il n'y avait pas de relation entre le type de présentation et l'intérêt dans la matière, combien d'étudiants voudraient en savoir plus dans le cas d'une présentation de type filmographique?",null,null,null,null,null,null,null,"1. S'il n'y avait pas de relation entre le type de présentation et l'intérêt dans la matière, combien d'étudiants voudraient en savoir plus dans le cas d'une présentation de type filmographique?",null,null,null,null,null,null,null,"1. S'il n'y avait pas de relation entre le type de présentation et l'intérêt dans la matière, combien d'étudiants voudraient en savoir plus dans le cas d'une présentation de type filmographique?",null,null,null,null,null,null,null,"1. S'il n'y avait pas de relation entre le type de présentation et l'intérêt dans la matière, combien d'étudiants voudraient en savoir plus dans le cas d'une présentation de type filmographique?",null,null,null,null,null,null,null,"1. S'il n'y avait pas de relation entre le type de présentation et l'intérêt dans la matière, combien d'étudiants voudraient en savoir plus dans le cas d'une présentation de type filmographique?",null,null,null,null,null,null,null,"1. S'il n'y avait pas de relation entre le type de présentation et l'intérêt dans la matière, combien d'étudiants voudraient en savoir plus dans le cas d'une présentation de type filmographique?",null,null,null,null,null,null,null,"1. S'il n'y avait pas de relation entre le type de présentation et l'intérêt dans la matière, combien d'étudiants voudraient en savoir plus dans le cas d'une présentation de type filmographique?",null,null,null,null,null,null,null,"1. S'il n'y avait pas de relation entre le type de présentation et l'intérêt dans la matière, combien d'étudiants voudraient en savoir plus dans le cas d'une présentation de type filmographique?",null,null,null,null,null,null,null,"1. S'il n'y avait pas de relation entre le type de présentation et l'intérêt dans la matière, combien d'étudiants voudraient en savoir plus dans le cas d'une présentation de type filmographique?",null,null,null,null,null,null,null,"1. S'il n'y avait pas de relation entre le type de présentation et l'intérêt dans la matière, combien d'étudiants voudraient en savoir plus dans le cas d'une présentation de type filmographique?",null,null,null,null,null,null,null,"1. S'il n'y avait pas de relation entre le type de présentation et l'intérêt dans la matière, combien d'étudiants voudraient en savoir plus dans le cas d'une présentation de type filmographique?",null,null,null,null,null,null,null,"1. S'il n'y avait pas de relation entre le type de présentation et l'intérêt dans la matière, combien d'étudiants voudraient en savoir plus dans le cas d'une présentation de type filmographique?",null,null,null,null,null,null,null,"1. S'il n'y avait pas de relation entre le type de présentation et l'intérêt dans la matière, combien d'étudiants voudraient en savoir plus dans le cas d'une présentation de type filmographique?",null,null,null,null,null,null,null,"1. S'il n'y avait pas de relation entre le type de présentation et l'intérêt dans la matière, combien d'étudiants voudraient en savoir plus dans le cas d'une présentation de type filmographique?",null,null,null,null,null,null,null,"1. S'il n'y avait pas de relation entre le type de présentation et l'intérêt dans la matière, combien d'étudiants voudraient en savoir plus dans le cas d'une présentation de type filmographique?",null,null,null,null,null,null,null,"1. S'il n'y avait pas de relation entre le type de présentation et l'intérêt dans la matière, combien d'étudiants voudraient en savoir plus dans le cas d'une présentation de type filmographique?",null,null,null,null,null,null,null,"1. S'il n'y avait pas de relation entre le type de présentation et l'intérêt dans la matière, combien d'étudiants voudraient en savoir plus dans le cas d'une présentation de type filmographique?",null,null,null,null,null,null,null,"1. S'il n'y avait pas de relation entre le type de présentation et l'intérêt dans la matière, combien d'étudiants voudraient en savoir plus dans le cas d'une présentation de type filmographique?",null,null,null,null,null,null,null,"1. S'il n'y avait pas de relation entre le type de présentation et l'intérêt dans la matière, combien d'étudiants voudraient en savoir plus dans le cas d'une présentation de type filmographique?",null,null,null,null,null,null,null,"1. S'il n'y avait pas de relation entre le type de présentation et l'intérêt dans la matière, combien d'étudiants voudraient en savoir plus dans le cas d'une présentation de type filmographique?",null,null,null,null,null,null,null,"1. S'il n'y avait pas de relation entre le type de présentation et l'intérêt dans la matière, combien d'étudiants voudraient en savoir plus dans le cas d'une présentation de type filmographique?",null,null,null,null,null,null,null,"1. S'il n'y avait pas de relation entre le type de présentation et l'intérêt dans la matière, combien d'étudiants voudraient en savoir plus dans le cas d'une présentation de type filmographique?",null,null,null,null,null,null,null,"1. S'il n'y avait pas de relation entre le type de présentation et l'intérêt dans la matière, combien d'étudiants voudraient en savoir plus dans le cas d'une présentation de type filmographique?",null,null,null,null,null,null,null,"1. S'il n'y avait pas de relation entre le type de présentation et l'intérêt dans la matière, combien d'étudiants voudraient en savoir plus dans le cas d'une présentation de type filmographique?",null,null,null,null,null,null,null,"1. S'il n'y avait pas de relation entre le type de présentation et l'intérêt dans la matière, combien d'étudiants voudraient en savoir plus dans le cas d'une présentation de type filmographique?",null,null,null,null,null,null,null,"1. S'il n'y avait pas de relation entre le type de présentation et l'intérêt dans la matière, combien d'étudiants voudraient en savoir plus dans le cas d'une présentation de type filmographique?",null,null,null,null,null,null,null,"1. S'il n'y avait pas de relation entre le type de présentation et l'intérêt dans la matière, combien d'étudiants voudraient en savoir plus dans le cas d'une présentation de type filmographique?",null,null,null,null,null,null,null,"1. S'il n'y avait pas de relation entre le type de présentation et l'intérêt dans la matière, combien d'étudiants voudraient en savoir plus dans le cas d'une présentation de type filmographique?",null,null,null,null,null,null,null,"1. S'il n'y avait pas de relation entre le type de présentation et l'intérêt dans la matière, combien d'étudiants voudraient en savoir plus dans le cas d'une présentation de type filmographique?",null,null,null,null,null,null,null,"1. S'il n'y avait pas de relation entre le type de présentation et l'intérêt dans la matière, combien d'étudiants voudraient en savoir plus dans le cas d'une présentation de type filmographique?",null,null,null,null,null,null,null,"1. S'il n'y avait pas de relation entre le type de présentation et l'intérêt dans la matière, combien d'étudiants voudraient en savoir plus dans le cas d'une présentation de type filmographique?",null,null,null,null,null,null,null,"1. S'il n'y avait pas de relation entre le type de présentation et l'intérêt dans la matière, combien d'étudiants voudraient en savoir plus dans le cas d'une présentation de type filmographique?",null,null,null,null,null,null,null,"1. S'il n'y avait pas de relation entre le type de présentation et l'intérêt dans la matière, combien d'étudiants voudraient en savoir plus dans le cas d'une présentation de type filmographique?",null,null,null,null,null,null,null,"1. S'il n'y avait pas de relation entre le type de présentation et l'intérêt dans la matière, combien d'étudiants voudraient en savoir plus dans le cas d'une présentation de type filmographique?",null,null,null,null,null,null,null,"1. S'il n'y avait pas de relation entre le type de présentation et l'intérêt dans la matière, combien d'étudiants voudraient en savoir plus dans le cas d'une présentation de type filmographique?",null,null,null,null,null,null,null,"1. S'il n'y avait pas de relation entre le type de présentation et l'intérêt dans la matière, combien d'étudiants voudraient en savoir plus dans le cas d'une présentation de type filmographique?",null,null,null,null,null,null,null,"1. S'il n'y avait pas de relation entre le type de présentation et l'intérêt dans la matière, combien d'étudiants voudraient en savoir plus dans le cas d'une présentation de type filmographique?",null,null,null,null,null,null,null,"1. S'il n'y avait pas de relation entre le type de présentation et l'intérêt dans la matière, combien d'étudiants voudraient en savoir plus dans le cas d'une présentation de type filmographique?",null,null,null,null,null,null,null,"1. S'il n'y avait pas de relation entre le type de présentation et l'intérêt dans la matière, combien d'étudiants voudraient en savoir plus dans le cas d'une présentation de type filmographique?",null,null,null,null,null,null,null,"1. S'il n'y avait pas de relation entre le type de présentation et l'intérêt dans la matière, combien d'étudiants voudraient en savoir plus dans le cas d'une présentation de type filmographique?",null,null,null,null,null,null,null,"1. S'il n'y avait pas de relation entre le type de présentation et l'intérêt dans la matière, combien d'étudiants voudraient en savoir plus dans le cas d'une présentation de type filmographique?",null,null,null,null,null,null,null,"1. S'il n'y avait pas de relation entre le type de présentation et l'intérêt dans la matière, combien d'étudiants voudraient en savoir plus dans le cas d'une présentation de type filmographique?",null,null,null,null,null,null,null,"1. S'il n'y avait pas de relation entre le type de présentation et l'intérêt dans la matière, combien d'étudiants voudraient en savoir plus dans le cas d'une présentation de type filmographique?",null,null,null,null,null,null,null,"1. S'il n'y avait pas de relation entre le type de présentation et l'intérêt dans la matière, combien d'étudiants voudraient en savoir plus dans le cas d'une présentation de type filmographique?",null,null,null,null,null,null,null,"1. S'il n'y avait pas de relation entre le type de présentation et l'intérêt dans la matière, combien d'étudiants voudraient en savoir plus dans le cas d'une présentation de type filmographique?",null,null,null,null,null,null,null,"1. S'il n'y avait pas de relation entre le type de présentation et l'intérêt dans la matière, combien d'étudiants voudraient en savoir plus dans le cas d'une présentation de type filmographique?",null,null,null,null,null,null,null,"1. S'il n'y avait pas de relation entre le type de présentation et l'intérêt dans la matière, combien d'étudiants voudraient en savoir plus dans le cas d'une présentation de type filmographique?",null,null,null,null,null,null,null,"1. S'il n'y avait pas de relation entre le type de présentation et l'intérêt dans la matière, combien d'étudiants voudraient en savoir plus dans le cas d'une présentation de type filmographique?",null,null,null,null,null,null,null,"1. S'il n'y avait pas de relation entre le type de présentation et l'intérêt dans la matière, combien d'étudiants voudraient en savoir plus dans le cas d'une présentation de type filmographique?",null,null,null,null,null,null,null,"1. S'il n'y avait pas de relation entre le type de présentation et l'intérêt dans la matière, combien d'étudiants voudraient en savoir plus dans le cas d'une présentation de type filmographique?",null,null,null,null,null,null,null,"1. S'il n'y avait pas de relation entre le type de présentation et l'intérêt dans la matière, combien d'étudiants voudraient en savoir plus dans le cas d'une présentation de type filmographique?",null,null,null,null,null,null,null,"1. S'il n'y avait pas de relation entre le type de présentation et l'intérêt dans la matière, combien d'étudiants voudraient en savoir plus dans le cas d'une présentation de type filmographique?",null,null,null,null,null,null,null,"1. S'il n'y avait pas de relation entre le type de présentation et l'intérêt dans la matière, combien d'étudiants voudraient en savoir plus dans le cas d'une présentation de type filmographique?",null,null,null,null,null,null,null,"1. S'il n'y avait pas de relation entre le type de présentation et l'intérêt dans la matière, combien d'étudiants voudraient en savoir plus dans le cas d'une présentation de type filmographique?",null,null,null,null,null,null,null,"1. S'il n'y avait pas de relation entre le type de présentation et l'intérêt dans la matière, combien d'étudiants voudraient en savoir plus dans le cas d'une présentation de type filmographique?",null,null,null,null,null,null,null,"1. S'il n'y avait pas de relation entre le type de présentation et l'intérêt dans la matière, combien d'étudiants voudraient en savoir plus dans le cas d'une présentation de type filmographique?",null,null,null,null,null,null,null,"1. S'il n'y avait pas de relation entre le type de présentation et l'intérêt dans la matière, combien d'étudiants voudraient en savoir plus dans le cas d'une présentation de type filmographique?",null,null,null,null,null,null,null,"1. S'il n'y avait pas de relation entre le type de présentation et l'intérêt dans la matière, combien d'étudiants voudraient en savoir plus dans le cas d'une présentation de type filmographique?",null,null,null,null,null,null,null,"1. S'il n'y avait pas de relation entre le type de présentation et l'intérêt dans la matière, combien d'étudiants voudraient en savoir plus dans le cas d'une présentation de type filmographique?",null,null,null,null,null,null,null,"1. S'il n'y avait pas de relation entre le type de présentation et l'intérêt dans la matière, combien d'étudiants voudraient en savoir plus dans le cas d'une présentation de type filmographique?",null,null,null,null,null,null,null,"1. S'il n'y avait pas de relation entre le type de présentation et l'intérêt dans la matière, combien d'étudiants voudraient en savoir plus dans le cas d'une présentation de type filmographique?",null,null,null,null,null,null,null,"1. S'il n'y avait pas de relation entre le type de présentation et l'intérêt dans la matière, combien d'étudiants voudraient en savoir plus dans le cas d'une présentation de type filmographique?",null,null,null,null,null,null,null,"1. S'il n'y avait pas de relation entre le type de présentation et l'intérêt dans la matière, combien d'étudiants voudraient en savoir plus dans le cas d'une présentation de type filmographique?",null,null,null,null,null,null,null,"1. S'il n'y avait pas de relation entre le type de présentation et l'intérêt dans la matière, combien d'étudiants voudraient en savoir plus dans le cas d'une présentation de type filmographique?",null,null,null,null,null,null,null,"1. S'il n'y avait pas de relation entre le type de présentation et l'intérêt dans la matière, combien d'étudiants voudraient en savoir plus dans le cas d'une présentation de type filmographique?",null,null,null,null,null,null,null,"1. S'il n'y avait pas de relation entre le type de présentation et l'intérêt dans la matière, combien d'étudiants voudraient en savoir plus dans le cas d'une présentation de type filmographique?",null,null,null,null,null,null,null,"1. S'il n'y avait pas de relation entre le type de présentation et l'intérêt dans la matière, combien d'étudiants voudraient en savoir plus dans le cas d'une présentation de type filmographique?",null,null,null,null,null,null,null,"1. S'il n'y avait pas de relation entre le type de présentation et l'intérêt dans la matière, combien d'étudiants voudraient en savoir plus dans le cas d'une présentation de type filmographique?",null,null,null,null,null,null,null,"1. S'il n'y avait pas de relation entre le type de présentation et l'intérêt dans la matière, combien d'étudiants voudraient en savoir plus dans le cas d'une présentation de type filmographique?",null,null,null,null,null,null,null,"1. S'il n'y avait pas de relation entre le type de présentation et l'intérêt dans la matière, combien d'étudiants voudraient en savoir plus dans le cas d'une présentation de type filmographique?",null,null,null,null,null,null,null,"1. S'il n'y avait pas de relation entre le type de présentation et l'intérêt dans la matière, combien d'étudiants voudraient en savoir plus dans le cas d'une présentation de type filmographique?",null,null,null,null,null,null,null,"1. S'il n'y avait pas de relation entre le type de présentation et l'intérêt dans la matière, combien d'étudiants voudraient en savoir plus dans le cas d'une présentation de type filmographique?",null,null,null,null,null,null,null,"1. S'il n'y avait pas de relation entre le type de présentation et l'intérêt dans la matière, combien d'étudiants voudraient en savoir plus dans le cas d'une présentation de type filmographique?",null,null,null,null,null,null,null,"1. S'il n'y avait pas de relation entre le type de présentation et l'intérêt dans la matière, combien d'étudiants voudraient en savoir plus dans le cas d'une présentation de type filmographique?",null,null,null,null,null,null,null,"1. S'il n'y avait pas de relation entre le type de présentation et l'intérêt dans la matière, combien d'étudiants voudraient en savoir plus dans le cas d'une présentation de type filmographique?",null,null,null,null,null,null,null,"1. S'il n'y avait pas de relation entre le type de présentation et l'intérêt dans la matière, combien d'étudiants voudraient en savoir plus dans le cas d'une présentation de type filmographique?",null,null,null,null,null,null,null,"1. S'il n'y avait pas de relation entre le type de présentation et l'intérêt dans la matière, combien d'étudiants voudraient en savoir plus dans le cas d'une présentation de type filmographique?",null,null,null,null,null,null,null,"1. S'il n'y avait pas de relation entre le type de présentation et l'intérêt dans la matière, combien d'étudiants voudraient en savoir plus dans le cas d'une présentation de type filmographique?",null,null,null,null,null,null,null,"1. S'il n'y avait pas de relation entre le type de présentation et l'intérêt dans la matière, combien d'étudiants voudraient en savoir plus dans le cas d'une présentation de type filmographique?",null,null,null,null,null,null,null,"1. S'il n'y avait pas de relation entre le type de présentation et l'intérêt dans la matière, combien d'étudiants voudraient en savoir plus dans le cas d'une présentation de type filmographique?",null,null,null,null,null,null,null,"1. S'il n'y avait pas de relation entre le type de présentation et l'intérêt dans la matière, combien d'étudiants voudraient en savoir plus dans le cas d'une présentation de type filmographique?",null,null,null,null,null,null,null,"1. S'il n'y avait pas de relation entre le type de présentation et l'intérêt dans la matière, combien d'étudiants voudraient en savoir plus dans le cas d'une présentation de type filmographique?",null,null,null,null,null,null,null,"1. S'il n'y avait pas de relation entre le type de présentation et l'intérêt dans la matière, combien d'étudiants voudraient en savoir plus dans le cas d'une présentation de type filmographique?",null,null,null,null,null,null,null,"1. S'il n'y avait pas de relation entre le type de présentation et l'intérêt dans la matière, combien d'étudiants voudraient en savoir plus dans le cas d'une présentation de type filmographique?",null,null,null,null,null,null,null,"1. S'il n'y avait pas de relation entre le type de présentation et l'intérêt dans la matière, combien d'étudiants voudraient en savoir plus dans le cas d'une présentation de type filmographique?",null,null,null,null,null,null,null,"1. S'il n'y avait pas de relation entre le type de présentation et l'intérêt dans la matière, combien d'étudiants voudraient en savoir plus dans le cas d'une présentation de type filmographique?",null,null,null,null,null,null,null,"1. S'il n'y avait pas de relation entre le type de présentation et l'intérêt dans la matière, combien d'étudiants voudraient en savoir plus dans le cas d'une présentation de type filmographique?",null,null,null,null,null,null,null,"1. S'il n'y avait pas de relation entre le type de présentation et l'intérêt dans la matière, combien d'étudiants voudraient en savoir plus dans le cas d'une présentation de type filmographique?",null,null,null,null,null,null,null,"1. S'il n'y avait pas de relation entre le type de présentation et l'intérêt dans la matière, combien d'étudiants voudraient en savoir plus dans le cas d'une présentation de type filmographique?",null,null,null,null,null,null,null,"1. S'il n'y avait pas de relation entre le type de présentation et l'intérêt dans la matière, combien d'étudiants voudraient en savoir plus dans le cas d'une présentation de type filmographique?",null,null,null,null,null,null,null,"1. S'il n'y avait pas de relation entre le type de présentation et l'intérêt dans la matière, combien d'étudiants voudraient en savoir plus dans le cas d'une présentation de type filmographique?",null,null,null,null,null,null,null,"1. S'il n'y avait pas de relation entre le type de présentation et l'intérêt dans la matière, combien d'étudiants voudraient en savoir plus dans le cas d'une présentation de type filmographique?",null,null,null,null,null,null,null,"1. S'il n'y avait pas de relation entre le type de présentation et l'intérêt dans la matière, combien d'étudiants voudraient en savoir plus dans le cas d'une présentation de type filmographique?",null,null,null,null,null,null,null,"1. S'il n'y avait pas de relation entre le type de présentation et l'intérêt dans la matière, combien d'étudiants voudraient en savoir plus dans le cas d'une présentation de type filmographique?",null,null,null,null,null,null,null,"1. S'il n'y avait pas de relation entre le type de présentation et l'intérêt dans la matière, combien d'étudiants voudraient en savoir plus dans le cas d'une présentation de type filmographique?",null,null,null,null,null,null,null,"1. S'il n'y avait pas de relation entre le type de présentation et l'intérêt dans la matière, combien d'étudiants voudraient en savoir plus dans le cas d'une présentation de type filmographique?",null,null,null,null,null,null,null,"1. S'il n'y avait pas de relation entre le type de présentation et l'intérêt dans la matière, combien d'étudiants voudraient en savoir plus dans le cas d'une présentation de type filmographique?",null,null,null,null,null,null,null,"1. S'il n'y avait pas de relation entre le type de présentation et l'intérêt dans la matière, combien d'étudiants voudraient en savoir plus dans le cas d'une présentation de type filmographique?",null,null,null,null,null,null,null,"1. S'il n'y avait pas de relation entre le type de présentation et l'intérêt dans la matière, combien d'étudiants voudraient en savoir plus dans le cas d'une présentation de type filmographique?",null,null,null,null,null,null,null,"1. S'il n'y avait pas de relation entre le type de présentation et l'intérêt dans la matière, combien d'étudiants voudraient en savoir plus dans le cas d'une présentation de type filmographique?",null,null,null,null,null,null,null,"1. S'il n'y avait pas de relation entre le type de présentation et l'intérêt dans la matière, combien d'étudiants voudraient en savoir plus dans le cas d'une présentation de type filmographique?",null,null,null,null,null,null,null,"1. S'il n'y avait pas de relation entre le type de présentation et l'intérêt dans la matière, combien d'étudiants voudraient en savoir plus dans le cas d'une présentation de type filmographique?",null,null,null,null,null,null,null,"1. S'il n'y avait pas de relation entre le type de présentation et l'intérêt dans la matière, combien d'étudiants voudraient en savoir plus dans le cas d'une présentation de type filmographique?",null,null,null,null,null,null,null,"1. S'il n'y avait pas de relation entre le type de présentation et l'intérêt dans la matière, combien d'étudiants voudraient en savoir plus dans le cas d'une présentation de type filmographique?",null,null,null,null,null,null,null,"1. S'il n'y avait pas de relation entre le type de présentation et l'intérêt dans la matière, combien d'étudiants voudraient en savoir plus dans le cas d'une présentation de type filmographique?",null,null,null,null,null,null,null,"1. S'il n'y avait pas de relation entre le type de présentation et l'intérêt dans la matière, combien d'étudiants voudraient en savoir plus dans le cas d'une présentation de type filmographique?",null,null,null,null,null,null,null,"1. S'il n'y avait pas de relation entre le type de présentation et l'intérêt dans la matière, combien d'étudiants voudraient en savoir plus dans le cas d'une présentation de type filmographique?",null,null,null,null,null,null,null,"1. S'il n'y avait pas de relation entre le type de présentation et l'intérêt dans la matière, combien d'étudiants voudraient en savoir plus dans le cas d'une présentation de type filmographique?",null,null,null,null,null,null,null,"1. S'il n'y avait pas de relation entre le type de présentation et l'intérêt dans la matière, combien d'étudiants voudraient en savoir plus dans le cas d'une présentation de type filmographique?",null,null,null,null,null,null,null,"1. S'il n'y avait pas de relation entre le type de présentation et l'intérêt dans la matière, combien d'étudiants voudraient en savoir plus dans le cas d'une présentation de type filmographique?",null,null,null,null,null,null,null,"1. S'il n'y avait pas de relation entre le type de présentation et l'intérêt dans la matière, combien d'étudiants voudraient en savoir plus dans le cas d'une présentation de type filmographique?",null,null,null,null,null,null,null,"1. S'il n'y avait pas de relation entre le type de présentation et l'intérêt dans la matière, combien d'étudiants voudraient en savoir plus dans le cas d'une présentation de type filmographique?",null,null,null,null,null,null,null,"1. S'il n'y avait pas de relation entre le type de présentation et l'intérêt dans la matière, combien d'étudiants voudraient en savoir plus dans le cas d'une présentation de type filmographique?",null,null,null,null,null,null,null,"1. S'il n'y avait pas de relation entre le type de présentation et l'intérêt dans la matière, combien d'étudiants voudraient en savoir plus dans le cas d'une présentation de type filmographique?",null,null,null,null,null,null,null,"1. S'il n'y avait pas de relation entre le type de présentation et l'intérêt dans la matière, combien d'étudiants voudraient en savoir plus dans le cas d'une présentation de type filmographique?",null,null,null,null,null,null,null,"1. S'il n'y avait pas de relation entre le type de présentation et l'intérêt dans la matière, combien d'étudiants voudraient en savoir plus dans le cas d'une présentation de type filmographique?",null,null,null,null,null,null,null,"1. S'il n'y avait pas de relation entre le type de présentation et l'intérêt dans la matière, combien d'étudiants voudraient en savoir plus dans le cas d'une présentation de type filmographique?",null,null,null,null,null,null,null,"1. S'il n'y avait pas de relation entre le type de présentation et l'intérêt dans la matière, combien d'étudiants voudraient en savoir plus dans le cas d'une présentation de type filmographique?",null,null,null,null,null,null,null,"1. S'il n'y avait pas de relation entre le type de présentation et l'intérêt dans la matière, combien d'étudiants voudraient en savoir plus dans le cas d'une présentation de type filmographique?",null,null,null,null,null,null,null,"1. S'il n'y avait pas de relation entre le type de présentation et l'intérêt dans la matière, combien d'étudiants voudraient en savoir plus dans le cas d'une présentation de type filmographique?",null,null,null,null,null,null,null,"1. S'il n'y avait pas de relation entre le type de présentation et l'intérêt dans la matière, combien d'étudiants voudraient en savoir plus dans le cas d'une présentation de type filmographique?",null,null,null,null,null,null,null,"1. S'il n'y avait pas de relation entre le type de présentation et l'intérêt dans la matière, combien d'étudiants voudraient en savoir plus dans le cas d'une présentation de type filmographique?",null,null,null,null,null,null,null,"1. S'il n'y avait pas de relation entre le type de présentation et l'intérêt dans la matière, combien d'étudiants voudraient en savoir plus dans le cas d'une présentation de type filmographique?",null,null,null,null,null,null,null,"1. S'il n'y avait pas de relation entre le type de présentation et l'intérêt dans la matière, combien d'étudiants voudraient en savoir plus dans le cas d'une présentation de type filmographique?",null,null,null,null,null,null,null,"1. S'il n'y avait pas de relation entre le type de présentation et l'intérêt dans la matière, combien d'étudiants voudraient en savoir plus dans le cas d'une présentation de type filmographique?",null,null,null,null,null,null,null,"1. S'il n'y avait pas de relation entre le type de présentation et l'intérêt dans la matière, combien d'étudiants voudraient en savoir plus dans le cas d'une présentation de type filmographique?",null,null,null,null,null,null,null,"1. S'il n'y avait pas de relation entre le type de présentation et l'intérêt dans la matière, combien d'étudiants voudraient en savoir plus dans le cas d'une présentation de type filmographique?",null,null,null,null,null,null,null,"1. S'il n'y avait pas de relation entre le type de présentation et l'intérêt dans la matière, combien d'étudiants voudraient en savoir plus dans le cas d'une présentation de type filmographique?",null,null,null,null,null,null,null,"1. S'il n'y avait pas de relation entre le type de présentation et l'intérêt dans la matière, combien d'étudiants voudraient en savoir plus dans le cas d'une présentation de type filmographique?",null,null,null,null,null,null,null,"1. S'il n'y avait pas de relation entre le type de présentation et l'intérêt dans la matière, combien d'étudiants voudraient en savoir plus dans le cas d'une présentation de type filmographique?",null,null,null,null,null,null,null,"1. S'il n'y avait pas de relation entre le type de présentation et l'intérêt dans la matière, combien d'étudiants voudraient en savoir plus dans le cas d'une présentation de type filmographique?",null,null,null,null,null,null,null,"1. S'il n'y avait pas de relation entre le type de présentation et l'intérêt dans la matière, combien d'étudiants voudraient en savoir plus dans le cas d'une présentation de type filmographique?",null,null,null,null,null,null,null,"1. S'il n'y avait pas de relation entre le type de présentation et l'intérêt dans la matière, combien d'étudiants voudraient en savoir plus dans le cas d'une présentation de type filmographique?",null,null,null,null,null,null,null,"1. S'il n'y avait pas de relation entre le type de présentation et l'intérêt dans la matière, combien d'étudiants voudraient en savoir plus dans le cas d'une présentation de type filmographique?",null,null,null,null,null,null,null,"1. S'il n'y avait pas de relation entre le type de présentation et l'intérêt dans la matière, combien d'étudiants voudraient en savoir plus dans le cas d'une présentation de type filmographique?",null,null,null,null,null,null,null,"1. S'il n'y avait pas de relation entre le type de présentation et l'intérêt dans la matière, combien d'étudiants voudraient en savoir plus dans le cas d'une présentation de type filmographique?",null,null,null,null,null,null,null,"1. S'il n'y avait pas de relation entre le type de présentation et l'intérêt dans la matière, combien d'étudiants voudraient en savoir plus dans le cas d'une présentation de type filmographique?",null,null,null,null,null,null,null,"1. S'il n'y avait pas de relation entre le type de présentation et l'intérêt dans la matière, combien d'étudiants voudraient en savoir plus dans le cas d'une présentation de type filmographique?",null,null,null,null,null,null,null,"1. S'il n'y avait pas de relation entre le type de présentation et l'intérêt dans la matière, combien d'étudiants voudraient en savoir plus dans le cas d'une présentation de type filmographique?",null,null,null,null,null,null,null,"1. S'il n'y avait pas de relation entre le type de présentation et l'intérêt dans la matière, combien d'étudiants voudraient en savoir plus dans le cas d'une présentation de type filmographique?",null,null,null,null,null,null,null,"1. S'il n'y avait pas de relation entre le type de présentation et l'intérêt dans la matière, combien d'étudiants voudraient en savoir plus dans le cas d'une présentation de type filmographique?",null,null,null,null,null,null,null,"1. S'il n'y avait pas de relation entre le type de présentation et l'intérêt dans la matière, combien d'étudiants voudraient en savoir plus dans le cas d'une présentation de type filmographique?",null,null,null,null,null,null,null,"1. S'il n'y avait pas de relation entre le type de présentation et l'intérêt dans la matière, combien d'étudiants voudraient en savoir plus dans le cas d'une présentation de type filmographique?",null,null,null,null,null,null,null,"1. S'il n'y avait pas de relation entre le type de présentation et l'intérêt dans la matière, combien d'étudiants voudraient en savoir plus dans le cas d'une présentation de type filmographique?",null,null,null,null,null,null,null,"1. S'il n'y avait pas de relation entre le type de présentation et l'intérêt dans la matière, combien d'étudiants voudraient en savoir plus dans le cas d'une présentation de type filmographique?",null,null,null,null,null,null,null,"1. S'il n'y avait pas de relation entre le type de présentation et l'intérêt dans la matière, combien d'étudiants voudraient en savoir plus dans le cas d'une présentation de type filmographique?",null,null,null,null,null,null,null,"1. S'il n'y avait pas de relation entre le type de présentation et l'intérêt dans la matière, combien d'étudiants voudraient en savoir plus dans le cas d'une présentation de type filmographique?",null,null,null,null,null,null,null,"1. S'il n'y avait pas de relation entre le type de présentation et l'intérêt dans la matière, combien d'étudiants voudraient en savoir plus dans le cas d'une présentation de type filmographique?",null,null,null,null,null,null,null,"1. S'il n'y avait pas de relation entre le type de présentation et l'intérêt dans la matière, combien d'étudiants voudraient en savoir plus dans le cas d'une présentation de type filmographique?",null,null,null,null,null,null,null,"1. S'il n'y avait pas de relation entre le type de présentation et l'intérêt dans la matière, combien d'étudiants voudraient en savoir plus dans le cas d'une présentation de type filmographique?",null,null,null,null,null,null,null,"1. S'il n'y avait pas de relation entre le type de présentation et l'intérêt dans la matière, combien d'étudiants voudraient en savoir plus dans le cas d'une présentation de type filmographique?",null,null,null,null,null,null,null,"1. S'il n'y avait pas de relation entre le type de présentation et l'intérêt dans la matière, combien d'étudiants voudraient en savoir plus dans le cas d'une présentation de type filmographique?",null,null,null,null,null,null,null,"1. S'il n'y avait pas de relation entre le type de présentation et l'intérêt dans la matière, combien d'étudiants voudraient en savoir plus dans le cas d'une présentation de type filmographique?",null,null,null,null,null,null,null,"1. S'il n'y avait pas de relation entre le type de présentation et l'intérêt dans la matière, combien d'étudiants voudraient en savoir plus dans le cas d'une présentation de type filmographique?",null,null,null,null,null,null,null,"1. S'il n'y avait pas de relation entre le type de présentation et l'intérêt dans la matière, combien d'étudiants voudraient en savoir plus dans le cas d'une présentation de type filmographique?",null,null,null,null,null,null,null,"1. S'il n'y avait pas de relation entre le type de présentation et l'intérêt dans la matière, combien d'étudiants voudraient en savoir plus dans le cas d'une présentation de type filmographique?",null,null,null,null,null,null,null,"1. S'il n'y avait pas de relation entre le type de présentation et l'intérêt dans la matière, combien d'étudiants voudraient en savoir plus dans le cas d'une présentation de type filmographique?",null,null,null,null,null,null,null,"1. S'il n'y avait pas de relation entre le type de présentation et l'intérêt dans la matière, combien d'étudiants voudraient en savoir plus dans le cas d'une présentation de type filmographique?",null,null,null,null,null,null,null,"1. S'il n'y avait pas de relation entre le type de présentation et l'intérêt dans la matière, combien d'étudiants voudraient en savoir plus dans le cas d'une présentation de type filmographique?",null,null,null,null,null,null,null,"1. S'il n'y avait pas de relation entre le type de présentation et l'intérêt dans la matière, combien d'étudiants voudraient en savoir plus dans le cas d'une présentation de type filmographique?",null,null,null,null,null,null,null,"1. S'il n'y avait pas de relation entre le type de présentation et l'intérêt dans la matière, combien d'étudiants voudraient en savoir plus dans le cas d'une présentation de type filmographique?",null,null,null,null,null,null,null,"1. S'il n'y avait pas de relation entre le type de présentation et l'intérêt dans la matière, combien d'étudiants voudraient en savoir plus dans le cas d'une présentation de type filmographique?",null,null,null,null,null,null,null,"1. S'il n'y avait pas de relation entre le type de présentation et l'intérêt dans la matière, combien d'étudiants voudraient en savoir plus dans le cas d'une présentation de type filmographique?",null,null,null,null,null,null,null,"1. S'il n'y avait pas de relation entre le type de présentation et l'intérêt dans la matière, combien d'étudiants voudraient en savoir plus dans le cas d'une présentation de type filmographique?",null,null,null,null,null,null,null,"1. S'il n'y avait pas de relation entre le type de présentation et l'intérêt dans la matière, combien d'étudiants voudraient en savoir plus dans le cas d'une présentation de type filmographique?",null,null,null,null,null,null,null,"1. S'il n'y avait pas de relation entre le type de présentation et l'intérêt dans la matière, combien d'étudiants voudraient en savoir plus dans le cas d'une présentation de type filmographique?",null,null,null,null,null,null,null,"1. S'il n'y avait pas de relation entre le type de présentation et l'intérêt dans la matière, combien d'étudiants voudraient en savoir plus dans le cas d'une présentation de type filmographique?",null,null,null,null,null,null,null,"1. S'il n'y avait pas de relation entre le type de présentation et l'intérêt dans la matière, combien d'étudiants voudraient en savoir plus dans le cas d'une présentation de type filmographique?",null,null,null,null,null,null,null,"1. S'il n'y avait pas de relation entre le type de présentation et l'intérêt dans la matière, combien d'étudiants voudraient en savoir plus dans le cas d'une présentation de type filmographique?",null,null,null,null,null,null,null,"1. S'il n'y avait pas de relation entre le type de présentation et l'intérêt dans la matière, combien d'étudiants voudraient en savoir plus dans le cas d'une présentation de type filmographique?",null,null,null,null,null,null,null,"1. S'il n'y avait pas de relation entre le type de présentation et l'intérêt dans la matière, combien d'étudiants voudraient en savoir plus dans le cas d'une présentation de type filmographique?",null,null,null,null,null,null,null,"1. S'il n'y avait pas de relation entre le type de présentation et l'intérêt dans la matière, combien d'étudiants voudraient en savoir plus dans le cas d'une présentation de type filmographique?",null,null,null,null,null,null,null,"1. S'il n'y avait pas de relation entre le type de présentation et l'intérêt dans la matière, combien d'étudiants voudraient en savoir plus dans le cas d'une présentation de type filmographique?",null,null,null,null,null,null,null,"1. S'il n'y avait pas de relation entre le type de présentation et l'intérêt dans la matière, combien d'étudiants voudraient en savoir plus dans le cas d'une présentation de type filmographique?",null,null,null,null,null,null,null,"1. S'il n'y avait pas de relation entre le type de présentation et l'intérêt dans la matière, combien d'étudiants voudraient en savoir plus dans le cas d'une présentation de type filmographique?",null,null,null,null,null,null,null,"1. S'il n'y avait pas de relation entre le type de présentation et l'intérêt dans la matière, combien d'étudiants voudraient en savoir plus dans le cas d'une présentation de type filmographique?",null,null,null,null,null,null,null,"1. S'il n'y avait pas de relation entre le type de présentation et l'intérêt dans la matière, combien d'étudiants voudraient en savoir plus dans le cas d'une présentation de type filmographique?",null,null,null,null,null,null,null,"1. S'il n'y avait pas de relation entre le type de présentation et l'intérêt dans la matière, combien d'étudiants voudraient en savoir plus dans le cas d'une présentation de type filmographique?",null,null,null,null,null,null,null,"1. S'il n'y avait pas de relation entre le type de présentation et l'intérêt dans la matière, combien d'étudiants voudraient en savoir plus dans le cas d'une présentation de type filmographique?",null,null,null,null,null,null,null,"1. S'il n'y avait pas de relation entre le type de présentation et l'intérêt dans la matière, combien d'étudiants voudraient en savoir plus dans le cas d'une présentation de type filmographique?",null,null,null,null,null,null,null,"1. S'il n'y avait pas de relation entre le type de présentation et l'intérêt dans la matière, combien d'étudiants voudraient en savoir plus dans le cas d'une présentation de type filmographique?",null,null,null,null,null,null,null,"1. S'il n'y avait pas de relation entre le type de présentation et l'intérêt dans la matière, combien d'étudiants voudraient en savoir plus dans le cas d'une présentation de type filmographique?",null,null,null,null,null,null,null,"1. S'il n'y avait pas de relation entre le type de présentation et l'intérêt dans la matière, combien d'étudiants voudraient en savoir plus dans le cas d'une présentation de type filmographique?",null,null,null,null,null,null,null,"1. S'il n'y avait pas de relation entre le type de présentation et l'intérêt dans la matière, combien d'étudiants voudraient en savoir plus dans le cas d'une présentation de type filmographique?",null,null,null,null,null,null,null,"1. S'il n'y avait pas de relation entre le type de présentation et l'intérêt dans la matière, combien d'étudiants voudraient en savoir plus dans le cas d'une présentation de type filmographique?",null,null,null,null,null,null,null,"1. S'il n'y avait pas de relation entre le type de présentation et l'intérêt dans la matière, combien d'étudiants voudraient en savoir plus dans le cas d'une présentation de type filmographique?",null,null,null,null,null,null,null,"1. S'il n'y avait pas de relation entre le type de présentation et l'intérêt dans la matière, combien d'étudiants voudraient en savoir plus dans le cas d'une présentation de type filmographique?",null,null,null,null,null,null,null,"1. S'il n'y avait pas de relation entre le type de présentation et l'intérêt dans la matière, combien d'étudiants voudraient en savoir plus dans le cas d'une présentation de type filmographique?",null,null,null,null,null,null,null,"1. S'il n'y avait pas de relation entre le type de présentation et l'intérêt dans la matière, combien d'étudiants voudraient en savoir plus dans le cas d'une présentation de type filmographique?",null,null,null,null,null,null,null,"1. S'il n'y avait pas de relation entre le type de présentation et l'intérêt dans la matière, combien d'étudiants voudraient en savoir plus dans le cas d'une présentation de type filmographique?",null,null,null,null,null,null,null,"1. S'il n'y avait pas de relation entre le type de présentation et l'intérêt dans la matière, combien d'étudiants voudraient en savoir plus dans le cas d'une présentation de type filmographique?",null,null,null,null,null,null,null,"1. S'il n'y avait pas de relation entre le type de présentation et l'intérêt dans la matière, combien d'étudiants voudraient en savoir plus dans le cas d'une présentation de type filmographique?",null,null,null,null,null,null,null,"1. S'il n'y avait pas de relation entre le type de présentation et l'intérêt dans la matière, combien d'étudiants voudraient en savoir plus dans le cas d'une présentation de type filmographique?",null,null,null,null,null,null,null,"1. S'il n'y avait pas de relation entre le type de présentation et l'intérêt dans la matière, combien d'étudiants voudraient en savoir plus dans le cas d'une présentation de type filmographique?",null,null,null,null,null,null,null,"1. S'il n'y avait pas de relation entre le type de présentation et l'intérêt dans la matière, combien d'étudiants voudraient en savoir plus dans le cas d'une présentation de type filmographique?",null,null,null,null,null,null,null,"1. S'il n'y avait pas de relation entre le type de présentation et l'intérêt dans la matière, combien d'étudiants voudraient en savoir plus dans le cas d'une présentation de type filmographique?",null,null,null,null,null,null,null,"1. S'il n'y avait pas de relation entre le type de présentation et l'intérêt dans la matière, combien d'étudiants voudraient en savoir plus dans le cas d'une présentation de type filmographique?",null,null,null,null,null,null,null,"1. S'il n'y avait pas de relation entre le type de présentation et l'intérêt dans la matière, combien d'étudiants voudraient en savoir plus dans le cas d'une présentation de type filmographique?",null,null,null,null,null,null,null,"1. S'il n'y avait pas de relation entre le type de présentation et l'intérêt dans la matière, combien d'étudiants voudraient en savoir plus dans le cas d'une présentation de type filmographique?",null,null,null,null,null,null,null,"1. S'il n'y avait pas de relation entre le type de présentation et l'intérêt dans la matière, combien d'étudiants voudraient en savoir plus dans le cas d'une présentation de type filmographique?",null,null,null,null,null,null,null,"1. S'il n'y avait pas de relation entre le type de présentation et l'intérêt dans la matière, combien d'étudiants voudraient en savoir plus dans le cas d'une présentation de type filmographique?",null,null,null,null,null,null,null,"1. S'il n'y avait pas de relation entre le type de présentation et l'intérêt dans la matière, combien d'étudiants voudraient en savoir plus dans le cas d'une présentation de type filmographique?",null,null,null,null,null,null,null,"1. S'il n'y avait pas de relation entre le type de présentation et l'intérêt dans la matière, combien d'étudiants voudraient en savoir plus dans le cas d'une présentation de type filmographique?",null,null,null,null,null,null,null,"1. S'il n'y avait pas de relation entre le type de présentation et l'intérêt dans la matière, combien d'étudiants voudraient en savoir plus dans le cas d'une présentation de type filmographique?",null,null,null,null,null,null,null,"1. S'il n'y avait pas de relation entre le type de présentation et l'intérêt dans la matière, combien d'étudiants voudraient en savoir plus dans le cas d'une présentation de type filmographique?",null,null,null,null,null,null,null,"1. S'il n'y avait pas de relation entre le type de présentation et l'intérêt dans la matière, combien d'étudiants voudraient en savoir plus dans le cas d'une présentation de type filmographique?",null,null,null,null,null,null,null,"1. S'il n'y avait pas de relation entre le type de présentation et l'intérêt dans la matière, combien d'étudiants voudraient en savoir plus dans le cas d'une présentation de type filmographique?",null,null,null,null,null,null,null,"1. S'il n'y avait pas de relation entre le type de présentation et l'intérêt dans la matière, combien d'étudiants voudraient en savoir plus dans le cas d'une présentation de type filmographique?",null,null,null,null,null,null,null,"1. S'il n'y avait pas de relation entre le type de présentation et l'intérêt dans la matière, combien d'étudiants voudraient en savoir plus dans le cas d'une présentation de type filmographique?",null,null,null,null,null,null,null,"1. S'il n'y avait pas de relation entre le type de présentation et l'intérêt dans la matière, combien d'étudiants voudraient en savoir plus dans le cas d'une présentation de type filmographique?",null,null,null,null,null,null,null,"1. S'il n'y avait pas de relation entre le type de présentation et l'intérêt dans la matière, combien d'étudiants voudraient en savoir plus dans le cas d'une présentation de type filmographique?",null,null,null,null,null,null,null,"1. S'il n'y avait pas de relation entre le type de présentation et l'intérêt dans la matière, combien d'étudiants voudraient en savoir plus dans le cas d'une présentation de type filmographique?",null,null,null,null,null,null,null,"1. S'il n'y avait pas de relation entre le type de présentation et l'intérêt dans la matière, combien d'étudiants voudraient en savoir plus dans le cas d'une présentation de type filmographique?",null,null,null,null,null,null,null,"1. S'il n'y avait pas de relation entre le type de présentation et l'intérêt dans la matière, combien d'étudiants voudraient en savoir plus dans le cas d'une présentation de type filmographique?",null,null,null,null,null,null,null,"1. S'il n'y avait pas de relation entre le type de présentation et l'intérêt dans la matière, combien d'étudiants voudraient en savoir plus dans le cas d'une présentation de type filmographique?",null,null,null,null,null,null,null,"1. S'il n'y avait pas de relation entre le type de présentation et l'intérêt dans la matière, combien d'étudiants voudraient en savoir plus dans le cas d'une présentation de type filmographique?",null,null,null,null,null,null,null,"1. S'il n'y avait pas de relation entre le type de présentation et l'intérêt dans la matière, combien d'étudiants voudraient en savoir plus dans le cas d'une présentation de type filmographique?",null,null,null,null,null,null,null,"1. S'il n'y avait pas de relation entre le type de présentation et l'intérêt dans la matière, combien d'étudiants voudraient en savoir plus dans le cas d'une présentation de type filmographique?",null,null,null,null,null,null,null,"1. S'il n'y avait pas de relation entre le type de présentation et l'intérêt dans la matière, combien d'étudiants voudraient en savoir plus dans le cas d'une présentation de type filmographique?",null,null,null,null,null,null,null,"1. S'il n'y avait pas de relation entre le type de présentation et l'intérêt dans la matière, combien d'étudiants voudraient en savoir plus dans le cas d'une présentation de type filmographique?",null,null,null,null,null,null,null,"1. S'il n'y avait pas de relation entre le type de présentation et l'intérêt dans la matière, combien d'étudiants voudraient en savoir plus dans le cas d'une présentation de type filmographique?",null,null,null,null,null,null,null,"1. S'il n'y avait pas de relation entre le type de présentation et l'intérêt dans la matière, combien d'étudiants voudraient en savoir plus dans le cas d'une présentation de type filmographique?",null,null,null,null,null,null,null,"1. S'il n'y avait pas de relation entre le type de présentation et l'intérêt dans la matière, combien d'étudiants voudraient en savoir plus dans le cas d'une présentation de type filmographique?",null,null,null,null,null,null,null,"1. S'il n'y avait pas de relation entre le type de présentation et l'intérêt dans la matière, combien d'étudiants voudraient en savoir plus dans le cas d'une présentation de type filmographique?",null,null,null,null,null,null,null,"1. S'il n'y avait pas de relation entre le type de présentation et l'intérêt dans la matière, combien d'étudiants voudraient en savoir plus dans le cas d'une présentation de type filmographique?",null,null,null,null,null,null,null,"1. S'il n'y avait pas de relation entre le type de présentation et l'intérêt dans la matière, combien d'étudiants voudraient en savoir plus dans le cas d'une présentation de type filmographique?",null,null,null,null,null,null,null,"1. S'il n'y avait pas de relation entre le type de présentation et l'intérêt dans la matière, combien d'étudiants voudraient en savoir plus dans le cas d'une présentation de type filmographique?",null,null,null,null,null,null,null,"1. S'il n'y avait pas de relation entre le type de présentation et l'intérêt dans la matière, combien d'étudiants voudraient en savoir plus dans le cas d'une présentation de type filmographique?",null,null,null,null,null,null,null,"1. S'il n'y avait pas de relation entre le type de présentation et l'intérêt dans la matière, combien d'étudiants voudraient en savoir plus dans le cas d'une présentation de type filmographique?",null,null,null,null,null,null,null,"1. S'il n'y avait pas de relation entre le type de présentation et l'intérêt dans la matière, combien d'étudiants voudraient en savoir plus dans le cas d'une présentation de type filmographique?",null,null,null,null,null,null,null,"1. S'il n'y avait pas de relation entre le type de présentation et l'intérêt dans la matière, combien d'étudiants voudraient en savoir plus dans le cas d'une présentation de type filmographique?",null,null,null,null,null,null,null,"1. S'il n'y avait pas de relation entre le type de présentation et l'intérêt dans la matière, combien d'étudiants voudraient en savoir plus dans le cas d'une présentation de type filmographique?",null,null,null,null,null,null,null,"1. S'il n'y avait pas de relation entre le type de présentation et l'intérêt dans la matière, combien d'étudiants voudraient en savoir plus dans le cas d'une présentation de type filmographique?",null,null,null,null,null,null,null,"1. S'il n'y avait pas de relation entre le type de présentation et l'intérêt dans la matière, combien d'étudiants voudraient en savoir plus dans le cas d'une présentation de type filmographique?",null,null,null,null,null,null,null,"1. S'il n'y avait pas de relation entre le type de présentation et l'intérêt dans la matière, combien d'étudiants voudraient en savoir plus dans le cas d'une présentation de type filmographique?",null,null,null,null,null,null,null,"1. S'il n'y avait pas de relation entre le type de présentation et l'intérêt dans la matière, combien d'étudiants voudraient en savoir plus dans le cas d'une présentation de type filmographique?",null,null,null,null,null,null,null,"1. S'il n'y avait pas de relation entre le type de présentation et l'intérêt dans la matière, combien d'étudiants voudraient en savoir plus dans le cas d'une présentation de type filmographique?",null,null,null,null,null,null,null,"1. S'il n'y avait pas de relation entre le type de présentation et l'intérêt dans la matière, combien d'étudiants voudraient en savoir plus dans le cas d'une présentation de type filmographique?",null,null,null,null,null,null,null,"1. S'il n'y avait pas de relation entre le type de présentation et l'intérêt dans la matière, combien d'étudiants voudraient en savoir plus dans le cas d'une présentation de type filmographique?",null,null,null,null,null,null,null,"1. S'il n'y avait pas de relation entre le type de présentation et l'intérêt dans la matière, combien d'étudiants voudraient en savoir plus dans le cas d'une présentation de type filmographique?",null,null,null,null,null,null,null,"1. S'il n'y avait pas de relation entre le type de présentation et l'intérêt dans la matière, combien d'étudiants voudraient en savoir plus dans le cas d'une présentation de type filmographique?",null,null,null,null,null,null,null,"1. S'il n'y avait pas de relation entre le type de présentation et l'intérêt dans la matière, combien d'étudiants voudraient en savoir plus dans le cas d'une présentation de type filmographique?",null,null,null,null,null,null,null,"1. S'il n'y avait pas de relation entre le type de présentation et l'intérêt dans la matière, combien d'étudiants voudraient en savoir plus dans le cas d'une présentation de type filmographique?",null,null,null,null,null,null,null,"1. S'il n'y avait pas de relation entre le type de présentation et l'intérêt dans la matière, combien d'étudiants voudraient en savoir plus dans le cas d'une présentation de type filmographique?",null,null,null,null,null,null,null,"1. S'il n'y avait pas de relation entre le type de présentation et l'intérêt dans la matière, combien d'étudiants voudraient en savoir plus dans le cas d'une présentation de type filmographique?",null,null,null,null,null,null,null,"1. S'il n'y avait pas de relation entre le type de présentation et l'intérêt dans la matière, combien d'étudiants voudraient en savoir plus dans le cas d'une présentation de type filmographique?",null,null,null,null,null,null,null,"1. S'il n'y avait pas de relation entre le type de présentation et l'intérêt dans la matière, combien d'étudiants voudraient en savoir plus dans le cas d'une présentation de type filmographique?",null,null,null,null,null,null,null,"1. S'il n'y avait pas de relation entre le type de présentation et l'intérêt dans la matière, combien d'étudiants voudraient en savoir plus dans le cas d'une présentation de type filmographique?",null,null,null,null,null,null,null,"1. S'il n'y avait pas de relation entre le type de présentation et l'intérêt dans la matière, combien d'étudiants voudraient en savoir plus dans le cas d'une présentation de type filmographique?",null,null,null,null,null,null,null,"1. S'il n'y avait pas de relation entre le type de présentation et l'intérêt dans la matière, combien d'étudiants voudraient en savoir plus dans le cas d'une présentation de type filmographique?",null,null,null,null,null,null,null,"1. S'il n'y avait pas de relation entre le type de présentation et l'intérêt dans la matière, combien d'étudiants voudraient en savoir plus dans le cas d'une présentation de type filmographique?",null,null,null,null,null,null,null,"1. S'il n'y avait pas de relation entre le type de présentation et l'intérêt dans la matière, combien d'étudiants voudraient en savoir plus dans le cas d'une présentation de type filmographique?",null,null,null,null,null,null,null,"1. S'il n'y avait pas de relation entre le type de présentation et l'intérêt dans la matière, combien d'étudiants voudraient en savoir plus dans le cas d'une présentation de type filmographique?",null,null,null,null,null,null,null,"1. S'il n'y avait pas de relation entre le type de présentation et l'intérêt dans la matière, combien d'étudiants voudraient en savoir plus dans le cas d'une présentation de type filmographique?",null,null,null,null,null,null,null,"1. S'il n'y avait pas de relation entre le type de présentation et l'intérêt dans la matière, combien d'étudiants voudraient en savoir plus dans le cas d'une présentation de type filmographique?",null,null,null,null,null,null,null,"1. S'il n'y avait pas de relation entre le type de présentation et l'intérêt dans la matière, combien d'étudiants voudraient en savoir plus dans le cas d'une présentation de type filmographique?",null,null,null,null,null,null,null,"1. S'il n'y avait pas de relation entre le type de présentation et l'intérêt dans la matière, combien d'étudiants voudraient en savoir plus dans le cas d'une présentation de type filmographique?",null,null,null,null,null,null,null,"1. S'il n'y avait pas de relation entre le type de présentation et l'intérêt dans la matière, combien d'étudiants voudraient en savoir plus dans le cas d'une présentation de type filmographique?",null,null,null,null,null,null,null,"1. S'il n'y avait pas de relation entre le type de présentation et l'intérêt dans la matière, combien d'étudiants voudraient en savoir plus dans le cas d'une présentation de type filmographique?",null,null,null,null,null,null,null,"1. S'il n'y avait pas de relation entre le type de présentation et l'intérêt dans la matière, combien d'étudiants voudraient en savoir plus dans le cas d'une présentation de type filmographique?",null,null,null,null,null,null,null,"1. S'il n'y avait pas de relation entre le type de présentation et l'intérêt dans la matière, combien d'étudiants voudraient en savoir plus dans le cas d'une présentation de type filmographique?",null,null,null,null,null,null,null,"1. S'il n'y avait pas de relation entre le type de présentation et l'intérêt dans la matière, combien d'étudiants voudraient en savoir plus dans le cas d'une présentation de type filmographique?",null,null,null,null,null,null,null,"1. S'il n'y avait pas de relation entre le type de présentation et l'intérêt dans la matière, combien d'étudiants voudraient en savoir plus dans le cas d'une présentation de type filmographique?",null,null,null,null,null,null,null,"1. S'il n'y avait pas de relation entre le type de présentation et l'intérêt dans la matière, combien d'étudiants voudraient en savoir plus dans le cas d'une présentation de type filmographique?",null,null,null,null,null,null,null,"1. S'il n'y avait pas de relation entre le type de présentation et l'intérêt dans la matière, combien d'étudiants voudraient en savoir plus dans le cas d'une présentation de type filmographique?",null,null,null,null,null,null,null,"1. S'il n'y avait pas de relation entre le type de présentation et l'intérêt dans la matière, combien d'étudiants voudraient en savoir plus dans le cas d'une présentation de type filmographique?",null,null,null,null,null,null,null,"1. S'il n'y avait pas de relation entre le type de présentation et l'intérêt dans la matière, combien d'étudiants voudraient en savoir plus dans le cas d'une présentation de type filmographique?",null,null,null,null,null,null,null,"1. S'il n'y avait pas de relation entre le type de présentation et l'intérêt dans la matière, combien d'étudiants voudraient en savoir plus dans le cas d'une présentation de type filmographique?",null,null,null,null,null,null,null,"1. S'il n'y avait pas de relation entre le type de présentation et l'intérêt dans la matière, combien d'étudiants voudraient en savoir plus dans le cas d'une présentation de type filmographique?",null,null,null,null,null,null,null,"1. S'il n'y avait pas de relation entre le type de présentation et l'intérêt dans la matière, combien d'étudiants voudraient en savoir plus dans le cas d'une présentation de type filmographique?",null,null,null,null,null,null,null,"1. S'il n'y avait pas de relation entre le type de présentation et l'intérêt dans la matière, combien d'étudiants voudraient en savoir plus dans le cas d'une présentation de type filmographique?",null,null,null,null,null,null,null,"1. S'il n'y avait pas de relation entre le type de présentation et l'intérêt dans la matière, combien d'étudiants voudraient en savoir plus dans le cas d'une présentation de type filmographique?",null,null,null,null,null,null,null,"1. S'il n'y avait pas de relation entre le type de présentation et l'intérêt dans la matière, combien d'étudiants voudraient en savoir plus dans le cas d'une présentation de type filmographique?",null,null,null,null,null,null,null,"1. S'il n'y avait pas de relation entre le type de présentation et l'intérêt dans la matière, combien d'étudiants voudraient en savoir plus dans le cas d'une présentation de type filmographique?",null,null,null,null,null,null,null,"1. S'il n'y avait pas de relation entre le type de présentation et l'intérêt dans la matière, combien d'étudiants voudraient en savoir plus dans le cas d'une présentation de type filmographique?",null,null,null,null,null,null,null,"1. S'il n'y avait pas de relation entre le type de présentation et l'intérêt dans la matière, combien d'étudiants voudraient en savoir plus dans le cas d'une présentation de type filmographique?",null,null,null,null,null,null,null,"1. S'il n'y avait pas de relation entre le type de présentation et l'intérêt dans la matière, combien d'étudiants voudraient en savoir plus dans le cas d'une présentation de type filmographique?",null,null,null,null,null,null,null,"1. S'il n'y avait pas de relation entre le type de présentation et l'intérêt dans la matière, combien d'étudiants voudraient en savoir plus dans le cas d'une présentation de type filmographique?",null,null,null,null,null,null,null,"1. S'il n'y avait pas de relation entre le type de présentation et l'intérêt dans la matière, combien d'étudiants voudraient en savoir plus dans le cas d'une présentation de type filmographique?",null,null,null,null,null,null,null,"1. S'il n'y avait pas de relation entre le type de présentation et l'intérêt dans la matière, combien d'étudiants voudraient en savoir plus dans le cas d'une présentation de type filmographique?",null,null,null,null,null,null,null,"1. S'il n'y avait pas de relation entre le type de présentation et l'intérêt dans la matière, combien d'étudiants voudraient en savoir plus dans le cas d'une présentation de type filmographique?",null,null,null,null,null,null,null,"1. S'il n'y avait pas de relation entre le type de présentation et l'intérêt dans la matière, combien d'étudiants voudraient en savoir plus dans le cas d'une présentation de type filmographique?",null,null,null,null,null,null,null,"1. S'il n'y avait pas de relation entre le type de présentation et l'intérêt dans la matière, combien d'étudiants voudraient en savoir plus dans le cas d'une présentation de type filmographique?",null,null,null,null,null,null,null,"1. S'il n'y avait pas de relation entre le type de présentation et l'intérêt dans la matière, combien d'étudiants voudraient en savoir plus dans le cas d'une présentation de type filmographique?",null,null,null,null,null,null,null,"1. S'il n'y avait pas de relation entre le type de présentation et l'intérêt dans la matière, combien d'étudiants voudraient en savoir plus dans le cas d'une présentation de type filmographique?",null,null,null,null,null,null,null,"1. S'il n'y avait pas de relation entre le type de présentation et l'intérêt dans la matière, combien d'étudiants voudraient en savoir plus dans le cas d'une présentation de type filmographique?",null,null,null,null,null,null,null,"1. S'il n'y avait pas de relation entre le type de présentation et l'intérêt dans la matière, combien d'étudiants voudraient en savoir plus dans le cas d'une présentation de type filmographique?",null,null,null,null,null,null,null,"1. S'il n'y avait pas de relation entre le type de présentation et l'intérêt dans la matière, combien d'étudiants voudraient en savoir plus dans le cas d'une présentation de type filmographique?",null,null,null,null,null,null,null,"1. S'il n'y avait pas de relation entre le type de présentation et l'intérêt dans la matière, combien d'étudiants voudraient en savoir plus dans le cas d'une présentation de type filmographique?",null,null,null,null,null,null,null,"1. S'il n'y avait pas de relation entre le type de présentation et l'intérêt dans la matière, combien d'étudiants voudraient en savoir plus dans le cas d'une présentation de type filmographique?",null,null,null,null,null,null,null,"1. S'il n'y avait pas de relation entre le type de présentation et l'intérêt dans la matière, combien d'étudiants voudraient en savoir plus dans le cas d'une présentation de type filmographique?",null,null,null,null,null,null,null,"1. S'il n'y avait pas de relation entre le type de présentation et l'intérêt dans la matière, combien d'étudiants voudraient en savoir plus dans le cas d'une présentation de type filmographique?",null,null,null,null,null,null,null,"1. S'il n'y avait pas de relation entre le type de présentation et l'intérêt dans la matière, combien d'étudiants voudraient en savoir plus dans le cas d'une présentation de type filmographique?",null,null,null,null,null,null,null,"1. S'il n'y avait pas de relation entre le type de présentation et l'intérêt dans la matière, combien d'étudiants voudraient en savoir plus dans le cas d'une présentation de type filmographique?",null,null,null,null,null,null,null,"1. S'il n'y avait pas de relation entre le type de présentation et l'intérêt dans la matière, combien d'étudiants voudraient en savoir plus dans le cas d'une présentation de type filmographique?",null,null,null,null,null,null,null,"1. S'il n'y avait pas de relation entre le type de présentation et l'intérêt dans la matière, combien d'étudiants voudraient en savoir plus dans le cas d'une présentation de type filmographique?",null,null,null,null,null,null,null,"1. S'il n'y avait pas de relation entre le type de présentation et l'intérêt dans la matière, combien d'étudiants voudraient en savoir plus dans le cas d'une présentation de type filmographique?",null,null,null,null,null,null,null,"1. S'il n'y avait pas de relation entre le type de présentation et l'intérêt dans la matière, combien d'étudiants voudraient en savoir plus dans le cas d'une présentation de type filmographique?",null,null,null,null,null,null,null,"1. S'il n'y avait pas de relation entre le type de présentation et l'intérêt dans la matière, combien d'étudiants voudraient en savoir plus dans le cas d'une présentation de type filmographique?",null,null,null,null,null,null,null,"1. S'il n'y avait pas de relation entre le type de présentation et l'intérêt dans la matière, combien d'étudiants voudraient en savoir plus dans le cas d'une présentation de type filmographique?",null,null,null,null,null,null,null,"1. S'il n'y avait pas de relation entre le type de présentation et l'intérêt dans la matière, combien d'étudiants voudraient en savoir plus dans le cas d'une présentation de type filmographique?",null,null,null,null,null,null,null,"1. S'il n'y avait pas de relation entre le type de présentation et l'intérêt dans la matière, combien d'étudiants voudraient en savoir plus dans le cas d'une présentation de type filmographique?",null,null,null,null,null,null,null,"1. S'il n'y avait pas de relation entre le type de présentation et l'intérêt dans la matière, combien d'étudiants voudraient en savoir plus dans le cas d'une présentation de type filmographique?",null,null,null,null,null,null,null,"1. S'il n'y avait pas de relation entre le type de présentation et l'intérêt dans la matière, combien d'étudiants voudraient en savoir plus dans le cas d'une présentation de type filmographique?",null,null,null,null,null,null,null,"1. S'il n'y avait pas de relation entre le type de présentation et l'intérêt dans la matière, combien d'étudiants voudraient en savoir plus dans le cas d'une présentation de type filmographique?",null,null,null,null,null,null,null,"1. S'il n'y avait pas de relation entre le type de présentation et l'intérêt dans la matière, combien d'étudiants voudraient en savoir plus dans le cas d'une présentation de type filmographique?",null,null,null,null,null,null,null,"1. S'il n'y avait pas de relation entre le type de présentation et l'intérêt dans la matière, combien d'étudiants voudraient en savoir plus dans le cas d'une présentation de type filmographique?",null,null,null,null,null,null,null,"1. S'il n'y avait pas de relation entre le type de présentation et l'intérêt dans la matière, combien d'étudiants voudraient en savoir plus dans le cas d'une présentation de type filmographique?",null,null,null,null,null,null,null,"1. S'il n'y avait pas de relation entre le type de présentation et l'intérêt dans la matière, combien d'étudiants voudraient en savoir plus dans le cas d'une présentation de type filmographique?",null,null,null,null,null,null,null,"1. S'il n'y avait pas de relation entre le type de présentation et l'intérêt dans la matière, combien d'étudiants voudraient en savoir plus dans le cas d'une présentation de type filmographique?",null,null,null,null,null,null,null,"1. S'il n'y avait pas de relation entre le type de présentation et l'intérêt dans la matière, combien d'étudiants voudraient en savoir plus dans le cas d'une présentation de type filmographique?",null,null,null,null,null,null,null,"1. S'il n'y avait pas de relation entre le type de présentation et l'intérêt dans la matière, combien d'étudiants voudraient en savoir plus dans le cas d'une présentation de type filmographique?",null,null,null,null,null,null,null,"1. S'il n'y avait pas de relation entre le type de présentation et l'intérêt dans la matière, combien d'étudiants voudraient en savoir plus dans le cas d'une présentation de type filmographique?",null,null,null,null,null,null,null,"1. S'il n'y avait pas de relation entre le type de présentation et l'intérêt dans la matière, combien d'étudiants voudraient en savoir plus dans le cas d'une présentation de type filmographique?",null,null,null,null,null,null,null,"1. S'il n'y avait pas de relation entre le type de présentation et l'intérêt dans la matière, combien d'étudiants voudraient en savoir plus dans le cas d'une présentation de type filmographique?",null,null,null,null,null,null,null,"1. S'il n'y avait pas de relation entre le type de présentation et l'intérêt dans la matière, combien d'étudiants voudraient en savoir plus dans le cas d'une présentation de type filmographique?",null,null,null,null,null,null,null,"1. S'il n'y avait pas de relation entre le type de présentation et l'intérêt dans la matière, combien d'étudiants voudraient en savoir plus dans le cas d'une présentation de type filmographique?",null,null,null,null,null,null,null,"1. S'il n'y avait pas de relation entre le type de présentation et l'intérêt dans la matière, combien d'étudiants voudraient en savoir plus dans le cas d'une présentation de type filmographique?",null,null,null,null,null,null,null,"1. S'il n'y avait pas de relation entre le type de présentation et l'intérêt dans la matière, combien d'étudiants voudraient en savoir plus dans le cas d'une présentation de type filmographique?",null,null,null,null,null,null,null,"1. S'il n'y avait pas de relation entre le type de présentation et l'intérêt dans la matière, combien d'étudiants voudraient en savoir plus dans le cas d'une présentation de type filmographique?",null,null,null,null,null,null,null,"1. S'il n'y avait pas de relation entre le type de présentation et l'intérêt dans la matière, combien d'étudiants voudraient en savoir plus dans le cas d'une présentation de type filmographique?",null,null,null,null,null,null,null,"1. S'il n'y avait pas de relation entre le type de présentation et l'intérêt dans la matière, combien d'étudiants voudraient en savoir plus dans le cas d'une présentation de type filmographique?",null,null,null,null,null,null,null,"1. S'il n'y avait pas de relation entre le type de présentation et l'intérêt dans la matière, combien d'étudiants voudraient en savoir plus dans le cas d'une présentation de type filmographique?",null,null,null,null,null,null,null,"1. S'il n'y avait pas de relation entre le type de présentation et l'intérêt dans la matière, combien d'étudiants voudraient en savoir plus dans le cas d'une présentation de type filmographique?",null,null,null,null,null,null,null,"1. S'il n'y avait pas de relation entre le type de présentation et l'intérêt dans la matière, combien d'étudiants voudraient en savoir plus dans le cas d'une présentation de type filmographique?",null,null,null,null,null,null,null,"1. S'il n'y avait pas de relation entre le type de présentation et l'intérêt dans la matière, combien d'étudiants voudraient en savoir plus dans le cas d'une présentation de type filmographique?",null,null,null,null,null,null,null,"1. S'il n'y avait pas de relation entre le type de présentation et l'intérêt dans la matière, combien d'étudiants voudraient en savoir plus dans le cas d'une présentation de type filmographique?",null,null,null,null,null,null,null,"1. S'il n'y avait pas de relation entre le type de présentation et l'intérêt dans la matière, combien d'étudiants voudraient en savoir plus dans le cas d'une présentation de type filmographique?",null,null,null,null,null,null,null,"1. S'il n'y avait pas de relation entre le type de présentation et l'intérêt dans la matière, combien d'étudiants voudraient en savoir plus dans le cas d'une présentation de type filmographique?",null,null,null,null,null,null,null,"1. S'il n'y avait pas de relation entre le type de présentation et l'intérêt dans la matière, combien d'étudiants voudraient en savoir plus dans le cas d'une présentation de type filmographique?",null,null,null,null,null,null,null,"1. S'il n'y avait pas de relation entre le type de présentation et l'intérêt dans la matière, combien d'étudiants voudraient en savoir plus dans le cas d'une présentation de type filmographique?",null,null,null,null,null,null,null,"1. S'il n'y avait pas de relation entre le type de présentation et l'intérêt dans la matière, combien d'étudiants voudraient en savoir plus dans le cas d'une présentation de type filmographique?",null,null,null,null,null,null,null,"1. S'il n'y avait pas de relation entre le type de présentation et l'intérêt dans la matière, combien d'étudiants voudraient en savoir plus dans le cas d'une présentation de type filmographique?",null,null,null,null,null,null,null,"1. S'il n'y avait pas de relation entre le type de présentation et l'intérêt dans la matière, combien d'étudiants voudraient en savoir plus dans le cas d'une présentation de type filmographique?",null,null,null,null,null,null,null,"1. S'il n'y avait pas de relation entre le type de présentation et l'intérêt dans la matière, combien d'étudiants voudraient en savoir plus dans le cas d'une présentation de type filmographique?",null,null,null,null,null,null,null,"1. S'il n'y avait pas de relation entre le type de présentation et l'intérêt dans la matière, combien d'étudiants voudraient en savoir plus dans le cas d'une présentation de type filmographique?",null,null,null,null,null,null,null,"1. S'il n'y avait pas de relation entre le type de présentation et l'intérêt dans la matière, combien d'étudiants voudraient en savoir plus dans le cas d'une présentation de type filmographique?",null,null,null,null,null,null,null,"1. S'il n'y avait pas de relation entre le type de présentation et l'intérêt dans la matière, combien d'étudiants voudraient en savoir plus dans le cas d'une présentation de type filmographique?",null,null,null,null,null,null,null,"1. S'il n'y avait pas de relation entre le type de présentation et l'intérêt dans la matière, combien d'étudiants voudraient en savoir plus dans le cas d'une présentation de type filmographique?",null,null,null,null,null,null,null,"1. S'il n'y avait pas de relation entre le type de présentation et l'intérêt dans la matière, combien d'étudiants voudraient en savoir plus dans le cas d'une présentation de type filmographique?",null,null,null,null,null,null,null,"1. S'il n'y avait pas de relation entre le type de présentation et l'intérêt dans la matière, combien d'étudiants voudraient en savoir plus dans le cas d'une présentation de type filmographique?",null,null,null,null,null,null,null,"1. S'il n'y avait pas de relation entre le type de présentation et l'intérêt dans la matière, combien d'étudiants voudraient en savoir plus dans le cas d'une présentation de type filmographique?",null,null,null,null,null,null,null,"1. S'il n'y avait pas de relation entre le type de présentation et l'intérêt dans la matière, combien d'étudiants voudraient en savoir plus dans le cas d'une présentation de type filmographique?",null,null,null,null,null,null,null,"1. S'il n'y avait pas de relation entre le type de présentation et l'intérêt dans la matière, combien d'étudiants voudraient en savoir plus dans le cas d'une présentation de type filmographique?",null,null,null,null,null,null,null,"1. S'il n'y avait pas de relation entre le type de présentation et l'intérêt dans la matière, combien d'étudiants voudraient en savoir plus dans le cas d'une présentation de type filmographique?",null,null,null,null,null,null,null,"1. S'il n'y avait pas de relation entre le type de présentation et l'intérêt dans la matière, combien d'étudiants voudraient en savoir plus dans le cas d'une présentation de type filmographique?",null,null,null,null,null,null,null,"1. S'il n'y avait pas de relation entre le type de présentation et l'intérêt dans la matière, combien d'étudiants voudraient en savoir plus dans le cas d'une présentation de type filmographique?",null,null,null,null,null,null,null,"1. S'il n'y avait pas de relation entre le type de présentation et l'intérêt dans la matière, combien d'étudiants voudraient en savoir plus dans le cas d'une présentation de type filmographique?",null,null,null,null,null,null,null,"1. S'il n'y avait pas de relation entre le type de présentation et l'intérêt dans la matière, combien d'étudiants voudraient en savoir plus dans le cas d'une présentation de type filmographique?",null,null,null,null,null,null,null,"1. S'il n'y avait pas de relation entre le type de présentation et l'intérêt dans la matière, combien d'étudiants voudraient en savoir plus dans le cas d'une présentation de type filmographique?",null,null,null,null,null,null,null,"1. S'il n'y avait pas de relation entre le type de présentation et l'intérêt dans la matière, combien d'étudiants voudraient en savoir plus dans le cas d'une présentation de type filmographique?",null,null,null,null,null,null,null,"1. S'il n'y avait pas de relation entre le type de présentation et l'intérêt dans la matière, combien d'étudiants voudraient en savoir plus dans le cas d'une présentation de type filmographique?",null,null,null,null,null,null,null,"1. S'il n'y avait pas de relation entre le type de présentation et l'intérêt dans la matière, combien d'étudiants voudraient en savoir plus dans le cas d'une présentation de type filmographique?",null,null,null,null,null,null,null,"1. S'il n'y avait pas de relation entre le type de présentation et l'intérêt dans la matière, combien d'étudiants voudraient en savoir plus dans le cas d'une présentation de type filmographique?",null,null,null,null,null,null,null,"1. S'il n'y avait pas de relation entre le type de présentation et l'intérêt dans la matière, combien d'étudiants voudraient en savoir plus dans le cas d'une présentation de type filmographique?",null,null,null,null,null,null,null,"1. S'il n'y avait pas de relation entre le type de présentation et l'intérêt dans la matière, combien d'étudiants voudraient en savoir plus dans le cas d'une présentation de type filmographique?",null,null,null,null,null,null,null,"1. S'il n'y avait pas de relation entre le type de présentation et l'intérêt dans la matière, combien d'étudiants voudraient en savoir plus dans le cas d'une présentation de type filmographique?",null,null,null,null,null,null,null,"1. S'il n'y avait pas de relation entre le type de présentation et l'intérêt dans la matière, combien d'étudiants voudraient en savoir plus dans le cas d'une présentation de type filmographique?",null,null,null,null,null,null,null,"1. S'il n'y avait pas de relation entre le type de présentation et l'intérêt dans la matière, combien d'étudiants voudraient en savoir plus dans le cas d'une présentation de type filmographique?",null,null,null,null,null,null,null,"1. S'il n'y avait pas de relation entre le type de présentation et l'intérêt dans la matière, combien d'étudiants voudraient en savoir plus dans le cas d'une présentation de type filmographique?",null,null,null,null,null,null,null,"1. S'il n'y avait pas de relation entre le type de présentation et l'intérêt dans la matière, combien d'étudiants voudraient en savoir plus dans le cas d'une présentation de type filmographique?",null,null,null,null,null,null,null,"1. S'il n'y avait pas de relation entre le type de présentation et l'intérêt dans la matière, combien d'étudiants voudraient en savoir plus dans le cas d'une présentation de type filmographique?",null,null,null,null,null,null,null,"1. S'il n'y avait pas de relation entre le type de présentation et l'intérêt dans la matière, combien d'étudiants voudraient en savoir plus dans le cas d'une présentation de type filmographique?",null,null,null,null,null,null,null,"1. S'il n'y avait pas de relation entre le type de présentation et l'intérêt dans la matière, combien d'étudiants voudraient en savoir plus dans le cas d'une présentation de type filmographique?",null,null,null,null,null,null,null,"1. S'il n'y avait pas de relation entre le type de présentation et l'intérêt dans la matière, combien d'étudiants voudraient en savoir plus dans le cas d'une présentation de type filmographique?",null,null,null,null,null,null,null,"1. S'il n'y avait pas de relation entre le type de présentation et l'intérêt dans la matière, combien d'étudiants voudraient en savoir plus dans le cas d'une présentation de type filmographique?",null,null,null,null,null,null,null,"1. S'il n'y avait pas de relation entre le type de présentation et l'intérêt dans la matière, combien d'étudiants voudraient en savoir plus dans le cas d'une présentation de type filmographique?",null,null,null,null,null,null,null,"1. S'il n'y avait pas de relation entre le type de présentation et l'intérêt dans la matière, combien d'étudiants voudraient en savoir plus dans le cas d'une présentation de type filmographique?",null,null,null,null,null,null,null,"1. S'il n'y avait pas de relation entre le type de présentation et l'intérêt dans la matière, combien d'étudiants voudraient en savoir plus dans le cas d'une présentation de type filmographique?",null,null,null,null,null,null,null,"1. S'il n'y avait pas de relation entre le type de présentation et l'intérêt dans la matière, combien d'étudiants voudraient en savoir plus dans le cas d'une présentation de type filmographique?",null,null,null,null,null,null,null,"1. S'il n'y avait pas de relation entre le type de présentation et l'intérêt dans la matière, combien d'étudiants voudraient en savoir plus dans le cas d'une présentation de type filmographique?",null,null,null,null,null,null,null,"1. S'il n'y avait pas de relation entre le type de présentation et l'intérêt dans la matière, combien d'étudiants voudraient en savoir plus dans le cas d'une présentation de type filmographique?",null,null,null,null,null,null,null,"1. S'il n'y avait pas de relation entre le type de présentation et l'intérêt dans la matière, combien d'étudiants voudraient en savoir plus dans le cas d'une présentation de type filmographique?",null,null,null,null,null,null,null,"1. S'il n'y avait pas de relation entre le type de présentation et l'intérêt dans la matière, combien d'étudiants voudraient en savoir plus dans le cas d'une présentation de type filmographique?",null,null,null,null,null,null,null,"1. S'il n'y avait pas de relation entre le type de présentation et l'intérêt dans la matière, combien d'étudiants voudraient en savoir plus dans le cas d'une présentation de type filmographique?",null,null,null,null,null,null,null,"1. S'il n'y avait pas de relation entre le type de présentation et l'intérêt dans la matière, combien d'étudiants voudraient en savoir plus dans le cas d'une présentation de type filmographique?",null,null,null,null,null,null,null,"1. S'il n'y avait pas de relation entre le type de présentation et l'intérêt dans la matière, combien d'étudiants voudraient en savoir plus dans le cas d'une présentation de type filmographique?",null,null,null,null,null,null,null,"1. S'il n'y avait pas de relation entre le type de présentation et l'intérêt dans la matière, combien d'étudiants voudraient en savoir plus dans le cas d'une présentation de type filmographique?",null,null,null,null,null,null,null,"1. S'il n'y avait pas de relation entre le type de présentation et l'intérêt dans la matière, combien d'étudiants voudraient en savoir plus dans le cas d'une présentation de type filmographique?",null,null,null,null,null,null,null,"1. S'il n'y avait pas de relation entre le type de présentation et l'intérêt dans la matière, combien d'étudiants voudraient en savoir plus dans le cas d'une présentation de type filmographique?",null,null,null,null,null,null,null,"1. S'il n'y avait pas de relation entre le type de présentation et l'intérêt dans la matière, combien d'étudiants voudraient en savoir plus dans le cas d'une présentation de type filmographique?",null,null,null,null,null,null,null,"1. S'il n'y avait pas de relation entre le type de présentation et l'intérêt dans la matière, combien d'étudiants voudraient en savoir plus dans le cas d'une présentation de type filmographique?",null,null,null,null,null,null,null,"1. S'il n'y avait pas de relation entre le type de présentation et l'intérêt dans la matière, combien d'étudiants voudraient en savoir plus dans le cas d'une présentation de type filmographique?",null,null,null,null,null,null,null,"1. S'il n'y avait pas de relation entre le type de présentation et l'intérêt dans la matière, combien d'étudiants voudraient en savoir plus dans le cas d'une présentation de type filmographique?",null,null,null,null,null,null,null,"1. S'il n'y avait pas de relation entre le type de présentation et l'intérêt dans la matière, combien d'étudiants voudraient en savoir plus dans le cas d'une présentation de type filmographique?",null,null,null,null,null,null,null,"1. S'il n'y avait pas de relation entre le type de présentation et l'intérêt dans la matière, combien d'étudiants voudraient en savoir plus dans le cas d'une présentation de type filmographique?",null,null,null,null,null,null,null,"1. S'il n'y avait pas de relation entre le type de présentation et l'intérêt dans la matière, combien d'étudiants voudraient en savoir plus dans le cas d'une présentation de type filmographique?",null,null,null,null,null,null,null,"1. S'il n'y avait pas de relation entre le type de présentation et l'intérêt dans la matière, combien d'étudiants voudraient en savoir plus dans le cas d'une présentation de type filmographique?",null,null,null,null,null,null,null,"1. S'il n'y avait pas de relation entre le type de présentation et l'intérêt dans la matière, combien d'étudiants voudraient en savoir plus dans le cas d'une présentation de type filmographique?",null,null,null,null,null,null,null,"1. S'il n'y avait pas de relation entre le type de présentation et l'intérêt dans la matière, combien d'étudiants voudraient en savoir plus dans le cas d'une présentation de type filmographique?",null,null,null,null,null,null,null,"1. S'il n'y avait pas de relation entre le type de présentation et l'intérêt dans la matière, combien d'étudiants voudraient en savoir plus dans le cas d'une présentation de type filmographique?",null,null,null,null,null,null,null,"1. S'il n'y avait pas de relation entre le type de présentation et l'intérêt dans la matière, combien d'étudiants voudraient en savoir plus dans le cas d'une présentation de type filmographique?",null,null,null,null,null,null,null,"1. S'il n'y avait pas de relation entre le type de présentation et l'intérêt dans la matière, combien d'étudiants voudraient en savoir plus dans le cas d'une présentation de type filmographique?",null,null,null,null,null,null,null,"1. S'il n'y avait pas de relation entre le type de présentation et l'intérêt dans la matière, combien d'étudiants voudraient en savoir plus dans le cas d'une présentation de type filmographique?",null,null,null,null,null,null,null,"1. S'il n'y avait pas de relation entre le type de présentation et l'intérêt dans la matière, combien d'étudiants voudraient en savoir plus dans le cas d'une présentation de type filmographique?",null,null,null,null,null,null,null,"1. S'il n'y avait pas de relation entre le type de présentation et l'intérêt dans la matière, combien d'étudiants voudraient en savoir plus dans le cas d'une présentation de type filmographique?",null,null,null,null,null,null,null,"1. S'il n'y avait pas de relation entre le type de présentation et l'intérêt dans la matière, combien d'étudiants voudraient en savoir plus dans le cas d'une présentation de type filmographique?",null,null,null,null,null,null,null,"1. S'il n'y avait pas de relation entre le type de présentation et l'intérêt dans la matière, combien d'étudiants voudraient en savoir plus dans le cas d'une présentation de type filmographique?",null,null,null,null,null,null,null,"1. S'il n'y avait pas de relation entre le type de présentation et l'intérêt dans la matière, combien d'étudiants voudraient en savoir plus dans le cas d'une présentation de type filmographique?",null,null,null,null,null,null,null,"1. S'il n'y avait pas de relation entre le type de présentation et l'intérêt dans la matière, combien d'étudiants voudraient en savoir plus dans le cas d'une présentation de type filmographique?",null,null,null,null,null,null,null,"1. S'il n'y avait pas de relation entre le type de présentation et l'intérêt dans la matière, combien d'étudiants voudraient en savoir plus dans le cas d'une présentation de type filmographique?",null,null,null,null,null,null,null,"1. S'il n'y avait pas de relation entre le type de présentation et l'intérêt dans la matière, combien d'étudiants voudraient en savoir plus dans le cas d'une présentation de type filmographique?",null,null,null,null,null,null,null,"1. S'il n'y avait pas de relation entre le type de présentation et l'intérêt dans la matière, combien d'étudiants voudraient en savoir plus dans le cas d'une présentation de type filmographique?",null,null,null,null,null,null,null,"1. S'il n'y avait pas de relation entre le type de présentation et l'intérêt dans la matière, combien d'étudiants voudraient en savoir plus dans le cas d'une présentation de type filmographique?",null,null,null,null,null,null,null,"1. S'il n'y avait pas de relation entre le type de présentation et l'intérêt dans la matière, combien d'étudiants voudraient en savoir plus dans le cas d'une présentation de type filmographique?",null,null,null,null,null,null,null,"1. S'il n'y avait pas de relation entre le type de présentation et l'intérêt dans la matière, combien d'étudiants voudraient en savoir plus dans le cas d'une présentation de type filmographique?",null,null,null,null,null,null,null,"1. S'il n'y avait pas de relation entre le type de présentation et l'intérêt dans la matière, combien d'étudiants voudraient en savoir plus dans le cas d'une présentation de type filmographique?",null,null,null,null,null,null,null,"1. S'il n'y avait pas de relation entre le type de présentation et l'intérêt dans la matière, combien d'étudiants voudraient en savoir plus dans le cas d'une présentation de type filmographique?",null,null,null,null,null,null,null,"1. S'il n'y avait pas de relation entre le type de présentation et l'intérêt dans la matière, combien d'étudiants voudraient en savoir plus dans le cas d'une présentation de type filmographique?",null,null,null,null,null,null,null,"1. S'il n'y avait pas de relation entre le type de présentation et l'intérêt dans la matière, combien d'étudiants voudraient en savoir plus dans le cas d'une présentation de type filmographique?",null,null,null,null,null,null,null,"1. S'il n'y avait pas de relation entre le type de présentation et l'intérêt dans la matière, combien d'étudiants voudraient en savoir plus dans le cas d'une présentation de type filmographique?",null,null,null,null,null,null,null,"1. S'il n'y avait pas de relation entre le type de présentation et l'intérêt dans la matière, combien d'étudiants voudraient en savoir plus dans le cas d'une présentation de type filmographique?",null,null,null,null,null,null,null,"1. S'il n'y avait pas de relation entre le type de présentation et l'intérêt dans la matière, combien d'étudiants voudraient en savoir plus dans le cas d'une présentation de type filmographique?",null,null,null,null,null,null,null,"1. S'il n'y avait pas de relation entre le type de présentation et l'intérêt dans la matière, combien d'étudiants voudraient en savoir plus dans le cas d'une présentation de type filmographique?",null,null,null,null,null,null,null,"1. S'il n'y avait pas de relation entre le type de présentation et l'intérêt dans la matière, combien d'étudiants voudraient en savoir plus dans le cas d'une présentation de type filmographique?",null,null,null,null,null,null,null,"1. S'il n'y avait pas de relation entre le type de présentation et l'intérêt dans la matière, combien d'étudiants voudraient en savoir plus dans le cas d'une présentation de type filmographique?",null,null,null,null,null,null,null,"1. S'il n'y avait pas de relation entre le type de présentation et l'intérêt dans la matière, combien d'étudiants voudraient en savoir plus dans le cas d'une présentation de type filmographique?",null,null,null,null,null,null,null,"1. S'il n'y avait pas de relation entre le type de présentation et l'intérêt dans la matière, combien d'étudiants voudraient en savoir plus dans le cas d'une présentation de type filmographique?",null,null,null,null,null,null,null,"1. S'il n'y avait pas de relation entre le type de présentation et l'intérêt dans la matière, combien d'étudiants voudraient en savoir plus dans le cas d'une présentation de type filmographique?",null,null,null,null,null,null,null,"1. S'il n'y avait pas de relation entre le type de présentation et l'intérêt dans la matière, combien d'étudiants voudraient en savoir plus dans le cas d'une présentation de type filmographique?",null,null,null,null,null,null,null,"1. S'il n'y avait pas de relation entre le type de présentation et l'intérêt dans la matière, combien d'étudiants voudraient en savoir plus dans le cas d'une présentation de type filmographique?",null,null,null,null,null,null,null,"1. S'il n'y avait pas de relation entre le type de présentation et l'intérêt dans la matière, combien d'étudiants voudraient en savoir plus dans le cas d'une présentation de type filmographique?",null,null,null,null,null,null,null,"1. S'il n'y avait pas de relation entre le type de présentation et l'intérêt dans la matière, combien d'étudiants voudraient en savoir plus dans le cas d'une présentation de type filmographique?",null,null,null,null,null,null,null,"1. S'il n'y avait pas de relation entre le type de présentation et l'intérêt dans la matière, combien d'étudiants voudraient en savoir plus dans le cas d'une présentation de type filmographique?",null,null,null,null,null,null,null,"1. S'il n'y avait pas de relation entre le type de présentation et l'intérêt dans la matière, combien d'étudiants voudraient en savoir plus dans le cas d'une présentation de type filmographique?",null,null,null,null,null,null,null,"1. S'il n'y avait pas de relation entre le type de présentation et l'intérêt dans la matière, combien d'étudiants voudraient en savoir plus dans le cas d'une présentation de type filmographique?",null,null,null,null,null,null,null,"1. S'il n'y avait pas de relation entre le type de présentation et l'intérêt dans la matière, combien d'étudiants voudraient en savoir plus dans le cas d'une présentation de type filmographique?",null,null,null,null,null,null,null,"1. S'il n'y avait pas de relation entre le type de présentation et l'intérêt dans la matière, combien d'étudiants voudraient en savoir plus dans le cas d'une présentation de type filmographique?",null,null,null,null,null,null,null,"1. S'il n'y avait pas de relation entre le type de présentation et l'intérêt dans la matière, combien d'étudiants voudraient en savoir plus dans le cas d'une présentation de type filmographique?",null,null,null,null,null,null,null,"1. S'il n'y avait pas de relation entre le type de présentation et l'intérêt dans la matière, combien d'étudiants voudraient en savoir plus dans le cas d'une présentation de type filmographique?",null,null,null,null,null,null,null,"1. S'il n'y avait pas de relation entre le type de présentation et l'intérêt dans la matière, combien d'étudiants voudraient en savoir plus dans le cas d'une présentation de type filmographique?",null,null,null,null,null,null,null,"1. S'il n'y avait pas de relation entre le type de présentation et l'intérêt dans la matière, combien d'étudiants voudraient en savoir plus dans le cas d'une présentation de type filmographique?",null,null,null,null,null,null,null,"1. S'il n'y avait pas de relation entre le type de présentation et l'intérêt dans la matière, combien d'étudiants voudraient en savoir plus dans le cas d'une présentation de type filmographique?",null,null,null,null,null,null,null,"1. S'il n'y avait pas de relation entre le type de présentation et l'intérêt dans la matière, combien d'étudiants voudraient en savoir plus dans le cas d'une présentation de type filmographique?",null,null,null,null,null,null,null,"1. S'il n'y avait pas de relation entre le type de présentation et l'intérêt dans la matière, combien d'étudiants voudraient en savoir plus dans le cas d'une présentation de type filmographique?",null,null,null,null,null,null,null,"1. S'il n'y avait pas de relation entre le type de présentation et l'intérêt dans la matière, combien d'étudiants voudraient en savoir plus dans le cas d'une présentation de type filmographique?",null,null,null,null,null,null,null,"1. S'il n'y avait pas de relation entre le type de présentation et l'intérêt dans la matière, combien d'étudiants voudraient en savoir plus dans le cas d'une présentation de type filmographique?",null,null,null,null,null,null,null,"1. S'il n'y avait pas de relation entre le type de présentation et l'intérêt dans la matière, combien d'étudiants voudraient en savoir plus dans le cas d'une présentation de type filmographique?",null,null,null,null,null,null,null,"1. S'il n'y avait pas de relation entre le type de présentation et l'intérêt dans la matière, combien d'étudiants voudraient en savoir plus dans le cas d'une présentation de type filmographique?",null,null,null,null,null,null,null,"1. S'il n'y avait pas de relation entre le type de présentation et l'intérêt dans la matière, combien d'étudiants voudraient en savoir plus dans le cas d'une présentation de type filmographique?",null,null,null,null,null,null,null,"1. S'il n'y avait pas de relation entre le type de présentation et l'intérêt dans la matière, combien d'étudiants voudraient en savoir plus dans le cas d'une présentation de type filmographique?",null,null,null,null,null,null,null,"1. S'il n'y avait pas de relation entre le type de présentation et l'intérêt dans la matière, combien d'étudiants voudraient en savoir plus dans le cas d'une présentation de type filmographique?",null,null,null,null,null,null,null,"1. S'il n'y avait pas de relation entre le type de présentation et l'intérêt dans la matière, combien d'étudiants voudraient en savoir plus dans le cas d'une présentation de type filmographique?",null,null,null,null,null,null,null,"1. S'il n'y avait pas de relation entre le type de présentation et l'intérêt dans la matière, combien d'étudiants voudraient en savoir plus dans le cas d'une présentation de type filmographique?",null,null,null,null,null,null,null,"1. S'il n'y avait pas de relation entre le type de présentation et l'intérêt dans la matière, combien d'étudiants voudraient en savoir plus dans le cas d'une présentation de type filmographique?",null,null,null,null,null,null,null,"1. S'il n'y avait pas de relation entre le type de présentation et l'intérêt dans la matière, combien d'étudiants voudraient en savoir plus dans le cas d'une présentation de type filmographique?",null,null,null,null,null,null,null,"1. S'il n'y avait pas de relation entre le type de présentation et l'intérêt dans la matière, combien d'étudiants voudraient en savoir plus dans le cas d'une présentation de type filmographique?",null,null,null,null,null,null,null,"1. S'il n'y avait pas de relation entre le type de présentation et l'intérêt dans la matière, combien d'étudiants voudraient en savoir plus dans le cas d'une présentation de type filmographique?",null,null,null,null,null,null,null,"1. S'il n'y avait pas de relation entre le type de présentation et l'intérêt dans la matière, combien d'étudiants voudraient en savoir plus dans le cas d'une présentation de type filmographique?",null,null,null,null,null,null,null,"1. S'il n'y avait pas de relation entre le type de présentation et l'intérêt dans la matière, combien d'étudiants voudraient en savoir plus dans le cas d'une présentation de type filmographique?",null,null,null,null,null,null,null,"1. S'il n'y avait pas de relation entre le type de présentation et l'intérêt dans la matière, combien d'étudiants voudraient en savoir plus dans le cas d'une présentation de type filmographique?",null,null,null,null,null,null,null,"1. S'il n'y avait pas de relation entre le type de présentation et l'intérêt dans la matière, combien d'étudiants voudraient en savoir plus dans le cas d'une présentation de type filmographique?",null,null,null,null,null,null,null,"1. S'il n'y avait pas de relation entre le type de présentation et l'intérêt dans la matière, combien d'étudiants voudraient en savoir plus dans le cas d'une présentation de type filmographique?",null,null,null,null,null,null,null,"1. S'il n'y avait pas de relation entre le type de présentation et l'intérêt dans la matière, combien d'étudiants voudraient en savoir plus dans le cas d'une présentation de type filmographique?",null,null,null,null,null,null,null,"1. S'il n'y avait pas de relation entre le type de présentation et l'intérêt dans la matière, combien d'étudiants voudraient en savoir plus dans le cas d'une présentation de type filmographique?",null,null,null,null,null,null,null,"1. S'il n'y avait pas de relation entre le type de présentation et l'intérêt dans la matière, combien d'étudiants voudraient en savoir plus dans le cas d'une présentation de type filmographique?",null,null,null,null,null,null,null,"1. S'il n'y avait pas de relation entre le type de présentation et l'intérêt dans la matière, combien d'étudiants voudraient en savoir plus dans le cas d'une présentation de type filmographique?",null,null,null,null,null,null,null,"1. S'il n'y avait pas de relation entre le type de présentation et l'intérêt dans la matière, combien d'étudiants voudraient en savoir plus dans le cas d'une présentation de type filmographique?",null,null,null,null,null,null,null,"1. S'il n'y avait pas de relation entre le type de présentation et l'intérêt dans la matière, combien d'étudiants voudraient en savoir plus dans le cas d'une présentation de type filmographique?",null,null,null,null,null,null,null,"1. S'il n'y avait pas de relation entre le type de présentation et l'intérêt dans la matière, combien d'étudiants voudraient en savoir plus dans le cas d'une présentation de type filmographique?",null,null,null,null,null,null,null,"1. S'il n'y avait pas de relation entre le type de présentation et l'intérêt dans la matière, combien d'étudiants voudraient en savoir plus dans le cas d'une présentation de type filmographique?",null,null,null,null,null,null,null,"1. S'il n'y avait pas de relation entre le type de présentation et l'intérêt dans la matière, combien d'étudiants voudraient en savoir plus dans le cas d'une présentation de type filmographique?",null,null,null,null,null,null,null,"1. S'il n'y avait pas de relation entre le type de présentation et l'intérêt dans la matière, combien d'étudiants voudraient en savoir plus dans le cas d'une présentation de type filmographique?",null,null,null,null,null,null,null,"1. S'il n'y avait pas de relation entre le type de présentation et l'intérêt dans la matière, combien d'étudiants voudraient en savoir plus dans le cas d'une présentation de type filmographique?",null,null,null,null,null,null,null,"1. S'il n'y avait pas de relation entre le type de présentation et l'intérêt dans la matière, combien d'étudiants voudraient en savoir plus dans le cas d'une présentation de type filmographique?"]
[]
[null,"5. Calculons le nombre de degrés de liberté du chi-carré"]
[]
[null,null,null,"dl= (r-1) (c-1)"]
[null,null,null,"(2-1) (3-1) =",{"$f":"2","v":2}]
[]
[null,"6. Sur la table, déterminons le chi-carré critique au seuil de signification 0,05 (ou niveau de risque d'erreur de 5%)"]
[]
[null,null,null,"c2 critique =    ",5.99]
[]
[null,"7. Énonçons la règle de décision et représentons graphiquement la décision à l'aide de la distribution d'échantillonnage "]
[]
[null,null,"Rejet de H0 si c2calculé > c2critique "]
[]
[]
[]
[]
[]
[]
[]
[]
[]
[]
[]
[]
[]
[]
[]
[]
[]
[]
[]
[]
[]
[]
[]
[null,"8. Prenons une décision quant au rejet ou non de l'hypothèse nulle et concluons sur la relation"]
[]
[null,"Décision: Le c 2calculé est de seulement 3,373, soit moins que le c 2critique , soit 5,991, correspondant au dl= 2 et au seuil de signification 0,05. Par conséquent, nous acceptons l’hypothèse nulle.  "]
[]
[]
[null,"Autrement dit, l’écart symbolisé par la valeur 3,37 n’est pas suffisamment significatif (i.e. différent de 0) pour  rejeter  l’hypothèse nulle. On accepte l'hypothèse nulle d'une absence de relation.\n "]
[]
[]
[null,"Encore, la probabilité de commettre une erreur de type I en rejetant l'hypothèse nulle (0,185) est importante puisqu'elle est supérieure au seuil critique de 0,05 (voir ci-dessous). "]
[]
[]
[null,"Bien plus, les différences observées dans notre échantillon seraient probablement dues au hasard de l'échantillonnage: elles ne sont pas statistiquement significatives."]
[]
[]
[null,"Conclusion: Il n’y a pas de relation statistiquement significative entre l’instruction et l'opinion face à la désobéissance civile. On est sûr au moins à 95% que les deux variables sont indépendantes dans la population américaine.\n"]
[]
[]
[null,"Une autre façon de prendre une décision consiste à comparer les probabilités associées aux chi-carrés calculé et critique."]
[]
[null,"Rejet de H0 si a calculé < a critique "]
[]
[null,null,null,null,{"$f":"CHITEST(C10:E11,C59:E60)","v":0.185}]
[]
[]
[null,"9. Le test du c2  n'étant pas significatif, il n'est pas nécessaire de calculer l'intensité de la relation."]
[]
[null,"À votre avis, pourquoi la relation, qui existe pourtant dans les données d'échantillon, n'est pas statistiquement significative?"]

{"sheet":"Chi2 - Ex","index":2,"n_rows":110,"n_cols":9,"rows_kept":110,"cut":false,"hidden":false,"merged":[[86,1,86,5],[90,6,98,8],[113,2,113,8],[114,2,114,8],[109,1,109,8],[111,1,111,8],[107,2,107,8],[103,1,103,8],[105,2,105,8],[1,1,1,8],[5,1,5,8],[38,2,38,8],[39,2,39,8],[3,1,3,8],[7,2,7,5],[36,1,36,8],[16,1,16,8],[18,2,18,4],[14,1,14,8],[6,12,6,15],[8,10,11,10],[43,4,43,7],[42,1,42,8],[20,6,33,8],[18,6,18,8],[84,1,84,8],[54,1,54,8],[57,1,57,8],[44,1,44,8],[80,1,80,8],[46,2,46,5],[61,1,61,8],[75,1,75,8]]}
[]
[null,"Exercice: Test d'indépendance ou d'association du c2 (test bivarié)"]
[]
[null,"Y a-t-il une relation d'association entre l'intérêt en anthropologie psychologique et le type de présentation?"]
[]
[null,"Intérêt en anthropologie psychologique selon le type de présentation (en fréquences observées)"]
[]
[null,null,"Type de présentation"]
[null,"Intérêt dans la matière","Film","Diapositives","Traditionnel","Total"]
[null,"Veut en savoir plus",12,6,4,22]
[null,"peu intéressé",10,10,6,26]
[null,"Pas du tout intéressé",8,16,18,42]
[null,"Total",30,32,28,90]
[]
[null,"1. Construisons le tableau bivarié en % et le diagramme en bâtons groupés et analysez-les"]
[]
[null,"Intérêt en anthropologie psychologique selon le type de présentation (en %)"]
[]
[null,null,"Type de présentation"]
[null,"Intérêt dans la matière","Film","Diapositives","Traditionnel"]
[null,"Veut en savoir plus",{"$f":"(12/30)*100","v":40},{"$f":"(6/32)*100","v":19},{"$f":"(4/28)*100","v":14}]
[null,"Peu intéressé",{"$f":"(10/30)*100","v":33},{"$f":"(10/32)*100","v":31},{"$f":"(6/28)*100","v":21}]
[null,"Pas du tout intéressé",{"$f":"(8/30)*100","v":27},{"$f":"(16/32)*100","v":50},{"$f":"(18/28)*100","v":64}]
[null,"Total",{"$f":"SUM(C21:C23)","v":100},{"$f":"SUM(D21:D23)","v":100},100]
[]
[]
[]
[]
[]
[]
[]
[]
[]
[]
[]
[]
[null,"2. Formuler les hypothèses statistiques du test"]
[]
[null,"H0 : "]
[null,"Ha : "]
[]
[]
[null,"3. Calculez les fréquences attendues (théoriques) selon l'hypothèse nulle"]
[]
[null,"Fréquence attendue = (Fréquence total rangée*Fréquence total colonne) / Grand n"]
[]
[null,null,"Type de présentation"]
[null,"Intérêt dans la matière","Film","Diapositives","Traditionnel","Total"]
[null,"Veut en savoir plus",null,null,null,22]
[null,"peu intéressé",null,null,null,26]
[null,"Pas du tout intéressé",null,null,null,42]
[null,"Total",30,32,28,90]
[]
[]
[null,"a. S'il n'y avait pas de relation entre l'intérêt dans la matière et le type de présentation, combien d'étudiants voudraient en savoir plus dans le cas d'une présentation de type filmographique?"]
[]
[]
[null,"b. S'il n'y avait pas de relation entre l'intérêt dans la matière et le type de présentation, combien d'étudiants voudraient en savoir plus dans le cas d'une présentation de type traditionnel?"]
[]
[]
[]
[null,"4. Calculez maintenant le chi-deux: copier et coller les fr. attendues et faites les calculs"]
[]
[null,"Catégories combinées","F0","Fa","F0  -    Fa","(F0  -    Fa )2","(F0  -    Fa )2  /Fa"]
[null,"Film et veut en savoir plus",12]
[null,"Film et peu intéressé",10]
[null,"Film et pas du tout intéressé",8]
[null,"Diapos et veut en savoir plus",6]
[null,"Diapos et peu intéressé",10]
[null,"Diapos et pas du tout intéressé",16]
[null,"Tradi et veut en savoir plus",4]
[null,"Tradi et peu intéressé",6]
[null,"Tradi et pas du tout intéressé",18]
[null,null,null,null,null,"c 2 =    ",null,null,"∑ (F0  -    Fa )2  /Fa"]
[]
[null,"5. Calculez le nombre de degrés de liberté du chi-carré"]
[]
[null,null,null,"dl= (r-1) (c-1)"]
[null,null,null,"(?-1) (?-1) ="]
[]
[null,"6. Déterminez le chi-carré critique au seuil de signification à 0,05 (ou un niveau de risque d'erreur de 5%)"]
[]
[null,null,null,"c2 critique =    "]
[]
[null,"7. Énoncez la règle de décision et représentez graphiquement la décision "]
[]
[null,"Rejet de H0 si c2calculé > c2critique "]
[]
[]
[]
[]
[]
[]
[]
[]
[]
[]
[]
[]
[]
[]
[]
[]
[null,"8. Prenez une décision quant au rejet ou non de l'hypothèse nulle et concluez"]
[]
[null,"Décision"]
[]
[null,"Conclusion"]
[]
[null,"9. Le test est-il significatif au seuil de 0,01 (risque d'erreur de 1%)?"]

{"sheet":"Mesure d'association","index":3,"n_rows":38,"n_cols":6,"rows_kept":38,"cut":false,"hidden":false,"merged":[[31,1,31,6],[37,1,39,8],[29,1,29,8],[32,1,32,6],[35,2,35,5],[23,1,23,8],[30,1,30,8],[28,1,28,8],[1,1,1,8],[3,1,3,8],[5,2,5,5],[12,3,12,8],[14,1,14,8],[25,1,26,8]]}
[]
[null,"Mesure d'association basée sur le c2 "]
[]
[null,"Intérêt en anthropologie psychologique selon le niveau d'instruction (en fréquences observées)"]
[]
[null,null,"Type de présentation"]
[null,"Intérêt dans la matière","Film","Diapositives","Traditionnel","Total"]
[null,"Veut en savoir plus",12,6,4,22]
[null,"peu intéressé",10,10,6,26]
[null,"Pas du tout intéressé",8,16,18,42]
[null,"Total",30,30,30,90]
[]
[null,"c 2 =    ",9.89,"Test significatif au seuil de 0,05"]
[]
[null,"1. Calculez le coefficient de contingence pour déterminer l'intensité de la relation"]
[]
[]
[]
[]
[]
[null,"C =  ","RACINE(9,89/(9,89+90))"]
[]
[]
[null,"Règle pour l'interprétation des mesures d'association"]
[]
[null,"Puisque les mesures d'association s'étendent de 0 à 1, pour une relation avec au moins une variable nominale, il est possible de définir les échelles d'intensité. Mais, retenez qu'il n'y a pas de règle universelle! "]
[]
[]
[]
[]
[]
[]
[]
[]
[]
[null,null,"Imbeau, Louis (2009: 160)"]
[]
[null,"Interprétation statistique: La valeur du coefficient de contingence est de 0,31. D'après la règle d'interprétation des mesures nominales et ordinales ci-dessus (C > 30), on peut considérer la relation entre le type de présentation et l'intérêt pour l'anthropologie psychologique comme une relation forte. "]

{"sheet":"Exercice compl.","index":4,"n_rows":108,"n_cols":9,"rows_kept":108,"cut":false,"hidden":false,"merged":[[6,12,6,15],[7,2,7,4],[8,10,12,10],[3,1,3,9],[15,1,15,9],[60,1,60,8],[73,1,73,8],[1,1,1,8],[5,1,5,8],[20,6,34,8],[17,1,18,1],[17,2,17,3],[44,1,44,9],[109,1,109,8],[107,1,107,9],[36,1,36,8],[103,2,103,9],[105,2,105,9],[84,2,84,5],[101,1,101,8],[78,1,78,8],[82,1,82,8],[38,2,38,8],[39,2,39,8],[42,1,42,8],[43,4,43,7],[46,2,46,4],[54,1,54,8],[57,1,57,8]]}
[]
[null,"Exercice complémentaire : Test d'hypothèse du c2  et mesures d'association"]
[]
[null,"Y a-t-il une relation d'association entre l'importance de la religion et le sexe?"]
[]
[null,"Importance de la religion selon le sexe (en fréquences observées)"]
[]
[null,null,"Sexe"]
[null,"Importance de la religion","Femme","Homme","Total"]
[null,"Vraiment importante",25,20,45]
[null,"Assez importante",17,8,25]
[null,"Pas importante",5,10,15]
[null,"Pas du tout importante",2,13,15]
[null,"Total",49,51,100]
[]
[null,"1. Construire le tableau bivarié en % et le diagramme en bâtons groupés et analyser-les"]
[]
[null,"Importance de la religion","Sexe"]
[null,null,"Femme","Homme"]
[null,"Vraiment importante"]
[null,"Assez importante"]
[null,"Pas importante"]
[null,"Pas du tout importante"]
[null,"Total",100,100]
[]
[]
[]
[]
[]
[]
[]
[]
[]
[]
[]
[]
[null,"2. Formuler les hypothèses statistiques du test "]
[]
[null,"H0 : "]
[null,"Ha : "]
[]
[]
[null,"3. Calculer les fréquences attendues (théoriques) selon l'hypothèse nulle"]
[]
[null,"Fréquence attendue = (Fréquence rangée*Fréquence colonne) / Grand n"]
[]
[null,null,"Sexe"]
[null,"Importance de la religion","Femme","Homme","Total"]
[null,"Vraiment importante",null,null,45]
[null,"Assez importante",null,null,25]
[null,"Pas importante",null,null,15]
[null,"Pas du tout importante",null,null,15]
[null,"Total",49,51,100]
[]
[null,"a. S'il n'y avait pas de relation entre l'importance de la religion et le sexe, combien de femmes croiraient vraiment en l'importance de la religion?"]
[]
[]
[null,"b. S'il n'y avait pas de relation entre l'importance de la religion et le sexe, combien d'hommes croiraient vraiment en l'importance de la religion?"]
[]
[]
[null,"4. Calculer maintenant le chi-deux"]
[]
[null,"Catégories combinées","F0","Fa","(F0  -    Fa )","(F0  -    Fa )2","(F0  -    Fa )2 /Fa"]
[null,"Femme et vraiment importante",25]
[null,"Femme et assez importante",17]
[null,"Femme et pas importante",5]
[null,"Femme et pas du tout importante",2]
[null,"Homme et vraiment importante",20]
[null,"Homme et assez importante",8]
[null,"Homme et pas importante",10]
[null,"Homme et pas du tout importante",13]
[null,null,null,null,null,"c 2 =    ",null,null,"∑ (F0  -    Fa )2  /Fa"]
[]
[null,"5. Calculer le nombre de degrés de liberté du chi-carré"]
[]
[null,null,null,"dl= (r-1) (c-1)"]
[null,null,null,"(?-1) (?-1)= "]
[]
[null,"6. Déterminer la valeur critique au seuil de signification à 0,05 (niveau de risque d'erreur à 5%)"]
[]
[null,null,"c2 critique =    "]
[]
[null,"7. Énoncer la règle de décision et représenter graphiquement la décision"]
[]
[null,null,"Rejet de H0 si c 2calculé > c 2critique "]
[]
[]
[]
[]
[]
[]
[]
[]
[]
[]
[]
[]
[]
[]
[]
[]
[null,"8. Prendre une décision quant au rejet ou non de l'hypothèse nulle et conclure"]
[]
[null,"Décision"]
[]
[null,"Conclusion"]
[]
[null,"9. Est-il nécessaire de calculer l'intensité de la relation à l'aide d'une mesure d'association (coefficient de contingence)? Si non, dites pourquoi? Si oui, faites-le?"]

{"sheet":"Table Chi2","index":5,"n_rows":51,"n_cols":18,"rows_kept":51,"cut":false,"hidden":false,"merged":[[26,19,26,24],[20,13,20,17],[1,1,1,10],[13,3,13,10],[24,19,24,24],[25,19,25,24]]}
[]
[null,"Distribution du chi-carré de Pearson (table statistique)"]
[]
[]
[]
[]
[]
[]
[]
[]
[]
[]
[]
[null,null,null,"Probabilité (seuil de signification a)"]
[null,"dl",null,0.1,0.05,null,0.02,null,0.01,null,1E-3]
[]
[null,1,null,{"$f":"_xlfn.CHISQ.INV.RT(0.1,B17)","v":2.706},{"$f":"_xlfn.CHISQ.INV.RT(0.05,B17)","v":3.8410000000000002},null,{"$f":"_xlfn.CHISQ.INV.RT(0.02,B17)","v":5.4119999999999999},null,{"$f":"_xlfn.CHISQ.INV.RT(0.01,B17)","v":6.6349999999999998},null,{"$f":"_xlfn.CHISQ.INV.RT(0.001,B17)","v":10.827999999999999}]
[null,2,null,{"$f":"_xlfn.CHISQ.INV.RT(0.1,B18)","v":4.6050000000000004},{"$f":"_xlfn.CHISQ.INV.RT(0.05,B18)","v":5.9909999999999997},null,{"$f":"_xlfn.CHISQ.INV.RT(0.02,B18)","v":7.8239999999999998},null,{"$f":"_xlfn.CHISQ.INV.RT(0.01,B18)","v":9.2100000000000009},null,{"$f":"_xlfn.CHISQ.INV.RT(0.001,B18)","v":13.816000000000001}]
[null,3,null,6.2510000000000003,7.8150000000000004,null,9.8369999999999997,null,11.345000000000001,null,16.265999999999998]
[null,4,null,7.7789999999999999,{"$f":"_xlfn.CHISQ.INV.RT(0.05,B20)","v":9.4879999999999995},null,11.667999999999999,null,13.276999999999999,null,18.466999999999999]
[null,5,null,9.2360000000000007,11.07,null,13.388,null,15.086,null,20.515000000000001,null,"Exercice : Déterminer le score z correspond à un niveau de confiance à 97%"]
[]
[null,6,null,10.645,12.592000000000001,null,15.032999999999999,null,16.812000000000001,null,22.457999999999998]
[null,7,null,12.016999999999999,14.067,null,16.622,null,18.475000000000001,null,24.321999999999999]
[null,8,null,13.362,15.507,null,18.167999999999999,null,20.09,null,26.123999999999999,null,null,null,"a ="]
[null,9,null,14.683999999999999,16.919,null,19.678999999999998,null,21.666,null,27.876999999999999,null,null,null,"dl ="]
[null,10,null,15.987,18.306999999999999,null,21.161000000000001,null,23.209,null,29.588000000000001,null,null,null," Chi-2 critique =",null,null,{"$f":"CHIINV(R25,R26)","v":{"$error":"#NUM!"}}]
[]
[null,11,null,17.274999999999999,19.675000000000001,null,22.617999999999999,null,24.725000000000001,null,31.263999999999999]
[null,12,null,18.548999999999999,21.026,null,24.053999999999998,null,26.216999999999999,null,32.908999999999999]
[null,13,null,19.812000000000001,22.361999999999998,null,25.472000000000001,null,27.687999999999999,null,34.527999999999999]
[null,14,null,21.064,23.684999999999999,null,26.873000000000001,null,29.140999999999998,null,36.122999999999998]
[null,15,null,22.306999999999999,24.995999999999999,null,28.259,null,30.577999999999999,null,37.697000000000003]
[]
[null,16,null,23.542000000000002,26.295999999999999,null,29.632999999999999,null,32,null,{"$f":"_xlfn.CHISQ.INV.RT(0.001,B35)","v":39.252000000000002}]
[null,17,null,24.768999999999998,27.587,null,30.995000000000001,null,33.408999999999999,null,40.79]
[null,18,null,25.989000000000001,28.869,null,32.345999999999997,null,34.805,null,42.311999999999998]
[null,19,null,27.204000000000001,30.143999999999998,null,33.686999999999998,null,36.191000000000003,null,43.82]
[null,20,null,28.411999999999999,31.41,null,35.020000000000003,null,37.566000000000003,null,45.314999999999998]
[]
[null,21,null,29.614999999999998,32.670999999999999,null,36.343000000000004,null,38.932000000000002,null,46.796999999999997]
[null,22,null,{"$f":"_xlfn.CHISQ.INV.RT(0.1,B42)","v":30.812999999999999},33.923999999999999,null,37.658999999999999,null,40.289000000000001,null,48.268000000000001]
[null,23,null,32.006999999999998,35.171999999999997,null,38.968000000000004,null,41.637999999999998,null,49.728000000000002]
[null,24,null,33.195999999999998,36.414999999999999,null,40.270000000000003,null,42.98,null,51.179000000000002]
[null,25,null,34.381999999999998,37.652000000000001,null,41.566000000000003,null,44.314,null,52.62]
[]
[null,26,null,35.563000000000002,38.884999999999998,null,42.856000000000002,null,45.642000000000003,null,54.052]
[null,27,null,36.741,40.113,null,44.14,null,46.963000000000001,null,55.475999999999999]
[null,28,null,37.915999999999997,41.337000000000003,null,45.418999999999997,null,48.277999999999999,null,56.892000000000003]
[null,29,null,39.087000000000003,42.557000000000002,null,46.692999999999998,null,49.588000000000001,null,58.301000000000002]
[null,30,null,40.256,43.773000000000003,null,47.962000000000003,null,50.892000000000003,null,59.703000000000003]